Workbook

Sheet District
Y1: Do Not | AF1: Aberdeen
F2: District Name | G2: CASCADE | K2: <- Please select distrtict from this drop-down | X2: <<- Please Select District From Drop Down | Y2: Change | AF2: Brewster
F3: CCDDD | G3: =VLOOKUP(G2,CCDDD!B:C,2,0) -> 04228 | K3: 2021-22 | M3: 2020-21 | O3: 2011-12 | Q3: 2010-11 | S3: 2009-10 | U3: 2008-09 | W3: 2007-08 | AF3: Bridgeport
V4: %% | AF4: Burlington
H5: Final 2025-2026 | I5: % of PY | J5: Final 24-25 | K5: Final 2021-22 | L5: % of PY | M5: Final 2020-21 | O5: Prelim 2011-12 | P5: % of PY | Q5: Final 2010-11 | R5: % of PY | S5: Final 2009-10 | T5: % of PY | U5: Final 2008-09 | V5: of Prior Year | W5: 2007-08 | AF5: Cascade
F6: Regular Allocation | AF6: Cashmere
B7: 2 | F7: K-12 Migrant Students | G7: Average Number | H7: =IFERROR(VLOOKUP($G$3,'2025-26 FINAL Y'!$B$19:$AA$164,4,0),0) -> 53 | I7: =H7/J7 -> 1.127659574 | J7: =IFERROR(VLOOKUP($G$3,'2024-25 Final'!$B$19:$AA$164,4,0),0) -> 47 | K7: 338 | L7: =IFERROR(K7/M7-1,0) -> 0.1304347826 | M7: 299 | O7: =VLOOKUP($G$2,#REF!,$B7,FALSE) ->  | P7: =IF(Q7=0,0,O7/Q7) ->  | Q7: =VLOOKUP($G$2,#REF!,$B7,FALSE) ->  | R7: =IF(S7>0,Q7/S7,"-") ->  | S7: =VLOOKUP($G$2,#REF!,$B7,FALSE) ->  | T7: =IF(U7>0,S7/U7,"-") ->  | U7: =VLOOKUP($G$2,#REF!,$B7,FALSE) ->  | V7: =IF(W7>0,U7/W7,"-") ->  | W7: =VLOOKUP($G$2,#REF!,$B7,FALSE) ->  | Y7: 1 | Z7: 3 | AF7: Centralia
B8: 3 | G8: Regular Dollars | H8: =IFERROR(VLOOKUP($G$3,'2025-26 FINAL Y'!$B$19:$AA$164,5,0),0) -> 24893 | I8: 1.16284393 | J8: =IFERROR(VLOOKUP($G$3,'2024-25 Final'!$B$19:$AA$164,5,0),0) -> 21407 | K8: 159039 | L8: 0.3281029487 | M8: 119749 | O8: =VLOOKUP($G$2,#REF!,$B8,FALSE) ->  | Q8: =VLOOKUP($G$2,#REF!,$B8,FALSE) ->  | R8: =IF(S8>0,Q8/S8,"-") ->  | S8: =VLOOKUP($G$2,#REF!,$B8,FALSE) ->  | T8: =IF(U8>0,S8/U8,"-") ->  | U8: =VLOOKUP($G$2,#REF!,$B8,FALSE) ->  | W8: =VLOOKUP($G$2,#REF!,$B8,FALSE) ->  | Y8: 2 | Z8: 3 | AF8: College Place
B9: 4 | F9: Needs Support | G9: Average Number | H9: =IFERROR(VLOOKUP($G$3,'2025-26 FINAL Y'!$B$19:$AA$164,6,0),0) -> 13 | I9: 0.5 | J9: =IFERROR(VLOOKUP($G$3,'2024-25 Final'!$B$19:$AA$1646,6,0),0) -> 26 | K9: 59 | L9: -0.01666666667 | M9: 60 | O9: =VLOOKUP($G$2,#REF!,$B9,FALSE) ->  | P9: =IF(Q9=0,0,O9/Q9) ->  | Q9: =VLOOKUP($G$2,#REF!,$B9,FALSE) ->  | S9: =VLOOKUP($G$2,#REF!,$B9,FALSE) ->  | U9: =VLOOKUP($G$2,#REF!,$B9,FALSE) ->  | W9: =VLOOKUP($G$2,#REF!,$B9,FALSE) ->  | Y9: 1 | Z9: 4 | AF9: Columbia
B10: 5 | G10: Regular Dollars | H10: =IFERROR(VLOOKUP($G$3,'2025-26 FINAL Y'!$B$19:$AA$164,7,0),0) -> 1526 | I10: 0.5153664303 | J10: =IFERROR(VLOOKUP($G$3,'2024-25 Final'!$B$19:$AA$164,7,0),0) -> 2961 | K10: 6940 | L10: 0.1553187947 | M10: 6007 | O10: =VLOOKUP($G$2,#REF!,$B10,FALSE) ->  | P10: =IF(Q10=0,0,O10/Q10) ->  | Q10: =VLOOKUP($G$2,#REF!,$B10,FALSE) ->  | S10: =VLOOKUP($G$2,#REF!,$B10,FALSE) ->  | U10: =VLOOKUP($G$2,#REF!,$B10,FALSE) ->  | W10: =VLOOKUP($G$2,#REF!,$B10,FALSE) ->  | Y10: 2 | Z10: 4 | AF10: Conway
B11: 6 | F11: Priority Interruption | G11: Priority Number | H11: =IFERROR(VLOOKUP($G$3,'2025-26 FINAL Y'!$B$19:$AA$164,8,0),0) -> 11 | I11: 1.1 | J11: =IFERROR(VLOOKUP($G$3,'2024-25 Final'!$B$19:$AA$164,8,0),0) -> 10 | K11: 108 | L11: 0.1368421053 | M11: 95 | O11: =VLOOKUP($G$2,#REF!,$B11,FALSE) ->  | Q11: =VLOOKUP($G$2,#REF!,$B11,FALSE) ->  | S11: =VLOOKUP($G$2,#REF!,$B11,FALSE) ->  | U11: =VLOOKUP($G$2,#REF!,$B11,FALSE) ->  | W11: =VLOOKUP($G$2,#REF!,$B11,FALSE) ->  | Y11: 1 | Z11: 5 | AF11: East Valley
B12: 7 | G12: Priority Dollars | H12: =IFERROR(VLOOKUP($G$3,'2025-26 FINAL Y'!$B$19:$AA$164,9,0),0) -> 5166 | I12: 1.13413831 | J12: =IFERROR(VLOOKUP($G$3,'2024-25 Final'!$B$19:$AA$164,9,0),0) -> 4555 | K12: 50817 | L12: 0.335637501 | M12: 38047 | O12: =VLOOKUP($G$2,#REF!,$B12,FALSE) ->  | Q12: =VLOOKUP($G$2,#REF!,$B12,FALSE) ->  | S12: =VLOOKUP($G$2,#REF!,$B12,FALSE) ->  | U12: =VLOOKUP($G$2,#REF!,$B12,FALSE) ->  | W12: =VLOOKUP($G$2,#REF!,$B12,FALSE) ->  | Y12: 3 | Z12: 5 | AF12: Eastmont
B13: 8 | C13: Grades 1-5 | F13: Top 1/4 | G13: Attendance | H13: 78867 | I13: 1 | J13: 78867 | L13: =K13/M13-1 ->  | Q13: =VLOOKUP($G$2,#REF!,$B13,FALSE) ->  | S13: =VLOOKUP($G$2,#REF!,$B13,FALSE) ->  | U13: =VLOOKUP($G$2,#REF!,$B13,FALSE) ->  | W13: =VLOOKUP($G$2,#REF!,$B13,FALSE) ->  | Y13: 1 | Z13: 6 | AF13: Ellensburg
B14: 9 | G14: Dollars | H14: 78867 | I14: 1 | J14: 78867 | Q14: =VLOOKUP($G$2,#REF!,$B14,FALSE) ->  | S14: =VLOOKUP($G$2,#REF!,$B14,FALSE) ->  | U14: =VLOOKUP($G$2,#REF!,$B14,FALSE) ->  | W14: =VLOOKUP($G$2,#REF!,$B14,FALSE) ->  | Y14: 4 | Z14: 6 | AF14: Entiat
B15: 10 | F15: middle 2/4 | G15: Attendance | H15: 78867 | I15: 1 | J15: 78867 | Q15: =VLOOKUP($G$2,#REF!,$B15,FALSE) ->  | S15: =VLOOKUP($G$2,#REF!,$B15,FALSE) ->  | U15: =VLOOKUP($G$2,#REF!,$B15,FALSE) ->  | W15: =VLOOKUP($G$2,#REF!,$B15,FALSE) ->  | Y15: 1 | Z15: 7 | AF15: Ephrata
B16: 11 | G16: Dollars | H16: 78867 | I16: 1 | J16: 78867 | Q16: =VLOOKUP($G$2,#REF!,$B16,FALSE) ->  | S16: =VLOOKUP($G$2,#REF!,$B16,FALSE) ->  | U16: =VLOOKUP($G$2,#REF!,$B16,FALSE) ->  | W16: =VLOOKUP($G$2,#REF!,$B16,FALSE) ->  | Y16: 4 | Z16: 7 | AF16: Ferndale
B17: 12 | C17: Grades 6-8 | F17: Top 1/4 | G17: Attendance | H17: 78867 | I17: 1 | J17: 78867 | Q17: =VLOOKUP($G$2,#REF!,$B17,FALSE) ->  | S17: =VLOOKUP($G$2,#REF!,$B17,FALSE) ->  | U17: =VLOOKUP($G$2,#REF!,$B17,FALSE) ->  | W17: =VLOOKUP($G$2,#REF!,$B17,FALSE) ->  | Y17: 1 | Z17: 8 | AF17: Finley
B18: 13 | G18: Dollars | H18: 78867 | I18: 1 | J18: 78867 | Q18: =VLOOKUP($G$2,#REF!,$B18,FALSE) ->  | S18: =VLOOKUP($G$2,#REF!,$B18,FALSE) ->  | U18: =VLOOKUP($G$2,#REF!,$B18,FALSE) ->  | W18: =VLOOKUP($G$2,#REF!,$B18,FALSE) ->  | Y18: 4 | Z18: 8 | AF18: Goldendale
B19: 14 | F19: middle 2/4 | G19: Attendance | H19: 78867 | I19: 1 | J19: 78867 | Q19: =VLOOKUP($G$2,#REF!,$B19,FALSE) ->  | S19: =VLOOKUP($G$2,#REF!,$B19,FALSE) ->  | U19: =VLOOKUP($G$2,#REF!,$B19,FALSE) ->  | W19: =VLOOKUP($G$2,#REF!,$B19,FALSE) ->  | Y19: 1 | Z19: 9 | AF19: Grandview
B20: 15 | G20: Dollars | H20: 78867 | I20: 1 | J20: 78867 | Q20: =VLOOKUP($G$2,#REF!,$B20,FALSE) ->  | S20: =VLOOKUP($G$2,#REF!,$B20,FALSE) ->  | U20: =VLOOKUP($G$2,#REF!,$B20,FALSE) ->  | W20: =VLOOKUP($G$2,#REF!,$B20,FALSE) ->  | Y20: 4 | Z20: 9 | AF20: Granger
B21: 16 | C21: Grades 9-12 | F21: Top 1/4 | G21: Attendance | H21: 78867 | I21: 1 | J21: 78867 | Q21: =VLOOKUP($G$2,#REF!,$B21,FALSE) ->  | S21: =VLOOKUP($G$2,#REF!,$B21,FALSE) ->  | U21: =VLOOKUP($G$2,#REF!,$B21,FALSE) ->  | W21: =VLOOKUP($G$2,#REF!,$B21,FALSE) ->  | Y21: 1 | Z21: 10 | AF21: Highland
B22: 17 | G22: Dollars | H22: 78867 | I22: 1 | J22: 78867 | Q22: =VLOOKUP($G$2,#REF!,$B22,FALSE) ->  | S22: =VLOOKUP($G$2,#REF!,$B22,FALSE) ->  | U22: =VLOOKUP($G$2,#REF!,$B22,FALSE) ->  | W22: =VLOOKUP($G$2,#REF!,$B22,FALSE) ->  | Y22: 4 | Z22: 10 | AF22: Hoquiam
B23: 18 | F23: middle 2/4 | G23: Attendance | H23: 78867 | I23: 1 | J23: 78867 | Q23: =VLOOKUP($G$2,#REF!,$B23,FALSE) ->  | S23: =VLOOKUP($G$2,#REF!,$B23,FALSE) ->  | U23: =VLOOKUP($G$2,#REF!,$B23,FALSE) ->  | W23: =VLOOKUP($G$2,#REF!,$B23,FALSE) ->  | Y23: 1 | Z23: 11 | AF23: Kennewick
B24: 19 | G24: Dollars | H24: 78867 | I24: 1 | J24: 78867 | Q24: =VLOOKUP($G$2,#REF!,$B24,FALSE) ->  | S24: =VLOOKUP($G$2,#REF!,$B24,FALSE) ->  | U24: =VLOOKUP($G$2,#REF!,$B24,FALSE) ->  | W24: =VLOOKUP($G$2,#REF!,$B24,FALSE) ->  | Y24: 4 | Z24: 11 | AF24: Kiona Benton
B26: 20 | G26: Subtotal Dollars | H26: =IFERROR(VLOOKUP($G$3,'2025-26 FINAL Y'!$B$19:$AA$164,10,0),0) -> 31585 | I26: =H26/J26 -> 1.092037479 | J26: =IFERROR(VLOOKUP($G$3,'2024-25 Final'!$B$19:$AA$164,10,0),0) -> 28923 | K26: 216796 | L26: =IFERROR(K26/M26-1,0) -> 0.3235166633 | M26: 163803 | O26: =VLOOKUP($G$2,#REF!,8,FALSE) ->  | Q26: =VLOOKUP($G$2,#REF!,$B26,FALSE) ->  | S26: =VLOOKUP($G$2,#REF!,$B26,FALSE) ->  | U26: =VLOOKUP($G$2,#REF!,$B26,FALSE) ->  | W26: =VLOOKUP($G$2,#REF!,$B26,FALSE) ->  | AF26: La Conner
B28: 21 | F28: Other Fund Factor | H28: =IFERROR(VLOOKUP($G$3,'2025-26 FINAL Y'!$B$19:$AA$164,11,0),0) -> 1 | J28: =IFERROR(VLOOKUP($G$3,'2024-25 Final'!$B$19:$AA$164,11,0),0) -> 1 | K28: 0.95 | L28: =IFERROR(K28/M28-1,0) -> 0 | M28: 0.95 | O28: N/A | Q28: =VLOOKUP($G$2,#REF!,$B28,FALSE) ->  | S28: =VLOOKUP($G$2,#REF!,$B28,FALSE) ->  | U28: =VLOOKUP($G$2,#REF!,$B28,FALSE) ->  | W28: =VLOOKUP($G$2,#REF!,$B28,FALSE) ->  | Y28: 1 | Z28: 12 | AF28: Lake Chelan
B29: 22 | F29: Rural Factor | H29: =IFERROR(VLOOKUP($G$3,'2025-26 FINAL Y'!$B$19:$AA$164,13,0),0) -> 1 | J29: =IFERROR(VLOOKUP($G$3,'2024-25 Final'!$B$19:$AA$164,13,0),0) -> 1 | K29: 1 | L29: =IFERROR(K29/M29-1,0) -> 0 | M29: 1 | Q29: =VLOOKUP($G$2,#REF!,$B29,FALSE) ->  | S29: =VLOOKUP($G$2,#REF!,$B29,FALSE) ->  | U29: =VLOOKUP($G$2,#REF!,$B29,FALSE) ->  | W29: =VLOOKUP($G$2,#REF!,$B29,FALSE) ->  | Y29: 2 | Z29: 12 | AF29: Lake Quinault
B30: 23 | G30: Total Allocated Amount | H30: =IFERROR(VLOOKUP($G$3,'2025-26 FINAL Y'!$B$19:$AA$164,18,0),0) -> 31585 | I30: =H30/J30 -> 1.092037479 | J30: =IFERROR(VLOOKUP($G$3,'2024-25 Final'!$B$19:$AA$164,18,0),0) -> 28923 | K30: 205956 | L30: =IFERROR(K30/M30-1,0) -> 0.3235141023 | M30: 155613 | O30: =VLOOKUP($G$2,#REF!,9,FALSE) ->  | P30: =IF(Q30=0,0,O30/Q30) ->  | Q30: =VLOOKUP($G$2,#REF!,$B30,FALSE) ->  | S30: =VLOOKUP($G$2,#REF!,$B30,FALSE) ->  | U30: =VLOOKUP($G$2,#REF!,$B30,FALSE) ->  | W30: =VLOOKUP($G$2,#REF!,$B30,FALSE) ->  | Y30: 25 | AF30: Lind
O31: =IF(VLOOKUP($G$3,#REF!,15,FALSE)="Y","Not participating","") ->  | Q31: =IF(VLOOKUP($G$3,#REF!,29,FALSE)="Y","Not participating","") ->  | AF31: Lynden
F32: Summer Allocation | AF32: Mabton
F33: Allocation Factors | G33: Total Student | M33: 299 | Q33: =IF(ISNA(VLOOKUP($G$2,#REF!,Y33,FALSE)),0,VLOOKUP($G$2,#REF!,Y33,FALSE)) ->  | S33: =IF(ISNA(VLOOKUP($G$2,#REF!,AA33,FALSE)),0,VLOOKUP($G$2,#REF!,AA33,FALSE)) ->  | U33: =IF(ISNA(VLOOKUP($G$2,#REF!,$Y$33,FALSE)),0,VLOOKUP($G$2,#REF!,$Y$33,FALSE)) ->  | W33: =IF(ISNA(VLOOKUP($G$2,#REF!,AA33,FALSE)),0,VLOOKUP($G$2,#REF!,AA33,FALSE)) ->  | Y33: 2 | AA33: 2 | AF33: Manson
G34: Needs Service | M34: 60 | Q34: =IF(ISNA(VLOOKUP($G$2,#REF!,$AA$34,FALSE)),0,VLOOKUP($G$2,#REF!,$AA$34,FALSE)) ->  | S34: =IF(ISNA(VLOOKUP($G$2,#REF!,$AA$34,FALSE)),0,VLOOKUP($G$2,#REF!,$AA$34,FALSE)) ->  | U34: =IF(ISNA(VLOOKUP($G$2,#REF!,$Y$34,FALSE)),0,VLOOKUP($G$2,#REF!,$Y$34,FALSE)) ->  | W34: =IF(ISNA(VLOOKUP($G$2,#REF!,AA34,FALSE)),0,VLOOKUP($G$2,#REF!,AA34,FALSE)) ->  | Y34: 3 | AA34: 3 | AF34: Monroe
G35: Priority | M35: 95 | Q35: =IF(ISNA(VLOOKUP($G$2,#REF!,$AA$35,FALSE)),0,VLOOKUP($G$2,#REF!,$AA$35,FALSE)) ->  | S35: =IF(ISNA(VLOOKUP($G$2,#REF!,$AA$35,FALSE)),0,VLOOKUP($G$2,#REF!,$AA$35,FALSE)) ->  | U35: =IF(ISNA(VLOOKUP($G$2,#REF!,$Y$35,FALSE)),0,VLOOKUP($G$2,#REF!,$Y$35,FALSE)) ->  | W35: =IF(ISNA(VLOOKUP($G$2,#REF!,AA35,FALSE)),0,VLOOKUP($G$2,#REF!,AA35,FALSE)) ->  | Y35: 4 | AA35: 4 | AF35: Moses Lake
F36: Dollars | M36: 21049 | Q36: =IF(ISNA(VLOOKUP($G$2,#REF!,$AA$36,FALSE)),0,VLOOKUP($G$2,#REF!,$AA$36,FALSE)) ->  | S36: =IF(ISNA(VLOOKUP($G$2,#REF!,$AA$36,FALSE)),0,VLOOKUP($G$2,#REF!,$AA$36,FALSE)) ->  | U36: =IF(ISNA(VLOOKUP($G$2,#REF!,$Y$36,FALSE)),0,VLOOKUP($G$2,#REF!,$Y$36,FALSE)) ->  | W36: =IF(ISNA(VLOOKUP($G$2,#REF!,AA36,FALSE)),0,VLOOKUP($G$2,#REF!,AA36,FALSE)) ->  | Y36: 5 | AA36: 5 | AF36: Mossyrock
Q37: =IF(ISNA(VLOOKUP($G$2,#REF!,$AA$37,FALSE)),0,VLOOKUP($G$2,#REF!,$AA$37,FALSE)) ->  | S37: =IF(ISNA(VLOOKUP($G$2,#REF!,$AA$37,FALSE)),0,VLOOKUP($G$2,#REF!,$AA$37,FALSE)) ->  | U37: =IF(ISNA(VLOOKUP($G$2,#REF!,$Y$37,FALSE)),0,VLOOKUP($G$2,#REF!,$Y$37,FALSE)) ->  | W37: =IF(ISNA(VLOOKUP($G$2,#REF!,AA37,FALSE)),0,VLOOKUP($G$2,#REF!,AA37,FALSE)) ->  | Y37: 6 | AA37: 6 | AF37: Mount Vernon
F38: SY 25-26 Health Support Grant | H38: =IFERROR(VLOOKUP($G$3,'2025-26 FINAL Y'!$B$19:$AA$164,24,0),0) -> 750 | J38: =IFERROR(VLOOKUP($G$3,'2024-25 Final'!$B$19:$AA$164,24,0),0) -> 1500 | K38: 2500 | Q38: =IF(ISNA(VLOOKUP($G$2,#REF!,$AA$38,FALSE)),0,VLOOKUP($G$2,#REF!,$AA$38,FALSE)) ->  | S38: =IF(ISNA(VLOOKUP($G$2,#REF!,$AA$38,FALSE)),0,VLOOKUP($G$2,#REF!,$AA$38,FALSE)) ->  | U38: =IF(ISNA(VLOOKUP($G$2,#REF!,$Y$38,FALSE)),0,VLOOKUP($G$2,#REF!,$Y$38,FALSE)) ->  | W38: =IF(ISNA(VLOOKUP($G$2,#REF!,AA38,FALSE)),0,VLOOKUP($G$2,#REF!,AA38,FALSE)) ->  | Y38: 7 | AA38: 7 | AF38: Mt Adams
G39: Total Allocated Amount | H39: =H38+H30 -> 32335 | I39: =H39/J39 -> 1.062847188 | J39: =J38+J30 -> 30423 | K39: =K38+K30 -> 208456 | Q39: =IF(ISNA(VLOOKUP($G$2,#REF!,$AA$39,FALSE)),0,VLOOKUP($G$2,#REF!,$AA$39,FALSE)) ->  | S39: =IF(ISNA(VLOOKUP($G$2,#REF!,$AA$39,FALSE)),0,VLOOKUP($G$2,#REF!,$AA$39,FALSE)) ->  | U39: =IF(ISNA(VLOOKUP($G$2,#REF!,$Y$39,FALSE)),0,VLOOKUP($G$2,#REF!,$Y$39,FALSE)) ->  | V39: =IF(W39>0,U39/W39,"-") ->  | W39: =IF(ISNA(VLOOKUP($G$2,#REF!,AA39,FALSE)),0,VLOOKUP($G$2,#REF!,AA39,FALSE)) ->  | Y39: 8 | AA39: 8 | AF39: Naches
AF40: Naselle-Grays River
AF41: Nooksack Valley
AF42: North Franklin
AF43: Ocean Beach
AF44: Ocosta
AF45: Okanogan
AF46: Omak
AF47: Orondo
AF48: Oroville
AF49: Othello
AF50: Palisades
AF51: Pasco
AF52: Pateros
AF53: Paterson
AF54: Prosser
AF55: Quillayute Valley
AF56: Quincy
AF57: Rochester
AF58: Roosevelt
AF59: Royal City
AF60: Seattle
AF61: Sedro Woolley
AF62: Shelton
AF63: Soap Lake
AF64: South Bend
AF65: Sunnyside
AF66: Tacoma
AF67: Tonasket
AF68: Toppenish
AF69: Touchet
AF70: Union Gap
AF71: Vancouver
AF72: Wahkiakum
AF73: Wahluke
AF74: Walla Walla
AF75: Wapato
AF76: Warden
AF77: Waterville
AF78: Wenatchee
AF79: West Valley
AF80: White Salmon
AF81: Winlock
AF82: Yakima
AF83: Zillah

Sheet 2025-26 FINAL Y (hidden)
J1: From Assumptions Page:
D2: Constant Dollar Multipliers - Do Not Change Here | J2: Target Amounts | O2: =Assumptions!C24 -> 21400639
D3: 0 | F3: 2.036969198e+66 | G3: 469.6805243 | H3: Use CTRL K | J3: Actual Amounts | O3: =O18 -> 21400639
J4: Difference | O4: =O3-O2 -> 0
J6: 22016123
H7: Put total here | J7: =Assumptions!C24 -> 21400639
J10: Go to H9 & Control K to set dollar amount
E14: Migrant Students | V14: Accepting Funding? | X14: HOLD HARMLESS
D15: =G3 -> 469.6805243 | E15: K-12 | G15: Needs Support | I15: Priority Interuption
C16: CCDDD | D16: District | E16: Ave. number | F16: Regular Dollars | G16: Ave. number | H16: Regular Dollars | I16: Priority Number | J16: Priority Dollars | K16: Subtotal | L16: Other Funds Factor | M16: Subtotal 2 | N16: Add'l Rural Factor | O16: Total Allocated Amount | Q16: MOE | R16: MOE Red. | S16: Subtotal After MOE | V16: Y for yes, N for no (reallocates money) | X16: Override funding? Y for yes, otherwise blank. | Y16: Health Support Grant | Z16: Behavioral Health/OSY Supports | AA16: Total
E17: 10 | F17: =F18/E18 -> 469.680641 | G17: 0.25 | H17: =H18/G18 -> 119.9871543 | I17: 1 | J17: =J18/I18 -> 478.1103633 | N17: 0.1 | O17: 124
A18: 0 | C18: 99999 | D18: State Total | E18: =SUMIF(E19:E164,">-10") -> 30389 | F18: =SUM(F19:F164) -> 14273125 | G18: =SUMIF(G19:G164,">=10") -> 9653 | H18: =SUM(H19:H164) -> 1158236 | I18: =SUMIF(I19:I164,">=10") -> 11589 | J18: =SUM(J19:J164) -> 5540821 | K18: =SUM(K19:K164) -> 20972182 | M18: =SUM(M19:M164) -> 22080594 | O18: =SUM(O19:O164) -> 21400639 | R18: =SUM(R19:R152) -> 0 | S18: =SUM(S19:S164) -> 21400639 | T18: Previous Year Final Allocations | U18: Allocation Difference | W18: Consortia | Y18: =SUM(Y19:Y164) -> 97750 | Z18: =SUM(Z19:Z164) -> 305760 | AA18: =SUM(AA19:AA164) -> 21437786
A19: 1 | B19: 14005 | D19: ABERDEEN | E19: =IFERROR(VLOOKUP(B19,Enrollment!$A$2:$G$147,5,0),0) -> 167 | F19: =IF(E19>=10,ROUND(E19*$G$3,0),0) -> 78437 | G19: =IFERROR(VLOOKUP(B19,Enrollment!$A$2:$G$147,6,0),0) -> 30 | H19: =IF(E19>=$E$17,ROUND(G19*$G$3*$G$17,0),0) -> 3523 | I19: =IFERROR(VLOOKUP(B19,Enrollment!$A$2:$G$147,7,0),0) -> 82 | J19: =IF(E19>=$E$17,ROUND(I19*$G$3*$I$17,0),0) -> 38514 | K19: =+F19+H19+J19 -> 120474 | L19: =IF(E19>$E$17,_xlfn.IFNA(VLOOKUP(B19,'other funds ftr 2025'!A:I,9,FALSE),0),1) -> 0.95 | M19: =IF(L19=0,K19,ROUND(K19*L19,0)) -> 114450 | N19: =1+IF(ISNA(VLOOKUP(B19,'Rural and Low Income 25-26'!$A:$B,2,FALSE)),0,$N$17) -> 1 | O19: =IF(V19="y",ROUND(M19*N19,0),0) -> 114450 | R19: =ROUND(IF(Q19>0,-(0.9-Q19)*O19,0),0) -> 0 | S19: =O19+R19 -> 114450 | T19: =IFERROR(VLOOKUP(B19,'2024-25 Final'!$B$19:$AA$164,26,0),0) -> 95909 | U19: =S19-T19 -> 18541 | V19: y | Y19: =IF(V19="Y",IF(E19<=99,750,IF(AND(E19>=100,E19<=399),1250,2000)),0) -> 1250 | AA19: =IF(W19=1, 0, Y19+S19+Z19) -> 115700
A20: 2 | B20: 29103 | D20: ANACORTES | E20: =IFERROR(VLOOKUP(B20,Enrollment!$A$2:$G$147,5,0),0) -> 12 | F20: 5636 | G20: =IFERROR(VLOOKUP(B20,Enrollment!$A$2:$G$147,6,0),0) -> 5 | H20: 587 | I20: =IFERROR(VLOOKUP(B20,Enrollment!$A$2:$G$147,7,0),0) -> 1 | J20: 470 | K20: 6693 | L20: =IF(E20>$E$17,_xlfn.IFNA(VLOOKUP(B20,'other funds ftr 2025'!A:I,9,FALSE),0),1) -> 0 | M20: 6693 | N20: =1+IF(ISNA(VLOOKUP(B20,'Rural and Low Income 25-26'!$A:$B,2,FALSE)),0,$N$17) -> 1 | O20: 0 | R20: 0 | S20: 0 | T20: =IFERROR(VLOOKUP(B20,'2024-25 Final'!$B$19:$AA$164,26,0),0) -> 0 | U20: 0 | V20: n | Y20: 0 | AA20: 0
A21: 3 | B21: 31016 | D21: ARLINGTON | E21: =IFERROR(VLOOKUP(B21,Enrollment!$A$2:$G$147,5,0),0) -> 44 | F21: 20666 | G21: =IFERROR(VLOOKUP(B21,Enrollment!$A$2:$G$147,6,0),0) -> 16 | H21: 1879 | I21: =IFERROR(VLOOKUP(B21,Enrollment!$A$2:$G$147,7,0),0) -> 20 | J21: 9394 | K21: 31939 | L21: =IF(E21>$E$17,_xlfn.IFNA(VLOOKUP(B21,'other funds ftr 2025'!A:I,9,FALSE),0),1) -> 0 | M21: 31939 | N21: =1+IF(ISNA(VLOOKUP(B21,'Rural and Low Income 25-26'!$A:$B,2,FALSE)),0,$N$17) -> 1 | O21: 0 | R21: 0 | S21: 0 | T21: =IFERROR(VLOOKUP(B21,'2024-25 Final'!$B$19:$AA$164,26,0),0) -> 0 | U21: 0 | V21: n | Y21: 0 | AA21: 0
A22: 4 | B22: 17408 | D22: AUBURN | E22: =IFERROR(VLOOKUP(B22,Enrollment!$A$2:$G$147,5,0),0) -> 27 | F22: 12681 | G22: =IFERROR(VLOOKUP(B22,Enrollment!$A$2:$G$147,6,0),0) -> 17 | H22: 1996 | I22: =IFERROR(VLOOKUP(B22,Enrollment!$A$2:$G$147,7,0),0) -> 7 | J22: 3288 | K22: 17965 | L22: =IF(E22>$E$17,_xlfn.IFNA(VLOOKUP(B22,'other funds ftr 2025'!A:I,9,FALSE),0),1) -> 0 | M22: 17965 | N22: =1+IF(ISNA(VLOOKUP(B22,'Rural and Low Income 25-26'!$A:$B,2,FALSE)),0,$N$17) -> 1 | O22: 0 | R22: 0 | S22: 0 | T22: =IFERROR(VLOOKUP(B22,'2024-25 Final'!$B$19:$AA$164,26,0),0) -> 0 | U22: 0 | V22: n | Y22: 0 | AA22: 0
A23: 5 | B23: 06119 | D23: BATTLE GROUND | E23: =IFERROR(VLOOKUP(B23,Enrollment!$A$2:$G$147,5,0),0) -> 26 | F23: 12212 | G23: =IFERROR(VLOOKUP(B23,Enrollment!$A$2:$G$147,6,0),0) -> 13 | H23: 1526 | I23: =IFERROR(VLOOKUP(B23,Enrollment!$A$2:$G$147,7,0),0) -> 2 | J23: 939 | K23: 14677 | L23: =IF(E23>$E$17,_xlfn.IFNA(VLOOKUP(B23,'other funds ftr 2025'!A:I,9,FALSE),0),1) -> 0 | M23: 14677 | N23: =1+IF(ISNA(VLOOKUP(B23,'Rural and Low Income 25-26'!$A:$B,2,FALSE)),0,$N$17) -> 1 | O23: 0 | R23: 0 | S23: 0 | T23: =IFERROR(VLOOKUP(B23,'2024-25 Final'!$B$19:$AA$164,26,0),0) -> 0 | U23: 0 | V23: n | Y23: 0 | AA23: 0
A24: 6 | B24: 37501 | D24: BELLINGHAM | E24: =IFERROR(VLOOKUP(B24,Enrollment!$A$2:$G$147,5,0),0) -> 94 | F24: 44150 | G24: =IFERROR(VLOOKUP(B24,Enrollment!$A$2:$G$147,6,0),0) -> 34 | H24: 3992 | I24: =IFERROR(VLOOKUP(B24,Enrollment!$A$2:$G$147,7,0),0) -> 28 | J24: 13151 | K24: 61293 | L24: =IF(E24>$E$17,_xlfn.IFNA(VLOOKUP(B24,'other funds ftr 2025'!A:I,9,FALSE),0),1) -> 0 | M24: 61293 | N24: =1+IF(ISNA(VLOOKUP(B24,'Rural and Low Income 25-26'!$A:$B,2,FALSE)),0,$N$17) -> 1 | O24: 0 | R24: 0 | S24: 0 | T24: =IFERROR(VLOOKUP(B24,'2024-25 Final'!$B$19:$AA$164,26,0),0) -> 0 | U24: 0 | V24: n | Y24: 0 | AA24: 0
A25: 7 | B25: 27403 | D25: BETHEL | E25: =IFERROR(VLOOKUP(B25,Enrollment!$A$2:$G$147,5,0),0) -> 13 | F25: 6106 | G25: =IFERROR(VLOOKUP(B25,Enrollment!$A$2:$G$147,6,0),0) -> 8 | H25: 939 | I25: =IFERROR(VLOOKUP(B25,Enrollment!$A$2:$G$147,7,0),0) -> 1 | J25: 470 | K25: 7515 | L25: =IF(E25>$E$17,_xlfn.IFNA(VLOOKUP(B25,'other funds ftr 2025'!A:I,9,FALSE),0),1) -> 0 | M25: 7515 | N25: =1+IF(ISNA(VLOOKUP(B25,'Rural and Low Income 25-26'!$A:$B,2,FALSE)),0,$N$17) -> 1 | O25: 0 | R25: 0 | S25: 0 | T25: =IFERROR(VLOOKUP(B25,'2024-25 Final'!$B$19:$AA$164,26,0),0) -> 0 | U25: 0 | V25: n | Y25: 0 | AA25: 0
A26: 8 | B26: 18100 | D26: BREMERTON | E26: =IFERROR(VLOOKUP(B26,Enrollment!$A$2:$G$147,5,0),0) -> 57 | F26: 26772 | G26: =IFERROR(VLOOKUP(B26,Enrollment!$A$2:$G$147,6,0),0) -> 22 | H26: 2583 | I26: =IFERROR(VLOOKUP(B26,Enrollment!$A$2:$G$147,7,0),0) -> 10 | J26: 4697 | K26: 34052 | L26: =IF(E26>$E$17,_xlfn.IFNA(VLOOKUP(B26,'other funds ftr 2025'!A:I,9,FALSE),0),1) -> 0.95 | M26: 32349 | N26: =1+IF(ISNA(VLOOKUP(B26,'Rural and Low Income 25-26'!$A:$B,2,FALSE)),0,$N$17) -> 1 | O26: 32349 | R26: 0 | S26: 32349 | T26: =IFERROR(VLOOKUP(B26,'2024-25 Final'!$B$19:$AA$164,26,0),0) -> 41957 | U26: -9608 | V26: y | Y26: 750 | AA26: 33099
A27: 9 | B27: 24111 | D27: BREWSTER | E27: =IFERROR(VLOOKUP(B27,Enrollment!$A$2:$G$147,5,0),0) -> 217 | F27: 101921 | G27: =IFERROR(VLOOKUP(B27,Enrollment!$A$2:$G$147,6,0),0) -> 49 | H27: 5754 | I27: =IFERROR(VLOOKUP(B27,Enrollment!$A$2:$G$147,7,0),0) -> 88 | J27: 41332 | K27: 149007 | L27: =IF(E27>$E$17,_xlfn.IFNA(VLOOKUP(B27,'other funds ftr 2025'!A:I,9,FALSE),0),1) -> 1.05 | M27: 156457 | N27: =1+IF(ISNA(VLOOKUP(B27,'Rural and Low Income 25-26'!$A:$B,2,FALSE)),0,$N$17) -> 1.1 | O27: 172103 | R27: 0 | S27: 172103 | T27: =IFERROR(VLOOKUP(B27,'2024-25 Final'!$B$19:$AA$164,26,0),0) -> 195831 | U27: -23728 | V27: y | Y27: 1250 | AA27: 173353
A28: 10 | B28: 09075 | D28: BRIDGEPORT | E28: =IFERROR(VLOOKUP(B28,Enrollment!$A$2:$G$147,5,0),0) -> 164 | F28: 77028 | G28: =IFERROR(VLOOKUP(B28,Enrollment!$A$2:$G$147,6,0),0) -> 42 | H28: 4932 | I28: =IFERROR(VLOOKUP(B28,Enrollment!$A$2:$G$147,7,0),0) -> 54 | J28: 25363 | K28: 107323 | L28: =IF(E28>$E$17,_xlfn.IFNA(VLOOKUP(B28,'other funds ftr 2025'!A:I,9,FALSE),0),1) -> 1 | M28: 107323 | N28: =1+IF(ISNA(VLOOKUP(B28,'Rural and Low Income 25-26'!$A:$B,2,FALSE)),0,$N$17) -> 1.1 | O28: 118055 | R28: 0 | S28: 118055 | T28: =IFERROR(VLOOKUP(B28,'2024-25 Final'!$B$19:$AA$164,26,0),0) -> 95088 | U28: 22967 | V28: y | Y28: 1250 | AA28: 119305
A29: 11 | B29: 29100 | D29: BURLINGTON-EDISON | E29: =IFERROR(VLOOKUP(B29,Enrollment!$A$2:$G$147,5,0),0) -> 517 | F29: 242825 | G29: =IFERROR(VLOOKUP(B29,Enrollment!$A$2:$G$147,6,0),0) -> 139 | H29: 16321 | I29: =IFERROR(VLOOKUP(B29,Enrollment!$A$2:$G$147,7,0),0) -> 173 | J29: 81255 | K29: 340401 | L29: =IF(E29>$E$17,_xlfn.IFNA(VLOOKUP(B29,'other funds ftr 2025'!A:I,9,FALSE),0),1) -> 1.05 | M29: 357421 | N29: =1+IF(ISNA(VLOOKUP(B29,'Rural and Low Income 25-26'!$A:$B,2,FALSE)),0,$N$17) -> 1 | O29: 357421 | R29: 0 | S29: 357421 | T29: =IFERROR(VLOOKUP(B29,'2024-25 Final'!$B$19:$AA$164,26,0),0) -> 387791 | U29: -30370 | V29: y | Y29: 2000 | AA29: 359421
A30: 12 | B30: 04228 | D30: CASCADE | E30: =IFERROR(VLOOKUP(B30,Enrollment!$A$2:$G$147,5,0),0) -> 53 | F30: 24893 | G30: =IFERROR(VLOOKUP(B30,Enrollment!$A$2:$G$147,6,0),0) -> 13 | H30: 1526 | I30: =IFERROR(VLOOKUP(B30,Enrollment!$A$2:$G$147,7,0),0) -> 11 | J30: 5166 | K30: 31585 | L30: =IF(E30>$E$17,_xlfn.IFNA(VLOOKUP(B30,'other funds ftr 2025'!A:I,9,FALSE),0),1) -> 1 | M30: 31585 | N30: =1+IF(ISNA(VLOOKUP(B30,'Rural and Low Income 25-26'!$A:$B,2,FALSE)),0,$N$17) -> 1 | O30: 31585 | R30: 0 | S30: 31585 | T30: =IFERROR(VLOOKUP(B30,'2024-25 Final'!$B$19:$AA$164,26,0),0) -> 30423 | U30: 1162 | V30: y | Y30: 750 | AA30: 32335
A31: 14 | B31: 04222 | D31: CASHMERE | E31: =IFERROR(VLOOKUP(B31,Enrollment!$A$2:$G$147,5,0),0) -> 162 | F31: 76088 | G31: =IFERROR(VLOOKUP(B31,Enrollment!$A$2:$G$147,6,0),0) -> 42 | H31: 4932 | I31: =IFERROR(VLOOKUP(B31,Enrollment!$A$2:$G$147,7,0),0) -> 26 | J31: 12212 | K31: 93232 | L31: =IF(E31>$E$17,_xlfn.IFNA(VLOOKUP(B31,'other funds ftr 2025'!A:I,9,FALSE),0),1) -> 1.1 | M31: 102555 | N31: =1+IF(ISNA(VLOOKUP(B31,'Rural and Low Income 25-26'!$A:$B,2,FALSE)),0,$N$17) -> 1 | O31: 102555 | R31: 0 | S31: 102555 | T31: =IFERROR(VLOOKUP(B31,'2024-25 Final'!$B$19:$AA$164,26,0),0) -> 149800 | U31: -47245 | V31: y | Y31: 1250 | AA31: 103805
A32: 13 | B32: 18401 | D32: CENTRAL KITSAP | E32: =IFERROR(VLOOKUP(B32,Enrollment!$A$2:$G$147,5,0),0) -> 15 | F32: 7045 | G32: =IFERROR(VLOOKUP(B32,Enrollment!$A$2:$G$147,6,0),0) -> 9 | H32: 1057 | I32: =IFERROR(VLOOKUP(B32,Enrollment!$A$2:$G$147,7,0),0) -> 4 | J32: 1879 | K32: 9981 | L32: =IF(E32>$E$17,_xlfn.IFNA(VLOOKUP(B32,'other funds ftr 2025'!A:I,9,FALSE),0),1) -> 0 | M32: 9981 | N32: =1+IF(ISNA(VLOOKUP(B32,'Rural and Low Income 25-26'!$A:$B,2,FALSE)),0,$N$17) -> 1 | O32: 0 | R32: =ROUND(IF(Q32>0,-(0.9-Q32)*O32,0),0) -> 0 | S32: 0 | T32: =IFERROR(VLOOKUP(B32,'2024-25 Final'!$B$19:$AA$164,26,0),0) -> 0 | U32: 0 | V32: n | Y32: 0 | AA32: 0
A33: 15 | B33: 32356 | D33: CENTRAL VALLEY | E33: =IFERROR(VLOOKUP(B33,Enrollment!$A$2:$G$147,5,0),0) -> 17 | F33: 7985 | G33: =IFERROR(VLOOKUP(B33,Enrollment!$A$2:$G$147,6,0),0) -> 5 | H33: 587 | I33: =IFERROR(VLOOKUP(B33,Enrollment!$A$2:$G$147,7,0),0) -> 1 | J33: 470 | K33: 9042 | L33: =IF(E33>$E$17,_xlfn.IFNA(VLOOKUP(B33,'other funds ftr 2025'!A:I,9,FALSE),0),1) -> 0.95 | M33: 8590 | N33: =1+IF(ISNA(VLOOKUP(B33,'Rural and Low Income 25-26'!$A:$B,2,FALSE)),0,$N$17) -> 1 | O33: 0 | R33: =ROUND(IF(Q33>0,-(0.9-Q33)*O33,0),0) -> 0 | S33: 0 | T33: =IFERROR(VLOOKUP(B33,'2024-25 Final'!$B$19:$AA$164,26,0),0) -> 18011 | U33: -18011 | V33: n | Y33: 0 | AA33: 0
A34: 16 | B34: 21401 | D34: CENTRALIA | E34: =IFERROR(VLOOKUP(B34,Enrollment!$A$2:$G$147,5,0),0) -> 86 | F34: 40393 | G34: =IFERROR(VLOOKUP(B34,Enrollment!$A$2:$G$147,6,0),0) -> 19 | H34: 2231 | I34: =IFERROR(VLOOKUP(B34,Enrollment!$A$2:$G$147,7,0),0) -> 48 | J34: 22545 | K34: 65169 | L34: =IF(E34>$E$17,_xlfn.IFNA(VLOOKUP(B34,'other funds ftr 2025'!A:I,9,FALSE),0),1) -> 0.95 | M34: 61911 | N34: =1+IF(ISNA(VLOOKUP(B34,'Rural and Low Income 25-26'!$A:$B,2,FALSE)),0,$N$17) -> 1 | O34: 61911 | R34: =ROUND(IF(Q34>0,-(0.9-Q34)*O34,0),0) -> 0 | S34: 61911 | T34: =IFERROR(VLOOKUP(B34,'2024-25 Final'!$B$19:$AA$164,26,0),0) -> 56020 | U34: 5891 | V34: y | X34: Y | Y34: 750 | AA34: 62661
A35: 17 | B35: 21302 | D35: CHEHALIS | E35: =IFERROR(VLOOKUP(B35,Enrollment!$A$2:$G$147,5,0),0) -> 32 | F35: 15030 | G35: =IFERROR(VLOOKUP(B35,Enrollment!$A$2:$G$147,6,0),0) -> 17 | H35: 1996 | I35: =IFERROR(VLOOKUP(B35,Enrollment!$A$2:$G$147,7,0),0) -> 6 | J35: 2818 | K35: 19844 | L35: =IF(E35>$E$17,_xlfn.IFNA(VLOOKUP(B35,'other funds ftr 2025'!A:I,9,FALSE),0),1) -> 0.95 | M35: 18852 | N35: =1+IF(ISNA(VLOOKUP(B35,'Rural and Low Income 25-26'!$A:$B,2,FALSE)),0,$N$17) -> 1 | O35: 18852 | R35: 0 | S35: 18852 | T35: =IFERROR(VLOOKUP(B35,'2024-25 Final'!$B$19:$AA$164,26,0),0) -> 19457 | U35: -605 | V35: y | Y35: 750 | AA35: 19602
A36: 18 | B36: 32360 | D36: CHENEY | E36: =IFERROR(VLOOKUP(B36,Enrollment!$A$2:$G$147,5,0),0) -> 13 | F36: 6106 | G36: =IFERROR(VLOOKUP(B36,Enrollment!$A$2:$G$147,6,0),0) -> 6 | H36: 705 | I36: =IFERROR(VLOOKUP(B36,Enrollment!$A$2:$G$147,7,0),0) -> 3 | J36: 1409 | K36: 8220 | L36: =IF(E36>$E$17,_xlfn.IFNA(VLOOKUP(B36,'other funds ftr 2025'!A:I,9,FALSE),0),1) -> 0 | M36: 8220 | N36: =1+IF(ISNA(VLOOKUP(B36,'Rural and Low Income 25-26'!$A:$B,2,FALSE)),0,$N$17) -> 1 | O36: 0 | R36: =ROUND(IF(Q36>0,-(0.9-Q36)*O36,0),0) -> 0 | S36: 0 | T36: =IFERROR(VLOOKUP(B36,'2024-25 Final'!$B$19:$AA$164,26,0),0) -> 0 | U36: 0 | V36: n | X36: Y | Y36: 0 | AA36: 0
A37: 19 | B37: 27901 | D37: CHIEF LESCHI TRIBAL COMPACT | E37: =IFERROR(VLOOKUP(B37,Enrollment!$A$2:$G$147,5,0),0) -> 31 | F37: 14560 | G37: =IFERROR(VLOOKUP(B37,Enrollment!$A$2:$G$147,6,0),0) -> 13 | H37: 1526 | I37: =IFERROR(VLOOKUP(B37,Enrollment!$A$2:$G$147,7,0),0) -> 9 | J37: 4227 | K37: 20313 | L37: =IF(E37>$E$17,_xlfn.IFNA(VLOOKUP(B37,'other funds ftr 2025'!A:I,9,FALSE),0),1) -> 1.05 | M37: 21329 | N37: =1+IF(ISNA(VLOOKUP(B37,'Rural and Low Income 25-26'!$A:$B,2,FALSE)),0,$N$17) -> 1 | O37: 0 | R37: 0 | S37: 0 | T37: =IFERROR(VLOOKUP(B37,'2024-25 Final'!$B$19:$AA$164,26,0),0) -> 35217 | U37: -35217 | V37: n | Y37: 0 | AA37: 0
A38: 20 | B38: 27400 | D38: CLOVER PARK | E38: =IFERROR(VLOOKUP(B38,Enrollment!$A$2:$G$147,5,0),0) -> 0 | F38: 0 | G38: =IFERROR(VLOOKUP(B38,Enrollment!$A$2:$G$147,6,0),0) -> 0 | H38: 0 | I38: =IFERROR(VLOOKUP(B38,Enrollment!$A$2:$G$147,7,0),0) -> 0 | J38: 0 | K38: 0 | L38: =IF(E38>$E$17,_xlfn.IFNA(VLOOKUP(B38,'other funds ftr 2025'!A:I,9,FALSE),0),1) -> 1 | M38: 0 | N38: =1+IF(ISNA(VLOOKUP(B38,'Rural and Low Income 25-26'!$A:$B,2,FALSE)),0,$N$17) -> 1 | O38: 0 | R38: 0 | S38: 0 | T38: =IFERROR(VLOOKUP(B38,'2024-25 Final'!$B$19:$AA$164,26,0),0) -> 0 | U38: 0 | V38: n | Y38: 0 | AA38: 0
A39: 21 | B39: 36250 | D39: COLLEGE PLACE | E39: =IFERROR(VLOOKUP(B39,Enrollment!$A$2:$G$147,5,0),0) -> 196 | F39: 92057 | G39: =IFERROR(VLOOKUP(B39,Enrollment!$A$2:$G$147,6,0),0) -> 28 | H39: 3288 | I39: =IFERROR(VLOOKUP(B39,Enrollment!$A$2:$G$147,7,0),0) -> 103 | J39: 48377 | K39: 143722 | L39: =IF(E39>$E$17,_xlfn.IFNA(VLOOKUP(B39,'other funds ftr 2025'!A:I,9,FALSE),0),1) -> 1.05 | M39: 150908 | N39: =1+IF(ISNA(VLOOKUP(B39,'Rural and Low Income 25-26'!$A:$B,2,FALSE)),0,$N$17) -> 1 | O39: 150908 | R39: 0 | S39: 150908 | T39: =IFERROR(VLOOKUP(B39,'2024-25 Final'!$B$19:$AA$164,26,0),0) -> 171284 | U39: -20376 | V39: y | Y39: 1250 | AA39: 152158
A40: 22 | B40: 36400 | D40: COLUMBIA (WALLA WALLA) | E40: =IFERROR(VLOOKUP(B40,Enrollment!$A$2:$G$147,5,0),0) -> 52 | F40: 24423 | G40: =IFERROR(VLOOKUP(B40,Enrollment!$A$2:$G$147,6,0),0) -> 21 | H40: 2466 | I40: =IFERROR(VLOOKUP(B40,Enrollment!$A$2:$G$147,7,0),0) -> 19 | J40: 8924 | K40: 35813 | L40: =IF(E40>$E$17,_xlfn.IFNA(VLOOKUP(B40,'other funds ftr 2025'!A:I,9,FALSE),0),1) -> 1 | M40: 35813 | N40: =1+IF(ISNA(VLOOKUP(B40,'Rural and Low Income 25-26'!$A:$B,2,FALSE)),0,$N$17) -> 1 | O40: 35813 | R40: 0 | S40: 35813 | T40: =IFERROR(VLOOKUP(B40,'2024-25 Final'!$B$19:$AA$164,26,0),0) -> 0 | U40: 35813 | V40: y | W40: 1 | Y40: 750 | AA40: 0
A41: 23 | B41: 29317 | D41: CONWAY | E41: =IFERROR(VLOOKUP(B41,Enrollment!$A$2:$G$147,5,0),0) -> 0 | F41: 0 | G41: =IFERROR(VLOOKUP(B41,Enrollment!$A$2:$G$147,6,0),0) -> 0 | H41: 0 | I41: =IFERROR(VLOOKUP(B41,Enrollment!$A$2:$G$147,7,0),0) -> 0 | J41: 0 | K41: 0 | L41: =IF(E41>$E$17,_xlfn.IFNA(VLOOKUP(B41,'other funds ftr 2025'!A:I,9,FALSE),0),1) -> 1 | M41: 0 | N41: =1+IF(ISNA(VLOOKUP(B41,'Rural and Low Income 25-26'!$A:$B,2,FALSE)),0,$N$17) -> 1.1 | O41: 0 | R41: 0 | S41: 0 | T41: =IFERROR(VLOOKUP(B41,'2024-25 Final'!$B$19:$AA$164,26,0),0) -> 0 | U41: 0 | V41: n | Y41: 0 | AA41: 0
A42: 24 | B42: 15204 | D42: COUPEVILLE | E42: =IFERROR(VLOOKUP(B42,Enrollment!$A$2:$G$147,5,0),0) -> 0 | F42: 0 | G42: =IFERROR(VLOOKUP(B42,Enrollment!$A$2:$G$147,6,0),0) -> 0 | H42: 0 | I42: =IFERROR(VLOOKUP(B42,Enrollment!$A$2:$G$147,7,0),0) -> 0 | J42: 0 | K42: 0 | L42: =IF(E42>$E$17,_xlfn.IFNA(VLOOKUP(B42,'other funds ftr 2025'!A:I,9,FALSE),0),1) -> 1 | M42: 0 | N42: =1+IF(ISNA(VLOOKUP(B42,'Rural and Low Income 25-26'!$A:$B,2,FALSE)),0,$N$17) -> 1 | O42: 0 | R42: 0 | S42: 0 | T42: =IFERROR(VLOOKUP(B42,'2024-25 Final'!$B$19:$AA$164,26,0),0) -> 8639 | U42: -8639 | V42: n | Y42: 0 | AA42: 0
A43: 25 | B43: 39090 | D43: EAST VALLEY (YAKIMA) | E43: =IFERROR(VLOOKUP(B43,Enrollment!$A$2:$G$147,5,0),0) -> 195 | F43: 91588 | G43: =IFERROR(VLOOKUP(B43,Enrollment!$A$2:$G$147,6,0),0) -> 97 | H43: 11390 | I43: =IFERROR(VLOOKUP(B43,Enrollment!$A$2:$G$147,7,0),0) -> 19 | J43: 8924 | K43: 111902 | L43: =IF(E43>$E$17,_xlfn.IFNA(VLOOKUP(B43,'other funds ftr 2025'!A:I,9,FALSE),0),1) -> 0 | M43: 111902 | N43: =1+IF(ISNA(VLOOKUP(B43,'Rural and Low Income 25-26'!$A:$B,2,FALSE)),0,$N$17) -> 1 | O43: 0 | R43: 0 | S43: 0 | T43: =IFERROR(VLOOKUP(B43,'2024-25 Final'!$B$19:$AA$164,26,0),0) -> 0 | U43: 0 | V43: n | Y43: 0 | AA43: 0
A44: 26 | B44: 09206 | D44: EASTMONT | E44: =IFERROR(VLOOKUP(B44,Enrollment!$A$2:$G$147,5,0),0) -> 833 | F44: 391244 | G44: =IFERROR(VLOOKUP(B44,Enrollment!$A$2:$G$147,6,0),0) -> 333 | H44: 39101 | I44: =IFERROR(VLOOKUP(B44,Enrollment!$A$2:$G$147,7,0),0) -> 274 | J44: 128692 | K44: 559037 | L44: =IF(E44>$E$17,_xlfn.IFNA(VLOOKUP(B44,'other funds ftr 2025'!A:I,9,FALSE),0),1) -> 1.05 | M44: 586989 | N44: =1+IF(ISNA(VLOOKUP(B44,'Rural and Low Income 25-26'!$A:$B,2,FALSE)),0,$N$17) -> 1 | O44: 586989 | R44: 0 | S44: 586989 | T44: =IFERROR(VLOOKUP(B44,'2024-25 Final'!$B$19:$AA$164,26,0),0) -> 737368 | U44: -150379 | V44: y | Y44: 2000 | AA44: 588989
A45: 27 | B45: 19028 | D45: EASTON | E45: =IFERROR(VLOOKUP(B45,Enrollment!$A$2:$G$147,5,0),0) -> 0 | F45: 0 | G45: =IFERROR(VLOOKUP(B45,Enrollment!$A$2:$G$147,6,0),0) -> 0 | H45: 0 | I45: =IFERROR(VLOOKUP(B45,Enrollment!$A$2:$G$147,7,0),0) -> 0 | J45: 0 | K45: 0 | L45: =IF(E45>$E$17,_xlfn.IFNA(VLOOKUP(B45,'other funds ftr 2025'!A:I,9,FALSE),0),1) -> 1 | M45: 0 | N45: =1+IF(ISNA(VLOOKUP(B45,'Rural and Low Income 25-26'!$A:$B,2,FALSE)),0,$N$17) -> 1.1 | O45: 0 | R45: 0 | S45: 0 | T45: =IFERROR(VLOOKUP(B45,'2024-25 Final'!$B$19:$AA$164,26,0),0) -> 0 | U45: 0 | V45: n | Y45: 0 | AA45: 0
A46: 28 | B46: 31015 | D46: EDMONDS | E46: =IFERROR(VLOOKUP(B46,Enrollment!$A$2:$G$147,5,0),0) -> 19 | F46: 8924 | G46: =IFERROR(VLOOKUP(B46,Enrollment!$A$2:$G$147,6,0),0) -> 4 | H46: 470 | I46: =IFERROR(VLOOKUP(B46,Enrollment!$A$2:$G$147,7,0),0) -> 8 | J46: 3757 | K46: 13151 | L46: =IF(E46>$E$17,_xlfn.IFNA(VLOOKUP(B46,'other funds ftr 2025'!A:I,9,FALSE),0),1) -> 0.95 | M46: 12493 | N46: =1+IF(ISNA(VLOOKUP(B46,'Rural and Low Income 25-26'!$A:$B,2,FALSE)),0,$N$17) -> 1 | O46: 0 | R46: 0 | S46: 0 | T46: =IFERROR(VLOOKUP(B46,'2024-25 Final'!$B$19:$AA$164,26,0),0) -> 15163 | U46: -15163 | V46: n | Y46: 0 | AA46: 0
A47: 29 | B47: 39801 | D47: EDUCATIONAL SERVICE DISTRICT 105 | E47: =IFERROR(VLOOKUP(B47,Enrollment!$A$2:$G$147,5,0),0) -> 0 | F47: 0 | G47: =IFERROR(VLOOKUP(B47,Enrollment!$A$2:$G$147,6,0),0) -> 0 | H47: 0 | I47: =IFERROR(VLOOKUP(B47,Enrollment!$A$2:$G$147,7,0),0) -> 0 | J47: 0 | K47: 0 | L47: =IF(E47>$E$17,_xlfn.IFNA(VLOOKUP(B47,'other funds ftr 2025'!A:I,9,FALSE),0),1) -> 1 | M47: 0 | N47: =1+IF(ISNA(VLOOKUP(B47,'Rural and Low Income 25-26'!$A:$B,2,FALSE)),0,$N$17) -> 1 | O47: 0 | R47: 0 | S47: 0 | T47: =IFERROR(VLOOKUP(B47,'2024-25 Final'!$B$19:$AA$164,26,0),0) -> 0 | U47: 0 | V47: n | Y47: 0 | AA47: 0
A48: 30 | B48: 11801 | D48: EDUCATIONAL SERVICE DISTRICT 123 | E48: =IFERROR(VLOOKUP(B48,Enrollment!$A$2:$G$147,5,0),0) -> 0 | F48: 0 | G48: =IFERROR(VLOOKUP(B48,Enrollment!$A$2:$G$147,6,0),0) -> 0 | H48: 0 | I48: =IFERROR(VLOOKUP(B48,Enrollment!$A$2:$G$147,7,0),0) -> 0 | J48: 0 | K48: 0 | L48: =IF(E48>$E$17,_xlfn.IFNA(VLOOKUP(B48,'other funds ftr 2025'!A:I,9,FALSE),0),1) -> 1 | M48: 0 | N48: =1+IF(ISNA(VLOOKUP(B48,'Rural and Low Income 25-26'!$A:$B,2,FALSE)),0,$N$17) -> 1 | O48: 0 | R48: 0 | S48: 0 | T48: =IFERROR(VLOOKUP(B48,'2024-25 Final'!$B$19:$AA$164,26,0),0) -> 0 | U48: 0 | V48: n | Y48: 0 | AA48: 0
A49: 31 | B49: 19401 | D49: ELLENSBURG | E49: =IFERROR(VLOOKUP(B49,Enrollment!$A$2:$G$147,5,0),0) -> 22 | F49: 10333 | G49: =IFERROR(VLOOKUP(B49,Enrollment!$A$2:$G$147,6,0),0) -> 12 | H49: 1409 | I49: =IFERROR(VLOOKUP(B49,Enrollment!$A$2:$G$147,7,0),0) -> 1 | J49: 470 | K49: 12212 | L49: =IF(E49>$E$17,_xlfn.IFNA(VLOOKUP(B49,'other funds ftr 2025'!A:I,9,FALSE),0),1) -> 0 | M49: 12212 | N49: =1+IF(ISNA(VLOOKUP(B49,'Rural and Low Income 25-26'!$A:$B,2,FALSE)),0,$N$17) -> 1 | O49: 0 | R49: 0 | S49: 0 | T49: =IFERROR(VLOOKUP(B49,'2024-25 Final'!$B$19:$AA$164,26,0),0) -> 0 | U49: 0 | V49: n | Y49: 0 | AA49: 0
A50: 32 | B50: 14068 | D50: ELMA | E50: =IFERROR(VLOOKUP(B50,Enrollment!$A$2:$G$147,5,0),0) -> 27 | F50: 12681 | G50: =IFERROR(VLOOKUP(B50,Enrollment!$A$2:$G$147,6,0),0) -> 15 | H50: 1761 | I50: =IFERROR(VLOOKUP(B50,Enrollment!$A$2:$G$147,7,0),0) -> 1 | J50: 470 | K50: 14912 | L50: =IF(E50>$E$17,_xlfn.IFNA(VLOOKUP(B50,'other funds ftr 2025'!A:I,9,FALSE),0),1) -> 0 | M50: 14912 | N50: =1+IF(ISNA(VLOOKUP(B50,'Rural and Low Income 25-26'!$A:$B,2,FALSE)),0,$N$17) -> 1 | O50: 0 | R50: 0 | S50: 0 | T50: =IFERROR(VLOOKUP(B50,'2024-25 Final'!$B$19:$AA$164,26,0),0) -> 0 | U50: 0 | V50: n | Y50: 0 | AA50: 0
A51: 33 | B51: 04127 | D51: ENTIAT | E51: =IFERROR(VLOOKUP(B51,Enrollment!$A$2:$G$147,5,0),0) -> 70 | F51: =IF(E51>=10,ROUND(E51*$G$3,0),0) -> 32878 | G51: =IFERROR(VLOOKUP(B51,Enrollment!$A$2:$G$147,6,0),0) -> 11 | H51: =IF(E51>=$E$17,ROUND(G51*$G$3*$G$17,0),0) -> 1292 | I51: =IFERROR(VLOOKUP(B51,Enrollment!$A$2:$G$147,7,0),0) -> 42 | J51: =IF(E51>=$E$17,ROUND(I51*$G$3*$I$17,0),0) -> 19727 | K51: =+F51+H51+J51 -> 53897 | L51: =IF(E51>$E$17,_xlfn.IFNA(VLOOKUP(B51,'other funds ftr 2025'!A:I,9,FALSE),0),1) -> 0 | M51: =IF(L51=0,K51,ROUND(K51*L51,0)) -> 53897 | N51: =1+IF(ISNA(VLOOKUP(B51,'Rural and Low Income 25-26'!$A:$B,2,FALSE)),0,$N$17) -> 1.1 | O51: =IF(V51="y",ROUND(M51*N51,0),0) -> 0 | R51: 0 | S51: =O51+R51 -> 0 | T51: =IFERROR(VLOOKUP(B51,'2024-25 Final'!$B$19:$AA$164,26,0),0) -> 0 | U51: =S51-T51 -> 0 | V51: n | Y51: =IF(V51="Y",IF(E51<=99,750,IF(AND(E51>=100,E51<=399),1250,2000)),0) -> 0 | AA51: =IF(W51=1, 0, Y51+S51+Z51) -> 0
A52: 34 | B52: 13165 | D52: EPHRATA | E52: =IFERROR(VLOOKUP(B52,Enrollment!$A$2:$G$147,5,0),0) -> 126 | F52: 59180 | G52: =IFERROR(VLOOKUP(B52,Enrollment!$A$2:$G$147,6,0),0) -> 33 | H52: 3875 | I52: =IFERROR(VLOOKUP(B52,Enrollment!$A$2:$G$147,7,0),0) -> 33 | J52: 15499 | K52: 78554 | L52: =IF(E52>$E$17,_xlfn.IFNA(VLOOKUP(B52,'other funds ftr 2025'!A:I,9,FALSE),0),1) -> 1 | M52: 78554 | N52: =1+IF(ISNA(VLOOKUP(B52,'Rural and Low Income 25-26'!$A:$B,2,FALSE)),0,$N$17) -> 1 | O52: 78554 | R52: 0 | S52: 78554 | T52: =IFERROR(VLOOKUP(B52,'2024-25 Final'!$B$19:$AA$164,26,0),0) -> 102817 | U52: -24263 | V52: y | Y52: 1250 | AA52: 79804
A53: 35 | B53: 31002 | D53: EVERETT | E53: =IFERROR(VLOOKUP(B53,Enrollment!$A$2:$G$147,5,0),0) -> 49 | F53: 23014 | G53: =IFERROR(VLOOKUP(B53,Enrollment!$A$2:$G$147,6,0),0) -> 14 | H53: 1644 | I53: =IFERROR(VLOOKUP(B53,Enrollment!$A$2:$G$147,7,0),0) -> 21 | J53: 9863 | K53: 34521 | L53: =IF(E53>$E$17,_xlfn.IFNA(VLOOKUP(B53,'other funds ftr 2025'!A:I,9,FALSE),0),1) -> 0 | M53: 34521 | N53: =1+IF(ISNA(VLOOKUP(B53,'Rural and Low Income 25-26'!$A:$B,2,FALSE)),0,$N$17) -> 1 | O53: 0 | R53: 0 | S53: 0 | T53: =IFERROR(VLOOKUP(B53,'2024-25 Final'!$B$19:$AA$164,26,0),0) -> 0 | U53: 0 | V53: n | Y53: 0 | AA53: 0
A54: 36 | B54: 06114 | D54: EVERGREEN (CLARK) | E54: =IFERROR(VLOOKUP(B54,Enrollment!$A$2:$G$147,5,0),0) -> 32 | F54: 15030 | G54: =IFERROR(VLOOKUP(B54,Enrollment!$A$2:$G$147,6,0),0) -> 16 | H54: 1879 | I54: =IFERROR(VLOOKUP(B54,Enrollment!$A$2:$G$147,7,0),0) -> 7 | J54: 3288 | K54: 20197 | L54: =IF(E54>$E$17,_xlfn.IFNA(VLOOKUP(B54,'other funds ftr 2025'!A:I,9,FALSE),0),1) -> 0 | M54: 20197 | N54: =1+IF(ISNA(VLOOKUP(B54,'Rural and Low Income 25-26'!$A:$B,2,FALSE)),0,$N$17) -> 1 | O54: 0 | R54: 0 | S54: 0 | T54: =IFERROR(VLOOKUP(B54,'2024-25 Final'!$B$19:$AA$164,26,0),0) -> 0 | U54: 0 | V54: n | Y54: 0 | AA54: 0
A55: 37 | B55: 17210 | D55: FEDERAL WAY | E55: =IFERROR(VLOOKUP(B55,Enrollment!$A$2:$G$147,5,0),0) -> 20 | F55: 9394 | G55: =IFERROR(VLOOKUP(B55,Enrollment!$A$2:$G$147,6,0),0) -> 6 | H55: 705 | I55: =IFERROR(VLOOKUP(B55,Enrollment!$A$2:$G$147,7,0),0) -> 3 | J55: 1409 | K55: 11508 | L55: =IF(E55>$E$17,_xlfn.IFNA(VLOOKUP(B55,'other funds ftr 2025'!A:I,9,FALSE),0),1) -> 0 | M55: 11508 | N55: =1+IF(ISNA(VLOOKUP(B55,'Rural and Low Income 25-26'!$A:$B,2,FALSE)),0,$N$17) -> 1 | O55: 0 | R55: 0 | S55: 0 | T55: =IFERROR(VLOOKUP(B55,'2024-25 Final'!$B$19:$AA$164,26,0),0) -> 0 | U55: 0 | V55: n | X55: Y | Y55: 0 | AA55: 0
A56: 38 | B56: 37502 | D56: FERNDALE | E56: =IFERROR(VLOOKUP(B56,Enrollment!$A$2:$G$147,5,0),0) -> 113 | F56: 53074 | G56: =IFERROR(VLOOKUP(B56,Enrollment!$A$2:$G$147,6,0),0) -> 16 | H56: 1879 | I56: =IFERROR(VLOOKUP(B56,Enrollment!$A$2:$G$147,7,0),0) -> 27 | J56: 12681 | K56: 67634 | L56: =IF(E56>$E$17,_xlfn.IFNA(VLOOKUP(B56,'other funds ftr 2025'!A:I,9,FALSE),0),1) -> 0.95 | M56: 64252 | N56: =1+IF(ISNA(VLOOKUP(B56,'Rural and Low Income 25-26'!$A:$B,2,FALSE)),0,$N$17) -> 1 | O56: 64252 | R56: 0 | S56: 64252 | T56: =IFERROR(VLOOKUP(B56,'2024-25 Final'!$B$19:$AA$164,26,0),0) -> 86193 | U56: -21941 | V56: y | X56: Y | Y56: 1250 | AA56: 65502
A57: 39 | B57: 03053 | D57: FINLEY | E57: =IFERROR(VLOOKUP(B57,Enrollment!$A$2:$G$147,5,0),0) -> 86 | F57: 40393 | G57: =IFERROR(VLOOKUP(B57,Enrollment!$A$2:$G$147,6,0),0) -> 23 | H57: 2701 | I57: =IFERROR(VLOOKUP(B57,Enrollment!$A$2:$G$147,7,0),0) -> 33 | J57: 15499 | K57: 58593 | L57: =IF(E57>$E$17,_xlfn.IFNA(VLOOKUP(B57,'other funds ftr 2025'!A:I,9,FALSE),0),1) -> 1.05 | M57: 61523 | N57: =1+IF(ISNA(VLOOKUP(B57,'Rural and Low Income 25-26'!$A:$B,2,FALSE)),0,$N$17) -> 1 | O57: 61523 | R57: 0 | S57: 61523 | T57: =IFERROR(VLOOKUP(B57,'2024-25 Final'!$B$19:$AA$164,26,0),0) -> 0 | U57: 61523 | V57: y | W57: 1 | Y57: 750 | AA57: 0
A58: 40 | B58: 27402 | D58: FRANKLIN PIERCE | E58: =IFERROR(VLOOKUP(B58,Enrollment!$A$2:$G$147,5,0),0) -> 10 | F58: 4697 | G58: =IFERROR(VLOOKUP(B58,Enrollment!$A$2:$G$147,6,0),0) -> 1 | H58: 117 | I58: =IFERROR(VLOOKUP(B58,Enrollment!$A$2:$G$147,7,0),0) -> 3 | J58: 1409 | K58: 6223 | L58: =IF(E58>$E$17,_xlfn.IFNA(VLOOKUP(B58,'other funds ftr 2025'!A:I,9,FALSE),0),1) -> 1 | M58: 6223 | N58: =1+IF(ISNA(VLOOKUP(B58,'Rural and Low Income 25-26'!$A:$B,2,FALSE)),0,$N$17) -> 1 | O58: 0 | R58: 0 | S58: 0 | T58: =IFERROR(VLOOKUP(B58,'2024-25 Final'!$B$19:$AA$164,26,0),0) -> 0 | U58: 0 | V58: n | Y58: 0 | AA58: 0
A59: 41 | B59: 20404 | D59: GOLDENDALE | E59: =IFERROR(VLOOKUP(B59,Enrollment!$A$2:$G$147,5,0),0) -> 56 | F59: 26302 | G59: =IFERROR(VLOOKUP(B59,Enrollment!$A$2:$G$147,6,0),0) -> 15 | H59: 1761 | I59: =IFERROR(VLOOKUP(B59,Enrollment!$A$2:$G$147,7,0),0) -> 25 | J59: 11742 | K59: 39805 | L59: =IF(E59>$E$17,_xlfn.IFNA(VLOOKUP(B59,'other funds ftr 2025'!A:I,9,FALSE),0),1) -> 1 | M59: 39805 | N59: =1+IF(ISNA(VLOOKUP(B59,'Rural and Low Income 25-26'!$A:$B,2,FALSE)),0,$N$17) -> 1 | O59: 39805 | R59: 0 | S59: 39805 | T59: =IFERROR(VLOOKUP(B59,'2024-25 Final'!$B$19:$AA$164,26,0),0) -> 56112 | U59: -16307 | V59: y | Y59: 750 | AA59: 40555
A60: 42 | B60: 13301 | D60: GRAND COULEE DAM | E60: =IFERROR(VLOOKUP(B60,Enrollment!$A$2:$G$147,5,0),0) -> 223 | F60: 104739 | G60: =IFERROR(VLOOKUP(B60,Enrollment!$A$2:$G$147,6,0),0) -> 88 | H60: 10333 | I60: =IFERROR(VLOOKUP(B60,Enrollment!$A$2:$G$147,7,0),0) -> 36 | J60: 16908 | K60: 131980 | L60: =IF(E60>$E$17,_xlfn.IFNA(VLOOKUP(B60,'other funds ftr 2025'!A:I,9,FALSE),0),1) -> 1.1 | M60: 145178 | N60: =1+IF(ISNA(VLOOKUP(B60,'Rural and Low Income 25-26'!$A:$B,2,FALSE)),0,$N$17) -> 1 | O60: 145178 | R60: 0 | S60: 145178 | T60: =IFERROR(VLOOKUP(B60,'2024-25 Final'!$B$19:$AA$164,26,0),0) -> 210047 | U60: -64869 | V60: y | Y60: 1250 | AA60: 146428
A61: 43 | B61: 39200 | D61: GRANDVIEW | E61: =IFERROR(VLOOKUP(B61,Enrollment!$A$2:$G$147,5,0),0) -> 652 | F61: 306232 | G61: =IFERROR(VLOOKUP(B61,Enrollment!$A$2:$G$147,6,0),0) -> 197 | H61: 23132 | I61: =IFERROR(VLOOKUP(B61,Enrollment!$A$2:$G$147,7,0),0) -> 272 | J61: 127753 | K61: 457117 | L61: =IF(E61>$E$17,_xlfn.IFNA(VLOOKUP(B61,'other funds ftr 2025'!A:I,9,FALSE),0),1) -> 1.05 | M61: 479973 | N61: =1+IF(ISNA(VLOOKUP(B61,'Rural and Low Income 25-26'!$A:$B,2,FALSE)),0,$N$17) -> 1.1 | O61: 527970 | R61: 0 | S61: 527970 | T61: =IFERROR(VLOOKUP(B61,'2024-25 Final'!$B$19:$AA$164,26,0),0) -> 458213 | U61: 69757 | V61: y | Y61: 2000 | AA61: 529970
A62: 44 | B62: 39204 | D62: GRANGER | E62: =IFERROR(VLOOKUP(B62,Enrollment!$A$2:$G$147,5,0),0) -> 315 | F62: 147949 | G62: =IFERROR(VLOOKUP(B62,Enrollment!$A$2:$G$147,6,0),0) -> 102 | H62: 11977 | I62: =IFERROR(VLOOKUP(B62,Enrollment!$A$2:$G$147,7,0),0) -> 84 | J62: 39453 | K62: 199379 | L62: =IF(E62>$E$17,_xlfn.IFNA(VLOOKUP(B62,'other funds ftr 2025'!A:I,9,FALSE),0),1) -> 1.05 | M62: 209348 | N62: =1+IF(ISNA(VLOOKUP(B62,'Rural and Low Income 25-26'!$A:$B,2,FALSE)),0,$N$17) -> 1 | O62: 209348 | R62: 0 | S62: 209348 | T62: =IFERROR(VLOOKUP(B62,'2024-25 Final'!$B$19:$AA$164,26,0),0) -> 252119 | U62: -42771 | V62: y | Y62: 1250 | AA62: 210598
A63: 45 | B63: 39203 | D63: HIGHLAND | E63: =IFERROR(VLOOKUP(B63,Enrollment!$A$2:$G$147,5,0),0) -> 220 | F63: 103330 | G63: =IFERROR(VLOOKUP(B63,Enrollment!$A$2:$G$147,6,0),0) -> 75 | H63: 8807 | I63: =IFERROR(VLOOKUP(B63,Enrollment!$A$2:$G$147,7,0),0) -> 63 | J63: 29590 | K63: 141727 | L63: =IF(E63>$E$17,_xlfn.IFNA(VLOOKUP(B63,'other funds ftr 2025'!A:I,9,FALSE),0),1) -> 1.05 | M63: 148813 | N63: =1+IF(ISNA(VLOOKUP(B63,'Rural and Low Income 25-26'!$A:$B,2,FALSE)),0,$N$17) -> 1 | O63: 148813 | R63: 0 | S63: 148813 | T63: =IFERROR(VLOOKUP(B63,'2024-25 Final'!$B$19:$AA$164,26,0),0) -> 168929 | U63: -20116 | V63: y | Y63: 1250 | AA63: 150063
A64: 46 | B64: 17401 | D64: HIGHLINE | E64: =IFERROR(VLOOKUP(B64,Enrollment!$A$2:$G$147,5,0),0) -> 0 | F64: 0 | G64: =IFERROR(VLOOKUP(B64,Enrollment!$A$2:$G$147,6,0),0) -> 0 | H64: 0 | I64: =IFERROR(VLOOKUP(B64,Enrollment!$A$2:$G$147,7,0),0) -> 0 | J64: 0 | K64: 0 | L64: =IF(E64>$E$17,_xlfn.IFNA(VLOOKUP(B64,'other funds ftr 2025'!A:I,9,FALSE),0),1) -> 1 | M64: 0 | N64: =1+IF(ISNA(VLOOKUP(B64,'Rural and Low Income 25-26'!$A:$B,2,FALSE)),0,$N$17) -> 1 | O64: 0 | R64: 0 | S64: 0 | T64: =IFERROR(VLOOKUP(B64,'2024-25 Final'!$B$19:$AA$164,26,0),0) -> 0 | U64: 0 | V64: n | X64: Y | Y64: 0 | AA64: 0
A65: 47 | B65: 23404 | D65: HOOD CANAL | E65: =IFERROR(VLOOKUP(B65,Enrollment!$A$2:$G$147,5,0),0) -> 31 | F65: 14560 | G65: =IFERROR(VLOOKUP(B65,Enrollment!$A$2:$G$147,6,0),0) -> 18 | H65: 2114 | I65: =IFERROR(VLOOKUP(B65,Enrollment!$A$2:$G$147,7,0),0) -> 6 | J65: 2818 | K65: 19492 | L65: =IF(E65>$E$17,_xlfn.IFNA(VLOOKUP(B65,'other funds ftr 2025'!A:I,9,FALSE),0),1) -> 1.05 | M65: 20467 | N65: =1+IF(ISNA(VLOOKUP(B65,'Rural and Low Income 25-26'!$A:$B,2,FALSE)),0,$N$17) -> 1.1 | O65: 22514 | R65: 0 | S65: 22514 | T65: =IFERROR(VLOOKUP(B65,'2024-25 Final'!$B$19:$AA$164,26,0),0) -> 41581 | U65: -19067 | V65: y | Y65: 750 | AA65: 23264
A66: 48 | B66: 14028 | D66: HOQUIAM | E66: =IFERROR(VLOOKUP(B66,Enrollment!$A$2:$G$147,5,0),0) -> 20 | F66: 9394 | G66: =IFERROR(VLOOKUP(B66,Enrollment!$A$2:$G$147,6,0),0) -> 8 | H66: 939 | I66: =IFERROR(VLOOKUP(B66,Enrollment!$A$2:$G$147,7,0),0) -> 0 | J66: 0 | K66: 10333 | L66: =IF(E66>$E$17,_xlfn.IFNA(VLOOKUP(B66,'other funds ftr 2025'!A:I,9,FALSE),0),1) -> 0 | M66: 10333 | N66: =1+IF(ISNA(VLOOKUP(B66,'Rural and Low Income 25-26'!$A:$B,2,FALSE)),0,$N$17) -> 1.1 | O66: 0 | R66: 0 | S66: 0 | T66: =IFERROR(VLOOKUP(B66,'2024-25 Final'!$B$19:$AA$164,26,0),0) -> 0 | U66: 0 | V66: n | Y66: 0 | AA66: 0
A67: 49 | B67: 10070 | D67: INCHELIUM | E67: =IFERROR(VLOOKUP(B67,Enrollment!$A$2:$G$147,5,0),0) -> 13 | F67: 6106 | G67: =IFERROR(VLOOKUP(B67,Enrollment!$A$2:$G$147,6,0),0) -> 7 | H67: 822 | I67: =IFERROR(VLOOKUP(B67,Enrollment!$A$2:$G$147,7,0),0) -> 4 | J67: 1879 | K67: 8807 | L67: =IF(E67>$E$17,_xlfn.IFNA(VLOOKUP(B67,'other funds ftr 2025'!A:I,9,FALSE),0),1) -> 1 | M67: 8807 | N67: =1+IF(ISNA(VLOOKUP(B67,'Rural and Low Income 25-26'!$A:$B,2,FALSE)),0,$N$17) -> 1.1 | O67: 9688 | R67: 0 | S67: 9688 | T67: =IFERROR(VLOOKUP(B67,'2024-25 Final'!$B$19:$AA$164,26,0),0) -> 13901 | U67: -4213 | V67: y | Y67: 750 | AA67: 10438
A68: 50 | B68: 08458 | D68: KELSO | E68: =IFERROR(VLOOKUP(B68,Enrollment!$A$2:$G$147,5,0),0) -> 33 | F68: 15499 | G68: =IFERROR(VLOOKUP(B68,Enrollment!$A$2:$G$147,6,0),0) -> 17 | H68: 1996 | I68: =IFERROR(VLOOKUP(B68,Enrollment!$A$2:$G$147,7,0),0) -> 8 | J68: 3757 | K68: 21252 | L68: =IF(E68>$E$17,_xlfn.IFNA(VLOOKUP(B68,'other funds ftr 2025'!A:I,9,FALSE),0),1) -> 0 | M68: 21252 | N68: =1+IF(ISNA(VLOOKUP(B68,'Rural and Low Income 25-26'!$A:$B,2,FALSE)),0,$N$17) -> 1 | O68: 21252 | R68: =ROUND(IF(Q68>0,-(0.9-Q68)*O68,0),0) -> 0 | S68: 21252 | T68: =IFERROR(VLOOKUP(B68,'2024-25 Final'!$B$19:$AA$164,26,0),0) -> 0 | U68: 21252 | V68: y | Y68: 750 | AA68: 22002
A69: 51 | B69: 03017 | D69: KENNEWICK | E69: =IFERROR(VLOOKUP(B69,Enrollment!$A$2:$G$147,5,0),0) -> 2693 | F69: 1264850 | G69: =IFERROR(VLOOKUP(B69,Enrollment!$A$2:$G$147,6,0),0) -> 1012 | H69: 118829 | I69: =IFERROR(VLOOKUP(B69,Enrollment!$A$2:$G$147,7,0),0) -> 1290 | J69: 605888 | K69: 1989567 | L69: =IF(E69>$E$17,_xlfn.IFNA(VLOOKUP(B69,'other funds ftr 2025'!A:I,9,FALSE),0),1) -> 1.05 | M69: 2089045 | N69: =1+IF(ISNA(VLOOKUP(B69,'Rural and Low Income 25-26'!$A:$B,2,FALSE)),0,$N$17) -> 1 | O69: 2089045 | R69: 0 | S69: 2089045 | T69: =IFERROR(VLOOKUP(B69,'2024-25 Final'!$B$19:$AA$164,26,0),0) -> 2021118 | U69: 67927 | V69: y | Y69: 2000 | AA69: 2091045
A70: 52 | B70: 17415 | D70: KENT | E70: =IFERROR(VLOOKUP(B70,Enrollment!$A$2:$G$147,5,0),0) -> 24 | F70: 11272 | G70: =IFERROR(VLOOKUP(B70,Enrollment!$A$2:$G$147,6,0),0) -> 10 | H70: 1174 | I70: =IFERROR(VLOOKUP(B70,Enrollment!$A$2:$G$147,7,0),0) -> 4 | J70: 1879 | K70: 14325 | L70: =IF(E70>$E$17,_xlfn.IFNA(VLOOKUP(B70,'other funds ftr 2025'!A:I,9,FALSE),0),1) -> 0 | M70: 14325 | N70: =1+IF(ISNA(VLOOKUP(B70,'Rural and Low Income 25-26'!$A:$B,2,FALSE)),0,$N$17) -> 1 | O70: 0 | R70: 0 | S70: 0 | T70: =IFERROR(VLOOKUP(B70,'2024-25 Final'!$B$19:$AA$164,26,0),0) -> 0 | U70: 0 | V70: n | Y70: 0 | AA70: 0
A71: 53 | B71: 03052 | D71: KIONA-BENTON CITY | E71: =IFERROR(VLOOKUP(B71,Enrollment!$A$2:$G$147,5,0),0) -> 314 | F71: 147480 | G71: =IFERROR(VLOOKUP(B71,Enrollment!$A$2:$G$147,6,0),0) -> 142 | H71: 16674 | I71: =IFERROR(VLOOKUP(B71,Enrollment!$A$2:$G$147,7,0),0) -> 98 | J71: 46029 | K71: 210183 | L71: =IF(E71>$E$17,_xlfn.IFNA(VLOOKUP(B71,'other funds ftr 2025'!A:I,9,FALSE),0),1) -> 1.1 | M71: 231201 | N71: =1+IF(ISNA(VLOOKUP(B71,'Rural and Low Income 25-26'!$A:$B,2,FALSE)),0,$N$17) -> 1 | O71: 231201 | R71: 0 | S71: 231201 | T71: =IFERROR(VLOOKUP(B71,'2024-25 Final'!$B$19:$AA$164,26,0),0) -> 266412 | U71: -35211 | V71: y | Y71: 1250 | AA71: 232451
A72: 54 | B72: 19403 | D72: KITTITAS | E72: =IFERROR(VLOOKUP(B72,Enrollment!$A$2:$G$147,5,0),0) -> 14 | F72: 6576 | G72: =IFERROR(VLOOKUP(B72,Enrollment!$A$2:$G$147,6,0),0) -> 10 | H72: 1174 | I72: =IFERROR(VLOOKUP(B72,Enrollment!$A$2:$G$147,7,0),0) -> 1 | J72: 470 | K72: 8220 | L72: =IF(E72>$E$17,_xlfn.IFNA(VLOOKUP(B72,'other funds ftr 2025'!A:I,9,FALSE),0),1) -> 0 | M72: 8220 | N72: =1+IF(ISNA(VLOOKUP(B72,'Rural and Low Income 25-26'!$A:$B,2,FALSE)),0,$N$17) -> 1.1 | O72: 0 | R72: 0 | S72: 0 | T72: =IFERROR(VLOOKUP(B72,'2024-25 Final'!$B$19:$AA$164,26,0),0) -> 0 | U72: 0 | V72: n | Y72: 0 | AA72: 0
A73: 55 | B73: 29311 | D73: LA CONNER | E73: =IFERROR(VLOOKUP(B73,Enrollment!$A$2:$G$147,5,0),0) -> 112 | F73: 52604 | G73: =IFERROR(VLOOKUP(B73,Enrollment!$A$2:$G$147,6,0),0) -> 71 | H73: 8337 | I73: =IFERROR(VLOOKUP(B73,Enrollment!$A$2:$G$147,7,0),0) -> 25 | J73: 11742 | K73: 72683 | L73: =IF(E73>$E$17,_xlfn.IFNA(VLOOKUP(B73,'other funds ftr 2025'!A:I,9,FALSE),0),1) -> 1.1 | M73: 79951 | N73: =1+IF(ISNA(VLOOKUP(B73,'Rural and Low Income 25-26'!$A:$B,2,FALSE)),0,$N$17) -> 1.1 | O73: 87946 | R73: 0 | S73: 87946 | T73: =IFERROR(VLOOKUP(B73,'2024-25 Final'!$B$19:$AA$164,26,0),0) -> 131875 | U73: -43929 | V73: y | Y73: 1250 | AA73: 89196
A74: 56 | B74: 04129 | D74: LAKE CHELAN | E74: =IFERROR(VLOOKUP(B74,Enrollment!$A$2:$G$147,5,0),0) -> 145 | F74: 68104 | G74: =IFERROR(VLOOKUP(B74,Enrollment!$A$2:$G$147,6,0),0) -> 31 | H74: 3640 | I74: =IFERROR(VLOOKUP(B74,Enrollment!$A$2:$G$147,7,0),0) -> 70 | J74: 32878 | K74: 104622 | L74: =IF(E74>$E$17,_xlfn.IFNA(VLOOKUP(B74,'other funds ftr 2025'!A:I,9,FALSE),0),1) -> 1.05 | M74: 109853 | N74: =1+IF(ISNA(VLOOKUP(B74,'Rural and Low Income 25-26'!$A:$B,2,FALSE)),0,$N$17) -> 1 | O74: 109853 | R74: 0 | S74: 109853 | T74: =IFERROR(VLOOKUP(B74,'2024-25 Final'!$B$19:$AA$164,26,0),0) -> 132822 | U74: -22969 | V74: y | Y74: 1250 | AA74: 111103
A75: 57 | B75: 31306 | D75: LAKEWOOD | E75: =IFERROR(VLOOKUP(B75,Enrollment!$A$2:$G$147,5,0),0) -> 20 | F75: 9394 | G75: =IFERROR(VLOOKUP(B75,Enrollment!$A$2:$G$147,6,0),0) -> 2 | H75: 235 | I75: =IFERROR(VLOOKUP(B75,Enrollment!$A$2:$G$147,7,0),0) -> 4 | J75: 1879 | K75: 11508 | L75: =IF(E75>$E$17,_xlfn.IFNA(VLOOKUP(B75,'other funds ftr 2025'!A:I,9,FALSE),0),1) -> 0.95 | M75: 10933 | N75: =1+IF(ISNA(VLOOKUP(B75,'Rural and Low Income 25-26'!$A:$B,2,FALSE)),0,$N$17) -> 1 | O75: 0 | R75: 0 | S75: 0 | T75: =IFERROR(VLOOKUP(B75,'2024-25 Final'!$B$19:$AA$164,26,0),0) -> 15164 | U75: -15164 | V75: n | Y75: 0 | AA75: 0
A76: 58 | B76: 01158 | D76: LIND | E76: =IFERROR(VLOOKUP(B76,Enrollment!$A$2:$G$147,5,0),0) -> 37 | F76: 17378 | G76: =IFERROR(VLOOKUP(B76,Enrollment!$A$2:$G$147,6,0),0) -> 18 | H76: 2114 | I76: =IFERROR(VLOOKUP(B76,Enrollment!$A$2:$G$147,7,0),0) -> 10 | J76: 4697 | K76: 24189 | L76: =IF(E76>$E$17,_xlfn.IFNA(VLOOKUP(B76,'other funds ftr 2025'!A:I,9,FALSE),0),1) -> 1.1 | M76: 26608 | N76: =1+IF(ISNA(VLOOKUP(B76,'Rural and Low Income 25-26'!$A:$B,2,FALSE)),0,$N$17) -> 1.1 | O76: 29269 | R76: 0 | S76: 29269 | T76: =IFERROR(VLOOKUP(B76,'2024-25 Final'!$B$19:$AA$164,26,0),0) -> 36615 | U76: -7346 | V76: y | Y76: 750 | AA76: 30019
A77: 59 | B77: 08122 | D77: LONGVIEW | E77: =IFERROR(VLOOKUP(B77,Enrollment!$A$2:$G$147,5,0),0) -> 30 | F77: 14090 | G77: =IFERROR(VLOOKUP(B77,Enrollment!$A$2:$G$147,6,0),0) -> 17 | H77: 1996 | I77: =IFERROR(VLOOKUP(B77,Enrollment!$A$2:$G$147,7,0),0) -> 1 | J77: 470 | K77: 16556 | L77: =IF(E77>$E$17,_xlfn.IFNA(VLOOKUP(B77,'other funds ftr 2025'!A:I,9,FALSE),0),1) -> 0 | M77: 16556 | N77: =1+IF(ISNA(VLOOKUP(B77,'Rural and Low Income 25-26'!$A:$B,2,FALSE)),0,$N$17) -> 1 | O77: 0 | R77: 0 | S77: 0 | T77: =IFERROR(VLOOKUP(B77,'2024-25 Final'!$B$19:$AA$164,26,0),0) -> 0 | U77: 0 | V77: n | Y77: 0 | AA77: 0
A78: 60 | B78: 20406 | D78: LYLE | E78: =IFERROR(VLOOKUP(B78,Enrollment!$A$2:$G$147,5,0),0) -> 10 | F78: 4697 | G78: =IFERROR(VLOOKUP(B78,Enrollment!$A$2:$G$147,6,0),0) -> 3 | H78: 352 | I78: =IFERROR(VLOOKUP(B78,Enrollment!$A$2:$G$147,7,0),0) -> 6 | J78: 2818 | K78: 7867 | L78: =IF(E78>$E$17,_xlfn.IFNA(VLOOKUP(B78,'other funds ftr 2025'!A:I,9,FALSE),0),1) -> 1 | M78: 7867 | N78: =1+IF(ISNA(VLOOKUP(B78,'Rural and Low Income 25-26'!$A:$B,2,FALSE)),0,$N$17) -> 1.1 | O78: 0 | R78: 0 | S78: 0 | T78: =IFERROR(VLOOKUP(B78,'2024-25 Final'!$B$19:$AA$164,26,0),0) -> 0 | U78: 0 | V78: n | Y78: 0 | AA78: 0
A79: 61 | B79: 37504 | D79: LYNDEN | E79: =IFERROR(VLOOKUP(B79,Enrollment!$A$2:$G$147,5,0),0) -> 104 | F79: 48847 | G79: =IFERROR(VLOOKUP(B79,Enrollment!$A$2:$G$147,6,0),0) -> 19 | H79: 2231 | I79: =IFERROR(VLOOKUP(B79,Enrollment!$A$2:$G$147,7,0),0) -> 22 | J79: 10333 | K79: 61411 | L79: =IF(E79>$E$17,_xlfn.IFNA(VLOOKUP(B79,'other funds ftr 2025'!A:I,9,FALSE),0),1) -> 1 | M79: 61411 | N79: =1+IF(ISNA(VLOOKUP(B79,'Rural and Low Income 25-26'!$A:$B,2,FALSE)),0,$N$17) -> 1 | O79: 61411 | R79: 0 | S79: 61411 | T79: =IFERROR(VLOOKUP(B79,'2024-25 Final'!$B$19:$AA$164,26,0),0) -> 75831 | U79: -14420 | V79: y | Y79: 1250 | AA79: 62661
A80: 62 | B80: 39120 | D80: MABTON | E80: =IFERROR(VLOOKUP(B80,Enrollment!$A$2:$G$147,5,0),0) -> 443 | F80: 208068 | G80: =IFERROR(VLOOKUP(B80,Enrollment!$A$2:$G$147,6,0),0) -> 148 | H80: 17378 | I80: =IFERROR(VLOOKUP(B80,Enrollment!$A$2:$G$147,7,0),0) -> 211 | J80: 99103 | K80: 324549 | L80: =IF(E80>$E$17,_xlfn.IFNA(VLOOKUP(B80,'other funds ftr 2025'!A:I,9,FALSE),0),1) -> 1.1 | M80: 357004 | N80: =1+IF(ISNA(VLOOKUP(B80,'Rural and Low Income 25-26'!$A:$B,2,FALSE)),0,$N$17) -> 1 | O80: 357004 | R80: 0 | S80: 357004 | T80: =IFERROR(VLOOKUP(B80,'2024-25 Final'!$B$19:$AA$164,26,0),0) -> 314847 | U80: 42157 | V80: y | Y80: 2000 | AA80: 359004
A81: 63 | B81: 04019 | D81: MANSON | E81: =IFERROR(VLOOKUP(B81,Enrollment!$A$2:$G$147,5,0),0) -> 107 | F81: 50256 | G81: =IFERROR(VLOOKUP(B81,Enrollment!$A$2:$G$147,6,0),0) -> 19 | H81: 2231 | I81: =IFERROR(VLOOKUP(B81,Enrollment!$A$2:$G$147,7,0),0) -> 40 | J81: 18787 | K81: 71274 | L81: =IF(E81>$E$17,_xlfn.IFNA(VLOOKUP(B81,'other funds ftr 2025'!A:I,9,FALSE),0),1) -> 1.05 | M81: 74838 | N81: =1+IF(ISNA(VLOOKUP(B81,'Rural and Low Income 25-26'!$A:$B,2,FALSE)),0,$N$17) -> 1 | O81: 74838 | R81: 0 | S81: 74838 | T81: =IFERROR(VLOOKUP(B81,'2024-25 Final'!$B$19:$AA$164,26,0),0) -> 82909 | U81: -8071 | V81: y | Y81: 1250 | AA81: 76088
A82: 64 | B82: 33207 | D82: MARY WALKER | E82: =IFERROR(VLOOKUP(B82,Enrollment!$A$2:$G$147,5,0),0) -> 12 | F82: 5636 | G82: =IFERROR(VLOOKUP(B82,Enrollment!$A$2:$G$147,6,0),0) -> 9 | H82: 1057 | I82: =IFERROR(VLOOKUP(B82,Enrollment!$A$2:$G$147,7,0),0) -> 0 | J82: 0 | K82: 6693 | L82: =IF(E82>$E$17,_xlfn.IFNA(VLOOKUP(B82,'other funds ftr 2025'!A:I,9,FALSE),0),1) -> 0 | M82: 6693 | N82: =1+IF(ISNA(VLOOKUP(B82,'Rural and Low Income 25-26'!$A:$B,2,FALSE)),0,$N$17) -> 1.1 | O82: 0 | R82: 0 | S82: 0 | T82: =IFERROR(VLOOKUP(B82,'2024-25 Final'!$B$19:$AA$164,26,0),0) -> 0 | U82: 0 | V82: n | Y82: 0 | AA82: 0
A83: 65 | B83: 31025 | D83: MARYSVILLE | E83: =IFERROR(VLOOKUP(B83,Enrollment!$A$2:$G$147,5,0),0) -> 328 | F83: =IF(E83>=10,ROUND(E83*$G$3,0),0) -> 154055 | G83: =IFERROR(VLOOKUP(B83,Enrollment!$A$2:$G$147,6,0),0) -> 111 | H83: =IF(E83>=$E$17,ROUND(G83*$G$3*$G$17,0),0) -> 13034 | I83: =IFERROR(VLOOKUP(B83,Enrollment!$A$2:$G$147,7,0),0) -> 159 | J83: =IF(E83>=$E$17,ROUND(I83*$G$3*$I$17,0),0) -> 74679 | K83: =+F83+H83+J83 -> 241768 | L83: =IF(E83>$E$17,_xlfn.IFNA(VLOOKUP(B83,'other funds ftr 2025'!A:I,9,FALSE),0),1) -> 1 | M83: =IF(L83=0,K83,ROUND(K83*L83,0)) -> 241768 | N83: =1+IF(ISNA(VLOOKUP(B83,'Rural and Low Income 25-26'!$A:$B,2,FALSE)),0,$N$17) -> 1 | O83: =IF(V83="y",ROUND(M83*N83,0),0) -> 241768 | R83: 0 | S83: =O83+R83 -> 241768 | T83: =IFERROR(VLOOKUP(B83,'2024-25 Final'!$B$19:$AA$164,26,0),0) -> 256653 | U83: =S83-T83 -> -14885 | V83: y | Y83: =IF(V83="Y",IF(E83<=99,750,IF(AND(E83>=100,E83<=399),1250,2000)),0) -> 1250 | AA83: =IF(W83=1, 0, Y83+S83+Z83) -> 243018
A84: 66 | B84: 37505 | D84: MERIDIAN | E84: =IFERROR(VLOOKUP(B84,Enrollment!$A$2:$G$147,5,0),0) -> 30 | F84: 14090 | G84: =IFERROR(VLOOKUP(B84,Enrollment!$A$2:$G$147,6,0),0) -> 14 | H84: 1644 | I84: =IFERROR(VLOOKUP(B84,Enrollment!$A$2:$G$147,7,0),0) -> 8 | J84: 3757 | K84: 19491 | L84: =IF(E84>$E$17,_xlfn.IFNA(VLOOKUP(B84,'other funds ftr 2025'!A:I,9,FALSE),0),1) -> 1 | M84: 19491 | N84: =1+IF(ISNA(VLOOKUP(B84,'Rural and Low Income 25-26'!$A:$B,2,FALSE)),0,$N$17) -> 1 | O84: 19491 | R84: 0 | S84: 19491 | T84: =IFERROR(VLOOKUP(B84,'2024-25 Final'!$B$19:$AA$164,26,0),0) -> 34293 | U84: -14802 | V84: y | Y84: 750 | AA84: 20241
A85: 67 | B85: 31103 | D85: MONROE | E85: =IFERROR(VLOOKUP(B85,Enrollment!$A$2:$G$147,5,0),0) -> 13 | F85: 6106 | G85: =IFERROR(VLOOKUP(B85,Enrollment!$A$2:$G$147,6,0),0) -> 7 | H85: 822 | I85: =IFERROR(VLOOKUP(B85,Enrollment!$A$2:$G$147,7,0),0) -> 3 | J85: 1409 | K85: 8337 | L85: =IF(E85>$E$17,_xlfn.IFNA(VLOOKUP(B85,'other funds ftr 2025'!A:I,9,FALSE),0),1) -> 0 | M85: 8337 | N85: =1+IF(ISNA(VLOOKUP(B85,'Rural and Low Income 25-26'!$A:$B,2,FALSE)),0,$N$17) -> 1 | O85: 0 | R85: 0 | S85: 0 | T85: =IFERROR(VLOOKUP(B85,'2024-25 Final'!$B$19:$AA$164,26,0),0) -> 0 | U85: 0 | V85: n | X85: Y | Y85: 0 | AA85: 0
A86: 68 | B86: 13161 | D86: MOSES LAKE | E86: =IFERROR(VLOOKUP(B86,Enrollment!$A$2:$G$147,5,0),0) -> 425 | F86: 199614 | G86: =IFERROR(VLOOKUP(B86,Enrollment!$A$2:$G$147,6,0),0) -> 184 | H86: 21605 | I86: =IFERROR(VLOOKUP(B86,Enrollment!$A$2:$G$147,7,0),0) -> 83 | J86: 38983 | K86: 260202 | L86: =IF(E86>$E$17,_xlfn.IFNA(VLOOKUP(B86,'other funds ftr 2025'!A:I,9,FALSE),0),1) -> 1 | M86: 260202 | N86: =1+IF(ISNA(VLOOKUP(B86,'Rural and Low Income 25-26'!$A:$B,2,FALSE)),0,$N$17) -> 1 | O86: 260202 | R86: 0 | S86: 260202 | T86: =IFERROR(VLOOKUP(B86,'2024-25 Final'!$B$19:$AA$164,26,0),0) -> 372249 | U86: -112047 | V86: y | X86: Y | Y86: 2000 | Z86: 120000 | AA86: 382202
A87: 69 | B87: 21206 | D87: MOSSYROCK | E87: =IFERROR(VLOOKUP(B87,Enrollment!$A$2:$G$147,5,0),0) -> 54 | F87: 25363 | G87: =IFERROR(VLOOKUP(B87,Enrollment!$A$2:$G$147,6,0),0) -> 12 | H87: 1409 | I87: =IFERROR(VLOOKUP(B87,Enrollment!$A$2:$G$147,7,0),0) -> 26 | J87: 12212 | K87: 38984 | L87: =IF(E87>$E$17,_xlfn.IFNA(VLOOKUP(B87,'other funds ftr 2025'!A:I,9,FALSE),0),1) -> 1 | M87: 38984 | N87: =1+IF(ISNA(VLOOKUP(B87,'Rural and Low Income 25-26'!$A:$B,2,FALSE)),0,$N$17) -> 1 | O87: 38984 | R87: 0 | S87: 38984 | T87: =IFERROR(VLOOKUP(B87,'2024-25 Final'!$B$19:$AA$164,26,0),0) -> 19912 | U87: 19072 | V87: y | Y87: 750 | AA87: 39734
A88: 70 | B88: 39209 | D88: MOUNT ADAMS | E88: =IFERROR(VLOOKUP(B88,Enrollment!$A$2:$G$147,5,0),0) -> 337 | F88: 158282 | G88: =IFERROR(VLOOKUP(B88,Enrollment!$A$2:$G$147,6,0),0) -> 95 | H88: 11155 | I88: =IFERROR(VLOOKUP(B88,Enrollment!$A$2:$G$147,7,0),0) -> 136 | J88: 63877 | K88: 233314 | L88: =IF(E88>$E$17,_xlfn.IFNA(VLOOKUP(B88,'other funds ftr 2025'!A:I,9,FALSE),0),1) -> 1.1 | M88: 256645 | N88: =1+IF(ISNA(VLOOKUP(B88,'Rural and Low Income 25-26'!$A:$B,2,FALSE)),0,$N$17) -> 1 | O88: 256645 | R88: 0 | S88: 256645 | T88: =IFERROR(VLOOKUP(B88,'2024-25 Final'!$B$19:$AA$164,26,0),0) -> 196632 | U88: 60013 | V88: y | Y88: 1250 | AA88: 257895
A89: 71 | B89: 37507 | D89: MOUNT BAKER | E89: =IFERROR(VLOOKUP(B89,Enrollment!$A$2:$G$147,5,0),0) -> 21 | F89: 9863 | G89: =IFERROR(VLOOKUP(B89,Enrollment!$A$2:$G$147,6,0),0) -> 8 | H89: 939 | I89: =IFERROR(VLOOKUP(B89,Enrollment!$A$2:$G$147,7,0),0) -> 6 | J89: 2818 | K89: 13620 | L89: =IF(E89>$E$17,_xlfn.IFNA(VLOOKUP(B89,'other funds ftr 2025'!A:I,9,FALSE),0),1) -> 0.95 | M89: 12939 | N89: =1+IF(ISNA(VLOOKUP(B89,'Rural and Low Income 25-26'!$A:$B,2,FALSE)),0,$N$17) -> 1 | O89: 12939 | R89: 0 | S89: 12939 | T89: =IFERROR(VLOOKUP(B89,'2024-25 Final'!$B$19:$AA$164,26,0),0) -> 22110 | U89: -9171 | V89: y | Y89: 750 | AA89: 13689
A90: 72 | B90: 29320 | D90: MOUNT VERNON | E90: =IFERROR(VLOOKUP(B90,Enrollment!$A$2:$G$147,5,0),0) -> 1722 | F90: 808790 | G90: =IFERROR(VLOOKUP(B90,Enrollment!$A$2:$G$147,6,0),0) -> 748 | H90: 87830 | I90: =IFERROR(VLOOKUP(B90,Enrollment!$A$2:$G$147,7,0),0) -> 484 | J90: 227325 | K90: 1123945 | L90: =IF(E90>$E$17,_xlfn.IFNA(VLOOKUP(B90,'other funds ftr 2025'!A:I,9,FALSE),0),1) -> 1.1 | M90: 1236340 | N90: =1+IF(ISNA(VLOOKUP(B90,'Rural and Low Income 25-26'!$A:$B,2,FALSE)),0,$N$17) -> 1 | O90: 1236340 | R90: 0 | S90: 1236340 | T90: =IFERROR(VLOOKUP(B90,'2024-25 Final'!$B$19:$AA$164,26,0),0) -> 1466597 | U90: -230257 | V90: y | Y90: 2000 | AA90: 1238340
A91: 73 | B91: 17903 | D91: MUCKLESHOOT INDIAN TRIBE | E91: =IFERROR(VLOOKUP(B91,Enrollment!$A$2:$G$147,5,0),0) -> 0 | F91: 0 | G91: =IFERROR(VLOOKUP(B91,Enrollment!$A$2:$G$147,6,0),0) -> 0 | H91: 0 | I91: =IFERROR(VLOOKUP(B91,Enrollment!$A$2:$G$147,7,0),0) -> 0 | J91: 0 | K91: 0 | L91: =IF(E91>$E$17,_xlfn.IFNA(VLOOKUP(B91,'other funds ftr 2025'!A:I,9,FALSE),0),1) -> 1 | M91: 0 | N91: =1+IF(ISNA(VLOOKUP(B91,'Rural and Low Income 25-26'!$A:$B,2,FALSE)),0,$N$17) -> 1 | O91: 0 | R91: 0 | S91: 0 | T91: =IFERROR(VLOOKUP(B91,'2024-25 Final'!$B$19:$AA$164,26,0),0) -> 0 | U91: 0 | V91: n | Y91: 0 | AA91: 0
A92: 74 | B92: 31006 | D92: MUKILTEO | E92: =IFERROR(VLOOKUP(B92,Enrollment!$A$2:$G$147,5,0),0) -> 29 | F92: 13621 | G92: =IFERROR(VLOOKUP(B92,Enrollment!$A$2:$G$147,6,0),0) -> 6 | H92: 705 | I92: =IFERROR(VLOOKUP(B92,Enrollment!$A$2:$G$147,7,0),0) -> 12 | J92: 5636 | K92: 19962 | L92: =IF(E92>$E$17,_xlfn.IFNA(VLOOKUP(B92,'other funds ftr 2025'!A:I,9,FALSE),0),1) -> 0 | M92: 19962 | N92: =1+IF(ISNA(VLOOKUP(B92,'Rural and Low Income 25-26'!$A:$B,2,FALSE)),0,$N$17) -> 1 | O92: 0 | R92: 0 | S92: 0 | T92: =IFERROR(VLOOKUP(B92,'2024-25 Final'!$B$19:$AA$164,26,0),0) -> 0 | U92: 0 | V92: n | Y92: 0 | AA92: 0
A93: 75 | B93: 39003 | D93: NACHES VALLEY | E93: =IFERROR(VLOOKUP(B93,Enrollment!$A$2:$G$147,5,0),0) -> 99 | F93: 46498 | G93: =IFERROR(VLOOKUP(B93,Enrollment!$A$2:$G$147,6,0),0) -> 54 | H93: 6341 | I93: =IFERROR(VLOOKUP(B93,Enrollment!$A$2:$G$147,7,0),0) -> 30 | J93: 14090 | K93: 66929 | L93: =IF(E93>$E$17,_xlfn.IFNA(VLOOKUP(B93,'other funds ftr 2025'!A:I,9,FALSE),0),1) -> 0 | M93: 66929 | N93: =1+IF(ISNA(VLOOKUP(B93,'Rural and Low Income 25-26'!$A:$B,2,FALSE)),0,$N$17) -> 1 | O93: 66929 | R93: 0 | S93: 66929 | T93: =IFERROR(VLOOKUP(B93,'2024-25 Final'!$B$19:$AA$164,26,0),0) -> 0 | U93: 66929 | V93: y | Y93: 750 | AA93: 67679
A94: 76 | B94: 25155 | D94: NASELLE-GRAYS RIVER VALLEY | E94: =IFERROR(VLOOKUP(B94,Enrollment!$A$2:$G$147,5,0),0) -> 53 | F94: 24893 | G94: =IFERROR(VLOOKUP(B94,Enrollment!$A$2:$G$147,6,0),0) -> 14 | H94: 1644 | I94: =IFERROR(VLOOKUP(B94,Enrollment!$A$2:$G$147,7,0),0) -> 26 | J94: 12212 | K94: 38749 | L94: =IF(E94>$E$17,_xlfn.IFNA(VLOOKUP(B94,'other funds ftr 2025'!A:I,9,FALSE),0),1) -> 1.1 | M94: 42624 | N94: =1+IF(ISNA(VLOOKUP(B94,'Rural and Low Income 25-26'!$A:$B,2,FALSE)),0,$N$17) -> 1.1 | O94: 46886 | R94: 0 | S94: 46886 | T94: =IFERROR(VLOOKUP(B94,'2024-25 Final'!$B$19:$AA$164,26,0),0) -> 49584 | U94: -2698 | V94: y | Y94: 750 | AA94: 47636
A95: 77 | B95: 24014 | D95: NESPELEM | E95: =IFERROR(VLOOKUP(B95,Enrollment!$A$2:$G$147,5,0),0) -> 64 | F95: 30060 | G95: =IFERROR(VLOOKUP(B95,Enrollment!$A$2:$G$147,6,0),0) -> 21 | H95: 2466 | I95: =IFERROR(VLOOKUP(B95,Enrollment!$A$2:$G$147,7,0),0) -> 10 | J95: 4697 | K95: 37223 | L95: =IF(E95>$E$17,_xlfn.IFNA(VLOOKUP(B95,'other funds ftr 2025'!A:I,9,FALSE),0),1) -> 1.1 | M95: 40945 | N95: =1+IF(ISNA(VLOOKUP(B95,'Rural and Low Income 25-26'!$A:$B,2,FALSE)),0,$N$17) -> 1.1 | O95: 45040 | R95: 0 | S95: 45040 | T95: =IFERROR(VLOOKUP(B95,'2024-25 Final'!$B$19:$AA$164,26,0),0) -> 49449 | U95: -4409 | V95: y | Y95: 750 | AA95: 45790
A96: 78 | B96: 37506 | D96: NOOKSACK VALLEY | E96: =IFERROR(VLOOKUP(B96,Enrollment!$A$2:$G$147,5,0),0) -> 127 | F96: 59649 | G96: =IFERROR(VLOOKUP(B96,Enrollment!$A$2:$G$147,6,0),0) -> 22 | H96: 2583 | I96: =IFERROR(VLOOKUP(B96,Enrollment!$A$2:$G$147,7,0),0) -> 43 | J96: 20196 | K96: 82428 | L96: =IF(E96>$E$17,_xlfn.IFNA(VLOOKUP(B96,'other funds ftr 2025'!A:I,9,FALSE),0),1) -> 1 | M96: 82428 | N96: =1+IF(ISNA(VLOOKUP(B96,'Rural and Low Income 25-26'!$A:$B,2,FALSE)),0,$N$17) -> 1 | O96: 82428 | R96: 0 | S96: 82428 | T96: =IFERROR(VLOOKUP(B96,'2024-25 Final'!$B$19:$AA$164,26,0),0) -> 97010 | U96: -14582 | V96: y | Y96: 1250 | AA96: 83678
A97: 79 | B97: 14064 | D97: NORTH BEACH | E97: =IFERROR(VLOOKUP(B97,Enrollment!$A$2:$G$147,5,0),0) -> 30 | F97: 14090 | G97: =IFERROR(VLOOKUP(B97,Enrollment!$A$2:$G$147,6,0),0) -> 16 | H97: 1879 | I97: =IFERROR(VLOOKUP(B97,Enrollment!$A$2:$G$147,7,0),0) -> 0 | J97: 0 | K97: 15969 | L97: =IF(E97>$E$17,_xlfn.IFNA(VLOOKUP(B97,'other funds ftr 2025'!A:I,9,FALSE),0),1) -> 1 | M97: 15969 | N97: =1+IF(ISNA(VLOOKUP(B97,'Rural and Low Income 25-26'!$A:$B,2,FALSE)),0,$N$17) -> 1 | O97: 15969 | R97: 0 | S97: 15969 | T97: =IFERROR(VLOOKUP(B97,'2024-25 Final'!$B$19:$AA$164,26,0),0) -> 26176 | U97: -10207 | V97: y | Y97: 750 | AA97: 16719
A98: 80 | B98: 11051 | D98: NORTH FRANKLIN | E98: =IFERROR(VLOOKUP(B98,Enrollment!$A$2:$G$147,5,0),0) -> 649 | F98: 304823 | G98: =IFERROR(VLOOKUP(B98,Enrollment!$A$2:$G$147,6,0),0) -> 239 | H98: 28063 | I98: =IFERROR(VLOOKUP(B98,Enrollment!$A$2:$G$147,7,0),0) -> 257 | J98: 120708 | K98: 453594 | L98: =IF(E98>$E$17,_xlfn.IFNA(VLOOKUP(B98,'other funds ftr 2025'!A:I,9,FALSE),0),1) -> 1.1 | M98: 498953 | N98: =1+IF(ISNA(VLOOKUP(B98,'Rural and Low Income 25-26'!$A:$B,2,FALSE)),0,$N$17) -> 1 | O98: 498953 | R98: 0 | S98: 498953 | T98: =IFERROR(VLOOKUP(B98,'2024-25 Final'!$B$19:$AA$164,26,0),0) -> 505769 | U98: -6816 | V98: y | Y98: 2000 | AA98: 500953
A99: 81 | B99: 18400 | D99: NORTH KITSAP | E99: =IFERROR(VLOOKUP(B99,Enrollment!$A$2:$G$147,5,0),0) -> 38 | F99: 17848 | G99: =IFERROR(VLOOKUP(B99,Enrollment!$A$2:$G$147,6,0),0) -> 14 | H99: 1644 | I99: =IFERROR(VLOOKUP(B99,Enrollment!$A$2:$G$147,7,0),0) -> 5 | J99: 2348 | K99: 21840 | L99: =IF(E99>$E$17,_xlfn.IFNA(VLOOKUP(B99,'other funds ftr 2025'!A:I,9,FALSE),0),1) -> 0 | M99: 21840 | N99: =1+IF(ISNA(VLOOKUP(B99,'Rural and Low Income 25-26'!$A:$B,2,FALSE)),0,$N$17) -> 1 | O99: 0 | R99: 0 | S99: 0 | T99: =IFERROR(VLOOKUP(B99,'2024-25 Final'!$B$19:$AA$164,26,0),0) -> 0 | U99: 0 | V99: n | Y99: 0 | AA99: 0
A100: 82 | B100: 23403 | D100: NORTH MASON | E100: =IFERROR(VLOOKUP(B100,Enrollment!$A$2:$G$147,5,0),0) -> 0 | F100: 0 | G100: =IFERROR(VLOOKUP(B100,Enrollment!$A$2:$G$147,6,0),0) -> 0 | H100: 0 | I100: =IFERROR(VLOOKUP(B100,Enrollment!$A$2:$G$147,7,0),0) -> 0 | J100: 0 | K100: 0 | L100: =IF(E100>$E$17,_xlfn.IFNA(VLOOKUP(B100,'other funds ftr 2025'!A:I,9,FALSE),0),1) -> 1 | M100: 0 | N100: =1+IF(ISNA(VLOOKUP(B100,'Rural and Low Income 25-26'!$A:$B,2,FALSE)),0,$N$17) -> 1 | O100: 0 | R100: =ROUND(IF(Q100>0,-(0.9-Q100)*O100,0),0) -> 0 | S100: 0 | T100: =IFERROR(VLOOKUP(B100,'2024-25 Final'!$B$19:$AA$164,26,0),0) -> 0 | U100: 0 | V100: n | Y100: 0 | AA100: 0
A101: 83 | B101: 34003 | D101: NORTH THURSTON PUBLIC SCHOOLS | E101: =IFERROR(VLOOKUP(B101,Enrollment!$A$2:$G$147,5,0),0) -> 55 | F101: 25832 | G101: =IFERROR(VLOOKUP(B101,Enrollment!$A$2:$G$147,6,0),0) -> 22 | H101: 2583 | I101: =IFERROR(VLOOKUP(B101,Enrollment!$A$2:$G$147,7,0),0) -> 13 | J101: 6106 | K101: 34521 | L101: =IF(E101>$E$17,_xlfn.IFNA(VLOOKUP(B101,'other funds ftr 2025'!A:I,9,FALSE),0),1) -> 0.95 | M101: 32795 | N101: =1+IF(ISNA(VLOOKUP(B101,'Rural and Low Income 25-26'!$A:$B,2,FALSE)),0,$N$17) -> 1 | O101: 32795 | R101: 0 | S101: 32795 | T101: =IFERROR(VLOOKUP(B101,'2024-25 Final'!$B$19:$AA$164,26,0),0) -> 45311 | U101: -12516 | V101: y | Y101: 750 | AA101: 33545
A102: 84 | B102: 15201 | D102: OAK HARBOR | E102: =IFERROR(VLOOKUP(B102,Enrollment!$A$2:$G$147,5,0),0) -> 17 | F102: 7985 | G102: =IFERROR(VLOOKUP(B102,Enrollment!$A$2:$G$147,6,0),0) -> 5 | H102: 587 | I102: =IFERROR(VLOOKUP(B102,Enrollment!$A$2:$G$147,7,0),0) -> 1 | J102: 470 | K102: 9042 | L102: =IF(E102>$E$17,_xlfn.IFNA(VLOOKUP(B102,'other funds ftr 2025'!A:I,9,FALSE),0),1) -> 0 | M102: 9042 | N102: =1+IF(ISNA(VLOOKUP(B102,'Rural and Low Income 25-26'!$A:$B,2,FALSE)),0,$N$17) -> 1 | O102: 0 | R102: 0 | S102: 0 | T102: =IFERROR(VLOOKUP(B102,'2024-25 Final'!$B$19:$AA$164,26,0),0) -> 0 | U102: 0 | V102: n | Y102: 0 | AA102: 0
A103: 85 | B103: 25101 | D103: OCEAN BEACH | E103: =IFERROR(VLOOKUP(B103,Enrollment!$A$2:$G$147,5,0),0) -> 42 | F103: 19727 | G103: =IFERROR(VLOOKUP(B103,Enrollment!$A$2:$G$147,6,0),0) -> 8 | H103: 939 | I103: =IFERROR(VLOOKUP(B103,Enrollment!$A$2:$G$147,7,0),0) -> 19 | J103: 8924 | K103: 29590 | L103: =IF(E103>$E$17,_xlfn.IFNA(VLOOKUP(B103,'other funds ftr 2025'!A:I,9,FALSE),0),1) -> 0.95 | M103: 28111 | N103: =1+IF(ISNA(VLOOKUP(B103,'Rural and Low Income 25-26'!$A:$B,2,FALSE)),0,$N$17) -> 1 | O103: 28111 | R103: 0 | S103: 28111 | T103: =IFERROR(VLOOKUP(B103,'2024-25 Final'!$B$19:$AA$164,26,0),0) -> 68125 | U103: -40014 | V103: y | Y103: 750 | AA103: 28861
A104: 86 | B104: 14172 | D104: OCOSTA | E104: =IFERROR(VLOOKUP(B104,Enrollment!$A$2:$G$147,5,0),0) -> 33 | F104: 15499 | G104: =IFERROR(VLOOKUP(B104,Enrollment!$A$2:$G$147,6,0),0) -> 7 | H104: 822 | I104: =IFERROR(VLOOKUP(B104,Enrollment!$A$2:$G$147,7,0),0) -> 12 | J104: 5636 | K104: 21957 | L104: =IF(E104>$E$17,_xlfn.IFNA(VLOOKUP(B104,'other funds ftr 2025'!A:I,9,FALSE),0),1) -> 1 | M104: 21957 | N104: =1+IF(ISNA(VLOOKUP(B104,'Rural and Low Income 25-26'!$A:$B,2,FALSE)),0,$N$17) -> 1.1 | O104: 24153 | R104: 0 | S104: 24153 | T104: =IFERROR(VLOOKUP(B104,'2024-25 Final'!$B$19:$AA$164,26,0),0) -> 23796 | U104: 357 | V104: y | Y104: 750 | AA104: 24903
A105: 87 | B105: 24105 | D105: OKANOGAN | E105: =IFERROR(VLOOKUP(B105,Enrollment!$A$2:$G$147,5,0),0) -> 52 | F105: 24423 | G105: =IFERROR(VLOOKUP(B105,Enrollment!$A$2:$G$147,6,0),0) -> 30 | H105: 3523 | I105: =IFERROR(VLOOKUP(B105,Enrollment!$A$2:$G$147,7,0),0) -> 15 | J105: 7045 | K105: 34991 | L105: =IF(E105>$E$17,_xlfn.IFNA(VLOOKUP(B105,'other funds ftr 2025'!A:I,9,FALSE),0),1) -> 0 | M105: 34991 | N105: =1+IF(ISNA(VLOOKUP(B105,'Rural and Low Income 25-26'!$A:$B,2,FALSE)),0,$N$17) -> 1.1 | O105: 0 | R105: 0 | S105: 0 | T105: =IFERROR(VLOOKUP(B105,'2024-25 Final'!$B$19:$AA$164,26,0),0) -> 0 | U105: 0 | V105: n | Y105: 0 | AA105: 0
A106: 88 | B106: 34111 | D106: OLYMPIA | E106: =IFERROR(VLOOKUP(B106,Enrollment!$A$2:$G$147,5,0),0) -> 51 | F106: 23954 | G106: =IFERROR(VLOOKUP(B106,Enrollment!$A$2:$G$147,6,0),0) -> 18 | H106: 2114 | I106: =IFERROR(VLOOKUP(B106,Enrollment!$A$2:$G$147,7,0),0) -> 26 | J106: 12212 | K106: 38280 | L106: =IF(E106>$E$17,_xlfn.IFNA(VLOOKUP(B106,'other funds ftr 2025'!A:I,9,FALSE),0),1) -> 0.95 | M106: 36366 | N106: =1+IF(ISNA(VLOOKUP(B106,'Rural and Low Income 25-26'!$A:$B,2,FALSE)),0,$N$17) -> 1 | O106: 36366 | R106: 0 | S106: 36366 | T106: =IFERROR(VLOOKUP(B106,'2024-25 Final'!$B$19:$AA$164,26,0),0) -> 83952 | U106: -47586 | V106: y | Y106: 750 | Z106: 185760 | AA106: 222876
A107: 89 | B107: 24019 | D107: OMAK | E107: =IFERROR(VLOOKUP(B107,Enrollment!$A$2:$G$147,5,0),0) -> 51 | F107: 23954 | G107: =IFERROR(VLOOKUP(B107,Enrollment!$A$2:$G$147,6,0),0) -> 20 | H107: 2348 | I107: =IFERROR(VLOOKUP(B107,Enrollment!$A$2:$G$147,7,0),0) -> 10 | J107: 4697 | K107: 30999 | L107: =IF(E107>$E$17,_xlfn.IFNA(VLOOKUP(B107,'other funds ftr 2025'!A:I,9,FALSE),0),1) -> 0 | M107: 30999 | N107: =1+IF(ISNA(VLOOKUP(B107,'Rural and Low Income 25-26'!$A:$B,2,FALSE)),0,$N$17) -> 1.1 | O107: 0 | R107: 0 | S107: 0 | T107: =IFERROR(VLOOKUP(B107,'2024-25 Final'!$B$19:$AA$164,26,0),0) -> 0 | U107: 0 | V107: n | Y107: 0 | AA107: 0
A108: 90 | B108: 09013 | D108: ORONDO | E108: =IFERROR(VLOOKUP(B108,Enrollment!$A$2:$G$147,5,0),0) -> 43 | F108: 20196 | G108: =IFERROR(VLOOKUP(B108,Enrollment!$A$2:$G$147,6,0),0) -> 4 | H108: 470 | I108: =IFERROR(VLOOKUP(B108,Enrollment!$A$2:$G$147,7,0),0) -> 13 | J108: 6106 | K108: 26772 | L108: =IF(E108>$E$17,_xlfn.IFNA(VLOOKUP(B108,'other funds ftr 2025'!A:I,9,FALSE),0),1) -> 1.1 | M108: 29449 | N108: =1+IF(ISNA(VLOOKUP(B108,'Rural and Low Income 25-26'!$A:$B,2,FALSE)),0,$N$17) -> 1.1 | O108: 32394 | R108: 0 | S108: 32394 | T108: =IFERROR(VLOOKUP(B108,'2024-25 Final'!$B$19:$AA$164,26,0),0) -> 33880 | U108: -1486 | V108: y | Y108: 750 | AA108: 33144
A109: 91 | B109: 24410 | D109: OROVILLE | E109: =IFERROR(VLOOKUP(B109,Enrollment!$A$2:$G$147,5,0),0) -> 28 | F109: 13151 | G109: =IFERROR(VLOOKUP(B109,Enrollment!$A$2:$G$147,6,0),0) -> 7 | H109: 822 | I109: =IFERROR(VLOOKUP(B109,Enrollment!$A$2:$G$147,7,0),0) -> 6 | J109: 2818 | K109: 16791 | L109: =IF(E109>$E$17,_xlfn.IFNA(VLOOKUP(B109,'other funds ftr 2025'!A:I,9,FALSE),0),1) -> 0 | M109: 16791 | N109: =1+IF(ISNA(VLOOKUP(B109,'Rural and Low Income 25-26'!$A:$B,2,FALSE)),0,$N$17) -> 1.1 | O109: 0 | R109: 0 | S109: 0 | T109: =IFERROR(VLOOKUP(B109,'2024-25 Final'!$B$19:$AA$164,26,0),0) -> 0 | U109: 0 | V109: n | Y109: 0 | AA109: 0
A110: 92 | B110: 01147 | D110: OTHELLO | E110: =IFERROR(VLOOKUP(B110,Enrollment!$A$2:$G$147,5,0),0) -> 810 | F110: 380441 | G110: =IFERROR(VLOOKUP(B110,Enrollment!$A$2:$G$147,6,0),0) -> 237 | H110: 27829 | I110: =IFERROR(VLOOKUP(B110,Enrollment!$A$2:$G$147,7,0),0) -> 317 | J110: 148889 | K110: 557159 | L110: =IF(E110>$E$17,_xlfn.IFNA(VLOOKUP(B110,'other funds ftr 2025'!A:I,9,FALSE),0),1) -> 1.05 | M110: 585017 | N110: =1+IF(ISNA(VLOOKUP(B110,'Rural and Low Income 25-26'!$A:$B,2,FALSE)),0,$N$17) -> 1 | O110: 585017 | R110: 0 | S110: 585017 | T110: =IFERROR(VLOOKUP(B110,'2024-25 Final'!$B$19:$AA$164,26,0),0) -> 625957 | U110: -40940 | V110: y | Y110: 2000 | AA110: 587017
A111: 93 | B111: 11001 | D111: PASCO | E111: =IFERROR(VLOOKUP(B111,Enrollment!$A$2:$G$147,5,0),0) -> 1958 | F111: 919634 | G111: =IFERROR(VLOOKUP(B111,Enrollment!$A$2:$G$147,6,0),0) -> 622 | H111: 73035 | I111: =IFERROR(VLOOKUP(B111,Enrollment!$A$2:$G$147,7,0),0) -> 599 | J111: 281339 | K111: 1274008 | L111: =IF(E111>$E$17,_xlfn.IFNA(VLOOKUP(B111,'other funds ftr 2025'!A:I,9,FALSE),0),1) -> 1 | M111: 1274008 | N111: =1+IF(ISNA(VLOOKUP(B111,'Rural and Low Income 25-26'!$A:$B,2,FALSE)),0,$N$17) -> 1 | O111: 1274008 | R111: 0 | S111: 1274008 | T111: =IFERROR(VLOOKUP(B111,'2024-25 Final'!$B$19:$AA$164,26,0),0) -> 1350146 | U111: -76138 | V111: y | Y111: 2000 | AA111: 1276008
A112: 94 | B112: 24122 | D112: PATEROS | E112: =IFERROR(VLOOKUP(B112,Enrollment!$A$2:$G$147,5,0),0) -> 16 | F112: 7515 | G112: =IFERROR(VLOOKUP(B112,Enrollment!$A$2:$G$147,6,0),0) -> 9 | H112: 1057 | I112: =IFERROR(VLOOKUP(B112,Enrollment!$A$2:$G$147,7,0),0) -> 0 | J112: 0 | K112: 8572 | L112: =IF(E112>$E$17,_xlfn.IFNA(VLOOKUP(B112,'other funds ftr 2025'!A:I,9,FALSE),0),1) -> 1 | M112: 8572 | N112: =1+IF(ISNA(VLOOKUP(B112,'Rural and Low Income 25-26'!$A:$B,2,FALSE)),0,$N$17) -> 1.1 | O112: 0 | R112: 0 | S112: 0 | T112: =IFERROR(VLOOKUP(B112,'2024-25 Final'!$B$19:$AA$164,26,0),0) -> 21359 | U112: -21359 | V112: n | Y112: 0 | AA112: 0
A113: 95 | B113: 03050 | D113: PATERSON | E113: =IFERROR(VLOOKUP(B113,Enrollment!$A$2:$G$147,5,0),0) -> 24 | F113: 11272 | G113: =IFERROR(VLOOKUP(B113,Enrollment!$A$2:$G$147,6,0),0) -> 5 | H113: 587 | I113: =IFERROR(VLOOKUP(B113,Enrollment!$A$2:$G$147,7,0),0) -> 8 | J113: 3757 | K113: 15616 | L113: =IF(E113>$E$17,_xlfn.IFNA(VLOOKUP(B113,'other funds ftr 2025'!A:I,9,FALSE),0),1) -> 1.05 | M113: 16397 | N113: =1+IF(ISNA(VLOOKUP(B113,'Rural and Low Income 25-26'!$A:$B,2,FALSE)),0,$N$17) -> 1.1 | O113: 18037 | R113: 0 | S113: 18037 | T113: =IFERROR(VLOOKUP(B113,'2024-25 Final'!$B$19:$AA$164,26,0),0) -> 18860 | U113: -823 | V113: y | Y113: 750 | AA113: 18787
A114: 96 | B114: 04901 | D114: PINNACLES PREP CHARTER SCHOOL | E114: =IFERROR(VLOOKUP(B114,Enrollment!$A$2:$G$147,5,0),0) -> 19 | F114: 8924 | G114: =IFERROR(VLOOKUP(B114,Enrollment!$A$2:$G$147,6,0),0) -> 12 | H114: 1409 | I114: =IFERROR(VLOOKUP(B114,Enrollment!$A$2:$G$147,7,0),0) -> 3 | J114: 1409 | K114: 11742 | L114: =IF(E114>$E$17,_xlfn.IFNA(VLOOKUP(B114,'other funds ftr 2025'!A:I,9,FALSE),0),1) -> 1.05 | M114: 12329 | N114: =1+IF(ISNA(VLOOKUP(B114,'Rural and Low Income 25-26'!$A:$B,2,FALSE)),0,$N$17) -> 1.1 | O114: 0 | R114: 0 | S114: 0 | T114: =IFERROR(VLOOKUP(B114,'2024-25 Final'!$B$19:$AA$164,26,0),0) -> 15177 | U114: -15177 | V114: n | Y114: 0 | AA114: 0
A115: 97 | B115: 36402 | D115: PRESCOTT | E115: =IFERROR(VLOOKUP(B115,Enrollment!$A$2:$G$147,5,0),0) -> 66 | F115: =IF(E115>=10,ROUND(E115*$G$3,0),0) -> 30999 | G115: =IFERROR(VLOOKUP(B115,Enrollment!$A$2:$G$147,6,0),0) -> 7 | H115: =IF(E115>=$E$17,ROUND(G115*$G$3*$G$17,0),0) -> 822 | I115: =IFERROR(VLOOKUP(B115,Enrollment!$A$2:$G$147,7,0),0) -> 7 | J115: =IF(E115>=$E$17,ROUND(I115*$G$3*$I$17,0),0) -> 3288 | K115: =+F115+H115+J115 -> 35109 | L115: =IF(E115>$E$17,_xlfn.IFNA(VLOOKUP(B115,'other funds ftr 2025'!A:I,9,FALSE),0),1) -> 1.05 | M115: =IF(L115=0,K115,ROUND(K115*L115,0)) -> 36864 | N115: =1+IF(ISNA(VLOOKUP(B115,'Rural and Low Income 25-26'!$A:$B,2,FALSE)),0,$N$17) -> 1.1 | O115: =IF(V115="y",ROUND(M115*N115,0),0) -> 40550 | R115: 0 | S115: =O115+R115 -> 40550 | T115: =IFERROR(VLOOKUP(B115,'2024-25 Final'!$B$19:$AA$164,26,0),0) -> 0 | U115: =S115-T115 -> 40550 | V115: y | W115: 1 | Y115: =IF(V115="Y",IF(E115<=99,750,IF(AND(E115>=100,E115<=399),1250,2000)),0) -> 750 | AA115: =IF(W115=1, 0, Y115+S115+Z115) -> 0
A116: 98 | B116: 03116 | D116: PROSSER | E116: =IFERROR(VLOOKUP(B116,Enrollment!$A$2:$G$147,5,0),0) -> 835 | F116: 392183 | G116: =IFERROR(VLOOKUP(B116,Enrollment!$A$2:$G$147,6,0),0) -> 323 | H116: 37927 | I116: =IFERROR(VLOOKUP(B116,Enrollment!$A$2:$G$147,7,0),0) -> 288 | J116: 135268 | K116: 565378 | L116: =IF(E116>$E$17,_xlfn.IFNA(VLOOKUP(B116,'other funds ftr 2025'!A:I,9,FALSE),0),1) -> 1.1 | M116: 621916 | N116: =1+IF(ISNA(VLOOKUP(B116,'Rural and Low Income 25-26'!$A:$B,2,FALSE)),0,$N$17) -> 1 | O116: 621916 | R116: 0 | S116: 621916 | T116: =IFERROR(VLOOKUP(B116,'2024-25 Final'!$B$19:$AA$164,26,0),0) -> 618750 | U116: 3166 | V116: y | Y116: 2000 | AA116: 623916
A117: 99 | B117: 27003 | D117: PUYALLUP | E117: =IFERROR(VLOOKUP(B117,Enrollment!$A$2:$G$147,5,0),0) -> 17 | F117: 7985 | G117: =IFERROR(VLOOKUP(B117,Enrollment!$A$2:$G$147,6,0),0) -> 9 | H117: 1057 | I117: =IFERROR(VLOOKUP(B117,Enrollment!$A$2:$G$147,7,0),0) -> 5 | J117: 2348 | K117: 11390 | L117: =IF(E117>$E$17,_xlfn.IFNA(VLOOKUP(B117,'other funds ftr 2025'!A:I,9,FALSE),0),1) -> 0.95 | M117: 10821 | N117: =1+IF(ISNA(VLOOKUP(B117,'Rural and Low Income 25-26'!$A:$B,2,FALSE)),0,$N$17) -> 1 | O117: 10821 | R117: 0 | S117: 10821 | T117: =IFERROR(VLOOKUP(B117,'2024-25 Final'!$B$19:$AA$164,26,0),0) -> 12967 | U117: -2146 | V117: y | Y117: 750 | AA117: 11571
A118: 100 | B118: 05402 | D118: QUILLAYUTE VALLEY | E118: =IFERROR(VLOOKUP(B118,Enrollment!$A$2:$G$147,5,0),0) -> 90 | F118: 42271 | G118: =IFERROR(VLOOKUP(B118,Enrollment!$A$2:$G$147,6,0),0) -> 25 | H118: 2936 | I118: =IFERROR(VLOOKUP(B118,Enrollment!$A$2:$G$147,7,0),0) -> 28 | J118: 13151 | K118: 58358 | L118: =IF(E118>$E$17,_xlfn.IFNA(VLOOKUP(B118,'other funds ftr 2025'!A:I,9,FALSE),0),1) -> 0.95 | M118: 55440 | N118: =1+IF(ISNA(VLOOKUP(B118,'Rural and Low Income 25-26'!$A:$B,2,FALSE)),0,$N$17) -> 1 | O118: 55440 | R118: 0 | S118: 55440 | T118: =IFERROR(VLOOKUP(B118,'2024-25 Final'!$B$19:$AA$164,26,0),0) -> 68731 | U118: -13291 | V118: y | Y118: 750 | AA118: 56190
A119: 101 | B119: 13144 | D119: QUINCY | E119: =IFERROR(VLOOKUP(B119,Enrollment!$A$2:$G$147,5,0),0) -> 628 | F119: 294959 | G119: =IFERROR(VLOOKUP(B119,Enrollment!$A$2:$G$147,6,0),0) -> 163 | H119: 19139 | I119: =IFERROR(VLOOKUP(B119,Enrollment!$A$2:$G$147,7,0),0) -> 250 | J119: 117420 | K119: 431518 | L119: =IF(E119>$E$17,_xlfn.IFNA(VLOOKUP(B119,'other funds ftr 2025'!A:I,9,FALSE),0),1) -> 1.05 | M119: 453094 | N119: =1+IF(ISNA(VLOOKUP(B119,'Rural and Low Income 25-26'!$A:$B,2,FALSE)),0,$N$17) -> 1 | O119: 453094 | R119: 0 | S119: 453094 | T119: =IFERROR(VLOOKUP(B119,'2024-25 Final'!$B$19:$AA$164,26,0),0) -> 464789 | U119: -11695 | V119: y | Y119: 2000 | AA119: 455094
A120: 102 | B120: 22009 | D120: REARDAN-EDWALL | E120: =IFERROR(VLOOKUP(B120,Enrollment!$A$2:$G$147,5,0),0) -> 30 | F120: 14090 | G120: =IFERROR(VLOOKUP(B120,Enrollment!$A$2:$G$147,6,0),0) -> 14 | H120: 1644 | I120: =IFERROR(VLOOKUP(B120,Enrollment!$A$2:$G$147,7,0),0) -> 4 | J120: 1879 | K120: 17613 | L120: =IF(E120>$E$17,_xlfn.IFNA(VLOOKUP(B120,'other funds ftr 2025'!A:I,9,FALSE),0),1) -> 0 | M120: 17613 | N120: =1+IF(ISNA(VLOOKUP(B120,'Rural and Low Income 25-26'!$A:$B,2,FALSE)),0,$N$17) -> 1.1 | O120: 0 | R120: 0 | S120: 0 | T120: =IFERROR(VLOOKUP(B120,'2024-25 Final'!$B$19:$AA$164,26,0),0) -> 0 | U120: 0 | V120: n | Y120: 0 | AA120: 0
A121: 103 | B121: 17403 | D121: RENTON | E121: =IFERROR(VLOOKUP(B121,Enrollment!$A$2:$G$147,5,0),0) -> 16 | F121: 7515 | G121: =IFERROR(VLOOKUP(B121,Enrollment!$A$2:$G$147,6,0),0) -> 6 | H121: 705 | I121: =IFERROR(VLOOKUP(B121,Enrollment!$A$2:$G$147,7,0),0) -> 11 | J121: 5166 | K121: 13386 | L121: =IF(E121>$E$17,_xlfn.IFNA(VLOOKUP(B121,'other funds ftr 2025'!A:I,9,FALSE),0),1) -> 0 | M121: 13386 | N121: =1+IF(ISNA(VLOOKUP(B121,'Rural and Low Income 25-26'!$A:$B,2,FALSE)),0,$N$17) -> 1 | O121: 0 | R121: 0 | S121: 0 | T121: =IFERROR(VLOOKUP(B121,'2024-25 Final'!$B$19:$AA$164,26,0),0) -> 0 | U121: 0 | V121: n | Y121: 0 | AA121: 0
A122: 104 | B122: 03400 | D122: RICHLAND | E122: =IFERROR(VLOOKUP(B122,Enrollment!$A$2:$G$147,5,0),0) -> 295 | F122: 138556 | G122: =IFERROR(VLOOKUP(B122,Enrollment!$A$2:$G$147,6,0),0) -> 88 | H122: 10333 | I122: =IFERROR(VLOOKUP(B122,Enrollment!$A$2:$G$147,7,0),0) -> 162 | J122: 76088 | K122: 224977 | L122: =IF(E122>$E$17,_xlfn.IFNA(VLOOKUP(B122,'other funds ftr 2025'!A:I,9,FALSE),0),1) -> 1 | M122: 224977 | N122: =1+IF(ISNA(VLOOKUP(B122,'Rural and Low Income 25-26'!$A:$B,2,FALSE)),0,$N$17) -> 1 | O122: 224977 | R122: 0 | S122: 224977 | T122: =IFERROR(VLOOKUP(B122,'2024-25 Final'!$B$19:$AA$164,26,0),0) -> 0 | U122: 224977 | V122: y | W122: 1 | Y122: 1250 | AA122: 0
A123: 105 | B123: 06122 | D123: RIDGEFIELD | E123: =IFERROR(VLOOKUP(B123,Enrollment!$A$2:$G$147,5,0),0) -> 19 | F123: 8924 | G123: =IFERROR(VLOOKUP(B123,Enrollment!$A$2:$G$147,6,0),0) -> 13 | H123: 1526 | I123: =IFERROR(VLOOKUP(B123,Enrollment!$A$2:$G$147,7,0),0) -> 7 | J123: 3288 | K123: 13738 | L123: =IF(E123>$E$17,_xlfn.IFNA(VLOOKUP(B123,'other funds ftr 2025'!A:I,9,FALSE),0),1) -> 0.95 | M123: 13051 | N123: =1+IF(ISNA(VLOOKUP(B123,'Rural and Low Income 25-26'!$A:$B,2,FALSE)),0,$N$17) -> 1 | O123: 13051 | R123: 0 | S123: 13051 | T123: =IFERROR(VLOOKUP(B123,'2024-25 Final'!$B$19:$AA$164,26,0),0) -> 19889 | U123: -6838 | V123: y | Y123: 750 | AA123: 13801
A124: 106 | B124: 17407 | D124: RIVERVIEW | E124: =IFERROR(VLOOKUP(B124,Enrollment!$A$2:$G$147,5,0),0) -> 11 | F124: 5166 | G124: =IFERROR(VLOOKUP(B124,Enrollment!$A$2:$G$147,6,0),0) -> 5 | H124: 587 | I124: =IFERROR(VLOOKUP(B124,Enrollment!$A$2:$G$147,7,0),0) -> 0 | J124: 0 | K124: 5753 | L124: =IF(E124>$E$17,_xlfn.IFNA(VLOOKUP(B124,'other funds ftr 2025'!A:I,9,FALSE),0),1) -> 0 | M124: 5753 | N124: =1+IF(ISNA(VLOOKUP(B124,'Rural and Low Income 25-26'!$A:$B,2,FALSE)),0,$N$17) -> 1 | O124: 0 | R124: 0 | S124: 0 | T124: =IFERROR(VLOOKUP(B124,'2024-25 Final'!$B$19:$AA$164,26,0),0) -> 0 | U124: 0 | V124: n | Y124: 0 | AA124: 0
A125: 107 | B125: 34401 | D125: ROCHESTER | E125: =IFERROR(VLOOKUP(B125,Enrollment!$A$2:$G$147,5,0),0) -> 52 | F125: 24423 | G125: =IFERROR(VLOOKUP(B125,Enrollment!$A$2:$G$147,6,0),0) -> 7 | H125: 822 | I125: =IFERROR(VLOOKUP(B125,Enrollment!$A$2:$G$147,7,0),0) -> 25 | J125: 11742 | K125: 36987 | L125: =IF(E125>$E$17,_xlfn.IFNA(VLOOKUP(B125,'other funds ftr 2025'!A:I,9,FALSE),0),1) -> 0.95 | M125: 35138 | N125: =1+IF(ISNA(VLOOKUP(B125,'Rural and Low Income 25-26'!$A:$B,2,FALSE)),0,$N$17) -> 1 | O125: 35138 | R125: 0 | S125: 35138 | T125: =IFERROR(VLOOKUP(B125,'2024-25 Final'!$B$19:$AA$164,26,0),0) -> 79625 | U125: -44487 | V125: y | Y125: 750 | AA125: 35888
A126: 108 | B126: 20403 | D126: ROOSEVELT | E126: =IFERROR(VLOOKUP(B126,Enrollment!$A$2:$G$147,5,0),0) -> 0 | F126: 0 | G126: =IFERROR(VLOOKUP(B126,Enrollment!$A$2:$G$147,6,0),0) -> 0 | H126: 0 | I126: =IFERROR(VLOOKUP(B126,Enrollment!$A$2:$G$147,7,0),0) -> 0 | J126: 0 | K126: 0 | L126: =IF(E126>$E$17,_xlfn.IFNA(VLOOKUP(B126,'other funds ftr 2025'!A:I,9,FALSE),0),1) -> 1 | M126: 0 | N126: =1+IF(ISNA(VLOOKUP(B126,'Rural and Low Income 25-26'!$A:$B,2,FALSE)),0,$N$17) -> 1.1 | O126: 0 | R126: 0 | S126: 0 | T126: =IFERROR(VLOOKUP(B126,'2024-25 Final'!$B$19:$AA$164,26,0),0) -> 15279 | U126: -15279 | V126: y | Y126: 750 | AA126: 750
A127: 109 | B127: 13160 | D127: ROYAL | E127: =IFERROR(VLOOKUP(B127,Enrollment!$A$2:$G$147,5,0),0) -> 273 | F127: 128223 | G127: =IFERROR(VLOOKUP(B127,Enrollment!$A$2:$G$147,6,0),0) -> 51 | H127: 5988 | I127: =IFERROR(VLOOKUP(B127,Enrollment!$A$2:$G$147,7,0),0) -> 86 | J127: 40393 | K127: 174604 | L127: =IF(E127>$E$17,_xlfn.IFNA(VLOOKUP(B127,'other funds ftr 2025'!A:I,9,FALSE),0),1) -> 1.05 | M127: 183334 | N127: =1+IF(ISNA(VLOOKUP(B127,'Rural and Low Income 25-26'!$A:$B,2,FALSE)),0,$N$17) -> 1 | O127: 183334 | R127: 0 | S127: 183334 | T127: =IFERROR(VLOOKUP(B127,'2024-25 Final'!$B$19:$AA$164,26,0),0) -> 185713 | U127: -2379 | V127: y | Y127: 1250 | AA127: 184584
A128: 110 | B128: 28149 | D128: SAN JUAN ISLAND | E128: =IFERROR(VLOOKUP(B128,Enrollment!$A$2:$G$147,5,0),0) -> 0 | F128: 0 | G128: =IFERROR(VLOOKUP(B128,Enrollment!$A$2:$G$147,6,0),0) -> 0 | H128: 0 | I128: =IFERROR(VLOOKUP(B128,Enrollment!$A$2:$G$147,7,0),0) -> 0 | J128: 0 | K128: 0 | L128: =IF(E128>$E$17,_xlfn.IFNA(VLOOKUP(B128,'other funds ftr 2025'!A:I,9,FALSE),0),1) -> 1 | M128: 0 | N128: =1+IF(ISNA(VLOOKUP(B128,'Rural and Low Income 25-26'!$A:$B,2,FALSE)),0,$N$17) -> 1 | O128: 0 | R128: 0 | S128: 0 | T128: =IFERROR(VLOOKUP(B128,'2024-25 Final'!$B$19:$AA$164,26,0),0) -> 0 | U128: 0 | V128: n | Y128: 0 | AA128: 0
A129: 111 | B129: 17001 | D129: SEATTLE PUBLIC SCHOOLS | E129: =IFERROR(VLOOKUP(B129,Enrollment!$A$2:$G$147,5,0),0) -> 17 | F129: 7985 | G129: =IFERROR(VLOOKUP(B129,Enrollment!$A$2:$G$147,6,0),0) -> 6 | H129: 705 | I129: =IFERROR(VLOOKUP(B129,Enrollment!$A$2:$G$147,7,0),0) -> 6 | J129: 2818 | K129: 11508 | L129: =IF(E129>$E$17,_xlfn.IFNA(VLOOKUP(B129,'other funds ftr 2025'!A:I,9,FALSE),0),1) -> 0 | M129: 11508 | N129: =1+IF(ISNA(VLOOKUP(B129,'Rural and Low Income 25-26'!$A:$B,2,FALSE)),0,$N$17) -> 1 | O129: 0 | R129: 0 | S129: 0 | T129: =IFERROR(VLOOKUP(B129,'2024-25 Final'!$B$19:$AA$164,26,0),0) -> 0 | U129: 0 | V129: n | Y129: 0 | AA129: 0
A130: 112 | B130: 29101 | D130: SEDRO-WOOLLEY | E130: =IFERROR(VLOOKUP(B130,Enrollment!$A$2:$G$147,5,0),0) -> 148 | F130: 69513 | G130: =IFERROR(VLOOKUP(B130,Enrollment!$A$2:$G$147,6,0),0) -> 18 | H130: 2114 | I130: =IFERROR(VLOOKUP(B130,Enrollment!$A$2:$G$147,7,0),0) -> 49 | J130: 23014 | K130: 94641 | L130: =IF(E130>$E$17,_xlfn.IFNA(VLOOKUP(B130,'other funds ftr 2025'!A:I,9,FALSE),0),1) -> 1 | M130: 94641 | N130: =1+IF(ISNA(VLOOKUP(B130,'Rural and Low Income 25-26'!$A:$B,2,FALSE)),0,$N$17) -> 1 | O130: 94641 | R130: 0 | S130: 94641 | T130: =IFERROR(VLOOKUP(B130,'2024-25 Final'!$B$19:$AA$164,26,0),0) -> 118759 | U130: -24118 | V130: y | Y130: 1250 | AA130: 95891
A131: 113 | B131: 39119 | D131: SELAH | E131: =IFERROR(VLOOKUP(B131,Enrollment!$A$2:$G$147,5,0),0) -> 278 | F131: 130571 | G131: =IFERROR(VLOOKUP(B131,Enrollment!$A$2:$G$147,6,0),0) -> 80 | H131: 9394 | I131: =IFERROR(VLOOKUP(B131,Enrollment!$A$2:$G$147,7,0),0) -> 101 | J131: 47438 | K131: 187403 | L131: =IF(E131>$E$17,_xlfn.IFNA(VLOOKUP(B131,'other funds ftr 2025'!A:I,9,FALSE),0),1) -> 1 | M131: 187403 | N131: =1+IF(ISNA(VLOOKUP(B131,'Rural and Low Income 25-26'!$A:$B,2,FALSE)),0,$N$17) -> 1 | O131: 187403 | R131: 0 | S131: 187403 | T131: =IFERROR(VLOOKUP(B131,'2024-25 Final'!$B$19:$AA$164,26,0),0) -> 194440 | U131: -7037 | V131: y | Y131: 1250 | AA131: 188653
A132: 114 | B132: 23309 | D132: SHELTON | E132: =IFERROR(VLOOKUP(B132,Enrollment!$A$2:$G$147,5,0),0) -> 61 | F132: 28651 | G132: =IFERROR(VLOOKUP(B132,Enrollment!$A$2:$G$147,6,0),0) -> 26 | H132: 3053 | I132: =IFERROR(VLOOKUP(B132,Enrollment!$A$2:$G$147,7,0),0) -> 24 | J132: 11272 | K132: 42976 | L132: =IF(E132>$E$17,_xlfn.IFNA(VLOOKUP(B132,'other funds ftr 2025'!A:I,9,FALSE),0),1) -> 0 | M132: 42976 | N132: =1+IF(ISNA(VLOOKUP(B132,'Rural and Low Income 25-26'!$A:$B,2,FALSE)),0,$N$17) -> 1 | O132: 0 | R132: =ROUND(IF(Q132>0,-(0.9-Q132)*O132,0),0) -> 0 | S132: 0 | T132: =IFERROR(VLOOKUP(B132,'2024-25 Final'!$B$19:$AA$164,26,0),0) -> 0 | U132: 0 | V132: n | Y132: 0 | AA132: 0
A133: 115 | B133: 31201 | D133: SNOHOMISH | E133: =IFERROR(VLOOKUP(B133,Enrollment!$A$2:$G$147,5,0),0) -> 54 | F133: 25363 | G133: =IFERROR(VLOOKUP(B133,Enrollment!$A$2:$G$147,6,0),0) -> 16 | H133: 1879 | I133: =IFERROR(VLOOKUP(B133,Enrollment!$A$2:$G$147,7,0),0) -> 26 | J133: 12212 | K133: 39454 | L133: =IF(E133>$E$17,_xlfn.IFNA(VLOOKUP(B133,'other funds ftr 2025'!A:I,9,FALSE),0),1) -> 0.95 | M133: 37481 | N133: =1+IF(ISNA(VLOOKUP(B133,'Rural and Low Income 25-26'!$A:$B,2,FALSE)),0,$N$17) -> 1 | O133: 37481 | R133: 0 | S133: 37481 | T133: =IFERROR(VLOOKUP(B133,'2024-25 Final'!$B$19:$AA$164,26,0),0) -> 47583 | U133: -10102 | V133: y | Y133: 750 | AA133: 38231
A134: 116 | B134: 13156 | D134: SOAP LAKE | E134: =IFERROR(VLOOKUP(B134,Enrollment!$A$2:$G$147,5,0),0) -> 29 | F134: 13621 | G134: =IFERROR(VLOOKUP(B134,Enrollment!$A$2:$G$147,6,0),0) -> 12 | H134: 1409 | I134: =IFERROR(VLOOKUP(B134,Enrollment!$A$2:$G$147,7,0),0) -> 9 | J134: 4227 | K134: 19257 | L134: =IF(E134>$E$17,_xlfn.IFNA(VLOOKUP(B134,'other funds ftr 2025'!A:I,9,FALSE),0),1) -> 0 | M134: 19257 | N134: =1+IF(ISNA(VLOOKUP(B134,'Rural and Low Income 25-26'!$A:$B,2,FALSE)),0,$N$17) -> 1.1 | O134: 0 | R134: 0 | S134: 0 | T134: =IFERROR(VLOOKUP(B134,'2024-25 Final'!$B$19:$AA$164,26,0),0) -> 0 | U134: 0 | V134: n | Y134: 0 | AA134: 0
A135: 117 | B135: 32081 | D135: SPOKANE | E135: =IFERROR(VLOOKUP(B135,Enrollment!$A$2:$G$147,5,0),0) -> 78 | F135: 36635 | G135: =IFERROR(VLOOKUP(B135,Enrollment!$A$2:$G$147,6,0),0) -> 36 | H135: 4227 | I135: =IFERROR(VLOOKUP(B135,Enrollment!$A$2:$G$147,7,0),0) -> 15 | J135: 7045 | K135: 47907 | L135: =IF(E135>$E$17,_xlfn.IFNA(VLOOKUP(B135,'other funds ftr 2025'!A:I,9,FALSE),0),1) -> 0 | M135: 47907 | N135: =1+IF(ISNA(VLOOKUP(B135,'Rural and Low Income 25-26'!$A:$B,2,FALSE)),0,$N$17) -> 1 | O135: 0 | R135: 0 | S135: 0 | T135: =IFERROR(VLOOKUP(B135,'2024-25 Final'!$B$19:$AA$164,26,0),0) -> 0 | U135: 0 | V135: n | Y135: 0 | AA135: 0
A136: 118 | B136: 31401 | D136: STANWOOD-CAMANO | E136: =IFERROR(VLOOKUP(B136,Enrollment!$A$2:$G$147,5,0),0) -> 17 | F136: 7985 | G136: =IFERROR(VLOOKUP(B136,Enrollment!$A$2:$G$147,6,0),0) -> 8 | H136: 939 | I136: =IFERROR(VLOOKUP(B136,Enrollment!$A$2:$G$147,7,0),0) -> 4 | J136: 1879 | K136: 10803 | L136: =IF(E136>$E$17,_xlfn.IFNA(VLOOKUP(B136,'other funds ftr 2025'!A:I,9,FALSE),0),1) -> 0 | M136: 10803 | N136: =1+IF(ISNA(VLOOKUP(B136,'Rural and Low Income 25-26'!$A:$B,2,FALSE)),0,$N$17) -> 1 | O136: 0 | R136: 0 | S136: 0 | T136: =IFERROR(VLOOKUP(B136,'2024-25 Final'!$B$19:$AA$164,26,0),0) -> 0 | U136: 0 | V136: n | Y136: 0 | AA136: 0
A137: 119 | B137: 30303 | D137: STEVENSON-CARSON | E137: =IFERROR(VLOOKUP(B137,Enrollment!$A$2:$G$147,5,0),0) -> 0 | F137: 0 | G137: =IFERROR(VLOOKUP(B137,Enrollment!$A$2:$G$147,6,0),0) -> 0 | H137: 0 | I137: =IFERROR(VLOOKUP(B137,Enrollment!$A$2:$G$147,7,0),0) -> 0 | J137: 0 | K137: 0 | L137: =IF(E137>$E$17,_xlfn.IFNA(VLOOKUP(B137,'other funds ftr 2025'!A:I,9,FALSE),0),1) -> 1 | M137: 0 | N137: =1+IF(ISNA(VLOOKUP(B137,'Rural and Low Income 25-26'!$A:$B,2,FALSE)),0,$N$17) -> 1.1 | O137: 0 | R137: 0 | S137: 0 | T137: =IFERROR(VLOOKUP(B137,'2024-25 Final'!$B$19:$AA$164,26,0),0) -> 0 | U137: 0 | V137: n | Y137: 0 | AA137: 0
A138: 120 | B138: 39201 | D138: SUNNYSIDE | E138: =IFERROR(VLOOKUP(B138,Enrollment!$A$2:$G$147,5,0),0) -> 2096 | F138: 984450 | G138: =IFERROR(VLOOKUP(B138,Enrollment!$A$2:$G$147,6,0),0) -> 409 | H138: 48025 | I138: =IFERROR(VLOOKUP(B138,Enrollment!$A$2:$G$147,7,0),0) -> 993 | J138: 466393 | K138: 1498868 | L138: =IF(E138>$E$17,_xlfn.IFNA(VLOOKUP(B138,'other funds ftr 2025'!A:I,9,FALSE),0),1) -> 1.1 | M138: 1648755 | N138: =1+IF(ISNA(VLOOKUP(B138,'Rural and Low Income 25-26'!$A:$B,2,FALSE)),0,$N$17) -> 1.1 | O138: 1813631 | R138: 0 | S138: 1813631 | T138: =IFERROR(VLOOKUP(B138,'2024-25 Final'!$B$19:$AA$164,26,0),0) -> 1529977 | U138: 283654 | V138: y | Y138: 2000 | AA138: 1815631
A139: 121 | B139: 27010 | D139: TACOMA | E139: =IFERROR(VLOOKUP(B139,Enrollment!$A$2:$G$147,5,0),0) -> 19 | F139: 8924 | G139: =IFERROR(VLOOKUP(B139,Enrollment!$A$2:$G$147,6,0),0) -> 4 | H139: 470 | I139: =IFERROR(VLOOKUP(B139,Enrollment!$A$2:$G$147,7,0),0) -> 7 | J139: 3288 | K139: 12682 | L139: =IF(E139>$E$17,_xlfn.IFNA(VLOOKUP(B139,'other funds ftr 2025'!A:I,9,FALSE),0),1) -> 0 | M139: 12682 | N139: =1+IF(ISNA(VLOOKUP(B139,'Rural and Low Income 25-26'!$A:$B,2,FALSE)),0,$N$17) -> 1 | O139: 0 | R139: 0 | S139: 0 | T139: =IFERROR(VLOOKUP(B139,'2024-25 Final'!$B$19:$AA$164,26,0),0) -> 0 | U139: 0 | V139: n | Y139: 0 | AA139: 0
A140: 122 | B140: 14077 | D140: TAHOLAH | E140: =IFERROR(VLOOKUP(B140,Enrollment!$A$2:$G$147,5,0),0) -> 76 | F140: 35696 | G140: =IFERROR(VLOOKUP(B140,Enrollment!$A$2:$G$147,6,0),0) -> 43 | H140: 5049 | I140: =IFERROR(VLOOKUP(B140,Enrollment!$A$2:$G$147,7,0),0) -> 2 | J140: 939 | K140: 41684 | L140: =IF(E140>$E$17,_xlfn.IFNA(VLOOKUP(B140,'other funds ftr 2025'!A:I,9,FALSE),0),1) -> 1.1 | M140: 45852 | N140: =1+IF(ISNA(VLOOKUP(B140,'Rural and Low Income 25-26'!$A:$B,2,FALSE)),0,$N$17) -> 1.1 | O140: 50437 | R140: 0 | S140: 50437 | T140: =IFERROR(VLOOKUP(B140,'2024-25 Final'!$B$19:$AA$164,26,0),0) -> 81964 | U140: -31527 | V140: y | Y140: 750 | AA140: 51187
A141: 123 | B141: 24404 | D141: TONASKET | E141: =IFERROR(VLOOKUP(B141,Enrollment!$A$2:$G$147,5,0),0) -> 350 | F141: 164388 | G141: =IFERROR(VLOOKUP(B141,Enrollment!$A$2:$G$147,6,0),0) -> 115 | H141: 13503 | I141: =IFERROR(VLOOKUP(B141,Enrollment!$A$2:$G$147,7,0),0) -> 124 | J141: 58240 | K141: 236131 | L141: =IF(E141>$E$17,_xlfn.IFNA(VLOOKUP(B141,'other funds ftr 2025'!A:I,9,FALSE),0),1) -> 1.1 | M141: 259744 | N141: =1+IF(ISNA(VLOOKUP(B141,'Rural and Low Income 25-26'!$A:$B,2,FALSE)),0,$N$17) -> 1.1 | O141: 285718 | R141: 0 | S141: 285718 | T141: =IFERROR(VLOOKUP(B141,'2024-25 Final'!$B$19:$AA$164,26,0),0) -> 309335 | U141: -23617 | V141: y | Y141: 1250 | AA141: 286968
A142: 124 | B142: 39202 | D142: TOPPENISH | E142: =IFERROR(VLOOKUP(B142,Enrollment!$A$2:$G$147,5,0),0) -> 823 | F142: 386547 | G142: =IFERROR(VLOOKUP(B142,Enrollment!$A$2:$G$147,6,0),0) -> 220 | H142: 25832 | I142: =IFERROR(VLOOKUP(B142,Enrollment!$A$2:$G$147,7,0),0) -> 349 | J142: 163919 | K142: 576298 | L142: =IF(E142>$E$17,_xlfn.IFNA(VLOOKUP(B142,'other funds ftr 2025'!A:I,9,FALSE),0),1) -> 1.05 | M142: 605113 | N142: =1+IF(ISNA(VLOOKUP(B142,'Rural and Low Income 25-26'!$A:$B,2,FALSE)),0,$N$17) -> 1 | O142: 605113 | R142: 0 | S142: 605113 | T142: =IFERROR(VLOOKUP(B142,'2024-25 Final'!$B$19:$AA$164,26,0),0) -> 639826 | U142: -34713 | V142: y | Y142: 2000 | AA142: 607113
A143: 125 | B143: 20400 | D143: TROUT LAKE | E143: =IFERROR(VLOOKUP(B143,Enrollment!$A$2:$G$147,5,0),0) -> 0 | F143: 0 | G143: =IFERROR(VLOOKUP(B143,Enrollment!$A$2:$G$147,6,0),0) -> 0 | H143: 0 | I143: =IFERROR(VLOOKUP(B143,Enrollment!$A$2:$G$147,7,0),0) -> 0 | J143: 0 | K143: 0 | L143: =IF(E143>$E$17,_xlfn.IFNA(VLOOKUP(B143,'other funds ftr 2025'!A:I,9,FALSE),0),1) -> 1 | M143: 0 | N143: =1+IF(ISNA(VLOOKUP(B143,'Rural and Low Income 25-26'!$A:$B,2,FALSE)),0,$N$17) -> 1.1 | O143: 0 | R143: 0 | S143: 0 | T143: =IFERROR(VLOOKUP(B143,'2024-25 Final'!$B$19:$AA$164,26,0),0) -> 0 | U143: 0 | V143: n | Y143: 0 | AA143: 0
A144: 126 | B144: 34033 | D144: TUMWATER | E144: =IFERROR(VLOOKUP(B144,Enrollment!$A$2:$G$147,5,0),0) -> 0 | F144: 0 | G144: =IFERROR(VLOOKUP(B144,Enrollment!$A$2:$G$147,6,0),0) -> 0 | H144: 0 | I144: =IFERROR(VLOOKUP(B144,Enrollment!$A$2:$G$147,7,0),0) -> 0 | J144: 0 | K144: 0 | L144: =IF(E144>$E$17,_xlfn.IFNA(VLOOKUP(B144,'other funds ftr 2025'!A:I,9,FALSE),0),1) -> 1 | M144: 0 | N144: =1+IF(ISNA(VLOOKUP(B144,'Rural and Low Income 25-26'!$A:$B,2,FALSE)),0,$N$17) -> 1 | O144: 0 | R144: 0 | S144: 0 | T144: =IFERROR(VLOOKUP(B144,'2024-25 Final'!$B$19:$AA$164,26,0),0) -> 0 | U144: 0 | V144: n | Y144: 0 | AA144: 0
A145: 127 | B145: 39002 | D145: UNION GAP | E145: =IFERROR(VLOOKUP(B145,Enrollment!$A$2:$G$147,5,0),0) -> 78 | F145: 36635 | G145: =IFERROR(VLOOKUP(B145,Enrollment!$A$2:$G$147,6,0),0) -> 8 | H145: 939 | I145: =IFERROR(VLOOKUP(B145,Enrollment!$A$2:$G$147,7,0),0) -> 24 | J145: 11272 | K145: 48846 | L145: =IF(E145>$E$17,_xlfn.IFNA(VLOOKUP(B145,'other funds ftr 2025'!A:I,9,FALSE),0),1) -> 1.05 | M145: 51288 | N145: =1+IF(ISNA(VLOOKUP(B145,'Rural and Low Income 25-26'!$A:$B,2,FALSE)),0,$N$17) -> 1.1 | O145: 56417 | R145: 0 | S145: 56417 | T145: =IFERROR(VLOOKUP(B145,'2024-25 Final'!$B$19:$AA$164,26,0),0) -> 65812 | U145: -9395 | V145: y | Y145: 750 | AA145: 57167
A146: 128 | B146: 06037 | D146: VANCOUVER | E146: =IFERROR(VLOOKUP(B146,Enrollment!$A$2:$G$147,5,0),0) -> 50 | F146: 23484 | G146: =IFERROR(VLOOKUP(B146,Enrollment!$A$2:$G$147,6,0),0) -> 24 | H146: 2818 | I146: =IFERROR(VLOOKUP(B146,Enrollment!$A$2:$G$147,7,0),0) -> 9 | J146: 4227 | K146: 30529 | L146: =IF(E146>$E$17,_xlfn.IFNA(VLOOKUP(B146,'other funds ftr 2025'!A:I,9,FALSE),0),1) -> 0.95 | M146: 29003 | N146: =1+IF(ISNA(VLOOKUP(B146,'Rural and Low Income 25-26'!$A:$B,2,FALSE)),0,$N$17) -> 1 | O146: 29003 | R146: 0 | S146: 29003 | T146: =IFERROR(VLOOKUP(B146,'2024-25 Final'!$B$19:$AA$164,26,0),0) -> 45634 | U146: -16631 | V146: y | Y146: 750 | AA146: 29753
A147: 129 | B147: 34901 | D147: WA HE LUT INDIAN SCHOOL | E147: =IFERROR(VLOOKUP(B147,Enrollment!$A$2:$G$147,5,0),0) -> 0 | F147: =IF(E147>=10,ROUND(E147*$G$3,0),0) -> 0 | G147: =IFERROR(VLOOKUP(B147,Enrollment!$A$2:$G$147,6,0),0) -> 0 | H147: =IF(E147>=$E$17,ROUND(G147*$G$3*$G$17,0),0) -> 0 | I147: =IFERROR(VLOOKUP(B147,Enrollment!$A$2:$G$147,7,0),0) -> 0 | J147: =IF(E147>=$E$17,ROUND(I147*$G$3*$I$17,0),0) -> 0 | K147: =+F147+H147+J147 -> 0 | L147: =IF(E147>$E$17,_xlfn.IFNA(VLOOKUP(B147,'other funds ftr 2025'!A:I,9,FALSE),0),1) -> 1 | M147: =IF(L147=0,K147,ROUND(K147*L147,0)) -> 0 | N147: =1+IF(ISNA(VLOOKUP(B147,'Rural and Low Income 25-26'!$A:$B,2,FALSE)),0,$N$17) -> 1 | O147: =IF(V147="y",ROUND(M147*N147,0),0) -> 0 | R147: 0 | S147: =O147+R147 -> 0 | T147: =IFERROR(VLOOKUP(B147,'2024-25 Final'!$B$19:$AA$164,26,0),0) -> 0 | U147: =S147-T147 -> 0 | V147: n | Y147: =IF(V147="Y",IF(E147<=99,750,IF(AND(E147>=100,E147<=399),1250,2000)),0) -> 0 | AA147: =IF(W147=1, 0, Y147+S147+Z147) -> 0
A148: 130 | B148: 13073 | D148: WAHLUKE | E148: =IFERROR(VLOOKUP(B148,Enrollment!$A$2:$G$147,5,0),0) -> 1896 | F148: 890514 | G148: =IFERROR(VLOOKUP(B148,Enrollment!$A$2:$G$147,6,0),0) -> 623 | H148: 73153 | I148: =IFERROR(VLOOKUP(B148,Enrollment!$A$2:$G$147,7,0),0) -> 814 | J148: 382320 | K148: 1345987 | L148: =IF(E148>$E$17,_xlfn.IFNA(VLOOKUP(B148,'other funds ftr 2025'!A:I,9,FALSE),0),1) -> 1.1 | M148: 1480586 | N148: =1+IF(ISNA(VLOOKUP(B148,'Rural and Low Income 25-26'!$A:$B,2,FALSE)),0,$N$17) -> 1 | O148: 1480586 | R148: 0 | S148: 1480586 | T148: =IFERROR(VLOOKUP(B148,'2024-25 Final'!$B$19:$AA$164,26,0),0) -> 1451944 | U148: 28642 | V148: y | Y148: 2000 | AA148: 1482586
A149: 131 | B149: 36140 | D149: WALLA WALLA PUBLIC SCHOOLS | E149: =IFERROR(VLOOKUP(B149,Enrollment!$A$2:$G$147,5,0),0) -> 97 | F149: 45559 | G149: =IFERROR(VLOOKUP(B149,Enrollment!$A$2:$G$147,6,0),0) -> 26 | H149: 3053 | I149: =IFERROR(VLOOKUP(B149,Enrollment!$A$2:$G$147,7,0),0) -> 44 | J149: 20666 | K149: 69278 | L149: =IF(E149>$E$17,_xlfn.IFNA(VLOOKUP(B149,'other funds ftr 2025'!A:I,9,FALSE),0),1) -> 0.95 | M149: 65814 | N149: =1+IF(ISNA(VLOOKUP(B149,'Rural and Low Income 25-26'!$A:$B,2,FALSE)),0,$N$17) -> 1 | O149: 65814 | R149: 0 | S149: 65814 | T149: =IFERROR(VLOOKUP(B149,'2024-25 Final'!$B$19:$AA$164,26,0),0) -> 64457 | U149: 1357 | V149: y | Y149: 750 | AA149: 66564
A150: 132 | B150: 39207 | D150: WAPATO | E150: =IFERROR(VLOOKUP(B150,Enrollment!$A$2:$G$147,5,0),0) -> 884 | F150: 415198 | G150: =IFERROR(VLOOKUP(B150,Enrollment!$A$2:$G$147,6,0),0) -> 300 | H150: 35226 | I150: =IFERROR(VLOOKUP(B150,Enrollment!$A$2:$G$147,7,0),0) -> 463 | J150: 217462 | K150: 667886 | L150: =IF(E150>$E$17,_xlfn.IFNA(VLOOKUP(B150,'other funds ftr 2025'!A:I,9,FALSE),0),1) -> 1.1 | M150: 734675 | N150: =1+IF(ISNA(VLOOKUP(B150,'Rural and Low Income 25-26'!$A:$B,2,FALSE)),0,$N$17) -> 1 | O150: 734675 | R150: 0 | S150: 734675 | T150: =IFERROR(VLOOKUP(B150,'2024-25 Final'!$B$19:$AA$164,26,0),0) -> 755402 | U150: -20727 | V150: y | Y150: 2000 | AA150: 736675
A151: 133 | B151: 13146 | D151: WARDEN | E151: =IFERROR(VLOOKUP(B151,Enrollment!$A$2:$G$147,5,0),0) -> 307 | F151: 144192 | G151: =IFERROR(VLOOKUP(B151,Enrollment!$A$2:$G$147,6,0),0) -> 62 | H151: 7280 | I151: =IFERROR(VLOOKUP(B151,Enrollment!$A$2:$G$147,7,0),0) -> 105 | J151: 49316 | K151: 200788 | L151: =IF(E151>$E$17,_xlfn.IFNA(VLOOKUP(B151,'other funds ftr 2025'!A:I,9,FALSE),0),1) -> 1.1 | M151: 220867 | N151: =1+IF(ISNA(VLOOKUP(B151,'Rural and Low Income 25-26'!$A:$B,2,FALSE)),0,$N$17) -> 1.1 | O151: 242954 | R151: 0 | S151: 242954 | T151: =IFERROR(VLOOKUP(B151,'2024-25 Final'!$B$19:$AA$164,26,0),0) -> 249540 | U151: -6586 | V151: y | Y151: 1250 | AA151: 244204
A152: 134 | B152: 09209 | D152: WATERVILLE | E152: =IFERROR(VLOOKUP(B152,Enrollment!$A$2:$G$147,5,0),0) -> 14 | F152: 6576 | G152: =IFERROR(VLOOKUP(B152,Enrollment!$A$2:$G$147,6,0),0) -> 8 | H152: 939 | I152: =IFERROR(VLOOKUP(B152,Enrollment!$A$2:$G$147,7,0),0) -> 1 | J152: 470 | K152: 7985 | L152: =IF(E152>$E$17,_xlfn.IFNA(VLOOKUP(B152,'other funds ftr 2025'!A:I,9,FALSE),0),1) -> 0 | M152: 7985 | N152: =1+IF(ISNA(VLOOKUP(B152,'Rural and Low Income 25-26'!$A:$B,2,FALSE)),0,$N$17) -> 1.1 | O152: 0 | R152: 0 | S152: 0 | T152: =IFERROR(VLOOKUP(B152,'2024-25 Final'!$B$19:$AA$164,26,0),0) -> 0 | U152: 0 | V152: n | Y152: 0 | AA152: 0
A153: 135 | B153: 33049 | D153: WELLPINIT | E153: =IFERROR(VLOOKUP(B153,Enrollment!$A$2:$G$147,5,0),0) -> 69 | F153: 32408 | G153: =IFERROR(VLOOKUP(B153,Enrollment!$A$2:$G$147,6,0),0) -> 27 | H153: 3170 | I153: =IFERROR(VLOOKUP(B153,Enrollment!$A$2:$G$147,7,0),0) -> 7 | J153: 3288 | K153: 38866 | L153: =IF(E153>$E$17,_xlfn.IFNA(VLOOKUP(B153,'other funds ftr 2025'!A:I,9,FALSE),0),1) -> 0 | M153: 38866 | N153: =1+IF(ISNA(VLOOKUP(B153,'Rural and Low Income 25-26'!$A:$B,2,FALSE)),0,$N$17) -> 1.1 | O153: 0 | R153: 0 | S153: 0 | T153: =IFERROR(VLOOKUP(B153,'2024-25 Final'!$B$19:$AA$164,26,0),0) -> 0 | U153: 0 | V153: n | Y153: 0 | AA153: 0
A154: 136 | B154: 04246 | D154: WENATCHEE | E154: =IFERROR(VLOOKUP(B154,Enrollment!$A$2:$G$147,5,0),0) -> 1418 | F154: 666007 | G154: =IFERROR(VLOOKUP(B154,Enrollment!$A$2:$G$147,6,0),0) -> 412 | H154: 48377 | I154: =IFERROR(VLOOKUP(B154,Enrollment!$A$2:$G$147,7,0),0) -> 622 | J154: 292141 | K154: 1006525 | L154: =IF(E154>$E$17,_xlfn.IFNA(VLOOKUP(B154,'other funds ftr 2025'!A:I,9,FALSE),0),1) -> 1.1 | M154: 1107178 | N154: =1+IF(ISNA(VLOOKUP(B154,'Rural and Low Income 25-26'!$A:$B,2,FALSE)),0,$N$17) -> 1 | O154: 1107178 | R154: 0 | S154: 1107178 | T154: =IFERROR(VLOOKUP(B154,'2024-25 Final'!$B$19:$AA$164,26,0),0) -> 1226610 | U154: -119432 | V154: y | Y154: 2000 | AA154: 1109178
A155: 137 | B155: 39208 | D155: WEST VALLEY (YAKIMA) | E155: =IFERROR(VLOOKUP(B155,Enrollment!$A$2:$G$147,5,0),0) -> 247 | F155: 116011 | G155: =IFERROR(VLOOKUP(B155,Enrollment!$A$2:$G$147,6,0),0) -> 56 | H155: 6576 | I155: =IFERROR(VLOOKUP(B155,Enrollment!$A$2:$G$147,7,0),0) -> 84 | J155: 39453 | K155: 162040 | L155: =IF(E155>$E$17,_xlfn.IFNA(VLOOKUP(B155,'other funds ftr 2025'!A:I,9,FALSE),0),1) -> 1 | M155: 162040 | N155: =1+IF(ISNA(VLOOKUP(B155,'Rural and Low Income 25-26'!$A:$B,2,FALSE)),0,$N$17) -> 1 | O155: 162040 | R155: 0 | S155: 162040 | T155: =IFERROR(VLOOKUP(B155,'2024-25 Final'!$B$19:$AA$164,26,0),0) -> 161003 | U155: 1037 | V155: y | Y155: 1250 | AA155: 163290
A156: 138 | B156: 21303 | D156: WHITE PASS | E156: =IFERROR(VLOOKUP(B156,Enrollment!$A$2:$G$147,5,0),0) -> 0 | F156: 0 | G156: =IFERROR(VLOOKUP(B156,Enrollment!$A$2:$G$147,6,0),0) -> 0 | H156: 0 | I156: =IFERROR(VLOOKUP(B156,Enrollment!$A$2:$G$147,7,0),0) -> 0 | J156: 0 | K156: 0 | L156: =IF(E156>$E$17,_xlfn.IFNA(VLOOKUP(B156,'other funds ftr 2025'!A:I,9,FALSE),0),1) -> 1 | M156: 0 | N156: =1+IF(ISNA(VLOOKUP(B156,'Rural and Low Income 25-26'!$A:$B,2,FALSE)),0,$N$17) -> 1.1 | O156: 0 | R156: 0 | S156: 0 | T156: =IFERROR(VLOOKUP(B156,'2024-25 Final'!$B$19:$AA$164,26,0),0) -> 0 | U156: 0 | V156: n | Y156: 0 | AA156: 0
A157: 139 | B157: 20405 | D157: WHITE SALMON VALLEY | E157: =IFERROR(VLOOKUP(B157,Enrollment!$A$2:$G$147,5,0),0) -> 11 | F157: 5166 | G157: =IFERROR(VLOOKUP(B157,Enrollment!$A$2:$G$147,6,0),0) -> 4 | H157: 470 | I157: =IFERROR(VLOOKUP(B157,Enrollment!$A$2:$G$147,7,0),0) -> 2 | J157: 939 | K157: 6575 | L157: =IF(E157>$E$17,_xlfn.IFNA(VLOOKUP(B157,'other funds ftr 2025'!A:I,9,FALSE),0),1) -> 0.95 | M157: 6246 | N157: =1+IF(ISNA(VLOOKUP(B157,'Rural and Low Income 25-26'!$A:$B,2,FALSE)),0,$N$17) -> 1 | O157: 6246 | R157: 0 | S157: 6246 | T157: =IFERROR(VLOOKUP(B157,'2024-25 Final'!$B$19:$AA$164,26,0),0) -> 17100 | U157: -10854 | V157: y | Y157: 750 | AA157: 6996
A158: 140 | B158: 21232 | D158: WINLOCK | E158: =IFERROR(VLOOKUP(B158,Enrollment!$A$2:$G$147,5,0),0) -> 103 | F158: 48377 | G158: =IFERROR(VLOOKUP(B158,Enrollment!$A$2:$G$147,6,0),0) -> 43 | H158: 5049 | I158: =IFERROR(VLOOKUP(B158,Enrollment!$A$2:$G$147,7,0),0) -> 18 | J158: 8454 | K158: 61880 | L158: =IF(E158>$E$17,_xlfn.IFNA(VLOOKUP(B158,'other funds ftr 2025'!A:I,9,FALSE),0),1) -> 1.05 | M158: 64974 | N158: =1+IF(ISNA(VLOOKUP(B158,'Rural and Low Income 25-26'!$A:$B,2,FALSE)),0,$N$17) -> 1 | O158: 64974 | R158: 0 | S158: 64974 | T158: =IFERROR(VLOOKUP(B158,'2024-25 Final'!$B$19:$AA$164,26,0),0) -> 118909 | U158: -53935 | V158: y | Y158: 1250 | AA158: 66224
A159: 141 | B159: 20094 | D159: WISHRAM | E159: =IFERROR(VLOOKUP(B159,Enrollment!$A$2:$G$147,5,0),0) -> 59 | F159: 27711 | G159: =IFERROR(VLOOKUP(B159,Enrollment!$A$2:$G$147,6,0),0) -> 11 | H159: 1292 | I159: =IFERROR(VLOOKUP(B159,Enrollment!$A$2:$G$147,7,0),0) -> 20 | J159: 9394 | K159: 38397 | L159: =IF(E159>$E$17,_xlfn.IFNA(VLOOKUP(B159,'other funds ftr 2025'!A:I,9,FALSE),0),1) -> 1.1 | M159: 42237 | N159: =1+IF(ISNA(VLOOKUP(B159,'Rural and Low Income 25-26'!$A:$B,2,FALSE)),0,$N$17) -> 1.1 | O159: 46461 | R159: 0 | S159: 46461 | T159: =IFERROR(VLOOKUP(B159,'2024-25 Final'!$B$19:$AA$164,26,0),0) -> 36070 | U159: 10391 | V159: y | Y159: 750 | AA159: 47211
A160: 142 | B160: 08404 | D160: WOODLAND | E160: =IFERROR(VLOOKUP(B160,Enrollment!$A$2:$G$147,5,0),0) -> 35 | F160: 16439 | G160: =IFERROR(VLOOKUP(B160,Enrollment!$A$2:$G$147,6,0),0) -> 20 | H160: 2348 | I160: =IFERROR(VLOOKUP(B160,Enrollment!$A$2:$G$147,7,0),0) -> 2 | J160: 939 | K160: 19726 | L160: =IF(E160>$E$17,_xlfn.IFNA(VLOOKUP(B160,'other funds ftr 2025'!A:I,9,FALSE),0),1) -> 0.95 | M160: 18740 | N160: =1+IF(ISNA(VLOOKUP(B160,'Rural and Low Income 25-26'!$A:$B,2,FALSE)),0,$N$17) -> 1 | O160: 18740 | R160: 0 | S160: 18740 | T160: =IFERROR(VLOOKUP(B160,'2024-25 Final'!$B$19:$AA$164,26,0),0) -> 31903 | U160: -13163 | V160: y | Y160: 750 | AA160: 19490
A161: 143 | B161: 39901 | D161: YAKAMA NATION TRIBAL COMPACT | E161: =IFERROR(VLOOKUP(B161,Enrollment!$A$2:$G$147,5,0),0) -> 73 | F161: 34287 | G161: =IFERROR(VLOOKUP(B161,Enrollment!$A$2:$G$147,6,0),0) -> 43 | H161: 5049 | I161: =IFERROR(VLOOKUP(B161,Enrollment!$A$2:$G$147,7,0),0) -> 23 | J161: 10803 | K161: 50139 | L161: =IF(E161>$E$17,_xlfn.IFNA(VLOOKUP(B161,'other funds ftr 2025'!A:I,9,FALSE),0),1) -> 0 | M161: 50139 | N161: =1+IF(ISNA(VLOOKUP(B161,'Rural and Low Income 25-26'!$A:$B,2,FALSE)),0,$N$17) -> 1 | O161: 0 | R161: 0 | S161: 0 | T161: =IFERROR(VLOOKUP(B161,'2024-25 Final'!$B$19:$AA$164,26,0),0) -> 77450 | U161: -77450 | V161: n | Y161: 0 | AA161: 0
A162: 144 | B162: 39007 | D162: YAKIMA | E162: =IFERROR(VLOOKUP(B162,Enrollment!$A$2:$G$147,5,0),0) -> 2081 | F162: 977405 | G162: =IFERROR(VLOOKUP(B162,Enrollment!$A$2:$G$147,6,0),0) -> 698 | H162: 81959 | I162: =IFERROR(VLOOKUP(B162,Enrollment!$A$2:$G$147,7,0),0) -> 1145 | J162: 537784 | K162: 1597148 | L162: =IF(E162>$E$17,_xlfn.IFNA(VLOOKUP(B162,'other funds ftr 2025'!A:I,9,FALSE),0),1) -> 1 | M162: 1597148 | N162: =1+IF(ISNA(VLOOKUP(B162,'Rural and Low Income 25-26'!$A:$B,2,FALSE)),0,$N$17) -> 1 | O162: 1597148 | R162: 0 | S162: 1597148 | T162: =IFERROR(VLOOKUP(B162,'2024-25 Final'!$B$19:$AA$164,26,0),0) -> 1484282 | U162: 112866 | V162: y | Y162: 2000 | AA162: 1599148
A163: 145 | B163: 34002 | D163: YELM | E163: =IFERROR(VLOOKUP(B163,Enrollment!$A$2:$G$147,5,0),0) -> 54 | F163: 25363 | G163: =IFERROR(VLOOKUP(B163,Enrollment!$A$2:$G$147,6,0),0) -> 27 | H163: 3170 | I163: =IFERROR(VLOOKUP(B163,Enrollment!$A$2:$G$147,7,0),0) -> 5 | J163: 2348 | K163: 30881 | L163: =IF(E163>$E$17,_xlfn.IFNA(VLOOKUP(B163,'other funds ftr 2025'!A:I,9,FALSE),0),1) -> 0 | M163: 30881 | N163: =1+IF(ISNA(VLOOKUP(B163,'Rural and Low Income 25-26'!$A:$B,2,FALSE)),0,$N$17) -> 1 | O163: 0 | R163: 0 | S163: 0 | T163: =IFERROR(VLOOKUP(B163,'2024-25 Final'!$B$19:$AA$164,26,0),0) -> 0 | U163: 0 | V163: n | Y163: 0 | AA163: 0
A164: 146 | B164: 39205 | D164: ZILLAH | E164: =IFERROR(VLOOKUP(B164,Enrollment!$A$2:$G$147,5,0),0) -> 92 | F164: 43211 | G164: =IFERROR(VLOOKUP(B164,Enrollment!$A$2:$G$147,6,0),0) -> 30 | H164: 3523 | I164: =IFERROR(VLOOKUP(B164,Enrollment!$A$2:$G$147,7,0),0) -> 49 | J164: 23014 | K164: 69748 | L164: =IF(E164>$E$17,_xlfn.IFNA(VLOOKUP(B164,'other funds ftr 2025'!A:I,9,FALSE),0),1) -> 1 | M164: 69748 | N164: =1+IF(ISNA(VLOOKUP(B164,'Rural and Low Income 25-26'!$A:$B,2,FALSE)),0,$N$17) -> 1 | O164: 69748 | R164: =ROUND(IF(Q164>0,-(0.9-Q164)*O164,0),0) -> 0 | S164: 69748 | T164: =IFERROR(VLOOKUP(B164,'2024-25 Final'!$B$19:$AA$164,26,0),0) -> 65608 | U164: 4140 | V164: y | Y164: 750 | AA164: 70498

Sheet Assumptions (hidden)
A1: Assumptions and Factors — Title I Part C Migrant - Final
B2: Caution: Yellow Cells below drive are inputs into the calculations in this model
AM3: Row Headings on Allocation Table
A4: Funding | C4: Final 2025-26 | D4: Final 2024-25 | E4: Preliminary 2024-25 | F4: FINAL 2023-24 | G4: Preliminary 2023-24 | H4: Final 2022-23 | I4: Preliminary 2022-23 | J4: Final 2021-22 | K4: Preliminary 2021-22 | L4: Final 2020-21 | M4: Preliminary 2020-21 | N4: Final 2019-20 | O4: Preliminary 2019-20 | P4: Final 2018-19 | Q4: Preliminary 2018-19 | R4: Final 2017-18 | S4: Preliminary 2017-18 | T4: 2nd Rev Final 2016-17 | U4: Rev Final 2016-17 | V4: Final 2016-17 | W4: Final 2015-16 | X4: Preliminary 2015-16 | Y4: Final 2014-15 | Z4: Preliminary 2014-15 | AA4: Revised Final 2013-14 | AB4: Final 2013-14 | AC4: Final 2012-13 | AD4: Preliminary 2012-13 | AE4: Final 2011-12 | AF4: Preliminary 2011-12 | AG4: Final 2010-11 | AH4: Final 2009-10 | AI4: Final 2008-09 | AJ4: Source:
B5: Total State Allocation | C5: 36936240 | D5: 37992820 | E5: 37,838,194 | F5: 38616843 | G5: 38616843 | H5: 38126160 | I5: 38,168,234 | J5: 36172055 | K5: 36170767 | L5: 33650164 | M5: 32545772 | N5: 29253692 | O5: 28509499 | P5: 27865765 | Q5: 26740196 | R5: 24667573 | S5: 24540413 | T5: 14921087 | U5: 14921087 | V5: 14921087 | W5: 14921087 | X5: 14875015 | Y5: 14875015 | Z5: 14875015 | AA5: 14839257 | AB5: 14839257 | AC5: 15628872 | AD5: 15628872 | AE5: 15659257 | AF5: 15659257 | AG5: 15691456 | AH5: 14450894 | AI5: 15015291
B6: State Allocation under $14B rule | C6: 27200573 | D6: 27985938 | E6: 27866779 | F6: 28466965 | G6: 28448427 | H6: 29491607 | I6: 29524149 | J6: 29680217 | K6: 29680217 | L6: 28007581 | M6: 32545800 | N6: 23817704 | O6: 23834846 | P6: 21267203 | Q6: 21267203 | R6: 13112612 | S6: 13104377 | T6: 13566765 | U6: 13616032 | V6: 13566765 | W6: 14077428 | X6: 14055099 | Y6: 14085411 | Z6: 14041918 | AA6: 14645076 | AB6: 14645076 | AC6: 14620622 | AD6: 14620622 | AE6: 14680941 | AF6: 14680941 | AG6: 14980942
A7: General Admin | B7: State Admin | C7: =ROUND(C6*0.01,0) -> 272006 | D7: 279859 | E7: =ROUND(E6*0.01,0) -> 278668 | F7: =ROUND(F6*0.01,0) -> 284670 | G7: 284484 | H7: 294916 | I7: 295241 | J7: 296802 | K7: 296802 | L7: 280076 | M7: 325458 | N7: =ROUND(N6*0.01,0) -> 238177 | O7: 238348 | P7: 212672 | Q7: 212672 | R7: 131126 | S7: 131044 | T7: 135668 | U7: 136160 | V7: 135668 | W7: 140774 | X7: 140551 | Y7: 140854 | Z7: 140419 | AA7: 146451 | AB7: =ROUND(AB6*0.01,0) -> 146451 | AC7: =ROUND(AC6*0.01,0) -> 146206 | AD7: =ROUND(AD6*0.01,0) -> 146206 | AE7: =ROUND(AE6*0.01,0) -> 146809 | AF7: =ROUND(14680941*0.01,0) -> 146809 | AG7: =ROUND(14680942*0.01,0) -> 146809 | AH7: =ROUND(13563693*0.01,0) -> 135637 | AI7: =ROUND(14649429*0.01,0) -> 146494 | AJ7: 0.01
B8: State Level Activities (Unallocated Balance) | C8: =C5-C7-C18-C24 -> 13052413 | D8: 13417269 | E8: =E5-E7-E18-E24 -> 13356610 | F8: =F5-F7-F18-F24 -> 15061378 | G8: 15162254 | H8: 14955548 | I8: 14972053 | J8: 13087588 | K8: 13086382 | L8: 13179990 | M8: =M5-M7-M18-M24 -> 12692851 | N8: 10935689 | O8: 11551691 | P8: 11233633 | Q8: 10783406 | R8: 9920983 | S8: 12702535 | T8: 3078585 | U8: 3078093 | V8: 4570694 | W8: 2999662 | X8: 2953813 | Y8: 3913523 | Z8: 2273028 | AA8: 14692806 | AB8: 14692806 | AC8: 15482666 | AD8: 15482666 | AE8: 15512448 | AF8: 15512448 | AG8: 15544647 | AH8: 14315257 | AI8: 536592
A10: Other Admin | B10: Director salary
B11: Regional Offices
B12: MSDS
B13: Other stakeholders
B15: Other Grants - not through formula | J15: 180000
B16: Summer Grants - Current Year | C16: 2211182 | D16: 2279569 | E16: 2270292 | F16: 2179730 | G16: 2317010 | H16: 2107548 | I16: 2290094 | J16: 2278840 | K16: 2278758 | L16: 3365016 | M16: 3254577 | N16: 2978130 | O16: 2786577 | P16: 2486577 | Q16: 2374020 | R16: 2281677 | S16: 1492109 | T16: 1492109 | U16: 1492109 | W16: 1565926 | X16: 1565926 | Y16: 1565926 | Z16: 1565926 | AA16: 1562887 | AB16: 1562887 | AD16: 1000000 | AE16: 1000000 | AG16: 1550000 | AH16: 1200000 | AI16: 1200000
B17: Summer Grants - Prior Year Unspent Funds | Z17: 75004
B18: Total | C18: =C16+C17 -> 2211182 | D18: 2279569 | E18: =E16+E17 -> 2270292 | F18: =F16+F17 -> 2179730 | G18: 2317010 | H18: 2107548 | I18: 2290094 | J18: 2278840 | K18: 2278758 | L18: =L16+L17 -> 3365016 | M18: 3254577 | N18: 2978130 | O18: 2786577 | P18: 2486577 | Q18: 2374020 | R18: 2281677 | S18: 1492109 | T18: 1492109 | U18: 1492109 | W18: 1565926 | X18: =X16 -> 1565926 | Z18: =SUM(Z16:Z17) -> 1640930
B19: Allocated per Worksheet
B20: Difference
B22: Total Regular Year Allocation - from Sylvia | C22: 21400639 | D22: 22016123 | E22: 21932624 | F22: 21091065 | G22: 20853095 | H22: 20768148 | I22: 20610846 | J22: 20508825 | K22: 20508825 | L22: 16825082 | M22: 16272886 | N22: 15101696 | O22: 13932883 | P22: 13932883 | Q22: 13370098 | R22: 12333787 | S22: 8952652 | T22: 8952652 | U22: 8952652 | V22: 8952652 | W22: 9470989 | X22: 9470989 | Y22: 9395554 | Z22: 9395554 | AA22: 9212323 | AB22: 9212323 | AC22: 11016189 | AD22: 11016189 | AE22: 11500000 | AF22: 11500000 | AG22: 11500000 | AH22: 10135000 | AI22: 9900000
B23: Regular Grants from Prior Year Unspent Funds | S23: 1262073 | T23: 1262073 | U23: 1262073 | V23: 1262073 | W23: 743736 | X23: 743736 | Y23: 1425084 | Z23: 1425084 | AC23: 11010766
B24: Total | C24: =SUM(C22:C23) -> 21400639 | D24: =SUM(D22:D23) -> 22016123 | E24: =SUM(E22:E23) -> 21932624 | F24: 21091065 | G24: 20853095 | H24: 20768148 | I24: 20610846 | J24: 20508825 | K24: =SUM(K22:K23) -> 20508825 | L24: 16825082 | M24: 16272886 | N24: 15101696 | O24: 13932883 | P24: 13932883 | Q24: 13370098 | R24: 12333787 | S24: 10214725 | T24: 10214725 | U24: 10214725 | V24: 10214725 | W24: 10214725 | X24: 10214725 | Y24: 10820638 | Z24: 10820638
B25: Allocated per Worksheet before MOE | C25: ='2025-26 FINAL Y'!$O$18 -> 21400639 | D25: 22016123 | F25: =#REF! ->  | H25: =#REF! ->  | I25: 20768148 | J25: 20508825 | K25: 20508825 | L25: 16795507 | M25: 16272886 | N25: 13932883 | O25: 13932883 | P25: 13932883 | Q25: 13370098 | R25: 12333787 | Z25: 10820638
B26: MOE Reduction | J26: 0 | K26: 0 | L26: 0 | M26: 0 | N26: -57 | O26: -57 | P26: 0 | Q26: 0 | R26: -1406
B27: Allocated per Worksheet after MOE | C27: =SUM(C25:C26) -> 21400639 | D27: =SUM(D25:D26) -> 22016123 | E27: =SUM(E25:E26) -> 0 | F27: =SUM(F25:F26) ->  | G27: 0 | I27: 20768148 | J27: 20508825 | K27: 20508825 | L27: 16795507 | M27: 16272886 | N27: 13932826 | O27: 13932826 | P27: 13932883 | Q27: 13370098 | R27: 12332381
B29: MERO Allocation - Sylvia to provide | N29: 2757777 | Y29: 1619378 | Z29: 1619378
B30: Allocated per Worksheet | Z30: 1409333
B31: Difference | Z31: =+Z29-Z30 -> 210045
B35: Counter-do not change | AD35: 1
B37: Summer:
B38: Amount per Pass Unit | AD38: 90 | AE38: 90
B39: Amount per Credits | AD39: 900 | AE39: 900
B42: Number of LEP child within the districts | AB42: From Bilingual apportionment data
A43: DataSets: | B43: Native american students are also added. See above.
B48: Allocations
B52: Program Review (Sylvia Reyna)
A55: Other Fund Factor
A56: Min | C56: =MIN('other funds ftr 2025'!$H$2:$H$147) -> 0
A57: 25th Percentile | B57: 1.1 | C57: =_xlfn.PERCENTILE.INC(IF('other funds ftr 2025'!$H$2:$H$147,'other funds ftr 2025'!$H$2:$H$147),0.25) -> 0.9117089527 | O57: 0.01565336724 | Q57: 0.01719687959
A58: 50th Percentile | B58: 1.05 | C58: =_xlfn.PERCENTILE.INC(IF('other funds ftr 2025'!$H$2:$H$147,'other funds ftr 2025'!$H$2:$H$147),0.5) -> 0.9498523542 | O58: 0.0370609667 | Q58: 0.03624933072
A59: 75th Percentile | B59: 1 | C59: =_xlfn.PERCENTILE.INC(IF('other funds ftr 2025'!$H$2:$H$147,'other funds ftr 2025'!$H$2:$H$147),0.75) -> 0.9814156033 | O59: 0.0597864668 | Q59: 0.05439831943
A60: < Max | B60: 0.95 | C60: =MAX('other funds ftr 2025'!$H$2:$H$147) -> 0.9993292134 | O60: 0.1706049389 | Q60: 0.1237520479

Sheet Enrollment (hidden)
A1: CO_DIST_NUM | B1: DIST_TITLE | D1: ESD | E1: STUDENTS | F1: NEEDS | G1: PRIORITY
A2: 14005 | B2: ABERDEEN | D2: 189 | E2: 167 | F2: 30 | G2: 82
A3: 29103 | B3: ANACORTES | D3: 189 | E3: 12 | F3: 5 | G3: 1
A4: 31016 | B4: ARLINGTON | D4: 189 | E4: 44 | F4: 16 | G4: 20
A5: 17408 | B5: AUBURN | D5: 189 | E5: 27 | F5: 17 | G5: 7
A6: 06119 | B6: BATTLE GROUND | D6: 189 | E6: 26 | F6: 13 | G6: 2
A7: 37501 | B7: BELLINGHAM | D7: 189 | E7: 94 | F7: 34 | G7: 28
A8: 27403 | B8: BETHEL | D8: 189 | E8: 13 | F8: 8 | G8: 1
A9: 18100 | B9: BREMERTON | D9: 189 | E9: 57 | F9: 22 | G9: 10
A10: 24111 | B10: BREWSTER | D10: 171 | E10: 217 | F10: 49 | G10: 88
A11: 09075 | B11: BRIDGEPORT | D11: 171 | E11: 164 | F11: 42 | G11: 54
A12: 29100 | B12: BURLINGTON-EDISON | D12: 189 | E12: 517 | F12: 139 | G12: 173
A13: 04228 | B13: CASCADE | D13: 171 | E13: 53 | F13: 13 | G13: 11
A14: 04222 | B14: CASHMERE | D14: 171 | E14: 162 | F14: 42 | G14: 26
A15: 18401 | B15: CENTRAL KITSAP | D15: 189 | E15: 15 | F15: 9 | G15: 4
A16: 32356 | B16: CENTRAL VALLEY | D16: 105 | E16: 17 | F16: 5 | G16: 1
A17: 21401 | B17: CENTRALIA | D17: 189 | E17: 86 | F17: 19 | G17: 48
A18: 21302 | B18: CHEHALIS | D18: 189 | E18: 32 | F18: 17 | G18: 6
A19: 32360 | B19: CHENEY | D19: 171 | E19: 13 | F19: 6 | G19: 3
A20: 27901 | B20: CHIEF LESCHI TRIBAL COMPACT | D20: 189 | E20: 31 | F20: 13 | G20: 9
A21: 36250 | B21: COLLEGE PLACE | D21: 123 | E21: 196 | F21: 28 | G21: 103
A22: 36400 | B22: COLUMBIA (WALLA WALLA) | D22: 123 | E22: 52 | F22: 21 | G22: 19
A23: 39090 | B23: EAST VALLEY (YAKIMA) | D23: 105 | E23: 195 | F23: 97 | G23: 19
A24: 09206 | B24: EASTMONT | D24: 171 | E24: 833 | F24: 333 | G24: 274
A25: 31015 | B25: EDMONDS | D25: 189 | E25: 19 | F25: 4 | G25: 8
A26: 19401 | B26: ELLENSBURG | D26: 105 | E26: 22 | F26: 12 | G26: 1
A27: 14068 | B27: ELMA | D27: 189 | E27: 27 | F27: 15 | G27: 1
A28: 04127 | B28: ENTIAT | D28: 171 | E28: 70 | F28: 11 | G28: 42
A29: 13165 | B29: EPHRATA | D29: 171 | E29: 126 | F29: 33 | G29: 33
A30: 31002 | B30: EVERETT | D30: 189 | E30: 49 | F30: 14 | G30: 21
A31: 06114 | B31: EVERGREEN (CLARK) | D31: 189 | E31: 32 | F31: 16 | G31: 7
A32: 17210 | B32: FEDERAL WAY | D32: 189 | E32: 20 | F32: 6 | G32: 3
A33: 37502 | B33: FERNDALE | D33: 189 | E33: 113 | F33: 16 | G33: 27
A34: 03053 | B34: FINLEY | D34: 123 | E34: 86 | F34: 23 | G34: 33
A35: 27402 | B35: FRANKLIN PIERCE | D35: 189 | E35: 10 | F35: 1 | G35: 3
A36: 20404 | B36: GOLDENDALE | D36: 105 | E36: 56 | F36: 15 | G36: 25
A37: 13301 | B37: GRAND COULEE DAM | D37: 171 | E37: 223 | F37: 88 | G37: 36
A38: 39200 | B38: GRANDVIEW | D38: 105 | E38: 652 | F38: 197 | G38: 272
A39: 39204 | B39: GRANGER | D39: 105 | E39: 315 | F39: 102 | G39: 84
A40: 39203 | B40: HIGHLAND | D40: 105 | E40: 220 | F40: 75 | G40: 63
A41: 23404 | B41: HOOD CANAL | D41: 189 | E41: 31 | F41: 18 | G41: 6
A42: 14028 | B42: HOQUIAM | D42: 189 | E42: 20 | F42: 8 | G42: 0
A43: 10070 | B43: INCHELIUM | D43: 189 | E43: 13 | F43: 7 | G43: 4
A44: 08458 | B44: KELSO | D44: 189 | E44: 33 | F44: 17 | G44: 8
A45: 03017 | B45: KENNEWICK | D45: 123 | E45: 2693 | F45: 1012 | G45: 1290
A46: 17415 | B46: KENT | D46: 189 | E46: 24 | F46: 10 | G46: 4
A47: 03052 | B47: KIONA-BENTON CITY | D47: 123 | E47: 314 | F47: 142 | G47: 98
A48: 19403 | B48: KITTITAS | D48: 105 | E48: 14 | F48: 10 | G48: 1
A49: 29311 | B49: LA CONNER | D49: 189 | E49: 112 | F49: 71 | G49: 25
A50: 04129 | B50: LAKE CHELAN | D50: 171 | E50: 145 | F50: 31 | G50: 70
A51: 31004 | B51: LAKE STEVENS | D51: 189 | E51: 14 | F51: 6 | G51: 1
A52: 31306 | B52: LAKEWOOD | D52: 189 | E52: 20 | F52: 2 | G52: 4
A53: 01158 | B53: LIND | D53: 123 | E53: 37 | F53: 18 | G53: 10
A54: 08122 | B54: LONGVIEW | D54: 189 | E54: 30 | F54: 17 | G54: 1
A55: 20406 | B55: LYLE | D55: 105 | E55: 10 | F55: 3 | G55: 6
A56: 37504 | B56: LYNDEN | D56: 189 | E56: 104 | F56: 19 | G56: 22
A57: 39120 | B57: MABTON | D57: 105 | E57: 443 | F57: 148 | G57: 211
A58: 04019 | B58: MANSON | D58: 171 | E58: 107 | F58: 19 | G58: 40
A59: 33207 | B59: MARY WALKER | D59: 189 | E59: 12 | F59: 9 | G59: 0
A60: 31025 | B60: MARYSVILLE | D60: 189 | E60: 328 | F60: 111 | G60: 159
A61: 37505 | B61: MERIDIAN | D61: 189 | E61: 30 | F61: 14 | G61: 8
A62: 31103 | B62: MONROE | D62: 189 | E62: 13 | F62: 7 | G62: 3
A63: 14066 | B63: MONTESANO | D63: 189 | E63: 10 | F63: 6 | G63: 1
A64: 13161 | B64: MOSES LAKE | D64: 171 | E64: 425 | F64: 184 | G64: 83
A65: 21206 | B65: MOSSYROCK | D65: 189 | E65: 54 | F65: 12 | G65: 26
A66: 39209 | B66: MOUNT ADAMS | D66: 105 | E66: 337 | F66: 95 | G66: 136
A67: 37507 | B67: MOUNT BAKER | D67: 189 | E67: 21 | F67: 8 | G67: 6
A68: 29320 | B68: MOUNT VERNON | D68: 189 | E68: 1722 | F68: 748 | G68: 484
A69: 31006 | B69: MUKILTEO | D69: 189 | E69: 29 | F69: 6 | G69: 12
A70: 39003 | B70: NACHES VALLEY | D70: 105 | E70: 99 | F70: 54 | G70: 30
A71: 25155 | B71: NASELLE-GRAYS RIVER VALLEY | D71: 189 | E71: 53 | F71: 14 | G71: 26
A72: 24014 | B72: NESPELEM | D72: 171 | E72: 64 | F72: 21 | G72: 10
A73: 37506 | B73: NOOKSACK VALLEY | D73: 189 | E73: 127 | F73: 22 | G73: 43
A74: 14064 | B74: NORTH BEACH | D74: 189 | E74: 30 | F74: 16 | G74: 0
A75: 11051 | B75: NORTH FRANKLIN | D75: 123 | E75: 649 | F75: 239 | G75: 257
A76: 18400 | B76: NORTH KITSAP | D76: 189 | E76: 38 | F76: 14 | G76: 5
A77: 34003 | B77: NORTH THURSTON PUBLIC SCHOOLS | D77: 189 | E77: 55 | F77: 22 | G77: 13
A78: 15201 | B78: OAK HARBOR | D78: 189 | E78: 17 | F78: 5 | G78: 1
A79: 25101 | B79: OCEAN BEACH | D79: 189 | E79: 42 | F79: 8 | G79: 19
A80: 14172 | B80: OCOSTA | D80: 189 | E80: 33 | F80: 7 | G80: 12
A81: 24105 | B81: OKANOGAN | D81: 171 | E81: 52 | F81: 30 | G81: 15
A82: 34111 | B82: OLYMPIA | D82: 189 | E82: 51 | F82: 18 | G82: 26
A83: 24019 | B83: OMAK | D83: 171 | E83: 51 | F83: 20 | G83: 10
A84: 09013 | B84: ORONDO | D84: 171 | E84: 43 | F84: 4 | G84: 13
A85: 24410 | B85: OROVILLE | D85: 171 | E85: 28 | F85: 7 | G85: 6
A86: 01147 | B86: OTHELLO | D86: 123 | E86: 810 | F86: 237 | G86: 317
A87: 11001 | B87: PASCO | D87: 123 | E87: 1958 | F87: 622 | G87: 599
A88: 24122 | B88: PATEROS | D88: 171 | E88: 16 | F88: 9 | G88: 0
A89: 03050 | B89: PATERSON | D89: 123 | E89: 24 | F89: 5 | G89: 8
A90: 04901 | B90: PINNACLES PREP | D90: NULL | E90: 19 | F90: 12 | G90: 3
A91: 36402 | B91: PRESCOTT | D91: 123 | E91: 66 | F91: 7 | G91: 7
A92: 03116 | B92: PROSSER | D92: 123 | E92: 835 | F92: 323 | G92: 288
A93: 27003 | B93: PUYALLUP | D93: 189 | E93: 17 | F93: 9 | G93: 5
A94: 05402 | B94: QUILLAYUTE VALLEY | D94: 189 | E94: 90 | F94: 25 | G94: 28
A95: 13144 | B95: QUINCY | D95: 171 | E95: 628 | F95: 163 | G95: 250
A96: 22009 | B96: REARDAN-EDWALL | D96: 171 | E96: 30 | F96: 14 | G96: 4
A97: 17403 | B97: RENTON | D97: 189 | E97: 16 | F97: 6 | G97: 11
A98: 03400 | B98: RICHLAND | D98: 123 | E98: 295 | F98: 88 | G98: 162
A99: 06122 | B99: RIDGEFIELD | D99: 189 | E99: 19 | F99: 13 | G99: 7
A100: 17407 | B100: RIVERVIEW | D100: 189 | E100: 11 | F100: 5 | G100: 0
A101: 34401 | B101: ROCHESTER | D101: 189 | E101: 52 | F101: 7 | G101: 25
A102: 13160 | B102: ROYAL | D102: 105 | E102: 273 | F102: 51 | G102: 86
A103: 17001 | B103: SEATTLE PUBLIC SCHOOLS | D103: 189 | E103: 17 | F103: 6 | G103: 6
A104: 29101 | B104: SEDRO-WOOLLEY | D104: 189 | E104: 148 | F104: 18 | G104: 49
A105: 39119 | B105: SELAH | D105: 105 | E105: 278 | F105: 80 | G105: 101
A106: 23309 | B106: SHELTON | D106: 189 | E106: 61 | F106: 26 | G106: 24
A107: 31201 | B107: SNOHOMISH | D107: 189 | E107: 54 | F107: 16 | G107: 26
A108: 13156 | B108: SOAP LAKE | D108: 171 | E108: 29 | F108: 12 | G108: 9
A109: 32081 | B109: SPOKANE | D109: 171 | E109: 78 | F109: 36 | G109: 15
A110: 31401 | B110: STANWOOD-CAMANO | D110: 189 | E110: 17 | F110: 8 | G110: 4
A111: 39201 | B111: SUNNYSIDE | D111: 105 | E111: 2096 | F111: 409 | G111: 993
A112: 27010 | B112: TACOMA | D112: 189 | E112: 19 | F112: 4 | G112: 7
A113: 14077 | B113: TAHOLAH | D113: 189 | E113: 76 | F113: 43 | G113: 2
A114: 24404 | B114: TONASKET | D114: 171 | E114: 350 | F114: 115 | G114: 124
A115: 39202 | B115: TOPPENISH | D115: 105 | E115: 823 | F115: 220 | G115: 349
A116: 39002 | B116: UNION GAP | D116: 105 | E116: 78 | F116: 8 | G116: 24
A117: 06037 | B117: VANCOUVER | D117: 189 | E117: 50 | F117: 24 | G117: 9
A118: 13073 | B118: WAHLUKE | D118: 105 | E118: 1896 | F118: 623 | G118: 814
A119: 36140 | B119: WALLA WALLA PUBLIC SCHOOLS | D119: 123 | E119: 97 | F119: 26 | G119: 44
A120: 39207 | B120: WAPATO | D120: 105 | E120: 884 | F120: 300 | G120: 463
A121: 13146 | B121: WARDEN | D121: 171 | E121: 307 | F121: 62 | G121: 105
A122: 09209 | B122: WATERVILLE | D122: 171 | E122: 14 | F122: 8 | G122: 1
A123: 33049 | B123: WELLPINIT | D123: 189 | E123: 69 | F123: 27 | G123: 7
A124: 04246 | B124: WENATCHEE | D124: 171 | E124: 1418 | F124: 412 | G124: 622
A125: 39208 | B125: WEST VALLEY (YAKIMA) | D125: 105 | E125: 247 | F125: 56 | G125: 84
A126: 20405 | B126: WHITE SALMON VALLEY | D126: 105 | E126: 11 | F126: 4 | G126: 2
A127: 21232 | B127: WINLOCK | D127: 189 | E127: 103 | F127: 43 | G127: 18
A128: 20094 | B128: WISHRAM | D128: 105 | E128: 59 | F128: 11 | G128: 20
A129: 08404 | B129: WOODLAND | D129: 189 | E129: 35 | F129: 20 | G129: 2
A130: 39901 | B130: YAKAMA NATION TRIBAL COMPACT | D130: 105 | E130: 73 | F130: 43 | G130: 23
A131: 39007 | B131: YAKIMA | D131: 105 | E131: 2081 | F131: 698 | G131: 1145
A132: 34002 | B132: YELM | D132: 189 | E132: 54 | F132: 27 | G132: 5
A133: 39205 | B133: ZILLAH | D133: 105 | E133: 92 | F133: 30 | G133: 49

Sheet Rural and Low Income 25-26 (hidden)
A1: CoDis | B1: Local Education Agency (LEA) | D1: Ask Tony May for the list of current year REAP amd RLIS districts
A2: 22017 | B2: Almira School District
A3: 01122 | B3: Benge School District
A4: 20203 | B4: Bickleton School District
A5: 21234 | B5: Boistfort School District
A6: 24111 | B6: Brewster School District
A7: 09075 | B7: Bridgeport School District
A8: 16046 | B8: Brinnon School District
A9: 05401 | B9: Cape Flattery School District
A10: 27019 | B10: Carbonado School District
A11: 20215 | B11: Centerville School District
A12: 38300 | B12: Colfax School District
A13: 38306 | B13: Colton School District
A14: 33206 | B14: Columbia (Stevens) School District
A15: 29011 | B15: Concrete School District
A16: 29317 | B16: Conway School District
A17: 14099 | B17: Cosmopolis School District
A18: 13151 | B18: Coulee-Hartline School District
A19: 05313 | B19: Crescent School District
A20: 22073 | B20: Creston School District
A21: 10050 | B21: Curlew School District
A22: 26059 | B22: Cusick School District
A23: 19007 | B23: Damman School District
A24: 31330 | B24: Darrington School District
A25: 22207 | B25: Davenport School District
A26: 07002 | B26: Dayton School District
A27: 36101 | B27: Dixie School District
A28: 19028 | B28: Easton School District
A29: 38308 | B29: Endicott School District
A30: 04127 | B30: Entiat School District
A31: 21036 | B31: Evaline School District
A32: 33205 | B32: Evergreen School District (Stevens)
A33: 38302 | B33: Garfield School District
A34: 20401 | B34: Glenwood School District
A35: 39200 | B35: Grandview School District
A36: 23054 | B36: Grapeview School District
A37: 32312 | B37: Great Northern School District
A38: 06103 | B38: Green Mountain School District
A39: 22204 | B39: Harrington School District
A40: 23404 | B40: Hood Canal School District
A41: 14028 | B41: Hoquiam School District
A42: 10070 | B42: Inchelium School District
A43: 31063 | B43: Index Elementary School District 63
A44: 11056 | B44: Kahlotus School District
A45: 10003 | B45: Keller School District
A46: 19403 | B46: Kittitas School District
A47: 20402 | B47: Klickitat School District
A48: 29311 | B48: La Conner School District
A49: 38126 | B49: LaCrosse School District
A50: 14097 | B50: Lake Quinault School District
A51: 38264 | B51: Lamont School District
A52: 32362 | B52: Liberty School District
A53: 01158 | B53: Lind School District
A54: 33183 | B54: Loon Lake School District
A55: 28144 | B55: Lopez School District
A56: 20406 | B56: Lyle School District
A57: 09207 | B57: Mansfield School District
A58: 33207 | B58: Mary Walker School District
A59: 14065 | B59: McCleary School District
A60: 24350 | B60: Methow Valley School District
A61: 30031 | B61: Mill A School District
A62: 21214 | B62: Morton School District
A63: 30029 | B63: Mount Pleasant School District
A64: 25155 | B64: Naselle-Grays River Valley School District
A65: 24014 | B65: Nespelem School District
A66: 25200 | B66: North River School District
A67: 33211 | B67: Northport School District
A68: 38324 | B68: Oakesdale School District
A69: 14400 | B69: Oakville School District
A70: 14172 | B70: Ocosta School District
A71: 22105 | B71: Odessa School District
A72: 24105 | B72: Okanogan School District
A73: 24019 | B73: Omak School District
A74: 33030 | B74: Onion Creek School District
A75: 32123 | B75: Orchard Prairie School District
A76: 10065 | B76: Orient School District
A77: 09013 | B77: Orondo School District
A78: 24410 | B78: Oroville School District
A79: 09102 | B79: Palisades School District
A80: 38301 | B80: Palouse School District
A81: 24122 | B81: Pateros School District
A82: 03050 | B82: Paterson School District
A83: 21301 | B83: Pe Ell School District
A84: 04901 | B84: Pinnacles Prep Charter School
A85: 12110 | B85: Pomeroy School District
A86: 36402 | B86: Prescott School District
A87: 16020 | B87: Queets-Clearwater School District
A88: 16048 | B88: Quilcene School District
A89: 25116 | B89: Raymond School District
A90: 22009 | B90: Reardan-Edwall School District
A91: 10309 | B91: Republic School District
A92: 01160 | B92: Ritzville School District
A93: 20403 | B93: Roosevelt School District
A94: 38320 | B94: Rosalia School District
A95: 14104 | B95: Satsop School District
A96: 26070 | B96: Selkirk School District
A97: 28010 | B97: Shaw Island School District
A98: 30002 | B98: Skamania School District
A99: 17404 | B99: Skykomish School District
A100: 13156 | B100: Soap Lake School District
A101: 25118 | B101: South Bend School District
A102: 23042 | B102: Southside School District
A103: 22008 | B103: Sprague School District
A104: 38322 | B104: St. John School District
A105: 11054 | B105: Star School District No. 054
A106: 07035 | B106: Starbuck School District
A107: 04069 | B107: Stehekin School District
A108: 38304 | B108: Steptoe School District
A109: 30303 | B109: Stevenson-Carson School District
A110: 33202 | B110: Summit Valley School District
A111: 39201 | B111: Sunnyside School District
A112: 14077 | B112: Taholah School District
A113: 38265 | B113: Tekoa School District
A114: 19400 | B114: Thorp School District
A115: 24404 | B115: Tonasket School District
A116: 36300 | B116: Touchet School District
A117: 20400 | B117: Trout Lake School District
A118: 39002 | B118: Union Gap School District
A119: 33070 | B119: Valley School District
A120: 35200 | B120: Wahkiakum School District
A121: 36401 | B121: Waitsburg School District
A122: 13146 | B122: Warden School District
A123: 01109 | B123: Washtucna School District
A124: 09209 | B124: Waterville School District
A125: 33049 | B125: Wellpinit School District #49
A126: 21303 | B126: White Pass School District
A127: 22200 | B127: Wilbur School District
A128: 25160 | B128: Willapa Valley School District
A129: 13167 | B129: Wilson Creek School District
A130: 14117 | B130: Wishkah Valley School District
A131: 20094 | B131: Wishram School District

Sheet other funds ftr 2025 (hidden)
A1: CCDDD | B1: Migrant Districts | C1: Title III 24-25 | D1: Title I A 24-25 | E1: LAP 24-25 | F1: TBIP 24-25 | G1: Title I C 23-24 | H1: other funds as % of Revs | I1: "Other Funds" Factor
A2: 14005 | B2: ABERDEEN | C2: =IFERROR(VLOOKUP(A2,'[2]Allocations 2024-25'!$B$9:$AC$326,20,FALSE),0) -> 64611 | D2: =IFERROR(VLOOKUP(A2,'[3]State Reservations'!$C$4:$AF$328,30,FALSE),0) -> 1662590.022 | E2: =IFERROR(VLOOKUP(A2,[4]Sheet1!$A$3:$D$381,3,FALSE),0) -> 2468813.46 | F2: =IFERROR(VLOOKUP(A2,[4]Sheet1!$A$3:$D$381,4,FALSE),0) -> 783647.32 | G2: =IFERROR(VLOOKUP(A2,'[5]2024-25 Final'!$B$19:$S$164,18,FALSE),0) -> 93409 | H2: =IF(G2=0,0,(SUM(C2:F2)/SUM(C2:G2))) -> 0.9815872864 | I2: =_xlfn.IFS(H2=0%,0,'other funds ftr 2025'!H2<Assumptions!$C$57,Assumptions!$B$57,'other funds ftr 2025'!H2<Assumptions!$C$58,Assumptions!$B$58,'other funds ftr 2025'!H2<=Assumptions!$C$59,Assumptions!$B$59,'other funds ftr 2025'!H2<=Assumptions!$C$60,Assumptions!$B$60) -> 0.95
A3: 29103 | B3: ANACORTES | C3: =IFERROR(VLOOKUP(A3,'[2]Allocations 2024-25'!$B$9:$AC$326,20,FALSE),0) -> 0 | D3: =IFERROR(VLOOKUP(A3,'[3]State Reservations'!$C$4:$AF$328,30,FALSE),0) -> 441426.2714 | E3: =IFERROR(VLOOKUP(A3,[4]Sheet1!$A$3:$D$381,3,FALSE),0) -> 625749.9 | F3: =IFERROR(VLOOKUP(A3,[4]Sheet1!$A$3:$D$381,4,FALSE),0) -> 109856.66 | G3: =IFERROR(VLOOKUP(A3,'[5]2024-25 Final'!$B$19:$S$164,18,FALSE),0) -> 0 | H3: 0 | I3: =_xlfn.IFS(H3=0%,0,'other funds ftr 2025'!H3<Assumptions!$C$57,Assumptions!$B$57,'other funds ftr 2025'!H3<Assumptions!$C$58,Assumptions!$B$58,'other funds ftr 2025'!H3<=Assumptions!$C$59,Assumptions!$B$59,'other funds ftr 2025'!H3<=Assumptions!$C$60,Assumptions!$B$60) -> 0
A4: 31016 | B4: ARLINGTON | C4: =IFERROR(VLOOKUP(A4,'[2]Allocations 2024-25'!$B$9:$AC$326,20,FALSE),0) -> 46401 | D4: =IFERROR(VLOOKUP(A4,'[3]State Reservations'!$C$4:$AF$328,30,FALSE),0) -> 878153.9816 | E4: =IFERROR(VLOOKUP(A4,[4]Sheet1!$A$3:$D$381,3,FALSE),0) -> 1703115.09 | F4: =IFERROR(VLOOKUP(A4,[4]Sheet1!$A$3:$D$381,4,FALSE),0) -> 711215.66 | G4: =IFERROR(VLOOKUP(A4,'[5]2024-25 Final'!$B$19:$S$164,18,FALSE),0) -> 0 | H4: 0 | I4: =_xlfn.IFS(H4=0%,0,'other funds ftr 2025'!H4<Assumptions!$C$57,Assumptions!$B$57,'other funds ftr 2025'!H4<Assumptions!$C$58,Assumptions!$B$58,'other funds ftr 2025'!H4<=Assumptions!$C$59,Assumptions!$B$59,'other funds ftr 2025'!H4<=Assumptions!$C$60,Assumptions!$B$60) -> 0
A5: 17408 | B5: AUBURN | C5: =IFERROR(VLOOKUP(A5,'[2]Allocations 2024-25'!$B$9:$AC$326,20,FALSE),0) -> 670886 | D5: =IFERROR(VLOOKUP(A5,'[3]State Reservations'!$C$4:$AF$328,30,FALSE),0) -> 6689919.74 | E5: =IFERROR(VLOOKUP(A5,[4]Sheet1!$A$3:$D$381,3,FALSE),0) -> 12058711.82 | F5: =IFERROR(VLOOKUP(A5,[4]Sheet1!$A$3:$D$381,4,FALSE),0) -> 10168129.64 | G5: =IFERROR(VLOOKUP(A5,'[5]2024-25 Final'!$B$19:$S$164,18,FALSE),0) -> 0 | H5: 0 | I5: =_xlfn.IFS(H5=0%,0,'other funds ftr 2025'!H5<Assumptions!$C$57,Assumptions!$B$57,'other funds ftr 2025'!H5<Assumptions!$C$58,Assumptions!$B$58,'other funds ftr 2025'!H5<=Assumptions!$C$59,Assumptions!$B$59,'other funds ftr 2025'!H5<=Assumptions!$C$60,Assumptions!$B$60) -> 0
A6: 06119 | B6: BATTLE GROUND | C6: =IFERROR(VLOOKUP(A6,'[2]Allocations 2024-25'!$B$9:$AC$326,20,FALSE),0) -> 166888 | D6: =IFERROR(VLOOKUP(A6,'[3]State Reservations'!$C$4:$AF$328,30,FALSE),0) -> 1829693.501 | E6: =IFERROR(VLOOKUP(A6,[4]Sheet1!$A$3:$D$381,3,FALSE),0) -> 3948406.55 | F6: =IFERROR(VLOOKUP(A6,[4]Sheet1!$A$3:$D$381,4,FALSE),0) -> 2677363.27 | G6: =IFERROR(VLOOKUP(A6,'[5]2024-25 Final'!$B$19:$S$164,18,FALSE),0) -> 0 | H6: 0 | I6: =_xlfn.IFS(H6=0%,0,'other funds ftr 2025'!H6<Assumptions!$C$57,Assumptions!$B$57,'other funds ftr 2025'!H6<Assumptions!$C$58,Assumptions!$B$58,'other funds ftr 2025'!H6<=Assumptions!$C$59,Assumptions!$B$59,'other funds ftr 2025'!H6<=Assumptions!$C$60,Assumptions!$B$60) -> 0
A7: 17405 | B7: BELLEVUE | C7: =IFERROR(VLOOKUP(A7,'[2]Allocations 2024-25'!$B$9:$AC$326,20,FALSE),0) -> 455296 | D7: =IFERROR(VLOOKUP(A7,'[3]State Reservations'!$C$4:$AF$328,30,FALSE),0) -> 2780129.115 | E7: =IFERROR(VLOOKUP(A7,[4]Sheet1!$A$3:$D$381,3,FALSE),0) -> 3717322.55 | F7: =IFERROR(VLOOKUP(A7,[4]Sheet1!$A$3:$D$381,4,FALSE),0) -> 8203141.66 | G7: =IFERROR(VLOOKUP(A7,'[5]2024-25 Final'!$B$19:$S$164,18,FALSE),0) -> 0 | H7: 0 | I7: =_xlfn.IFS(H7=0%,0,'other funds ftr 2025'!H7<Assumptions!$C$57,Assumptions!$B$57,'other funds ftr 2025'!H7<Assumptions!$C$58,Assumptions!$B$58,'other funds ftr 2025'!H7<=Assumptions!$C$59,Assumptions!$B$59,'other funds ftr 2025'!H7<=Assumptions!$C$60,Assumptions!$B$60) -> 0
A8: 37501 | B8: BELLINGHAM | C8: =IFERROR(VLOOKUP(A8,'[2]Allocations 2024-25'!$B$9:$AC$326,20,FALSE),0) -> 123441 | D8: =IFERROR(VLOOKUP(A8,'[3]State Reservations'!$C$4:$AF$328,30,FALSE),0) -> 3081575.605 | E8: =IFERROR(VLOOKUP(A8,[4]Sheet1!$A$3:$D$381,3,FALSE),0) -> 3712713.55 | F8: =IFERROR(VLOOKUP(A8,[4]Sheet1!$A$3:$D$381,4,FALSE),0) -> 1913634.53 | G8: =IFERROR(VLOOKUP(A8,'[5]2024-25 Final'!$B$19:$S$164,18,FALSE),0) -> 0 | H8: 0 | I8: =_xlfn.IFS(H8=0%,0,'other funds ftr 2025'!H8<Assumptions!$C$57,Assumptions!$B$57,'other funds ftr 2025'!H8<Assumptions!$C$58,Assumptions!$B$58,'other funds ftr 2025'!H8<=Assumptions!$C$59,Assumptions!$B$59,'other funds ftr 2025'!H8<=Assumptions!$C$60,Assumptions!$B$60) -> 0
A9: 27403 | B9: BETHEL | C9: =IFERROR(VLOOKUP(A9,'[2]Allocations 2024-25'!$B$9:$AC$326,20,FALSE),0) -> 223016 | D9: =IFERROR(VLOOKUP(A9,'[3]State Reservations'!$C$4:$AF$328,30,FALSE),0) -> 4459076.472 | E9: =IFERROR(VLOOKUP(A9,[4]Sheet1!$A$3:$D$381,3,FALSE),0) -> 11066236.08 | F9: =IFERROR(VLOOKUP(A9,[4]Sheet1!$A$3:$D$381,4,FALSE),0) -> 3120522.02 | G9: =IFERROR(VLOOKUP(A9,'[5]2024-25 Final'!$B$19:$S$164,18,FALSE),0) -> 0 | H9: 0 | I9: =_xlfn.IFS(H9=0%,0,'other funds ftr 2025'!H9<Assumptions!$C$57,Assumptions!$B$57,'other funds ftr 2025'!H9<Assumptions!$C$58,Assumptions!$B$58,'other funds ftr 2025'!H9<=Assumptions!$C$59,Assumptions!$B$59,'other funds ftr 2025'!H9<=Assumptions!$C$60,Assumptions!$B$60) -> 0
A10: 18100 | B10: BREMERTON | C10: =IFERROR(VLOOKUP(A10,'[2]Allocations 2024-25'!$B$9:$AC$326,20,FALSE),0) -> 73706 | D10: =IFERROR(VLOOKUP(A10,'[3]State Reservations'!$C$4:$AF$328,30,FALSE),0) -> 1818379.874 | E10: =IFERROR(VLOOKUP(A10,[4]Sheet1!$A$3:$D$381,3,FALSE),0) -> 3642815.82 | F10: =IFERROR(VLOOKUP(A10,[4]Sheet1!$A$3:$D$381,4,FALSE),0) -> 1203835.75 | G10: =IFERROR(VLOOKUP(A10,'[5]2024-25 Final'!$B$19:$S$164,18,FALSE),0) -> 40457 | H10: 0.9940321818 | I10: =_xlfn.IFS(H10=0%,0,'other funds ftr 2025'!H10<Assumptions!$C$57,Assumptions!$B$57,'other funds ftr 2025'!H10<Assumptions!$C$58,Assumptions!$B$58,'other funds ftr 2025'!H10<=Assumptions!$C$59,Assumptions!$B$59,'other funds ftr 2025'!H10<=Assumptions!$C$60,Assumptions!$B$60) -> 0.95
A11: 24111 | B11: BREWSTER | C11: =IFERROR(VLOOKUP(A11,'[2]Allocations 2024-25'!$B$9:$AC$326,20,FALSE),0) -> 49862 | D11: =IFERROR(VLOOKUP(A11,'[3]State Reservations'!$C$4:$AF$328,30,FALSE),0) -> 579835.6736 | E11: =IFERROR(VLOOKUP(A11,[4]Sheet1!$A$3:$D$381,3,FALSE),0) -> 979314.76 | F11: =IFERROR(VLOOKUP(A11,[4]Sheet1!$A$3:$D$381,4,FALSE),0) -> 659649.81 | G11: =IFERROR(VLOOKUP(A11,'[5]2024-25 Final'!$B$19:$S$164,18,FALSE),0) -> 193331 | H11: 0.9214737894 | I11: =_xlfn.IFS(H11=0%,0,'other funds ftr 2025'!H11<Assumptions!$C$57,Assumptions!$B$57,'other funds ftr 2025'!H11<Assumptions!$C$58,Assumptions!$B$58,'other funds ftr 2025'!H11<=Assumptions!$C$59,Assumptions!$B$59,'other funds ftr 2025'!H11<=Assumptions!$C$60,Assumptions!$B$60) -> 1.05
A12: 09075 | B12: BRIDGEPORT | C12: =IFERROR(VLOOKUP(A12,'[2]Allocations 2024-25'!$B$9:$AC$326,20,FALSE),0) -> 49420 | D12: =IFERROR(VLOOKUP(A12,'[3]State Reservations'!$C$4:$AF$328,30,FALSE),0) -> 442531.6039 | E12: =IFERROR(VLOOKUP(A12,[4]Sheet1!$A$3:$D$381,3,FALSE),0) -> 696818.04 | F12: =IFERROR(VLOOKUP(A12,[4]Sheet1!$A$3:$D$381,4,FALSE),0) -> 696859.72 | G12: =IFERROR(VLOOKUP(A12,'[5]2024-25 Final'!$B$19:$S$164,18,FALSE),0) -> 92588 | H12: 0.9531962454 | I12: =_xlfn.IFS(H12=0%,0,'other funds ftr 2025'!H12<Assumptions!$C$57,Assumptions!$B$57,'other funds ftr 2025'!H12<Assumptions!$C$58,Assumptions!$B$58,'other funds ftr 2025'!H12<=Assumptions!$C$59,Assumptions!$B$59,'other funds ftr 2025'!H12<=Assumptions!$C$60,Assumptions!$B$60) -> 1
A13: 29100 | B13: BURLINGTON-EDISON | C13: =IFERROR(VLOOKUP(A13,'[2]Allocations 2024-25'!$B$9:$AC$326,20,FALSE),0) -> 100736 | D13: =IFERROR(VLOOKUP(A13,'[3]State Reservations'!$C$4:$AF$328,30,FALSE),0) -> 880329.5635 | E13: =IFERROR(VLOOKUP(A13,[4]Sheet1!$A$3:$D$381,3,FALSE),0) -> 2293326.96 | F13: =IFERROR(VLOOKUP(A13,[4]Sheet1!$A$3:$D$381,4,FALSE),0) -> 1468548.04 | G13: =IFERROR(VLOOKUP(A13,'[5]2024-25 Final'!$B$19:$S$164,18,FALSE),0) -> 383791 | H13: 0.9251392441 | I13: =_xlfn.IFS(H13=0%,0,'other funds ftr 2025'!H13<Assumptions!$C$57,Assumptions!$B$57,'other funds ftr 2025'!H13<Assumptions!$C$58,Assumptions!$B$58,'other funds ftr 2025'!H13<=Assumptions!$C$59,Assumptions!$B$59,'other funds ftr 2025'!H13<=Assumptions!$C$60,Assumptions!$B$60) -> 1.05
A14: 04228 | B14: CASCADE | C14: =IFERROR(VLOOKUP(A14,'[2]Allocations 2024-25'!$B$9:$AC$326,20,FALSE),0) -> 18168 | D14: =IFERROR(VLOOKUP(A14,'[3]State Reservations'!$C$4:$AF$328,30,FALSE),0) -> 320836.8549 | E14: =IFERROR(VLOOKUP(A14,[4]Sheet1!$A$3:$D$381,3,FALSE),0) -> 461548.53 | F14: =IFERROR(VLOOKUP(A14,[4]Sheet1!$A$3:$D$381,4,FALSE),0) -> 228910.3 | G14: =IFERROR(VLOOKUP(A14,'[5]2024-25 Final'!$B$19:$S$164,18,FALSE),0) -> 28923 | H14: 0.9726725587 | I14: =_xlfn.IFS(H14=0%,0,'other funds ftr 2025'!H14<Assumptions!$C$57,Assumptions!$B$57,'other funds ftr 2025'!H14<Assumptions!$C$58,Assumptions!$B$58,'other funds ftr 2025'!H14<=Assumptions!$C$59,Assumptions!$B$59,'other funds ftr 2025'!H14<=Assumptions!$C$60,Assumptions!$B$60) -> 1
A15: 04222 | B15: CASHMERE | C15: =IFERROR(VLOOKUP(A15,'[2]Allocations 2024-25'!$B$9:$AC$326,20,FALSE),0) -> 24160 | D15: =IFERROR(VLOOKUP(A15,'[3]State Reservations'!$C$4:$AF$328,30,FALSE),0) -> 333544.306 | E15: =IFERROR(VLOOKUP(A15,[4]Sheet1!$A$3:$D$381,3,FALSE),0) -> 716714.69 | F15: =IFERROR(VLOOKUP(A15,[4]Sheet1!$A$3:$D$381,4,FALSE),0) -> 327473.01 | G15: =IFERROR(VLOOKUP(A15,'[5]2024-25 Final'!$B$19:$S$164,18,FALSE),0) -> 147300 | H15: 0.9049181771 | I15: =_xlfn.IFS(H15=0%,0,'other funds ftr 2025'!H15<Assumptions!$C$57,Assumptions!$B$57,'other funds ftr 2025'!H15<Assumptions!$C$58,Assumptions!$B$58,'other funds ftr 2025'!H15<=Assumptions!$C$59,Assumptions!$B$59,'other funds ftr 2025'!H15<=Assumptions!$C$60,Assumptions!$B$60) -> 1.1
A16: 18401 | B16: CENTRAL KITSAP | C16: =IFERROR(VLOOKUP(A16,'[2]Allocations 2024-25'!$B$9:$AC$326,20,FALSE),0) -> 65307 | D16: =IFERROR(VLOOKUP(A16,'[3]State Reservations'!$C$4:$AF$328,30,FALSE),0) -> 1549206.429 | E16: =IFERROR(VLOOKUP(A16,[4]Sheet1!$A$3:$D$381,3,FALSE),0) -> 4295488.92 | F16: =IFERROR(VLOOKUP(A16,[4]Sheet1!$A$3:$D$381,4,FALSE),0) -> 1064342.89 | G16: =IFERROR(VLOOKUP(A16,'[5]2024-25 Final'!$B$19:$S$164,18,FALSE),0) -> 0 | H16: 0 | I16: =_xlfn.IFS(H16=0%,0,'other funds ftr 2025'!H16<Assumptions!$C$57,Assumptions!$B$57,'other funds ftr 2025'!H16<Assumptions!$C$58,Assumptions!$B$58,'other funds ftr 2025'!H16<=Assumptions!$C$59,Assumptions!$B$59,'other funds ftr 2025'!H16<=Assumptions!$C$60,Assumptions!$B$60) -> 0
A17: 32356 | B17: CENTRAL VALLEY | C17: =IFERROR(VLOOKUP(A17,'[2]Allocations 2024-25'!$B$9:$AC$326,20,FALSE),0) -> 98436 | D17: =IFERROR(VLOOKUP(A17,'[3]State Reservations'!$C$4:$AF$328,30,FALSE),0) -> 3389374.769 | E17: =IFERROR(VLOOKUP(A17,[4]Sheet1!$A$3:$D$381,3,FALSE),0) -> 5769799.66 | F17: =IFERROR(VLOOKUP(A17,[4]Sheet1!$A$3:$D$381,4,FALSE),0) -> 1602400.83 | G17: =IFERROR(VLOOKUP(A17,'[5]2024-25 Final'!$B$19:$S$164,18,FALSE),0) -> 16511 | H17: 0.9984819596 | I17: =_xlfn.IFS(H17=0%,0,'other funds ftr 2025'!H17<Assumptions!$C$57,Assumptions!$B$57,'other funds ftr 2025'!H17<Assumptions!$C$58,Assumptions!$B$58,'other funds ftr 2025'!H17<=Assumptions!$C$59,Assumptions!$B$59,'other funds ftr 2025'!H17<=Assumptions!$C$60,Assumptions!$B$60) -> 0.95
A18: 21401 | B18: CENTRALIA | C18: =IFERROR(VLOOKUP(A18,'[2]Allocations 2024-25'!$B$9:$AC$326,20,FALSE),0) -> 66405 | D18: =IFERROR(VLOOKUP(A18,'[3]State Reservations'!$C$4:$AF$328,30,FALSE),0) -> 1524716.721 | E18: =IFERROR(VLOOKUP(A18,[4]Sheet1!$A$3:$D$381,3,FALSE),0) -> 2701808.26 | F18: =IFERROR(VLOOKUP(A18,[4]Sheet1!$A$3:$D$381,4,FALSE),0) -> 912229.47 | G18: =IFERROR(VLOOKUP(A18,'[5]2024-25 Final'!$B$19:$S$164,18,FALSE),0) -> 54520 | H18: 0.9896343493 | I18: =_xlfn.IFS(H18=0%,0,'other funds ftr 2025'!H18<Assumptions!$C$57,Assumptions!$B$57,'other funds ftr 2025'!H18<Assumptions!$C$58,Assumptions!$B$58,'other funds ftr 2025'!H18<=Assumptions!$C$59,Assumptions!$B$59,'other funds ftr 2025'!H18<=Assumptions!$C$60,Assumptions!$B$60) -> 0.95
A19: 21302 | B19: CHEHALIS | C19: =IFERROR(VLOOKUP(A19,'[2]Allocations 2024-25'!$B$9:$AC$326,20,FALSE),0) -> 19414 | D19: =IFERROR(VLOOKUP(A19,'[3]State Reservations'!$C$4:$AF$328,30,FALSE),0) -> 528994.4623 | E19: =IFERROR(VLOOKUP(A19,[4]Sheet1!$A$3:$D$381,3,FALSE),0) -> 1276213.79 | F19: =IFERROR(VLOOKUP(A19,[4]Sheet1!$A$3:$D$381,4,FALSE),0) -> 276074.43 | G19: =IFERROR(VLOOKUP(A19,'[5]2024-25 Final'!$B$19:$S$164,18,FALSE),0) -> 17957 | H19: 0.9915243345 | I19: =_xlfn.IFS(H19=0%,0,'other funds ftr 2025'!H19<Assumptions!$C$57,Assumptions!$B$57,'other funds ftr 2025'!H19<Assumptions!$C$58,Assumptions!$B$58,'other funds ftr 2025'!H19<=Assumptions!$C$59,Assumptions!$B$59,'other funds ftr 2025'!H19<=Assumptions!$C$60,Assumptions!$B$60) -> 0.95
A20: 32360 | B20: CHENEY | C20: =IFERROR(VLOOKUP(A20,'[2]Allocations 2024-25'!$B$9:$AC$326,20,FALSE),0) -> 58261 | D20: =IFERROR(VLOOKUP(A20,'[3]State Reservations'!$C$4:$AF$328,30,FALSE),0) -> 1460213.592 | E20: =IFERROR(VLOOKUP(A20,[4]Sheet1!$A$3:$D$381,3,FALSE),0) -> 2759325.8 | F20: =IFERROR(VLOOKUP(A20,[4]Sheet1!$A$3:$D$381,4,FALSE),0) -> 854122.29 | G20: =IFERROR(VLOOKUP(A20,'[5]2024-25 Final'!$B$19:$S$164,18,FALSE),0) -> 0 | H20: 0 | I20: =_xlfn.IFS(H20=0%,0,'other funds ftr 2025'!H20<Assumptions!$C$57,Assumptions!$B$57,'other funds ftr 2025'!H20<Assumptions!$C$58,Assumptions!$B$58,'other funds ftr 2025'!H20<=Assumptions!$C$59,Assumptions!$B$59,'other funds ftr 2025'!H20<=Assumptions!$C$60,Assumptions!$B$60) -> 0
A21: 27901 | B21: CHIEF LESCHI TRIBAL COMPACT | C21: =IFERROR(VLOOKUP(A21,'[2]Allocations 2024-25'!$B$9:$AC$326,20,FALSE),0) -> 0 | D21: =IFERROR(VLOOKUP(A21,'[3]State Reservations'!$C$4:$AF$328,30,FALSE),0) -> 0 | E21: =IFERROR(VLOOKUP(A21,[4]Sheet1!$A$3:$D$381,3,FALSE),0) -> 522238.04 | F21: =IFERROR(VLOOKUP(A21,[4]Sheet1!$A$3:$D$381,4,FALSE),0) -> 0 | G21: =IFERROR(VLOOKUP(A21,'[5]2024-25 Final'!$B$19:$S$164,18,FALSE),0) -> 33717 | H21: 0.9393530096 | I21: =_xlfn.IFS(H21=0%,0,'other funds ftr 2025'!H21<Assumptions!$C$57,Assumptions!$B$57,'other funds ftr 2025'!H21<Assumptions!$C$58,Assumptions!$B$58,'other funds ftr 2025'!H21<=Assumptions!$C$59,Assumptions!$B$59,'other funds ftr 2025'!H21<=Assumptions!$C$60,Assumptions!$B$60) -> 1.05
A22: 27400 | B22: CLOVER PARK | C22: =IFERROR(VLOOKUP(A22,'[2]Allocations 2024-25'!$B$9:$AC$326,20,FALSE),0) -> 241460 | D22: =IFERROR(VLOOKUP(A22,'[3]State Reservations'!$C$4:$AF$328,30,FALSE),0) -> 4236933.15 | E22: =IFERROR(VLOOKUP(A22,[4]Sheet1!$A$3:$D$381,3,FALSE),0) -> 9111822.48 | F22: =IFERROR(VLOOKUP(A22,[4]Sheet1!$A$3:$D$381,4,FALSE),0) -> 3649713.04 | G22: =IFERROR(VLOOKUP(A22,'[5]2024-25 Final'!$B$19:$S$164,18,FALSE),0) -> 0 | H22: 0 | I22: =_xlfn.IFS(H22=0%,0,'other funds ftr 2025'!H22<Assumptions!$C$57,Assumptions!$B$57,'other funds ftr 2025'!H22<Assumptions!$C$58,Assumptions!$B$58,'other funds ftr 2025'!H22<=Assumptions!$C$59,Assumptions!$B$59,'other funds ftr 2025'!H22<=Assumptions!$C$60,Assumptions!$B$60) -> 0
A23: 36250 | B23: COLLEGE PLACE | C23: =IFERROR(VLOOKUP(A23,'[2]Allocations 2024-25'!$B$9:$AC$326,20,FALSE),0) -> 32475 | D23: =IFERROR(VLOOKUP(A23,'[3]State Reservations'!$C$4:$AF$328,30,FALSE),0) -> 395577.2586 | E23: =IFERROR(VLOOKUP(A23,[4]Sheet1!$A$3:$D$381,3,FALSE),0) -> 1035640.81 | F23: =IFERROR(VLOOKUP(A23,[4]Sheet1!$A$3:$D$381,4,FALSE),0) -> 417305.54 | G23: =IFERROR(VLOOKUP(A23,'[5]2024-25 Final'!$B$19:$S$164,18,FALSE),0) -> 128784 | H23: 0.9359214278 | I23: =_xlfn.IFS(H23=0%,0,'other funds ftr 2025'!H23<Assumptions!$C$57,Assumptions!$B$57,'other funds ftr 2025'!H23<Assumptions!$C$58,Assumptions!$B$58,'other funds ftr 2025'!H23<=Assumptions!$C$59,Assumptions!$B$59,'other funds ftr 2025'!H23<=Assumptions!$C$60,Assumptions!$B$60) -> 1.05
A24: 36400 | B24: COLUMBIA (WALLA WALLA) | C24: =IFERROR(VLOOKUP(A24,'[2]Allocations 2024-25'!$B$9:$AC$326,20,FALSE),0) -> 19497 | D24: =IFERROR(VLOOKUP(A24,'[3]State Reservations'!$C$4:$AF$328,30,FALSE),0) -> 208071.0391 | E24: =IFERROR(VLOOKUP(A24,[4]Sheet1!$A$3:$D$381,3,FALSE),0) -> 559924.94 | F24: =IFERROR(VLOOKUP(A24,[4]Sheet1!$A$3:$D$381,4,FALSE),0) -> 243359.33 | G24: =IFERROR(VLOOKUP(A24,'[5]2024-25 Final'!$B$19:$S$164,18,FALSE),0) -> 48964 | H24: 0.9546552505 | I24: =_xlfn.IFS(H24=0%,0,'other funds ftr 2025'!H24<Assumptions!$C$57,Assumptions!$B$57,'other funds ftr 2025'!H24<Assumptions!$C$58,Assumptions!$B$58,'other funds ftr 2025'!H24<=Assumptions!$C$59,Assumptions!$B$59,'other funds ftr 2025'!H24<=Assumptions!$C$60,Assumptions!$B$60) -> 1
A25: 29317 | B25: CONWAY | C25: =IFERROR(VLOOKUP(A25,'[2]Allocations 2024-25'!$B$9:$AC$326,20,FALSE),0) -> 4263 | D25: =IFERROR(VLOOKUP(A25,'[3]State Reservations'!$C$4:$AF$328,30,FALSE),0) -> 90754.66862 | E25: =IFERROR(VLOOKUP(A25,[4]Sheet1!$A$3:$D$381,3,FALSE),0) -> 98659.82 | F25: =IFERROR(VLOOKUP(A25,[4]Sheet1!$A$3:$D$381,4,FALSE),0) -> 47220.15 | G25: =IFERROR(VLOOKUP(A25,'[5]2024-25 Final'!$B$19:$S$164,18,FALSE),0) -> 0 | H25: 0 | I25: =_xlfn.IFS(H25=0%,0,'other funds ftr 2025'!H25<Assumptions!$C$57,Assumptions!$B$57,'other funds ftr 2025'!H25<Assumptions!$C$58,Assumptions!$B$58,'other funds ftr 2025'!H25<=Assumptions!$C$59,Assumptions!$B$59,'other funds ftr 2025'!H25<=Assumptions!$C$60,Assumptions!$B$60) -> 0
A26: 15204 | B26: COUPEVILLE | C26: =IFERROR(VLOOKUP(A26,'[2]Allocations 2024-25'!$B$9:$AC$326,20,FALSE),0) -> 0 | D26: =IFERROR(VLOOKUP(A26,'[3]State Reservations'!$C$4:$AF$328,30,FALSE),0) -> 180739.7746 | E26: =IFERROR(VLOOKUP(A26,[4]Sheet1!$A$3:$D$381,3,FALSE),0) -> 490161.84 | F26: =IFERROR(VLOOKUP(A26,[4]Sheet1!$A$3:$D$381,4,FALSE),0) -> 60145.17 | G26: =IFERROR(VLOOKUP(A26,'[5]2024-25 Final'!$B$19:$S$164,18,FALSE),0) -> 7139 | H26: 0.9903289929 | I26: =_xlfn.IFS(H26=0%,0,'other funds ftr 2025'!H26<Assumptions!$C$57,Assumptions!$B$57,'other funds ftr 2025'!H26<Assumptions!$C$58,Assumptions!$B$58,'other funds ftr 2025'!H26<=Assumptions!$C$59,Assumptions!$B$59,'other funds ftr 2025'!H26<=Assumptions!$C$60,Assumptions!$B$60) -> 0.95
A27: 39090 | B27: EAST VALLEY (YAKIMA) | C27: =IFERROR(VLOOKUP(A27,'[2]Allocations 2024-25'!$B$9:$AC$326,20,FALSE),0) -> 56191 | D27: =IFERROR(VLOOKUP(A27,'[3]State Reservations'!$C$4:$AF$328,30,FALSE),0) -> 734867.5486 | E27: =IFERROR(VLOOKUP(A27,[4]Sheet1!$A$3:$D$381,3,FALSE),0) -> 2572799.97 | F27: =IFERROR(VLOOKUP(A27,[4]Sheet1!$A$3:$D$381,4,FALSE),0) -> 817125.61 | G27: =IFERROR(VLOOKUP(A27,'[5]2024-25 Final'!$B$19:$S$164,18,FALSE),0) -> 0 | H27: 0 | I27: =_xlfn.IFS(H27=0%,0,'other funds ftr 2025'!H27<Assumptions!$C$57,Assumptions!$B$57,'other funds ftr 2025'!H27<Assumptions!$C$58,Assumptions!$B$58,'other funds ftr 2025'!H27<=Assumptions!$C$59,Assumptions!$B$59,'other funds ftr 2025'!H27<=Assumptions!$C$60,Assumptions!$B$60) -> 0
A28: 09206 | B28: EASTMONT | C28: =IFERROR(VLOOKUP(A28,'[2]Allocations 2024-25'!$B$9:$AC$326,20,FALSE),0) -> 149163 | D28: =IFERROR(VLOOKUP(A28,'[3]State Reservations'!$C$4:$AF$328,30,FALSE),0) -> 1161210.662 | E28: =IFERROR(VLOOKUP(A28,[4]Sheet1!$A$3:$D$381,3,FALSE),0) -> 4508899.13 | F28: =IFERROR(VLOOKUP(A28,[4]Sheet1!$A$3:$D$381,4,FALSE),0) -> 1984280.36 | G28: =IFERROR(VLOOKUP(A28,'[5]2024-25 Final'!$B$19:$S$164,18,FALSE),0) -> 673368 | H28: 0.9205645555 | I28: =_xlfn.IFS(H28=0%,0,'other funds ftr 2025'!H28<Assumptions!$C$57,Assumptions!$B$57,'other funds ftr 2025'!H28<Assumptions!$C$58,Assumptions!$B$58,'other funds ftr 2025'!H28<=Assumptions!$C$59,Assumptions!$B$59,'other funds ftr 2025'!H28<=Assumptions!$C$60,Assumptions!$B$60) -> 1.05
A29: 31015 | B29: EDMONDS | C29: =IFERROR(VLOOKUP(A29,'[2]Allocations 2024-25'!$B$9:$AC$326,20,FALSE),0) -> 501340 | D29: =IFERROR(VLOOKUP(A29,'[3]State Reservations'!$C$4:$AF$328,30,FALSE),0) -> 3933301.514 | E29: =IFERROR(VLOOKUP(A29,[4]Sheet1!$A$3:$D$381,3,FALSE),0) -> 7931273.19 | F29: =IFERROR(VLOOKUP(A29,[4]Sheet1!$A$3:$D$381,4,FALSE),0) -> 7989046.98 | G29: =IFERROR(VLOOKUP(A29,'[5]2024-25 Final'!$B$19:$S$164,18,FALSE),0) -> 13663 | H29: 0.9993292134 | I29: =_xlfn.IFS(H29=0%,0,'other funds ftr 2025'!H29<Assumptions!$C$57,Assumptions!$B$57,'other funds ftr 2025'!H29<Assumptions!$C$58,Assumptions!$B$58,'other funds ftr 2025'!H29<=Assumptions!$C$59,Assumptions!$B$59,'other funds ftr 2025'!H29<=Assumptions!$C$60,Assumptions!$B$60) -> 0.95
A30: 39801 | B30: EDUCATIONAL SERVICE DISTRICT 105 | C30: =IFERROR(VLOOKUP(A30,'[2]Allocations 2024-25'!$B$9:$AC$326,20,FALSE),0) -> 0 | D30: =IFERROR(VLOOKUP(A30,'[3]State Reservations'!$C$4:$AF$328,30,FALSE),0) -> 0 | E30: =IFERROR(VLOOKUP(A30,[4]Sheet1!$A$3:$D$381,3,FALSE),0) -> 0 | F30: =IFERROR(VLOOKUP(A30,[4]Sheet1!$A$3:$D$381,4,FALSE),0) -> 0 | G30: =IFERROR(VLOOKUP(A30,'[5]2024-25 Final'!$B$19:$S$164,18,FALSE),0) -> 0 | H30: 0 | I30: =_xlfn.IFS(H30=0%,0,'other funds ftr 2025'!H30<Assumptions!$C$57,Assumptions!$B$57,'other funds ftr 2025'!H30<Assumptions!$C$58,Assumptions!$B$58,'other funds ftr 2025'!H30<=Assumptions!$C$59,Assumptions!$B$59,'other funds ftr 2025'!H30<=Assumptions!$C$60,Assumptions!$B$60) -> 0
A31: 11801 | B31: EDUCATIONAL SERVICE DISTRICT 123 | C31: =IFERROR(VLOOKUP(A31,'[2]Allocations 2024-25'!$B$9:$AC$326,20,FALSE),0) -> 0 | D31: =IFERROR(VLOOKUP(A31,'[3]State Reservations'!$C$4:$AF$328,30,FALSE),0) -> 0 | E31: =IFERROR(VLOOKUP(A31,[4]Sheet1!$A$3:$D$381,3,FALSE),0) -> 0 | F31: =IFERROR(VLOOKUP(A31,[4]Sheet1!$A$3:$D$381,4,FALSE),0) -> 0 | G31: =IFERROR(VLOOKUP(A31,'[5]2024-25 Final'!$B$19:$S$164,18,FALSE),0) -> 0 | H31: 0 | I31: =_xlfn.IFS(H31=0%,0,'other funds ftr 2025'!H31<Assumptions!$C$57,Assumptions!$B$57,'other funds ftr 2025'!H31<Assumptions!$C$58,Assumptions!$B$58,'other funds ftr 2025'!H31<=Assumptions!$C$59,Assumptions!$B$59,'other funds ftr 2025'!H31<=Assumptions!$C$60,Assumptions!$B$60) -> 0
A32: 19401 | B32: ELLENSBURG | C32: =IFERROR(VLOOKUP(A32,'[2]Allocations 2024-25'!$B$9:$AC$326,20,FALSE),0) -> 33255 | D32: =IFERROR(VLOOKUP(A32,'[3]State Reservations'!$C$4:$AF$328,30,FALSE),0) -> 721882.9236 | E32: =IFERROR(VLOOKUP(A32,[4]Sheet1!$A$3:$D$381,3,FALSE),0) -> 1256937.14 | F32: =IFERROR(VLOOKUP(A32,[4]Sheet1!$A$3:$D$381,4,FALSE),0) -> 417945.24 | G32: =IFERROR(VLOOKUP(A32,'[5]2024-25 Final'!$B$19:$S$164,18,FALSE),0) -> 0 | H32: 0 | I32: =_xlfn.IFS(H32=0%,0,'other funds ftr 2025'!H32<Assumptions!$C$57,Assumptions!$B$57,'other funds ftr 2025'!H32<Assumptions!$C$58,Assumptions!$B$58,'other funds ftr 2025'!H32<=Assumptions!$C$59,Assumptions!$B$59,'other funds ftr 2025'!H32<=Assumptions!$C$60,Assumptions!$B$60) -> 0
A33: 14068 | B33: ELMA | C33: =IFERROR(VLOOKUP(A33,'[2]Allocations 2024-25'!$B$9:$AC$326,20,FALSE),0) -> 17936 | D33: =IFERROR(VLOOKUP(A33,'[3]State Reservations'!$C$4:$AF$328,30,FALSE),0) -> 624000.1919 | E33: =IFERROR(VLOOKUP(A33,[4]Sheet1!$A$3:$D$381,3,FALSE),0) -> 1336827.65 | F33: =IFERROR(VLOOKUP(A33,[4]Sheet1!$A$3:$D$381,4,FALSE),0) -> 228841.65 | G33: =IFERROR(VLOOKUP(A33,'[5]2024-25 Final'!$B$19:$S$164,18,FALSE),0) -> 0 | H33: 0 | I33: =_xlfn.IFS(H33=0%,0,'other funds ftr 2025'!H33<Assumptions!$C$57,Assumptions!$B$57,'other funds ftr 2025'!H33<Assumptions!$C$58,Assumptions!$B$58,'other funds ftr 2025'!H33<=Assumptions!$C$59,Assumptions!$B$59,'other funds ftr 2025'!H33<=Assumptions!$C$60,Assumptions!$B$60) -> 0
A34: 04127 | B34: ENTIAT | C34: =IFERROR(VLOOKUP(A34,'[2]Allocations 2024-25'!$B$9:$AC$326,20,FALSE),0) -> 15066 | D34: =IFERROR(VLOOKUP(A34,'[3]State Reservations'!$C$4:$AF$328,30,FALSE),0) -> 133403.3779 | E34: =IFERROR(VLOOKUP(A34,[4]Sheet1!$A$3:$D$381,3,FALSE),0) -> 316224.01 | F34: =IFERROR(VLOOKUP(A34,[4]Sheet1!$A$3:$D$381,4,FALSE),0) -> 209675.38 | G34: =IFERROR(VLOOKUP(A34,'[5]2024-25 Final'!$B$19:$S$164,18,FALSE),0) -> 0 | H34: =IF(G34=0,0,(SUM(C34:F34)/SUM(C34:G34))) -> 0 | I34: =_xlfn.IFS(H34=0%,0,'other funds ftr 2025'!H34<Assumptions!$C$57,Assumptions!$B$57,'other funds ftr 2025'!H34<Assumptions!$C$58,Assumptions!$B$58,'other funds ftr 2025'!H34<=Assumptions!$C$59,Assumptions!$B$59,'other funds ftr 2025'!H34<=Assumptions!$C$60,Assumptions!$B$60) -> 0
A35: 13165 | B35: EPHRATA | C35: =IFERROR(VLOOKUP(A35,'[2]Allocations 2024-25'!$B$9:$AC$326,20,FALSE),0) -> 54990 | D35: =IFERROR(VLOOKUP(A35,'[3]State Reservations'!$C$4:$AF$328,30,FALSE),0) -> 806472.088 | E35: =IFERROR(VLOOKUP(A35,[4]Sheet1!$A$3:$D$381,3,FALSE),0) -> 2038199.37 | F35: =IFERROR(VLOOKUP(A35,[4]Sheet1!$A$3:$D$381,4,FALSE),0) -> 803185.76 | G35: =IFERROR(VLOOKUP(A35,'[5]2024-25 Final'!$B$19:$S$164,18,FALSE),0) -> 100317 | H35: 0.9736227535 | I35: =_xlfn.IFS(H35=0%,0,'other funds ftr 2025'!H35<Assumptions!$C$57,Assumptions!$B$57,'other funds ftr 2025'!H35<Assumptions!$C$58,Assumptions!$B$58,'other funds ftr 2025'!H35<=Assumptions!$C$59,Assumptions!$B$59,'other funds ftr 2025'!H35<=Assumptions!$C$60,Assumptions!$B$60) -> 1
A36: 31002 | B36: EVERETT | C36: =IFERROR(VLOOKUP(A36,'[2]Allocations 2024-25'!$B$9:$AC$326,20,FALSE),0) -> 505348 | D36: =IFERROR(VLOOKUP(A36,'[3]State Reservations'!$C$4:$AF$328,30,FALSE),0) -> 4314292.141 | E36: =IFERROR(VLOOKUP(A36,[4]Sheet1!$A$3:$D$381,3,FALSE),0) -> 9999304.65 | F36: =IFERROR(VLOOKUP(A36,[4]Sheet1!$A$3:$D$381,4,FALSE),0) -> 7896235.64 | G36: =IFERROR(VLOOKUP(A36,'[5]2024-25 Final'!$B$19:$S$164,18,FALSE),0) -> 0 | H36: 0 | I36: =_xlfn.IFS(H36=0%,0,'other funds ftr 2025'!H36<Assumptions!$C$57,Assumptions!$B$57,'other funds ftr 2025'!H36<Assumptions!$C$58,Assumptions!$B$58,'other funds ftr 2025'!H36<=Assumptions!$C$59,Assumptions!$B$59,'other funds ftr 2025'!H36<=Assumptions!$C$60,Assumptions!$B$60) -> 0
A37: 06114 | B37: EVERGREEN (CLARK) | C37: =IFERROR(VLOOKUP(A37,'[2]Allocations 2024-25'!$B$9:$AC$326,20,FALSE),0) -> 499483 | D37: =IFERROR(VLOOKUP(A37,'[3]State Reservations'!$C$4:$AF$328,30,FALSE),0) -> 5960011.511 | E37: =IFERROR(VLOOKUP(A37,[4]Sheet1!$A$3:$D$381,3,FALSE),0) -> 13799003.62 | F37: =IFERROR(VLOOKUP(A37,[4]Sheet1!$A$3:$D$381,4,FALSE),0) -> 7292084.74 | G37: =IFERROR(VLOOKUP(A37,'[5]2024-25 Final'!$B$19:$S$164,18,FALSE),0) -> 0 | H37: 0 | I37: =_xlfn.IFS(H37=0%,0,'other funds ftr 2025'!H37<Assumptions!$C$57,Assumptions!$B$57,'other funds ftr 2025'!H37<Assumptions!$C$58,Assumptions!$B$58,'other funds ftr 2025'!H37<=Assumptions!$C$59,Assumptions!$B$59,'other funds ftr 2025'!H37<=Assumptions!$C$60,Assumptions!$B$60) -> 0
A38: 17210 | B38: FEDERAL WAY | C38: =IFERROR(VLOOKUP(A38,'[2]Allocations 2024-25'!$B$9:$AC$326,20,FALSE),0) -> 841214 | D38: =IFERROR(VLOOKUP(A38,'[3]State Reservations'!$C$4:$AF$328,30,FALSE),0) -> 10006048.19 | E38: =IFERROR(VLOOKUP(A38,[4]Sheet1!$A$3:$D$381,3,FALSE),0) -> 18669142.75 | F38: =IFERROR(VLOOKUP(A38,[4]Sheet1!$A$3:$D$381,4,FALSE),0) -> 12943610.1 | G38: =IFERROR(VLOOKUP(A38,'[5]2024-25 Final'!$B$19:$S$164,18,FALSE),0) -> 0 | H38: 0 | I38: =_xlfn.IFS(H38=0%,0,'other funds ftr 2025'!H38<Assumptions!$C$57,Assumptions!$B$57,'other funds ftr 2025'!H38<Assumptions!$C$58,Assumptions!$B$58,'other funds ftr 2025'!H38<=Assumptions!$C$59,Assumptions!$B$59,'other funds ftr 2025'!H38<=Assumptions!$C$60,Assumptions!$B$60) -> 0
A39: 37502 | B39: FERNDALE | C39: =IFERROR(VLOOKUP(A39,'[2]Allocations 2024-25'!$B$9:$AC$326,20,FALSE),0) -> 62458 | D39: =IFERROR(VLOOKUP(A39,'[3]State Reservations'!$C$4:$AF$328,30,FALSE),0) -> 1832944.197 | E39: =IFERROR(VLOOKUP(A39,[4]Sheet1!$A$3:$D$381,3,FALSE),0) -> 2720521.89 | F39: =IFERROR(VLOOKUP(A39,[4]Sheet1!$A$3:$D$381,4,FALSE),0) -> 944759.6 | G39: =IFERROR(VLOOKUP(A39,'[5]2024-25 Final'!$B$19:$S$164,18,FALSE),0) -> 83693 | H39: 0.985172322 | I39: =_xlfn.IFS(H39=0%,0,'other funds ftr 2025'!H39<Assumptions!$C$57,Assumptions!$B$57,'other funds ftr 2025'!H39<Assumptions!$C$58,Assumptions!$B$58,'other funds ftr 2025'!H39<=Assumptions!$C$59,Assumptions!$B$59,'other funds ftr 2025'!H39<=Assumptions!$C$60,Assumptions!$B$60) -> 0.95
A40: 03053 | B40: FINLEY | C40: =IFERROR(VLOOKUP(A40,'[2]Allocations 2024-25'!$B$9:$AC$326,20,FALSE),0) -> 22684 | D40: =IFERROR(VLOOKUP(A40,'[3]State Reservations'!$C$4:$AF$328,30,FALSE),0) -> 280829.3152 | E40: =IFERROR(VLOOKUP(A40,[4]Sheet1!$A$3:$D$381,3,FALSE),0) -> 698334.53 | F40: =IFERROR(VLOOKUP(A40,[4]Sheet1!$A$3:$D$381,4,FALSE),0) -> 310047.14 | G40: =IFERROR(VLOOKUP(A40,'[5]2024-25 Final'!$B$19:$S$164,18,FALSE),0) -> 90029 | H40: 0.9357818249 | I40: =_xlfn.IFS(H40=0%,0,'other funds ftr 2025'!H40<Assumptions!$C$57,Assumptions!$B$57,'other funds ftr 2025'!H40<Assumptions!$C$58,Assumptions!$B$58,'other funds ftr 2025'!H40<=Assumptions!$C$59,Assumptions!$B$59,'other funds ftr 2025'!H40<=Assumptions!$C$60,Assumptions!$B$60) -> 1.05
A41: 20404 | B41: GOLDENDALE | C41: =IFERROR(VLOOKUP(A41,'[2]Allocations 2024-25'!$B$9:$AC$326,20,FALSE),0) -> 15741 | D41: =IFERROR(VLOOKUP(A41,'[3]State Reservations'!$C$4:$AF$328,30,FALSE),0) -> 485919.8031 | E41: =IFERROR(VLOOKUP(A41,[4]Sheet1!$A$3:$D$381,3,FALSE),0) -> 1252712.67 | F41: =IFERROR(VLOOKUP(A41,[4]Sheet1!$A$3:$D$381,4,FALSE),0) -> 232641.98 | G41: =IFERROR(VLOOKUP(A41,'[5]2024-25 Final'!$B$19:$S$164,18,FALSE),0) -> 54612 | H41: 0.9732507515 | I41: =_xlfn.IFS(H41=0%,0,'other funds ftr 2025'!H41<Assumptions!$C$57,Assumptions!$B$57,'other funds ftr 2025'!H41<Assumptions!$C$58,Assumptions!$B$58,'other funds ftr 2025'!H41<=Assumptions!$C$59,Assumptions!$B$59,'other funds ftr 2025'!H41<=Assumptions!$C$60,Assumptions!$B$60) -> 1
A42: 13301 | B42: GRAND COULEE DAM | C42: =IFERROR(VLOOKUP(A42,'[2]Allocations 2024-25'!$B$9:$AC$326,20,FALSE),0) -> 19244 | D42: =IFERROR(VLOOKUP(A42,'[3]State Reservations'!$C$4:$AF$328,30,FALSE),0) -> 207173.0058 | E42: =IFERROR(VLOOKUP(A42,[4]Sheet1!$A$3:$D$381,3,FALSE),0) -> 580374.8 | F42: =IFERROR(VLOOKUP(A42,[4]Sheet1!$A$3:$D$381,4,FALSE),0) -> 0 | G42: =IFERROR(VLOOKUP(A42,'[5]2024-25 Final'!$B$19:$S$164,18,FALSE),0) -> 207547 | H42: 0.7953869074 | I42: =_xlfn.IFS(H42=0%,0,'other funds ftr 2025'!H42<Assumptions!$C$57,Assumptions!$B$57,'other funds ftr 2025'!H42<Assumptions!$C$58,Assumptions!$B$58,'other funds ftr 2025'!H42<=Assumptions!$C$59,Assumptions!$B$59,'other funds ftr 2025'!H42<=Assumptions!$C$60,Assumptions!$B$60) -> 1.1
A43: 39200 | B43: GRANDVIEW | C43: =IFERROR(VLOOKUP(A43,'[2]Allocations 2024-25'!$B$9:$AC$326,20,FALSE),0) -> 144986 | D43: =IFERROR(VLOOKUP(A43,'[3]State Reservations'!$C$4:$AF$328,30,FALSE),0) -> 1285645.03 | E43: =IFERROR(VLOOKUP(A43,[4]Sheet1!$A$3:$D$381,3,FALSE),0) -> 3308612.98 | F43: =IFERROR(VLOOKUP(A43,[4]Sheet1!$A$3:$D$381,4,FALSE),0) -> 1936088.71 | G43: =IFERROR(VLOOKUP(A43,'[5]2024-25 Final'!$B$19:$S$164,18,FALSE),0) -> 454213 | H43: 0.9362914528 | I43: =_xlfn.IFS(H43=0%,0,'other funds ftr 2025'!H43<Assumptions!$C$57,Assumptions!$B$57,'other funds ftr 2025'!H43<Assumptions!$C$58,Assumptions!$B$58,'other funds ftr 2025'!H43<=Assumptions!$C$59,Assumptions!$B$59,'other funds ftr 2025'!H43<=Assumptions!$C$60,Assumptions!$B$60) -> 1.05
A44: 39204 | B44: GRANGER | C44: =IFERROR(VLOOKUP(A44,'[2]Allocations 2024-25'!$B$9:$AC$326,20,FALSE),0) -> 85987 | D44: =IFERROR(VLOOKUP(A44,'[3]State Reservations'!$C$4:$AF$328,30,FALSE),0) -> 860121.4718 | E44: =IFERROR(VLOOKUP(A44,[4]Sheet1!$A$3:$D$381,3,FALSE),0) -> 1297340.23 | F44: =IFERROR(VLOOKUP(A44,[4]Sheet1!$A$3:$D$381,4,FALSE),0) -> 1203724.96 | G44: =IFERROR(VLOOKUP(A44,'[5]2024-25 Final'!$B$19:$S$164,18,FALSE),0) -> 249619 | H44: 0.9324768731 | I44: =_xlfn.IFS(H44=0%,0,'other funds ftr 2025'!H44<Assumptions!$C$57,Assumptions!$B$57,'other funds ftr 2025'!H44<Assumptions!$C$58,Assumptions!$B$58,'other funds ftr 2025'!H44<=Assumptions!$C$59,Assumptions!$B$59,'other funds ftr 2025'!H44<=Assumptions!$C$60,Assumptions!$B$60) -> 1.05
A45: 39203 | B45: HIGHLAND | C45: =IFERROR(VLOOKUP(A45,'[2]Allocations 2024-25'!$B$9:$AC$326,20,FALSE),0) -> 41865 | D45: =IFERROR(VLOOKUP(A45,'[3]State Reservations'!$C$4:$AF$328,30,FALSE),0) -> 445139.316 | E45: =IFERROR(VLOOKUP(A45,[4]Sheet1!$A$3:$D$381,3,FALSE),0) -> 947035.63 | F45: =IFERROR(VLOOKUP(A45,[4]Sheet1!$A$3:$D$381,4,FALSE),0) -> 564759.17 | G45: =IFERROR(VLOOKUP(A45,'[5]2024-25 Final'!$B$19:$S$164,18,FALSE),0) -> 166429 | H45: 0.9231355815 | I45: =_xlfn.IFS(H45=0%,0,'other funds ftr 2025'!H45<Assumptions!$C$57,Assumptions!$B$57,'other funds ftr 2025'!H45<Assumptions!$C$58,Assumptions!$B$58,'other funds ftr 2025'!H45<=Assumptions!$C$59,Assumptions!$B$59,'other funds ftr 2025'!H45<=Assumptions!$C$60,Assumptions!$B$60) -> 1.05
A46: 23404 | B46: HOOD CANAL | C46: =IFERROR(VLOOKUP(A46,'[2]Allocations 2024-25'!$B$9:$AC$326,20,FALSE),0) -> 0 | D46: =IFERROR(VLOOKUP(A46,'[3]State Reservations'!$C$4:$AF$328,30,FALSE),0) -> 258758.1102 | E46: =IFERROR(VLOOKUP(A46,[4]Sheet1!$A$3:$D$381,3,FALSE),0) -> 270040.01 | F46: =IFERROR(VLOOKUP(A46,[4]Sheet1!$A$3:$D$381,4,FALSE),0) -> 0 | G46: =IFERROR(VLOOKUP(A46,'[5]2024-25 Final'!$B$19:$S$164,18,FALSE),0) -> 40081 | H46: 0.9295439074 | I46: =_xlfn.IFS(H46=0%,0,'other funds ftr 2025'!H46<Assumptions!$C$57,Assumptions!$B$57,'other funds ftr 2025'!H46<Assumptions!$C$58,Assumptions!$B$58,'other funds ftr 2025'!H46<=Assumptions!$C$59,Assumptions!$B$59,'other funds ftr 2025'!H46<=Assumptions!$C$60,Assumptions!$B$60) -> 1.05
A47: 14028 | B47: HOQUIAM | C47: =IFERROR(VLOOKUP(A47,'[2]Allocations 2024-25'!$B$9:$AC$326,20,FALSE),0) -> 16943 | D47: =IFERROR(VLOOKUP(A47,'[3]State Reservations'!$C$4:$AF$328,30,FALSE),0) -> 1040475.067 | E47: =IFERROR(VLOOKUP(A47,[4]Sheet1!$A$3:$D$381,3,FALSE),0) -> 1259861.75 | F47: =IFERROR(VLOOKUP(A47,[4]Sheet1!$A$3:$D$381,4,FALSE),0) -> 223686 | G47: =IFERROR(VLOOKUP(A47,'[5]2024-25 Final'!$B$19:$S$164,18,FALSE),0) -> 0 | H47: 0 | I47: =_xlfn.IFS(H47=0%,0,'other funds ftr 2025'!H47<Assumptions!$C$57,Assumptions!$B$57,'other funds ftr 2025'!H47<Assumptions!$C$58,Assumptions!$B$58,'other funds ftr 2025'!H47<=Assumptions!$C$59,Assumptions!$B$59,'other funds ftr 2025'!H47<=Assumptions!$C$60,Assumptions!$B$60) -> 0
A48: 10070 | B48: INCHELIUM | C48: =IFERROR(VLOOKUP(A48,'[2]Allocations 2024-25'!$B$9:$AC$326,20,FALSE),0) -> 0 | D48: =IFERROR(VLOOKUP(A48,'[3]State Reservations'!$C$4:$AF$328,30,FALSE),0) -> 105778.1075 | E48: =IFERROR(VLOOKUP(A48,[4]Sheet1!$A$3:$D$381,3,FALSE),0) -> 163887.11 | F48: =IFERROR(VLOOKUP(A48,[4]Sheet1!$A$3:$D$381,4,FALSE),0) -> 0 | G48: =IFERROR(VLOOKUP(A48,'[5]2024-25 Final'!$B$19:$S$164,18,FALSE),0) -> 12401 | H48: 0.9560351462 | I48: =_xlfn.IFS(H48=0%,0,'other funds ftr 2025'!H48<Assumptions!$C$57,Assumptions!$B$57,'other funds ftr 2025'!H48<Assumptions!$C$58,Assumptions!$B$58,'other funds ftr 2025'!H48<=Assumptions!$C$59,Assumptions!$B$59,'other funds ftr 2025'!H48<=Assumptions!$C$60,Assumptions!$B$60) -> 1
A49: 08458 | B49: KELSO | C49: =IFERROR(VLOOKUP(A49,'[2]Allocations 2024-25'!$B$9:$AC$326,20,FALSE),0) -> 48680 | D49: =IFERROR(VLOOKUP(A49,'[3]State Reservations'!$C$4:$AF$328,30,FALSE),0) -> 1767411.335 | E49: =IFERROR(VLOOKUP(A49,[4]Sheet1!$A$3:$D$381,3,FALSE),0) -> 3692171.6 | F49: =IFERROR(VLOOKUP(A49,[4]Sheet1!$A$3:$D$381,4,FALSE),0) -> 569557.03 | G49: =IFERROR(VLOOKUP(A49,'[5]2024-25 Final'!$B$19:$S$164,18,FALSE),0) -> 0 | H49: 0 | I49: =_xlfn.IFS(H49=0%,0,'other funds ftr 2025'!H49<Assumptions!$C$57,Assumptions!$B$57,'other funds ftr 2025'!H49<Assumptions!$C$58,Assumptions!$B$58,'other funds ftr 2025'!H49<=Assumptions!$C$59,Assumptions!$B$59,'other funds ftr 2025'!H49<=Assumptions!$C$60,Assumptions!$B$60) -> 0
A50: 03017 | B50: KENNEWICK | C50: =IFERROR(VLOOKUP(A50,'[2]Allocations 2024-25'!$B$9:$AC$326,20,FALSE),0) -> 432971 | D50: =IFERROR(VLOOKUP(A50,'[3]State Reservations'!$C$4:$AF$328,30,FALSE),0) -> 6263830.308 | E50: =IFERROR(VLOOKUP(A50,[4]Sheet1!$A$3:$D$381,3,FALSE),0) -> 11726105.64 | F50: =IFERROR(VLOOKUP(A50,[4]Sheet1!$A$3:$D$381,4,FALSE),0) -> 5975444.23 | G50: =IFERROR(VLOOKUP(A50,'[5]2024-25 Final'!$B$19:$S$164,18,FALSE),0) -> 2017118 | H50: 0.9236387593 | I50: =_xlfn.IFS(H50=0%,0,'other funds ftr 2025'!H50<Assumptions!$C$57,Assumptions!$B$57,'other funds ftr 2025'!H50<Assumptions!$C$58,Assumptions!$B$58,'other funds ftr 2025'!H50<=Assumptions!$C$59,Assumptions!$B$59,'other funds ftr 2025'!H50<=Assumptions!$C$60,Assumptions!$B$60) -> 1.05
A51: 17415 | B51: KENT | C51: =IFERROR(VLOOKUP(A51,'[2]Allocations 2024-25'!$B$9:$AC$326,20,FALSE),0) -> 929227 | D51: =IFERROR(VLOOKUP(A51,'[3]State Reservations'!$C$4:$AF$328,30,FALSE),0) -> 9849589.32 | E51: =IFERROR(VLOOKUP(A51,[4]Sheet1!$A$3:$D$381,3,FALSE),0) -> 16372823.6 | F51: =IFERROR(VLOOKUP(A51,[4]Sheet1!$A$3:$D$381,4,FALSE),0) -> 14927834.47 | G51: =IFERROR(VLOOKUP(A51,'[5]2024-25 Final'!$B$19:$S$164,18,FALSE),0) -> 0 | H51: 0 | I51: =_xlfn.IFS(H51=0%,0,'other funds ftr 2025'!H51<Assumptions!$C$57,Assumptions!$B$57,'other funds ftr 2025'!H51<Assumptions!$C$58,Assumptions!$B$58,'other funds ftr 2025'!H51<=Assumptions!$C$59,Assumptions!$B$59,'other funds ftr 2025'!H51<=Assumptions!$C$60,Assumptions!$B$60) -> 0
A52: 03052 | B52: KIONA-BENTON CITY | C52: =IFERROR(VLOOKUP(A52,'[2]Allocations 2024-25'!$B$9:$AC$326,20,FALSE),0) -> 44628 | D52: =IFERROR(VLOOKUP(A52,'[3]State Reservations'!$C$4:$AF$328,30,FALSE),0) -> 471685.6554 | E52: =IFERROR(VLOOKUP(A52,[4]Sheet1!$A$3:$D$381,3,FALSE),0) -> 1143874.84 | F52: =IFERROR(VLOOKUP(A52,[4]Sheet1!$A$3:$D$381,4,FALSE),0) -> 598694.35 | G52: =IFERROR(VLOOKUP(A52,'[5]2024-25 Final'!$B$19:$S$164,18,FALSE),0) -> 263912 | H52: 0.8953890363 | I52: =_xlfn.IFS(H52=0%,0,'other funds ftr 2025'!H52<Assumptions!$C$57,Assumptions!$B$57,'other funds ftr 2025'!H52<Assumptions!$C$58,Assumptions!$B$58,'other funds ftr 2025'!H52<=Assumptions!$C$59,Assumptions!$B$59,'other funds ftr 2025'!H52<=Assumptions!$C$60,Assumptions!$B$60) -> 1.1
A53: 19403 | B53: KITTITAS | C53: =IFERROR(VLOOKUP(A53,'[2]Allocations 2024-25'!$B$9:$AC$326,20,FALSE),0) -> 0 | D53: =IFERROR(VLOOKUP(A53,'[3]State Reservations'!$C$4:$AF$328,30,FALSE),0) -> 98224.25825 | E53: =IFERROR(VLOOKUP(A53,[4]Sheet1!$A$3:$D$381,3,FALSE),0) -> 315317.47 | F53: =IFERROR(VLOOKUP(A53,[4]Sheet1!$A$3:$D$381,4,FALSE),0) -> 0 | G53: =IFERROR(VLOOKUP(A53,'[5]2024-25 Final'!$B$19:$S$164,18,FALSE),0) -> 0 | H53: 0 | I53: =_xlfn.IFS(H53=0%,0,'other funds ftr 2025'!H53<Assumptions!$C$57,Assumptions!$B$57,'other funds ftr 2025'!H53<Assumptions!$C$58,Assumptions!$B$58,'other funds ftr 2025'!H53<=Assumptions!$C$59,Assumptions!$B$59,'other funds ftr 2025'!H53<=Assumptions!$C$60,Assumptions!$B$60) -> 0
A54: 29311 | B54: LA CONNER | C54: =IFERROR(VLOOKUP(A54,'[2]Allocations 2024-25'!$B$9:$AC$326,20,FALSE),0) -> 19202 | D54: =IFERROR(VLOOKUP(A54,'[3]State Reservations'!$C$4:$AF$328,30,FALSE),0) -> 263551.1585 | E54: =IFERROR(VLOOKUP(A54,[4]Sheet1!$A$3:$D$381,3,FALSE),0) -> 421464.43 | F54: =IFERROR(VLOOKUP(A54,[4]Sheet1!$A$3:$D$381,4,FALSE),0) -> 31911.35 | G54: =IFERROR(VLOOKUP(A54,'[5]2024-25 Final'!$B$19:$S$164,18,FALSE),0) -> 129375 | H54: 0.8505206109 | I54: =_xlfn.IFS(H54=0%,0,'other funds ftr 2025'!H54<Assumptions!$C$57,Assumptions!$B$57,'other funds ftr 2025'!H54<Assumptions!$C$58,Assumptions!$B$58,'other funds ftr 2025'!H54<=Assumptions!$C$59,Assumptions!$B$59,'other funds ftr 2025'!H54<=Assumptions!$C$60,Assumptions!$B$60) -> 1.1
A55: 04129 | B55: LAKE CHELAN | C55: =IFERROR(VLOOKUP(A55,'[2]Allocations 2024-25'!$B$9:$AC$326,20,FALSE),0) -> 47709 | D55: =IFERROR(VLOOKUP(A55,'[3]State Reservations'!$C$4:$AF$328,30,FALSE),0) -> 267392.6636 | E55: =IFERROR(VLOOKUP(A55,[4]Sheet1!$A$3:$D$381,3,FALSE),0) -> 900674.95 | F55: =IFERROR(VLOOKUP(A55,[4]Sheet1!$A$3:$D$381,4,FALSE),0) -> 627450.97 | G55: =IFERROR(VLOOKUP(A55,'[5]2024-25 Final'!$B$19:$S$164,18,FALSE),0) -> 130322 | H55: 0.9339656824 | I55: =_xlfn.IFS(H55=0%,0,'other funds ftr 2025'!H55<Assumptions!$C$57,Assumptions!$B$57,'other funds ftr 2025'!H55<Assumptions!$C$58,Assumptions!$B$58,'other funds ftr 2025'!H55<=Assumptions!$C$59,Assumptions!$B$59,'other funds ftr 2025'!H55<=Assumptions!$C$60,Assumptions!$B$60) -> 1.05
A56: 31004 | B56: LAKE STEVENS | C56: =IFERROR(VLOOKUP(A56,'[2]Allocations 2024-25'!$B$9:$AC$326,20,FALSE),0) -> 88582 | D56: =IFERROR(VLOOKUP(A56,'[3]State Reservations'!$C$4:$AF$328,30,FALSE),0) -> 922373.6803 | E56: =IFERROR(VLOOKUP(A56,[4]Sheet1!$A$3:$D$381,3,FALSE),0) -> 2201642.7 | F56: =IFERROR(VLOOKUP(A56,[4]Sheet1!$A$3:$D$381,4,FALSE),0) -> 1520232.42 | G56: =IFERROR(VLOOKUP(A56,'[5]2024-25 Final'!$B$19:$S$164,18,FALSE),0) -> 0 | H56: 0 | I56: =_xlfn.IFS(H56=0%,0,'other funds ftr 2025'!H56<Assumptions!$C$57,Assumptions!$B$57,'other funds ftr 2025'!H56<Assumptions!$C$58,Assumptions!$B$58,'other funds ftr 2025'!H56<=Assumptions!$C$59,Assumptions!$B$59,'other funds ftr 2025'!H56<=Assumptions!$C$60,Assumptions!$B$60) -> 0
A57: 31306 | B57: LAKEWOOD | C57: =IFERROR(VLOOKUP(A57,'[2]Allocations 2024-25'!$B$9:$AC$326,20,FALSE),0) -> 36906 | D57: =IFERROR(VLOOKUP(A57,'[3]State Reservations'!$C$4:$AF$328,30,FALSE),0) -> 557198.5994 | E57: =IFERROR(VLOOKUP(A57,[4]Sheet1!$A$3:$D$381,3,FALSE),0) -> 1040888.45 | F57: =IFERROR(VLOOKUP(A57,[4]Sheet1!$A$3:$D$381,4,FALSE),0) -> 563712.46 | G57: =IFERROR(VLOOKUP(A57,'[5]2024-25 Final'!$B$19:$S$164,18,FALSE),0) -> 13664 | H57: 0.9938238165 | I57: =_xlfn.IFS(H57=0%,0,'other funds ftr 2025'!H57<Assumptions!$C$57,Assumptions!$B$57,'other funds ftr 2025'!H57<Assumptions!$C$58,Assumptions!$B$58,'other funds ftr 2025'!H57<=Assumptions!$C$59,Assumptions!$B$59,'other funds ftr 2025'!H57<=Assumptions!$C$60,Assumptions!$B$60) -> 0.95
A58: 01158 | B58: LIND | C58: =IFERROR(VLOOKUP(A58,'[2]Allocations 2024-25'!$B$9:$AC$326,20,FALSE),0) -> 3207 | D58: =IFERROR(VLOOKUP(A58,'[3]State Reservations'!$C$4:$AF$328,30,FALSE),0) -> 165567.7166 | E58: =IFERROR(VLOOKUP(A58,[4]Sheet1!$A$3:$D$381,3,FALSE),0) -> 151213.74 | F58: =IFERROR(VLOOKUP(A58,[4]Sheet1!$A$3:$D$381,4,FALSE),0) -> 40941.57 | G58: =IFERROR(VLOOKUP(A58,'[5]2024-25 Final'!$B$19:$S$164,18,FALSE),0) -> 35115 | H58: 0.911335839 | I58: =_xlfn.IFS(H58=0%,0,'other funds ftr 2025'!H58<Assumptions!$C$57,Assumptions!$B$57,'other funds ftr 2025'!H58<Assumptions!$C$58,Assumptions!$B$58,'other funds ftr 2025'!H58<=Assumptions!$C$59,Assumptions!$B$59,'other funds ftr 2025'!H58<=Assumptions!$C$60,Assumptions!$B$60) -> 1.1
A59: 08122 | B59: LONGVIEW | C59: =IFERROR(VLOOKUP(A59,'[2]Allocations 2024-25'!$B$9:$AC$326,20,FALSE),0) -> 62671 | D59: =IFERROR(VLOOKUP(A59,'[3]State Reservations'!$C$4:$AF$328,30,FALSE),0) -> 2727441.026 | E59: =IFERROR(VLOOKUP(A59,[4]Sheet1!$A$3:$D$381,3,FALSE),0) -> 4555801.37 | F59: =IFERROR(VLOOKUP(A59,[4]Sheet1!$A$3:$D$381,4,FALSE),0) -> 909137.53 | G59: =IFERROR(VLOOKUP(A59,'[5]2024-25 Final'!$B$19:$S$164,18,FALSE),0) -> 0 | H59: 0 | I59: =_xlfn.IFS(H59=0%,0,'other funds ftr 2025'!H59<Assumptions!$C$57,Assumptions!$B$57,'other funds ftr 2025'!H59<Assumptions!$C$58,Assumptions!$B$58,'other funds ftr 2025'!H59<=Assumptions!$C$59,Assumptions!$B$59,'other funds ftr 2025'!H59<=Assumptions!$C$60,Assumptions!$B$60) -> 0
A60: 20406 | B60: LYLE | C60: =IFERROR(VLOOKUP(A60,'[2]Allocations 2024-25'!$B$9:$AC$326,20,FALSE),0) -> 0 | D60: =IFERROR(VLOOKUP(A60,'[3]State Reservations'!$C$4:$AF$328,30,FALSE),0) -> 188891.5042 | E60: =IFERROR(VLOOKUP(A60,[4]Sheet1!$A$3:$D$381,3,FALSE),0) -> 150238.88 | F60: =IFERROR(VLOOKUP(A60,[4]Sheet1!$A$3:$D$381,4,FALSE),0) -> 0 | G60: =IFERROR(VLOOKUP(A60,'[5]2024-25 Final'!$B$19:$S$164,18,FALSE),0) -> 0 | H60: 0 | I60: =_xlfn.IFS(H60=0%,0,'other funds ftr 2025'!H60<Assumptions!$C$57,Assumptions!$B$57,'other funds ftr 2025'!H60<Assumptions!$C$58,Assumptions!$B$58,'other funds ftr 2025'!H60<=Assumptions!$C$59,Assumptions!$B$59,'other funds ftr 2025'!H60<=Assumptions!$C$60,Assumptions!$B$60) -> 0
A61: 37504 | B61: LYNDEN | C61: =IFERROR(VLOOKUP(A61,'[2]Allocations 2024-25'!$B$9:$AC$326,20,FALSE),0) -> 60075 | D61: =IFERROR(VLOOKUP(A61,'[3]State Reservations'!$C$4:$AF$328,30,FALSE),0) -> 617160.206 | E61: =IFERROR(VLOOKUP(A61,[4]Sheet1!$A$3:$D$381,3,FALSE),0) -> 1281378.63 | F61: =IFERROR(VLOOKUP(A61,[4]Sheet1!$A$3:$D$381,4,FALSE),0) -> 873053.94 | G61: =IFERROR(VLOOKUP(A61,'[5]2024-25 Final'!$B$19:$S$164,18,FALSE),0) -> 73331 | H61: 0.9747569601 | I61: =_xlfn.IFS(H61=0%,0,'other funds ftr 2025'!H61<Assumptions!$C$57,Assumptions!$B$57,'other funds ftr 2025'!H61<Assumptions!$C$58,Assumptions!$B$58,'other funds ftr 2025'!H61<=Assumptions!$C$59,Assumptions!$B$59,'other funds ftr 2025'!H61<=Assumptions!$C$60,Assumptions!$B$60) -> 1
A62: 39120 | B62: MABTON | C62: =IFERROR(VLOOKUP(A62,'[2]Allocations 2024-25'!$B$9:$AC$326,20,FALSE),0) -> 38911 | D62: =IFERROR(VLOOKUP(A62,'[3]State Reservations'!$C$4:$AF$328,30,FALSE),0) -> 396472.9647 | E62: =IFERROR(VLOOKUP(A62,[4]Sheet1!$A$3:$D$381,3,FALSE),0) -> 760293.14 | F62: =IFERROR(VLOOKUP(A62,[4]Sheet1!$A$3:$D$381,4,FALSE),0) -> 489699.63 | G62: =IFERROR(VLOOKUP(A62,'[5]2024-25 Final'!$B$19:$S$164,18,FALSE),0) -> 312347 | H62: 0.8436485513 | I62: =_xlfn.IFS(H62=0%,0,'other funds ftr 2025'!H62<Assumptions!$C$57,Assumptions!$B$57,'other funds ftr 2025'!H62<Assumptions!$C$58,Assumptions!$B$58,'other funds ftr 2025'!H62<=Assumptions!$C$59,Assumptions!$B$59,'other funds ftr 2025'!H62<=Assumptions!$C$60,Assumptions!$B$60) -> 1.1
A63: 04019 | B63: MANSON | C63: =IFERROR(VLOOKUP(A63,'[2]Allocations 2024-25'!$B$9:$AC$326,20,FALSE),0) -> 29710 | D63: =IFERROR(VLOOKUP(A63,'[3]State Reservations'!$C$4:$AF$328,30,FALSE),0) -> 226069.1446 | E63: =IFERROR(VLOOKUP(A63,[4]Sheet1!$A$3:$D$381,3,FALSE),0) -> 502168.26 | F63: =IFERROR(VLOOKUP(A63,[4]Sheet1!$A$3:$D$381,4,FALSE),0) -> 393422.95 | G63: =IFERROR(VLOOKUP(A63,'[5]2024-25 Final'!$B$19:$S$164,18,FALSE),0) -> 81409 | H63: 0.9339630408 | I63: =_xlfn.IFS(H63=0%,0,'other funds ftr 2025'!H63<Assumptions!$C$57,Assumptions!$B$57,'other funds ftr 2025'!H63<Assumptions!$C$58,Assumptions!$B$58,'other funds ftr 2025'!H63<=Assumptions!$C$59,Assumptions!$B$59,'other funds ftr 2025'!H63<=Assumptions!$C$60,Assumptions!$B$60) -> 1.05
A64: 33207 | B64: MARY WALKER | C64: =IFERROR(VLOOKUP(A64,'[2]Allocations 2024-25'!$B$9:$AC$326,20,FALSE),0) -> 0 | D64: =IFERROR(VLOOKUP(A64,'[3]State Reservations'!$C$4:$AF$328,30,FALSE),0) -> 315126.8174 | E64: =IFERROR(VLOOKUP(A64,[4]Sheet1!$A$3:$D$381,3,FALSE),0) -> 427861.23 | F64: =IFERROR(VLOOKUP(A64,[4]Sheet1!$A$3:$D$381,4,FALSE),0) -> 0 | G64: =IFERROR(VLOOKUP(A64,'[5]2024-25 Final'!$B$19:$S$164,18,FALSE),0) -> 0 | H64: 0 | I64: =_xlfn.IFS(H64=0%,0,'other funds ftr 2025'!H64<Assumptions!$C$57,Assumptions!$B$57,'other funds ftr 2025'!H64<Assumptions!$C$58,Assumptions!$B$58,'other funds ftr 2025'!H64<=Assumptions!$C$59,Assumptions!$B$59,'other funds ftr 2025'!H64<=Assumptions!$C$60,Assumptions!$B$60) -> 0
A65: 31025 | B65: MARYSVILLE | C65: =IFERROR(VLOOKUP(A65,'[2]Allocations 2024-25'!$B$9:$AC$326,20,FALSE),0) -> 149669 | D65: =IFERROR(VLOOKUP(A65,'[3]State Reservations'!$C$4:$AF$328,30,FALSE),0) -> 2648780.633 | E65: =IFERROR(VLOOKUP(A65,[4]Sheet1!$A$3:$D$381,3,FALSE),0) -> 6028533.97 | F65: =IFERROR(VLOOKUP(A65,[4]Sheet1!$A$3:$D$381,4,FALSE),0) -> 2177183.85 | G65: =IFERROR(VLOOKUP(A65,'[5]2024-25 Final'!$B$19:$S$164,18,FALSE),0) -> 254153 | H65: 0.9774253184 | I65: =_xlfn.IFS(H65=0%,0,'other funds ftr 2025'!H65<Assumptions!$C$57,Assumptions!$B$57,'other funds ftr 2025'!H65<Assumptions!$C$58,Assumptions!$B$58,'other funds ftr 2025'!H65<=Assumptions!$C$59,Assumptions!$B$59,'other funds ftr 2025'!H65<=Assumptions!$C$60,Assumptions!$B$60) -> 1
A66: NULL | B66: MASA - CWU | C66: =IFERROR(VLOOKUP(A66,'[2]Allocations 2024-25'!$B$9:$AC$326,20,FALSE),0) -> 0 | D66: =IFERROR(VLOOKUP(A66,'[3]State Reservations'!$C$4:$AF$328,30,FALSE),0) -> 0 | E66: =IFERROR(VLOOKUP(A66,[4]Sheet1!$A$3:$D$381,3,FALSE),0) -> 0 | F66: =IFERROR(VLOOKUP(A66,[4]Sheet1!$A$3:$D$381,4,FALSE),0) -> 0 | G66: =IFERROR(VLOOKUP(A66,'[5]2024-25 Final'!$B$19:$S$164,18,FALSE),0) -> 0 | H66: =IF(G66=0,0,(SUM(C66:F66)/SUM(C66:G66))) -> 0 | I66: =_xlfn.IFS(H66=0%,0,'other funds ftr 2025'!H66<Assumptions!$C$57,Assumptions!$B$57,'other funds ftr 2025'!H66<Assumptions!$C$58,Assumptions!$B$58,'other funds ftr 2025'!H66<=Assumptions!$C$59,Assumptions!$B$59,'other funds ftr 2025'!H66<=Assumptions!$C$60,Assumptions!$B$60) -> 0
A67: 37505 | B67: MERIDIAN | C67: =IFERROR(VLOOKUP(A67,'[2]Allocations 2024-25'!$B$9:$AC$326,20,FALSE),0) -> 31062 | D67: =IFERROR(VLOOKUP(A67,'[3]State Reservations'!$C$4:$AF$328,30,FALSE),0) -> 363485.5218 | E67: =IFERROR(VLOOKUP(A67,[4]Sheet1!$A$3:$D$381,3,FALSE),0) -> 825870.37 | F67: =IFERROR(VLOOKUP(A67,[4]Sheet1!$A$3:$D$381,4,FALSE),0) -> 505916.93 | G67: =IFERROR(VLOOKUP(A67,'[5]2024-25 Final'!$B$19:$S$164,18,FALSE),0) -> 32793 | H67: 0.9813583757 | I67: =_xlfn.IFS(H67=0%,0,'other funds ftr 2025'!H67<Assumptions!$C$57,Assumptions!$B$57,'other funds ftr 2025'!H67<Assumptions!$C$58,Assumptions!$B$58,'other funds ftr 2025'!H67<=Assumptions!$C$59,Assumptions!$B$59,'other funds ftr 2025'!H67<=Assumptions!$C$60,Assumptions!$B$60) -> 1
A68: 31103 | B68: MONROE | C68: =IFERROR(VLOOKUP(A68,'[2]Allocations 2024-25'!$B$9:$AC$326,20,FALSE),0) -> 101158 | D68: =IFERROR(VLOOKUP(A68,'[3]State Reservations'!$C$4:$AF$328,30,FALSE),0) -> 692607.0312 | E68: =IFERROR(VLOOKUP(A68,[4]Sheet1!$A$3:$D$381,3,FALSE),0) -> 1723797.83 | F68: =IFERROR(VLOOKUP(A68,[4]Sheet1!$A$3:$D$381,4,FALSE),0) -> 1641885.54 | G68: =IFERROR(VLOOKUP(A68,'[5]2024-25 Final'!$B$19:$S$164,18,FALSE),0) -> 0 | H68: 0 | I68: =_xlfn.IFS(H68=0%,0,'other funds ftr 2025'!H68<Assumptions!$C$57,Assumptions!$B$57,'other funds ftr 2025'!H68<Assumptions!$C$58,Assumptions!$B$58,'other funds ftr 2025'!H68<=Assumptions!$C$59,Assumptions!$B$59,'other funds ftr 2025'!H68<=Assumptions!$C$60,Assumptions!$B$60) -> 0
A69: 14066 | B69: MONTESANO | C69: =IFERROR(VLOOKUP(A69,'[2]Allocations 2024-25'!$B$9:$AC$326,20,FALSE),0) -> 0 | D69: =IFERROR(VLOOKUP(A69,'[3]State Reservations'!$C$4:$AF$328,30,FALSE),0) -> 375506.6093 | E69: =IFERROR(VLOOKUP(A69,[4]Sheet1!$A$3:$D$381,3,FALSE),0) -> 396904.85 | F69: =IFERROR(VLOOKUP(A69,[4]Sheet1!$A$3:$D$381,4,FALSE),0) -> 68604.98 | G69: =IFERROR(VLOOKUP(A69,'[5]2024-25 Final'!$B$19:$S$164,18,FALSE),0) -> 0 | H69: 0 | I69: =_xlfn.IFS(H69=0%,0,'other funds ftr 2025'!H69<Assumptions!$C$57,Assumptions!$B$57,'other funds ftr 2025'!H69<Assumptions!$C$58,Assumptions!$B$58,'other funds ftr 2025'!H69<=Assumptions!$C$59,Assumptions!$B$59,'other funds ftr 2025'!H69<=Assumptions!$C$60,Assumptions!$B$60) -> 0
A70: 13161 | B70: MOSES LAKE | C70: =IFERROR(VLOOKUP(A70,'[2]Allocations 2024-25'!$B$9:$AC$326,20,FALSE),0) -> 164735 | D70: =IFERROR(VLOOKUP(A70,'[3]State Reservations'!$C$4:$AF$328,30,FALSE),0) -> 3052617.868 | E70: =IFERROR(VLOOKUP(A70,[4]Sheet1!$A$3:$D$381,3,FALSE),0) -> 6175174.87 | F70: =IFERROR(VLOOKUP(A70,[4]Sheet1!$A$3:$D$381,4,FALSE),0) -> 2107318.32 | G70: =IFERROR(VLOOKUP(A70,'[5]2024-25 Final'!$B$19:$S$164,18,FALSE),0) -> 368249 | H70: 0.9689715158 | I70: =_xlfn.IFS(H70=0%,0,'other funds ftr 2025'!H70<Assumptions!$C$57,Assumptions!$B$57,'other funds ftr 2025'!H70<Assumptions!$C$58,Assumptions!$B$58,'other funds ftr 2025'!H70<=Assumptions!$C$59,Assumptions!$B$59,'other funds ftr 2025'!H70<=Assumptions!$C$60,Assumptions!$B$60) -> 1
A71: 21206 | B71: MOSSYROCK | C71: =IFERROR(VLOOKUP(A71,'[2]Allocations 2024-25'!$B$9:$AC$326,20,FALSE),0) -> 7765 | D71: =IFERROR(VLOOKUP(A71,'[3]State Reservations'!$C$4:$AF$328,30,FALSE),0) -> 224746.8632 | E71: =IFERROR(VLOOKUP(A71,[4]Sheet1!$A$3:$D$381,3,FALSE),0) -> 458082.32 | F71: =IFERROR(VLOOKUP(A71,[4]Sheet1!$A$3:$D$381,4,FALSE),0) -> 117387.18 | G71: =IFERROR(VLOOKUP(A71,'[5]2024-25 Final'!$B$19:$S$164,18,FALSE),0) -> 18412 | H71: 0.9777200534 | I71: =_xlfn.IFS(H71=0%,0,'other funds ftr 2025'!H71<Assumptions!$C$57,Assumptions!$B$57,'other funds ftr 2025'!H71<Assumptions!$C$58,Assumptions!$B$58,'other funds ftr 2025'!H71<=Assumptions!$C$59,Assumptions!$B$59,'other funds ftr 2025'!H71<=Assumptions!$C$60,Assumptions!$B$60) -> 1
A72: 39209 | B72: MOUNT ADAMS | C72: =IFERROR(VLOOKUP(A72,'[2]Allocations 2024-25'!$B$9:$AC$326,20,FALSE),0) -> 53850 | D72: =IFERROR(VLOOKUP(A72,'[3]State Reservations'!$C$4:$AF$328,30,FALSE),0) -> 579094.9415 | E72: =IFERROR(VLOOKUP(A72,[4]Sheet1!$A$3:$D$381,3,FALSE),0) -> 877169.69 | F72: =IFERROR(VLOOKUP(A72,[4]Sheet1!$A$3:$D$381,4,FALSE),0) -> 217821.98 | G72: =IFERROR(VLOOKUP(A72,'[5]2024-25 Final'!$B$19:$S$164,18,FALSE),0) -> 194132 | H72: 0.8989984026 | I72: =_xlfn.IFS(H72=0%,0,'other funds ftr 2025'!H72<Assumptions!$C$57,Assumptions!$B$57,'other funds ftr 2025'!H72<Assumptions!$C$58,Assumptions!$B$58,'other funds ftr 2025'!H72<=Assumptions!$C$59,Assumptions!$B$59,'other funds ftr 2025'!H72<=Assumptions!$C$60,Assumptions!$B$60) -> 1.1
A73: 37507 | B73: MOUNT BAKER | C73: =IFERROR(VLOOKUP(A73,'[2]Allocations 2024-25'!$B$9:$AC$326,20,FALSE),0) -> 19181 | D73: =IFERROR(VLOOKUP(A73,'[3]State Reservations'!$C$4:$AF$328,30,FALSE),0) -> 720848.3811 | E73: =IFERROR(VLOOKUP(A73,[4]Sheet1!$A$3:$D$381,3,FALSE),0) -> 877896.46 | F73: =IFERROR(VLOOKUP(A73,[4]Sheet1!$A$3:$D$381,4,FALSE),0) -> 171947.81 | G73: =IFERROR(VLOOKUP(A73,'[5]2024-25 Final'!$B$19:$S$164,18,FALSE),0) -> 20610 | H73: 0.9886163015 | I73: =_xlfn.IFS(H73=0%,0,'other funds ftr 2025'!H73<Assumptions!$C$57,Assumptions!$B$57,'other funds ftr 2025'!H73<Assumptions!$C$58,Assumptions!$B$58,'other funds ftr 2025'!H73<=Assumptions!$C$59,Assumptions!$B$59,'other funds ftr 2025'!H73<=Assumptions!$C$60,Assumptions!$B$60) -> 0.95
A74: 29320 | B74: MOUNT VERNON | C74: =IFERROR(VLOOKUP(A74,'[2]Allocations 2024-25'!$B$9:$AC$326,20,FALSE),0) -> 232111 | D74: =IFERROR(VLOOKUP(A74,'[3]State Reservations'!$C$4:$AF$328,30,FALSE),0) -> 1939210.138 | E74: =IFERROR(VLOOKUP(A74,[4]Sheet1!$A$3:$D$381,3,FALSE),0) -> 5425798.46 | F74: =IFERROR(VLOOKUP(A74,[4]Sheet1!$A$3:$D$381,4,FALSE),0) -> 3440658.81 | G74: =IFERROR(VLOOKUP(A74,'[5]2024-25 Final'!$B$19:$S$164,18,FALSE),0) -> 1462597 | H74: 0.8829957539 | I74: =_xlfn.IFS(H74=0%,0,'other funds ftr 2025'!H74<Assumptions!$C$57,Assumptions!$B$57,'other funds ftr 2025'!H74<Assumptions!$C$58,Assumptions!$B$58,'other funds ftr 2025'!H74<=Assumptions!$C$59,Assumptions!$B$59,'other funds ftr 2025'!H74<=Assumptions!$C$60,Assumptions!$B$60) -> 1.1
A75: 17903 | B75: MUCKLESHOOT INDIAN TRIBE | C75: =IFERROR(VLOOKUP(A75,'[2]Allocations 2024-25'!$B$9:$AC$326,20,FALSE),0) -> 0 | D75: =IFERROR(VLOOKUP(A75,'[3]State Reservations'!$C$4:$AF$328,30,FALSE),0) -> 0 | E75: =IFERROR(VLOOKUP(A75,[4]Sheet1!$A$3:$D$381,3,FALSE),0) -> 492819.54 | F75: =IFERROR(VLOOKUP(A75,[4]Sheet1!$A$3:$D$381,4,FALSE),0) -> 0 | G75: =IFERROR(VLOOKUP(A75,'[5]2024-25 Final'!$B$19:$S$164,18,FALSE),0) -> 0 | H75: 0 | I75: =_xlfn.IFS(H75=0%,0,'other funds ftr 2025'!H75<Assumptions!$C$57,Assumptions!$B$57,'other funds ftr 2025'!H75<Assumptions!$C$58,Assumptions!$B$58,'other funds ftr 2025'!H75<=Assumptions!$C$59,Assumptions!$B$59,'other funds ftr 2025'!H75<=Assumptions!$C$60,Assumptions!$B$60) -> 0
A76: 31006 | B76: MUKILTEO | C76: =IFERROR(VLOOKUP(A76,'[2]Allocations 2024-25'!$B$9:$AC$326,20,FALSE),0) -> 514421 | D76: =IFERROR(VLOOKUP(A76,'[3]State Reservations'!$C$4:$AF$328,30,FALSE),0) -> 4248215.297 | E76: =IFERROR(VLOOKUP(A76,[4]Sheet1!$A$3:$D$381,3,FALSE),0) -> 9115241.55 | F76: =IFERROR(VLOOKUP(A76,[4]Sheet1!$A$3:$D$381,4,FALSE),0) -> 8192418.42 | G76: =IFERROR(VLOOKUP(A76,'[5]2024-25 Final'!$B$19:$S$164,18,FALSE),0) -> 0 | H76: 0 | I76: =_xlfn.IFS(H76=0%,0,'other funds ftr 2025'!H76<Assumptions!$C$57,Assumptions!$B$57,'other funds ftr 2025'!H76<Assumptions!$C$58,Assumptions!$B$58,'other funds ftr 2025'!H76<=Assumptions!$C$59,Assumptions!$B$59,'other funds ftr 2025'!H76<=Assumptions!$C$60,Assumptions!$B$60) -> 0
A77: 39003 | B77: NACHES VALLEY | C77: =IFERROR(VLOOKUP(A77,'[2]Allocations 2024-25'!$B$9:$AC$326,20,FALSE),0) -> 8672 | D77: =IFERROR(VLOOKUP(A77,'[3]State Reservations'!$C$4:$AF$328,30,FALSE),0) -> 349383.3254 | E77: =IFERROR(VLOOKUP(A77,[4]Sheet1!$A$3:$D$381,3,FALSE),0) -> 895259 | F77: =IFERROR(VLOOKUP(A77,[4]Sheet1!$A$3:$D$381,4,FALSE),0) -> 132207.17 | G77: =IFERROR(VLOOKUP(A77,'[5]2024-25 Final'!$B$19:$S$164,18,FALSE),0) -> 0 | H77: 0 | I77: =_xlfn.IFS(H77=0%,0,'other funds ftr 2025'!H77<Assumptions!$C$57,Assumptions!$B$57,'other funds ftr 2025'!H77<Assumptions!$C$58,Assumptions!$B$58,'other funds ftr 2025'!H77<=Assumptions!$C$59,Assumptions!$B$59,'other funds ftr 2025'!H77<=Assumptions!$C$60,Assumptions!$B$60) -> 0
A78: 25155 | B78: NASELLE-GRAYS RIVER VALLEY | C78: =IFERROR(VLOOKUP(A78,'[2]Allocations 2024-25'!$B$9:$AC$326,20,FALSE),0) -> 1329 | D78: =IFERROR(VLOOKUP(A78,'[3]State Reservations'!$C$4:$AF$328,30,FALSE),0) -> 76457.51003 | E78: =IFERROR(VLOOKUP(A78,[4]Sheet1!$A$3:$D$381,3,FALSE),0) -> 214574.18 | F78: =IFERROR(VLOOKUP(A78,[4]Sheet1!$A$3:$D$381,4,FALSE),0) -> 16883.52 | G78: =IFERROR(VLOOKUP(A78,'[5]2024-25 Final'!$B$19:$S$164,18,FALSE),0) -> 48084 | H78: 0.8654346378 | I78: =_xlfn.IFS(H78=0%,0,'other funds ftr 2025'!H78<Assumptions!$C$57,Assumptions!$B$57,'other funds ftr 2025'!H78<Assumptions!$C$58,Assumptions!$B$58,'other funds ftr 2025'!H78<=Assumptions!$C$59,Assumptions!$B$59,'other funds ftr 2025'!H78<=Assumptions!$C$60,Assumptions!$B$60) -> 1.1
A79: 24014 | B79: NESPELEM | C79: =IFERROR(VLOOKUP(A79,'[2]Allocations 2024-25'!$B$9:$AC$326,20,FALSE),0) -> 13547 | D79: =IFERROR(VLOOKUP(A79,'[3]State Reservations'!$C$4:$AF$328,30,FALSE),0) -> 170499.0843 | E79: =IFERROR(VLOOKUP(A79,[4]Sheet1!$A$3:$D$381,3,FALSE),0) -> 126841.91 | F79: =IFERROR(VLOOKUP(A79,[4]Sheet1!$A$3:$D$381,4,FALSE),0) -> 0 | G79: =IFERROR(VLOOKUP(A79,'[5]2024-25 Final'!$B$19:$S$164,18,FALSE),0) -> 47949 | H79: 0.8663766536 | I79: =_xlfn.IFS(H79=0%,0,'other funds ftr 2025'!H79<Assumptions!$C$57,Assumptions!$B$57,'other funds ftr 2025'!H79<Assumptions!$C$58,Assumptions!$B$58,'other funds ftr 2025'!H79<=Assumptions!$C$59,Assumptions!$B$59,'other funds ftr 2025'!H79<=Assumptions!$C$60,Assumptions!$B$60) -> 1.1
A80: 37506 | B80: NOOKSACK VALLEY | C80: =IFERROR(VLOOKUP(A80,'[2]Allocations 2024-25'!$B$9:$AC$326,20,FALSE),0) -> 40662 | D80: =IFERROR(VLOOKUP(A80,'[3]State Reservations'!$C$4:$AF$328,30,FALSE),0) -> 443767.5767 | E80: =IFERROR(VLOOKUP(A80,[4]Sheet1!$A$3:$D$381,3,FALSE),0) -> 1355247 | F80: =IFERROR(VLOOKUP(A80,[4]Sheet1!$A$3:$D$381,4,FALSE),0) -> 550726.55 | G80: =IFERROR(VLOOKUP(A80,'[5]2024-25 Final'!$B$19:$S$164,18,FALSE),0) -> 94510 | H80: 0.9619664772 | I80: =_xlfn.IFS(H80=0%,0,'other funds ftr 2025'!H80<Assumptions!$C$57,Assumptions!$B$57,'other funds ftr 2025'!H80<Assumptions!$C$58,Assumptions!$B$58,'other funds ftr 2025'!H80<=Assumptions!$C$59,Assumptions!$B$59,'other funds ftr 2025'!H80<=Assumptions!$C$60,Assumptions!$B$60) -> 1
A81: 14064 | B81: NORTH BEACH | C81: =IFERROR(VLOOKUP(A81,'[2]Allocations 2024-25'!$B$9:$AC$326,20,FALSE),0) -> 0 | D81: =IFERROR(VLOOKUP(A81,'[3]State Reservations'!$C$4:$AF$328,30,FALSE),0) -> 334907.745 | E81: =IFERROR(VLOOKUP(A81,[4]Sheet1!$A$3:$D$381,3,FALSE),0) -> 533905.81 | F81: =IFERROR(VLOOKUP(A81,[4]Sheet1!$A$3:$D$381,4,FALSE),0) -> 14286.91 | G81: =IFERROR(VLOOKUP(A81,'[5]2024-25 Final'!$B$19:$S$164,18,FALSE),0) -> 24676 | H81: 0.9728170966 | I81: =_xlfn.IFS(H81=0%,0,'other funds ftr 2025'!H81<Assumptions!$C$57,Assumptions!$B$57,'other funds ftr 2025'!H81<Assumptions!$C$58,Assumptions!$B$58,'other funds ftr 2025'!H81<=Assumptions!$C$59,Assumptions!$B$59,'other funds ftr 2025'!H81<=Assumptions!$C$60,Assumptions!$B$60) -> 1
A82: 11051 | B82: NORTH FRANKLIN | C82: =IFERROR(VLOOKUP(A82,'[2]Allocations 2024-25'!$B$9:$AC$326,20,FALSE),0) -> 92318 | D82: =IFERROR(VLOOKUP(A82,'[3]State Reservations'!$C$4:$AF$328,30,FALSE),0) -> 778185.7481 | E82: =IFERROR(VLOOKUP(A82,[4]Sheet1!$A$3:$D$381,3,FALSE),0) -> 1664326.02 | F82: =IFERROR(VLOOKUP(A82,[4]Sheet1!$A$3:$D$381,4,FALSE),0) -> 1252556.31 | G82: =IFERROR(VLOOKUP(A82,'[5]2024-25 Final'!$B$19:$S$164,18,FALSE),0) -> 501769 | H82: 0.8830144887 | I82: =_xlfn.IFS(H82=0%,0,'other funds ftr 2025'!H82<Assumptions!$C$57,Assumptions!$B$57,'other funds ftr 2025'!H82<Assumptions!$C$58,Assumptions!$B$58,'other funds ftr 2025'!H82<=Assumptions!$C$59,Assumptions!$B$59,'other funds ftr 2025'!H82<=Assumptions!$C$60,Assumptions!$B$60) -> 1.1
A83: 18400 | B83: NORTH KITSAP | C83: =IFERROR(VLOOKUP(A83,'[2]Allocations 2024-25'!$B$9:$AC$326,20,FALSE),0) -> 42814 | D83: =IFERROR(VLOOKUP(A83,'[3]State Reservations'!$C$4:$AF$328,30,FALSE),0) -> 962167.5577 | E83: =IFERROR(VLOOKUP(A83,[4]Sheet1!$A$3:$D$381,3,FALSE),0) -> 1694647.68 | F83: =IFERROR(VLOOKUP(A83,[4]Sheet1!$A$3:$D$381,4,FALSE),0) -> 581358.42 | G83: =IFERROR(VLOOKUP(A83,'[5]2024-25 Final'!$B$19:$S$164,18,FALSE),0) -> 0 | H83: 0 | I83: =_xlfn.IFS(H83=0%,0,'other funds ftr 2025'!H83<Assumptions!$C$57,Assumptions!$B$57,'other funds ftr 2025'!H83<Assumptions!$C$58,Assumptions!$B$58,'other funds ftr 2025'!H83<=Assumptions!$C$59,Assumptions!$B$59,'other funds ftr 2025'!H83<=Assumptions!$C$60,Assumptions!$B$60) -> 0
A84: 34003 | B84: NORTH THURSTON PUBLIC SCHOOLS | C84: =IFERROR(VLOOKUP(A84,'[2]Allocations 2024-25'!$B$9:$AC$326,20,FALSE),0) -> 134244 | D84: =IFERROR(VLOOKUP(A84,'[3]State Reservations'!$C$4:$AF$328,30,FALSE),0) -> 3172332.633 | E84: =IFERROR(VLOOKUP(A84,[4]Sheet1!$A$3:$D$381,3,FALSE),0) -> 5860723.96 | F84: =IFERROR(VLOOKUP(A84,[4]Sheet1!$A$3:$D$381,4,FALSE),0) -> 1824778.81 | G84: =IFERROR(VLOOKUP(A84,'[5]2024-25 Final'!$B$19:$S$164,18,FALSE),0) -> 43811 | H84: 0.9960301346 | I84: =_xlfn.IFS(H84=0%,0,'other funds ftr 2025'!H84<Assumptions!$C$57,Assumptions!$B$57,'other funds ftr 2025'!H84<Assumptions!$C$58,Assumptions!$B$58,'other funds ftr 2025'!H84<=Assumptions!$C$59,Assumptions!$B$59,'other funds ftr 2025'!H84<=Assumptions!$C$60,Assumptions!$B$60) -> 0.95
A85: 15201 | B85: OAK HARBOR | C85: =IFERROR(VLOOKUP(A85,'[2]Allocations 2024-25'!$B$9:$AC$326,20,FALSE),0) -> 38045 | D85: =IFERROR(VLOOKUP(A85,'[3]State Reservations'!$C$4:$AF$328,30,FALSE),0) -> 822880.2746 | E85: =IFERROR(VLOOKUP(A85,[4]Sheet1!$A$3:$D$381,3,FALSE),0) -> 2085723.29 | F85: =IFERROR(VLOOKUP(A85,[4]Sheet1!$A$3:$D$381,4,FALSE),0) -> 474723.81 | G85: =IFERROR(VLOOKUP(A85,'[5]2024-25 Final'!$B$19:$S$164,18,FALSE),0) -> 0 | H85: 0 | I85: =_xlfn.IFS(H85=0%,0,'other funds ftr 2025'!H85<Assumptions!$C$57,Assumptions!$B$57,'other funds ftr 2025'!H85<Assumptions!$C$58,Assumptions!$B$58,'other funds ftr 2025'!H85<=Assumptions!$C$59,Assumptions!$B$59,'other funds ftr 2025'!H85<=Assumptions!$C$60,Assumptions!$B$60) -> 0
A86: 25101 | B86: OCEAN BEACH | C86: =IFERROR(VLOOKUP(A86,'[2]Allocations 2024-25'!$B$9:$AC$326,20,FALSE),0) -> 7744 | D86: =IFERROR(VLOOKUP(A86,'[3]State Reservations'!$C$4:$AF$328,30,FALSE),0) -> 391259.4795 | E86: =IFERROR(VLOOKUP(A86,[4]Sheet1!$A$3:$D$381,3,FALSE),0) -> 777190.95 | F86: =IFERROR(VLOOKUP(A86,[4]Sheet1!$A$3:$D$381,4,FALSE),0) -> 99048.76 | G86: =IFERROR(VLOOKUP(A86,'[5]2024-25 Final'!$B$19:$S$164,18,FALSE),0) -> 16625 | H86: 0.98713104 | I86: =_xlfn.IFS(H86=0%,0,'other funds ftr 2025'!H86<Assumptions!$C$57,Assumptions!$B$57,'other funds ftr 2025'!H86<Assumptions!$C$58,Assumptions!$B$58,'other funds ftr 2025'!H86<=Assumptions!$C$59,Assumptions!$B$59,'other funds ftr 2025'!H86<=Assumptions!$C$60,Assumptions!$B$60) -> 0.95
A87: 14172 | B87: OCOSTA | C87: =IFERROR(VLOOKUP(A87,'[2]Allocations 2024-25'!$B$9:$AC$326,20,FALSE),0) -> 9201 | D87: =IFERROR(VLOOKUP(A87,'[3]State Reservations'!$C$4:$AF$328,30,FALSE),0) -> 450675.3264 | E87: =IFERROR(VLOOKUP(A87,[4]Sheet1!$A$3:$D$381,3,FALSE),0) -> 471730.56 | F87: =IFERROR(VLOOKUP(A87,[4]Sheet1!$A$3:$D$381,4,FALSE),0) -> 126449.75 | G87: =IFERROR(VLOOKUP(A87,'[5]2024-25 Final'!$B$19:$S$164,18,FALSE),0) -> 22296 | H87: 0.9793622941 | I87: =_xlfn.IFS(H87=0%,0,'other funds ftr 2025'!H87<Assumptions!$C$57,Assumptions!$B$57,'other funds ftr 2025'!H87<Assumptions!$C$58,Assumptions!$B$58,'other funds ftr 2025'!H87<=Assumptions!$C$59,Assumptions!$B$59,'other funds ftr 2025'!H87<=Assumptions!$C$60,Assumptions!$B$60) -> 1
A88: 24105 | B88: OKANOGAN | C88: =IFERROR(VLOOKUP(A88,'[2]Allocations 2024-25'!$B$9:$AC$326,20,FALSE),0) -> 12111 | D88: =IFERROR(VLOOKUP(A88,'[3]State Reservations'!$C$4:$AF$328,30,FALSE),0) -> 516519.6536 | E88: =IFERROR(VLOOKUP(A88,[4]Sheet1!$A$3:$D$381,3,FALSE),0) -> 822461.48 | F88: =IFERROR(VLOOKUP(A88,[4]Sheet1!$A$3:$D$381,4,FALSE),0) -> 156360.78 | G88: =IFERROR(VLOOKUP(A88,'[5]2024-25 Final'!$B$19:$S$164,18,FALSE),0) -> 0 | H88: 0 | I88: =_xlfn.IFS(H88=0%,0,'other funds ftr 2025'!H88<Assumptions!$C$57,Assumptions!$B$57,'other funds ftr 2025'!H88<Assumptions!$C$58,Assumptions!$B$58,'other funds ftr 2025'!H88<=Assumptions!$C$59,Assumptions!$B$59,'other funds ftr 2025'!H88<=Assumptions!$C$60,Assumptions!$B$60) -> 0
A89: 34111 | B89: OLYMPIA | C89: =IFERROR(VLOOKUP(A89,'[2]Allocations 2024-25'!$B$9:$AC$326,20,FALSE),0) -> 46843 | D89: =IFERROR(VLOOKUP(A89,'[3]State Reservations'!$C$4:$AF$328,30,FALSE),0) -> 2021778.563 | E89: =IFERROR(VLOOKUP(A89,[4]Sheet1!$A$3:$D$381,3,FALSE),0) -> 2306799.29 | F89: =IFERROR(VLOOKUP(A89,[4]Sheet1!$A$3:$D$381,4,FALSE),0) -> 729617.39 | G89: =IFERROR(VLOOKUP(A89,'[5]2024-25 Final'!$B$19:$S$164,18,FALSE),0) -> 32452 | H89: 0.993683297 | I89: =_xlfn.IFS(H89=0%,0,'other funds ftr 2025'!H89<Assumptions!$C$57,Assumptions!$B$57,'other funds ftr 2025'!H89<Assumptions!$C$58,Assumptions!$B$58,'other funds ftr 2025'!H89<=Assumptions!$C$59,Assumptions!$B$59,'other funds ftr 2025'!H89<=Assumptions!$C$60,Assumptions!$B$60) -> 0.95
A90: 24019 | B90: OMAK | C90: =IFERROR(VLOOKUP(A90,'[2]Allocations 2024-25'!$B$9:$AC$326,20,FALSE),0) -> 44692 | D90: =IFERROR(VLOOKUP(A90,'[3]State Reservations'!$C$4:$AF$328,30,FALSE),0) -> 1001579.999 | E90: =IFERROR(VLOOKUP(A90,[4]Sheet1!$A$3:$D$381,3,FALSE),0) -> 4183941.21 | F90: =IFERROR(VLOOKUP(A90,[4]Sheet1!$A$3:$D$381,4,FALSE),0) -> 584590.25 | G90: =IFERROR(VLOOKUP(A90,'[5]2024-25 Final'!$B$19:$S$164,18,FALSE),0) -> 0 | H90: 0 | I90: =_xlfn.IFS(H90=0%,0,'other funds ftr 2025'!H90<Assumptions!$C$57,Assumptions!$B$57,'other funds ftr 2025'!H90<Assumptions!$C$58,Assumptions!$B$58,'other funds ftr 2025'!H90<=Assumptions!$C$59,Assumptions!$B$59,'other funds ftr 2025'!H90<=Assumptions!$C$60,Assumptions!$B$60) -> 0
A91: 09013 | B91: ORONDO | C91: =IFERROR(VLOOKUP(A91,'[2]Allocations 2024-25'!$B$9:$AC$326,20,FALSE),0) -> 7217 | D91: =IFERROR(VLOOKUP(A91,'[3]State Reservations'!$C$4:$AF$328,30,FALSE),0) -> 124083.9344 | E91: =IFERROR(VLOOKUP(A91,[4]Sheet1!$A$3:$D$381,3,FALSE),0) -> 102145.09 | F91: =IFERROR(VLOOKUP(A91,[4]Sheet1!$A$3:$D$381,4,FALSE),0) -> 91905.3 | G91: =IFERROR(VLOOKUP(A91,'[5]2024-25 Final'!$B$19:$S$164,18,FALSE),0) -> 32380 | H91: 0.9094851421 | I91: =_xlfn.IFS(H91=0%,0,'other funds ftr 2025'!H91<Assumptions!$C$57,Assumptions!$B$57,'other funds ftr 2025'!H91<Assumptions!$C$58,Assumptions!$B$58,'other funds ftr 2025'!H91<=Assumptions!$C$59,Assumptions!$B$59,'other funds ftr 2025'!H91<=Assumptions!$C$60,Assumptions!$B$60) -> 1.1
A92: 24410 | B92: OROVILLE | C92: =IFERROR(VLOOKUP(A92,'[2]Allocations 2024-25'!$B$9:$AC$326,20,FALSE),0) -> 0 | D92: =IFERROR(VLOOKUP(A92,'[3]State Reservations'!$C$4:$AF$328,30,FALSE),0) -> 733255.3304 | E92: =IFERROR(VLOOKUP(A92,[4]Sheet1!$A$3:$D$381,3,FALSE),0) -> 393524.01 | F92: =IFERROR(VLOOKUP(A92,[4]Sheet1!$A$3:$D$381,4,FALSE),0) -> 102034.07 | G92: =IFERROR(VLOOKUP(A92,'[5]2024-25 Final'!$B$19:$S$164,18,FALSE),0) -> 0 | H92: 0 | I92: =_xlfn.IFS(H92=0%,0,'other funds ftr 2025'!H92<Assumptions!$C$57,Assumptions!$B$57,'other funds ftr 2025'!H92<Assumptions!$C$58,Assumptions!$B$58,'other funds ftr 2025'!H92<=Assumptions!$C$59,Assumptions!$B$59,'other funds ftr 2025'!H92<=Assumptions!$C$60,Assumptions!$B$60) -> 0
A93: 01147 | B93: OTHELLO | C93: =IFERROR(VLOOKUP(A93,'[2]Allocations 2024-25'!$B$9:$AC$326,20,FALSE),0) -> 248802 | D93: =IFERROR(VLOOKUP(A93,'[3]State Reservations'!$C$4:$AF$328,30,FALSE),0) -> 1674378.004 | E93: =IFERROR(VLOOKUP(A93,[4]Sheet1!$A$3:$D$381,3,FALSE),0) -> 3935240.12 | F93: =IFERROR(VLOOKUP(A93,[4]Sheet1!$A$3:$D$381,4,FALSE),0) -> 3262425.15 | G93: =IFERROR(VLOOKUP(A93,'[5]2024-25 Final'!$B$19:$S$164,18,FALSE),0) -> 621957 | H93: 0.9361624117 | I93: =_xlfn.IFS(H93=0%,0,'other funds ftr 2025'!H93<Assumptions!$C$57,Assumptions!$B$57,'other funds ftr 2025'!H93<Assumptions!$C$58,Assumptions!$B$58,'other funds ftr 2025'!H93<=Assumptions!$C$59,Assumptions!$B$59,'other funds ftr 2025'!H93<=Assumptions!$C$60,Assumptions!$B$60) -> 1.05
A94: 11001 | B94: PASCO | C94: =IFERROR(VLOOKUP(A94,'[2]Allocations 2024-25'!$B$9:$AC$326,20,FALSE),0) -> 863222 | D94: =IFERROR(VLOOKUP(A94,'[3]State Reservations'!$C$4:$AF$328,30,FALSE),0) -> 5756812.364 | E94: =IFERROR(VLOOKUP(A94,[4]Sheet1!$A$3:$D$381,3,FALSE),0) -> 14911992.85 | F94: =IFERROR(VLOOKUP(A94,[4]Sheet1!$A$3:$D$381,4,FALSE),0) -> 11629326.5 | G94: =IFERROR(VLOOKUP(A94,'[5]2024-25 Final'!$B$19:$S$164,18,FALSE),0) -> 1346146 | H94: 0.9609897555 | I94: =_xlfn.IFS(H94=0%,0,'other funds ftr 2025'!H94<Assumptions!$C$57,Assumptions!$B$57,'other funds ftr 2025'!H94<Assumptions!$C$58,Assumptions!$B$58,'other funds ftr 2025'!H94<=Assumptions!$C$59,Assumptions!$B$59,'other funds ftr 2025'!H94<=Assumptions!$C$60,Assumptions!$B$60) -> 1
A95: 24122 | B95: PATEROS | C95: =IFERROR(VLOOKUP(A95,'[2]Allocations 2024-25'!$B$9:$AC$326,20,FALSE),0) -> 0 | D95: =IFERROR(VLOOKUP(A95,'[3]State Reservations'!$C$4:$AF$328,30,FALSE),0) -> 120819.7456 | E95: =IFERROR(VLOOKUP(A95,[4]Sheet1!$A$3:$D$381,3,FALSE),0) -> 193051.2 | F95: =IFERROR(VLOOKUP(A95,[4]Sheet1!$A$3:$D$381,4,FALSE),0) -> 66566.24 | G95: =IFERROR(VLOOKUP(A95,'[5]2024-25 Final'!$B$19:$S$164,18,FALSE),0) -> 19859 | H95: 0.950389235 | I95: =_xlfn.IFS(H95=0%,0,'other funds ftr 2025'!H95<Assumptions!$C$57,Assumptions!$B$57,'other funds ftr 2025'!H95<Assumptions!$C$58,Assumptions!$B$58,'other funds ftr 2025'!H95<=Assumptions!$C$59,Assumptions!$B$59,'other funds ftr 2025'!H95<=Assumptions!$C$60,Assumptions!$B$60) -> 1
A96: 03050 | B96: PATERSON | C96: =IFERROR(VLOOKUP(A96,'[2]Allocations 2024-25'!$B$9:$AC$326,20,FALSE),0) -> 0 | D96: =IFERROR(VLOOKUP(A96,'[3]State Reservations'!$C$4:$AF$328,30,FALSE),0) -> 0 | E96: =IFERROR(VLOOKUP(A96,[4]Sheet1!$A$3:$D$381,3,FALSE),0) -> 142223.25 | F96: =IFERROR(VLOOKUP(A96,[4]Sheet1!$A$3:$D$381,4,FALSE),0) -> 37316.54 | G96: =IFERROR(VLOOKUP(A96,'[5]2024-25 Final'!$B$19:$S$164,18,FALSE),0) -> 17360 | H96: 0.9118333239 | I96: =_xlfn.IFS(H96=0%,0,'other funds ftr 2025'!H96<Assumptions!$C$57,Assumptions!$B$57,'other funds ftr 2025'!H96<Assumptions!$C$58,Assumptions!$B$58,'other funds ftr 2025'!H96<=Assumptions!$C$59,Assumptions!$B$59,'other funds ftr 2025'!H96<=Assumptions!$C$60,Assumptions!$B$60) -> 1.05
A97: 04901 | B97: PINNACLES PREP CHARTER SCHOOL | C97: =IFERROR(VLOOKUP(A97,'[2]Allocations 2024-25'!$B$9:$AC$326,20,FALSE),0) -> 0 | D97: =IFERROR(VLOOKUP(A97,'[3]State Reservations'!$C$4:$AF$328,30,FALSE),0) -> 52359.01341 | E97: =IFERROR(VLOOKUP(A97,[4]Sheet1!$A$3:$D$381,3,FALSE),0) -> 82214.34 | F97: =IFERROR(VLOOKUP(A97,[4]Sheet1!$A$3:$D$381,4,FALSE),0) -> 60772.66 | G97: =IFERROR(VLOOKUP(A97,'[5]2024-25 Final'!$B$19:$S$164,18,FALSE),0) -> 13677 | H97: 0.9345670136 | I97: =_xlfn.IFS(H97=0%,0,'other funds ftr 2025'!H97<Assumptions!$C$57,Assumptions!$B$57,'other funds ftr 2025'!H97<Assumptions!$C$58,Assumptions!$B$58,'other funds ftr 2025'!H97<=Assumptions!$C$59,Assumptions!$B$59,'other funds ftr 2025'!H97<=Assumptions!$C$60,Assumptions!$B$60) -> 1.05
A98: 36402 | B98: PRESCOTT | C98: =IFERROR(VLOOKUP(A98,'[2]Allocations 2024-25'!$B$9:$AC$326,20,FALSE),0) -> 13674 | D98: =IFERROR(VLOOKUP(A98,'[3]State Reservations'!$C$4:$AF$328,30,FALSE),0) -> 80988.0636 | E98: =IFERROR(VLOOKUP(A98,[4]Sheet1!$A$3:$D$381,3,FALSE),0) -> 237435.89 | F98: =IFERROR(VLOOKUP(A98,[4]Sheet1!$A$3:$D$381,4,FALSE),0) -> 169950.18 | G98: =IFERROR(VLOOKUP(A98,'[5]2024-25 Final'!$B$19:$S$164,18,FALSE),0) -> 33568 | H98: =IF(G98=0,0,(SUM(C98:F98)/SUM(C98:G98))) -> 0.9373282508 | I98: =_xlfn.IFS(H98=0%,0,'other funds ftr 2025'!H98<Assumptions!$C$57,Assumptions!$B$57,'other funds ftr 2025'!H98<Assumptions!$C$58,Assumptions!$B$58,'other funds ftr 2025'!H98<=Assumptions!$C$59,Assumptions!$B$59,'other funds ftr 2025'!H98<=Assumptions!$C$60,Assumptions!$B$60) -> 1.05
A99: 03116 | B99: PROSSER | C99: =IFERROR(VLOOKUP(A99,'[2]Allocations 2024-25'!$B$9:$AC$326,20,FALSE),0) -> 84172 | D99: =IFERROR(VLOOKUP(A99,'[3]State Reservations'!$C$4:$AF$328,30,FALSE),0) -> 710173.8622 | E99: =IFERROR(VLOOKUP(A99,[4]Sheet1!$A$3:$D$381,3,FALSE),0) -> 2066082.28 | F99: =IFERROR(VLOOKUP(A99,[4]Sheet1!$A$3:$D$381,4,FALSE),0) -> 1182294.6 | G99: =IFERROR(VLOOKUP(A99,'[5]2024-25 Final'!$B$19:$S$164,18,FALSE),0) -> 614750 | H99: 0.8680078158 | I99: =_xlfn.IFS(H99=0%,0,'other funds ftr 2025'!H99<Assumptions!$C$57,Assumptions!$B$57,'other funds ftr 2025'!H99<Assumptions!$C$58,Assumptions!$B$58,'other funds ftr 2025'!H99<=Assumptions!$C$59,Assumptions!$B$59,'other funds ftr 2025'!H99<=Assumptions!$C$60,Assumptions!$B$60) -> 1.1
A100: 27003 | B100: PUYALLUP | C100: =IFERROR(VLOOKUP(A100,'[2]Allocations 2024-25'!$B$9:$AC$326,20,FALSE),0) -> 247368 | D100: =IFERROR(VLOOKUP(A100,'[3]State Reservations'!$C$4:$AF$328,30,FALSE),0) -> 3511684.522 | E100: =IFERROR(VLOOKUP(A100,[4]Sheet1!$A$3:$D$381,3,FALSE),0) -> 8672475.9 | F100: =IFERROR(VLOOKUP(A100,[4]Sheet1!$A$3:$D$381,4,FALSE),0) -> 4166104.6 | G100: =IFERROR(VLOOKUP(A100,'[5]2024-25 Final'!$B$19:$S$164,18,FALSE),0) -> 11467 | H100: 0.9993095953 | I100: =_xlfn.IFS(H100=0%,0,'other funds ftr 2025'!H100<Assumptions!$C$57,Assumptions!$B$57,'other funds ftr 2025'!H100<Assumptions!$C$58,Assumptions!$B$58,'other funds ftr 2025'!H100<=Assumptions!$C$59,Assumptions!$B$59,'other funds ftr 2025'!H100<=Assumptions!$C$60,Assumptions!$B$60) -> 0.95
A101: 05402 | B101: QUILLAYUTE VALLEY | C101: =IFERROR(VLOOKUP(A101,'[2]Allocations 2024-25'!$B$9:$AC$326,20,FALSE),0) -> 45599 | D101: =IFERROR(VLOOKUP(A101,'[3]State Reservations'!$C$4:$AF$328,30,FALSE),0) -> 681866.0065 | E101: =IFERROR(VLOOKUP(A101,[4]Sheet1!$A$3:$D$381,3,FALSE),0) -> 2613744.68 | F101: =IFERROR(VLOOKUP(A101,[4]Sheet1!$A$3:$D$381,4,FALSE),0) -> 705175.99 | G101: =IFERROR(VLOOKUP(A101,'[5]2024-25 Final'!$B$19:$S$164,18,FALSE),0) -> 67231 | H101: 0.9836564743 | I101: =_xlfn.IFS(H101=0%,0,'other funds ftr 2025'!H101<Assumptions!$C$57,Assumptions!$B$57,'other funds ftr 2025'!H101<Assumptions!$C$58,Assumptions!$B$58,'other funds ftr 2025'!H101<=Assumptions!$C$59,Assumptions!$B$59,'other funds ftr 2025'!H101<=Assumptions!$C$60,Assumptions!$B$60) -> 0.95
A102: 13144 | B102: QUINCY | C102: =IFERROR(VLOOKUP(A102,'[2]Allocations 2024-25'!$B$9:$AC$326,20,FALSE),0) -> 167141 | D102: =IFERROR(VLOOKUP(A102,'[3]State Reservations'!$C$4:$AF$328,30,FALSE),0) -> 948905.869 | E102: =IFERROR(VLOOKUP(A102,[4]Sheet1!$A$3:$D$381,3,FALSE),0) -> 2822584.27 | F102: =IFERROR(VLOOKUP(A102,[4]Sheet1!$A$3:$D$381,4,FALSE),0) -> 2242297.58 | G102: =IFERROR(VLOOKUP(A102,'[5]2024-25 Final'!$B$19:$S$164,18,FALSE),0) -> 460789 | H102: 0.9306220138 | I102: =_xlfn.IFS(H102=0%,0,'other funds ftr 2025'!H102<Assumptions!$C$57,Assumptions!$B$57,'other funds ftr 2025'!H102<Assumptions!$C$58,Assumptions!$B$58,'other funds ftr 2025'!H102<=Assumptions!$C$59,Assumptions!$B$59,'other funds ftr 2025'!H102<=Assumptions!$C$60,Assumptions!$B$60) -> 1.05
A103: 22009 | B103: REARDAN-EDWALL | C103: =IFERROR(VLOOKUP(A103,'[2]Allocations 2024-25'!$B$9:$AC$326,20,FALSE),0) -> 0 | D103: =IFERROR(VLOOKUP(A103,'[3]State Reservations'!$C$4:$AF$328,30,FALSE),0) -> 233836.5769 | E103: =IFERROR(VLOOKUP(A103,[4]Sheet1!$A$3:$D$381,3,FALSE),0) -> 233103.13 | F103: =IFERROR(VLOOKUP(A103,[4]Sheet1!$A$3:$D$381,4,FALSE),0) -> 0 | G103: =IFERROR(VLOOKUP(A103,'[5]2024-25 Final'!$B$19:$S$164,18,FALSE),0) -> 0 | H103: 0 | I103: =_xlfn.IFS(H103=0%,0,'other funds ftr 2025'!H103<Assumptions!$C$57,Assumptions!$B$57,'other funds ftr 2025'!H103<Assumptions!$C$58,Assumptions!$B$58,'other funds ftr 2025'!H103<=Assumptions!$C$59,Assumptions!$B$59,'other funds ftr 2025'!H103<=Assumptions!$C$60,Assumptions!$B$60) -> 0
A104: 17403 | B104: RENTON | C104: =IFERROR(VLOOKUP(A104,'[2]Allocations 2024-25'!$B$9:$AC$326,20,FALSE),0) -> 454981 | D104: =IFERROR(VLOOKUP(A104,'[3]State Reservations'!$C$4:$AF$328,30,FALSE),0) -> 4736233.113 | E104: =IFERROR(VLOOKUP(A104,[4]Sheet1!$A$3:$D$381,3,FALSE),0) -> 8761115.44 | F104: =IFERROR(VLOOKUP(A104,[4]Sheet1!$A$3:$D$381,4,FALSE),0) -> 7133654.33 | G104: =IFERROR(VLOOKUP(A104,'[5]2024-25 Final'!$B$19:$S$164,18,FALSE),0) -> 0 | H104: 0 | I104: =_xlfn.IFS(H104=0%,0,'other funds ftr 2025'!H104<Assumptions!$C$57,Assumptions!$B$57,'other funds ftr 2025'!H104<Assumptions!$C$58,Assumptions!$B$58,'other funds ftr 2025'!H104<=Assumptions!$C$59,Assumptions!$B$59,'other funds ftr 2025'!H104<=Assumptions!$C$60,Assumptions!$B$60) -> 0
A105: 03400 | B105: RICHLAND | C105: =IFERROR(VLOOKUP(A105,'[2]Allocations 2024-25'!$B$9:$AC$326,20,FALSE),0) -> 124117 | D105: =IFERROR(VLOOKUP(A105,'[3]State Reservations'!$C$4:$AF$328,30,FALSE),0) -> 2653165.922 | E105: =IFERROR(VLOOKUP(A105,[4]Sheet1!$A$3:$D$381,3,FALSE),0) -> 4889424.8 | F105: =IFERROR(VLOOKUP(A105,[4]Sheet1!$A$3:$D$381,4,FALSE),0) -> 1550129.06 | G105: =IFERROR(VLOOKUP(A105,'[5]2024-25 Final'!$B$19:$S$164,18,FALSE),0) -> 209751 | H105: 0.9777490005 | I105: =_xlfn.IFS(H105=0%,0,'other funds ftr 2025'!H105<Assumptions!$C$57,Assumptions!$B$57,'other funds ftr 2025'!H105<Assumptions!$C$58,Assumptions!$B$58,'other funds ftr 2025'!H105<=Assumptions!$C$59,Assumptions!$B$59,'other funds ftr 2025'!H105<=Assumptions!$C$60,Assumptions!$B$60) -> 1
A106: 06122 | B106: RIDGEFIELD | C106: =IFERROR(VLOOKUP(A106,'[2]Allocations 2024-25'!$B$9:$AC$326,20,FALSE),0) -> 22599 | D106: =IFERROR(VLOOKUP(A106,'[3]State Reservations'!$C$4:$AF$328,30,FALSE),0) -> 180579.2849 | E106: =IFERROR(VLOOKUP(A106,[4]Sheet1!$A$3:$D$381,3,FALSE),0) -> 747078.05 | F106: =IFERROR(VLOOKUP(A106,[4]Sheet1!$A$3:$D$381,4,FALSE),0) -> 378217.9 | G106: =IFERROR(VLOOKUP(A106,'[5]2024-25 Final'!$B$19:$S$164,18,FALSE),0) -> 18389 | H106: 0.9863467949 | I106: =_xlfn.IFS(H106=0%,0,'other funds ftr 2025'!H106<Assumptions!$C$57,Assumptions!$B$57,'other funds ftr 2025'!H106<Assumptions!$C$58,Assumptions!$B$58,'other funds ftr 2025'!H106<=Assumptions!$C$59,Assumptions!$B$59,'other funds ftr 2025'!H106<=Assumptions!$C$60,Assumptions!$B$60) -> 0.95
A107: 17407 | B107: RIVERVIEW | C107: =IFERROR(VLOOKUP(A107,'[2]Allocations 2024-25'!$B$9:$AC$326,20,FALSE),0) -> 26947 | D107: =IFERROR(VLOOKUP(A107,'[3]State Reservations'!$C$4:$AF$328,30,FALSE),0) -> 142419.1341 | E107: =IFERROR(VLOOKUP(A107,[4]Sheet1!$A$3:$D$381,3,FALSE),0) -> 423123.11 | F107: =IFERROR(VLOOKUP(A107,[4]Sheet1!$A$3:$D$381,4,FALSE),0) -> 428928.88 | G107: =IFERROR(VLOOKUP(A107,'[5]2024-25 Final'!$B$19:$S$164,18,FALSE),0) -> 0 | H107: 0 | I107: =_xlfn.IFS(H107=0%,0,'other funds ftr 2025'!H107<Assumptions!$C$57,Assumptions!$B$57,'other funds ftr 2025'!H107<Assumptions!$C$58,Assumptions!$B$58,'other funds ftr 2025'!H107<=Assumptions!$C$59,Assumptions!$B$59,'other funds ftr 2025'!H107<=Assumptions!$C$60,Assumptions!$B$60) -> 0
A108: 34401 | B108: ROCHESTER | C108: =IFERROR(VLOOKUP(A108,'[2]Allocations 2024-25'!$B$9:$AC$326,20,FALSE),0) -> 35154 | D108: =IFERROR(VLOOKUP(A108,'[3]State Reservations'!$C$4:$AF$328,30,FALSE),0) -> 592944.256 | E108: =IFERROR(VLOOKUP(A108,[4]Sheet1!$A$3:$D$381,3,FALSE),0) -> 1430248.03 | F108: =IFERROR(VLOOKUP(A108,[4]Sheet1!$A$3:$D$381,4,FALSE),0) -> 388838.33 | G108: =IFERROR(VLOOKUP(A108,'[5]2024-25 Final'!$B$19:$S$164,18,FALSE),0) -> 28125 | H108: 0.988637785 | I108: =_xlfn.IFS(H108=0%,0,'other funds ftr 2025'!H108<Assumptions!$C$57,Assumptions!$B$57,'other funds ftr 2025'!H108<Assumptions!$C$58,Assumptions!$B$58,'other funds ftr 2025'!H108<=Assumptions!$C$59,Assumptions!$B$59,'other funds ftr 2025'!H108<=Assumptions!$C$60,Assumptions!$B$60) -> 0.95
A109: 20403 | B109: ROOSEVELT | C109: =IFERROR(VLOOKUP(A109,'[2]Allocations 2024-25'!$B$9:$AC$326,20,FALSE),0) -> 0 | D109: =IFERROR(VLOOKUP(A109,'[3]State Reservations'!$C$4:$AF$328,30,FALSE),0) -> 1784.706192 | E109: =IFERROR(VLOOKUP(A109,[4]Sheet1!$A$3:$D$381,3,FALSE),0) -> 0 | F109: =IFERROR(VLOOKUP(A109,[4]Sheet1!$A$3:$D$381,4,FALSE),0) -> 21750.21 | G109: =IFERROR(VLOOKUP(A109,'[5]2024-25 Final'!$B$19:$S$164,18,FALSE),0) -> 13779 | H109: 0.6307275835 | I109: =_xlfn.IFS(H109=0%,0,'other funds ftr 2025'!H109<Assumptions!$C$57,Assumptions!$B$57,'other funds ftr 2025'!H109<Assumptions!$C$58,Assumptions!$B$58,'other funds ftr 2025'!H109<=Assumptions!$C$59,Assumptions!$B$59,'other funds ftr 2025'!H109<=Assumptions!$C$60,Assumptions!$B$60) -> 1.1
A110: 13160 | B110: ROYAL | C110: =IFERROR(VLOOKUP(A110,'[2]Allocations 2024-25'!$B$9:$AC$326,20,FALSE),0) -> 96642 | D110: =IFERROR(VLOOKUP(A110,'[3]State Reservations'!$C$4:$AF$328,30,FALSE),0) -> 584743.2646 | E110: =IFERROR(VLOOKUP(A110,[4]Sheet1!$A$3:$D$381,3,FALSE),0) -> 1449745.48 | F110: =IFERROR(VLOOKUP(A110,[4]Sheet1!$A$3:$D$381,4,FALSE),0) -> 1300428.1 | G110: =IFERROR(VLOOKUP(A110,'[5]2024-25 Final'!$B$19:$S$164,18,FALSE),0) -> 183213 | H110: 0.9493154733 | I110: =_xlfn.IFS(H110=0%,0,'other funds ftr 2025'!H110<Assumptions!$C$57,Assumptions!$B$57,'other funds ftr 2025'!H110<Assumptions!$C$58,Assumptions!$B$58,'other funds ftr 2025'!H110<=Assumptions!$C$59,Assumptions!$B$59,'other funds ftr 2025'!H110<=Assumptions!$C$60,Assumptions!$B$60) -> 1.05
A111: 17001 | B111: SEATTLE PUBLIC SCHOOLS | C111: =IFERROR(VLOOKUP(A111,'[2]Allocations 2024-25'!$B$9:$AC$326,20,FALSE),0) -> 893339 | D111: =IFERROR(VLOOKUP(A111,'[3]State Reservations'!$C$4:$AF$328,30,FALSE),0) -> 16341721.79 | E111: =IFERROR(VLOOKUP(A111,[4]Sheet1!$A$3:$D$381,3,FALSE),0) -> 21255581.74 | F111: =IFERROR(VLOOKUP(A111,[4]Sheet1!$A$3:$D$381,4,FALSE),0) -> 14484731.2 | G111: =IFERROR(VLOOKUP(A111,'[5]2024-25 Final'!$B$19:$S$164,18,FALSE),0) -> 0 | H111: 0 | I111: =_xlfn.IFS(H111=0%,0,'other funds ftr 2025'!H111<Assumptions!$C$57,Assumptions!$B$57,'other funds ftr 2025'!H111<Assumptions!$C$58,Assumptions!$B$58,'other funds ftr 2025'!H111<=Assumptions!$C$59,Assumptions!$B$59,'other funds ftr 2025'!H111<=Assumptions!$C$60,Assumptions!$B$60) -> 0
A112: 29101 | B112: SEDRO-WOOLLEY | C112: =IFERROR(VLOOKUP(A112,'[2]Allocations 2024-25'!$B$9:$AC$326,20,FALSE),0) -> 55959 | D112: =IFERROR(VLOOKUP(A112,'[3]State Reservations'!$C$4:$AF$328,30,FALSE),0) -> 1011398.658 | E112: =IFERROR(VLOOKUP(A112,[4]Sheet1!$A$3:$D$381,3,FALSE),0) -> 2464336.89 | F112: =IFERROR(VLOOKUP(A112,[4]Sheet1!$A$3:$D$381,4,FALSE),0) -> 786654.91 | G112: =IFERROR(VLOOKUP(A112,'[5]2024-25 Final'!$B$19:$S$164,18,FALSE),0) -> 116259 | H112: 0.9737837058 | I112: =_xlfn.IFS(H112=0%,0,'other funds ftr 2025'!H112<Assumptions!$C$57,Assumptions!$B$57,'other funds ftr 2025'!H112<Assumptions!$C$58,Assumptions!$B$58,'other funds ftr 2025'!H112<=Assumptions!$C$59,Assumptions!$B$59,'other funds ftr 2025'!H112<=Assumptions!$C$60,Assumptions!$B$60) -> 1
A113: 39119 | B113: SELAH | C113: =IFERROR(VLOOKUP(A113,'[2]Allocations 2024-25'!$B$9:$AC$326,20,FALSE),0) -> 57438 | D113: =IFERROR(VLOOKUP(A113,'[3]State Reservations'!$C$4:$AF$328,30,FALSE),0) -> 769653.1424 | E113: =IFERROR(VLOOKUP(A113,[4]Sheet1!$A$3:$D$381,3,FALSE),0) -> 2736903.71 | F113: =IFERROR(VLOOKUP(A113,[4]Sheet1!$A$3:$D$381,4,FALSE),0) -> 733003.48 | G113: =IFERROR(VLOOKUP(A113,'[5]2024-25 Final'!$B$19:$S$164,18,FALSE),0) -> 171940 | H113: 0.9615255376 | I113: =_xlfn.IFS(H113=0%,0,'other funds ftr 2025'!H113<Assumptions!$C$57,Assumptions!$B$57,'other funds ftr 2025'!H113<Assumptions!$C$58,Assumptions!$B$58,'other funds ftr 2025'!H113<=Assumptions!$C$59,Assumptions!$B$59,'other funds ftr 2025'!H113<=Assumptions!$C$60,Assumptions!$B$60) -> 1
A114: 23309 | B114: SHELTON | C114: =IFERROR(VLOOKUP(A114,'[2]Allocations 2024-25'!$B$9:$AC$326,20,FALSE),0) -> 139014 | D114: =IFERROR(VLOOKUP(A114,'[3]State Reservations'!$C$4:$AF$328,30,FALSE),0) -> 1617313.191 | E114: =IFERROR(VLOOKUP(A114,[4]Sheet1!$A$3:$D$381,3,FALSE),0) -> 3417582.19 | F114: =IFERROR(VLOOKUP(A114,[4]Sheet1!$A$3:$D$381,4,FALSE),0) -> 1842477.51 | G114: =IFERROR(VLOOKUP(A114,'[5]2024-25 Final'!$B$19:$S$164,18,FALSE),0) -> 0 | H114: 0 | I114: =_xlfn.IFS(H114=0%,0,'other funds ftr 2025'!H114<Assumptions!$C$57,Assumptions!$B$57,'other funds ftr 2025'!H114<Assumptions!$C$58,Assumptions!$B$58,'other funds ftr 2025'!H114<=Assumptions!$C$59,Assumptions!$B$59,'other funds ftr 2025'!H114<=Assumptions!$C$60,Assumptions!$B$60) -> 0
A115: 31201 | B115: SNOHOMISH | C115: =IFERROR(VLOOKUP(A115,'[2]Allocations 2024-25'!$B$9:$AC$326,20,FALSE),0) -> 72715 | D115: =IFERROR(VLOOKUP(A115,'[3]State Reservations'!$C$4:$AF$328,30,FALSE),0) -> 762585.9567 | E115: =IFERROR(VLOOKUP(A115,[4]Sheet1!$A$3:$D$381,3,FALSE),0) -> 1688973.49 | F115: =IFERROR(VLOOKUP(A115,[4]Sheet1!$A$3:$D$381,4,FALSE),0) -> 1253347.83 | G115: =IFERROR(VLOOKUP(A115,'[5]2024-25 Final'!$B$19:$S$164,18,FALSE),0) -> 46083 | H115: 0.9879480774 | I115: =_xlfn.IFS(H115=0%,0,'other funds ftr 2025'!H115<Assumptions!$C$57,Assumptions!$B$57,'other funds ftr 2025'!H115<Assumptions!$C$58,Assumptions!$B$58,'other funds ftr 2025'!H115<=Assumptions!$C$59,Assumptions!$B$59,'other funds ftr 2025'!H115<=Assumptions!$C$60,Assumptions!$B$60) -> 0.95
A116: 13156 | B116: SOAP LAKE | C116: =IFERROR(VLOOKUP(A116,'[2]Allocations 2024-25'!$B$9:$AC$326,20,FALSE),0) -> 17303 | D116: =IFERROR(VLOOKUP(A116,'[3]State Reservations'!$C$4:$AF$328,30,FALSE),0) -> 338353.401 | E116: =IFERROR(VLOOKUP(A116,[4]Sheet1!$A$3:$D$381,3,FALSE),0) -> 449633.41 | F116: =IFERROR(VLOOKUP(A116,[4]Sheet1!$A$3:$D$381,4,FALSE),0) -> 250767.15 | G116: =IFERROR(VLOOKUP(A116,'[5]2024-25 Final'!$B$19:$S$164,18,FALSE),0) -> 0 | H116: 0 | I116: =_xlfn.IFS(H116=0%,0,'other funds ftr 2025'!H116<Assumptions!$C$57,Assumptions!$B$57,'other funds ftr 2025'!H116<Assumptions!$C$58,Assumptions!$B$58,'other funds ftr 2025'!H116<=Assumptions!$C$59,Assumptions!$B$59,'other funds ftr 2025'!H116<=Assumptions!$C$60,Assumptions!$B$60) -> 0
A117: 32081 | B117: SPOKANE | C117: =IFERROR(VLOOKUP(A117,'[2]Allocations 2024-25'!$B$9:$AC$326,20,FALSE),0) -> 324048 | D117: =IFERROR(VLOOKUP(A117,'[3]State Reservations'!$C$4:$AF$328,30,FALSE),0) -> 14790695.76 | E117: =IFERROR(VLOOKUP(A117,[4]Sheet1!$A$3:$D$381,3,FALSE),0) -> 17526604.08 | F117: =IFERROR(VLOOKUP(A117,[4]Sheet1!$A$3:$D$381,4,FALSE),0) -> 4492591.54 | G117: =IFERROR(VLOOKUP(A117,'[5]2024-25 Final'!$B$19:$S$164,18,FALSE),0) -> 0 | H117: 0 | I117: =_xlfn.IFS(H117=0%,0,'other funds ftr 2025'!H117<Assumptions!$C$57,Assumptions!$B$57,'other funds ftr 2025'!H117<Assumptions!$C$58,Assumptions!$B$58,'other funds ftr 2025'!H117<=Assumptions!$C$59,Assumptions!$B$59,'other funds ftr 2025'!H117<=Assumptions!$C$60,Assumptions!$B$60) -> 0
A118: 31401 | B118: STANWOOD-CAMANO | C118: =IFERROR(VLOOKUP(A118,'[2]Allocations 2024-25'!$B$9:$AC$326,20,FALSE),0) -> 21777 | D118: =IFERROR(VLOOKUP(A118,'[3]State Reservations'!$C$4:$AF$328,30,FALSE),0) -> 660058.7587 | E118: =IFERROR(VLOOKUP(A118,[4]Sheet1!$A$3:$D$381,3,FALSE),0) -> 1168378.9 | F118: =IFERROR(VLOOKUP(A118,[4]Sheet1!$A$3:$D$381,4,FALSE),0) -> 327142.2 | G118: =IFERROR(VLOOKUP(A118,'[5]2024-25 Final'!$B$19:$S$164,18,FALSE),0) -> 0 | H118: 0 | I118: =_xlfn.IFS(H118=0%,0,'other funds ftr 2025'!H118<Assumptions!$C$57,Assumptions!$B$57,'other funds ftr 2025'!H118<Assumptions!$C$58,Assumptions!$B$58,'other funds ftr 2025'!H118<=Assumptions!$C$59,Assumptions!$B$59,'other funds ftr 2025'!H118<=Assumptions!$C$60,Assumptions!$B$60) -> 0
A119: 30303 | B119: STEVENSON-CARSON | C119: =IFERROR(VLOOKUP(A119,'[2]Allocations 2024-25'!$B$9:$AC$326,20,FALSE),0) -> 0 | D119: =IFERROR(VLOOKUP(A119,'[3]State Reservations'!$C$4:$AF$328,30,FALSE),0) -> 249597.9295 | E119: =IFERROR(VLOOKUP(A119,[4]Sheet1!$A$3:$D$381,3,FALSE),0) -> 540838.24 | F119: =IFERROR(VLOOKUP(A119,[4]Sheet1!$A$3:$D$381,4,FALSE),0) -> 29746.61 | G119: =IFERROR(VLOOKUP(A119,'[5]2024-25 Final'!$B$19:$S$164,18,FALSE),0) -> 0 | H119: 0 | I119: =_xlfn.IFS(H119=0%,0,'other funds ftr 2025'!H119<Assumptions!$C$57,Assumptions!$B$57,'other funds ftr 2025'!H119<Assumptions!$C$58,Assumptions!$B$58,'other funds ftr 2025'!H119<=Assumptions!$C$59,Assumptions!$B$59,'other funds ftr 2025'!H119<=Assumptions!$C$60,Assumptions!$B$60) -> 0
A120: 27320 | B120: SUMNER | C120: =IFERROR(VLOOKUP(A120,'[2]Allocations 2024-25'!$B$9:$AC$326,20,FALSE),0) -> 78708 | D120: =IFERROR(VLOOKUP(A120,'[3]State Reservations'!$C$4:$AF$328,30,FALSE),0) -> 993500.4883 | E120: =IFERROR(VLOOKUP(A120,[4]Sheet1!$A$3:$D$381,3,FALSE),0) -> 2824653.63 | F120: =IFERROR(VLOOKUP(A120,[4]Sheet1!$A$3:$D$381,4,FALSE),0) -> 1280565.42 | G120: =IFERROR(VLOOKUP(A120,'[5]2024-25 Final'!$B$19:$S$164,18,FALSE),0) -> 0 | H120: 0 | I120: =_xlfn.IFS(H120=0%,0,'other funds ftr 2025'!H120<Assumptions!$C$57,Assumptions!$B$57,'other funds ftr 2025'!H120<Assumptions!$C$58,Assumptions!$B$58,'other funds ftr 2025'!H120<=Assumptions!$C$59,Assumptions!$B$59,'other funds ftr 2025'!H120<=Assumptions!$C$60,Assumptions!$B$60) -> 0
A121: 39201 | B121: SUNNYSIDE | C121: =IFERROR(VLOOKUP(A121,'[2]Allocations 2024-25'!$B$9:$AC$326,20,FALSE),0) -> 264354 | D121: =IFERROR(VLOOKUP(A121,'[3]State Reservations'!$C$4:$AF$328,30,FALSE),0) -> 2475669.086 | E121: =IFERROR(VLOOKUP(A121,[4]Sheet1!$A$3:$D$381,3,FALSE),0) -> 5928531.84 | F121: =IFERROR(VLOOKUP(A121,[4]Sheet1!$A$3:$D$381,4,FALSE),0) -> 3372988.74 | G121: =IFERROR(VLOOKUP(A121,'[5]2024-25 Final'!$B$19:$S$164,18,FALSE),0) -> 1525977 | H121: 0.8875272028 | I121: =_xlfn.IFS(H121=0%,0,'other funds ftr 2025'!H121<Assumptions!$C$57,Assumptions!$B$57,'other funds ftr 2025'!H121<Assumptions!$C$58,Assumptions!$B$58,'other funds ftr 2025'!H121<=Assumptions!$C$59,Assumptions!$B$59,'other funds ftr 2025'!H121<=Assumptions!$C$60,Assumptions!$B$60) -> 1.1
A122: 27010 | B122: TACOMA | C122: =IFERROR(VLOOKUP(A122,'[2]Allocations 2024-25'!$B$9:$AC$326,20,FALSE),0) -> 431916 | D122: =IFERROR(VLOOKUP(A122,'[3]State Reservations'!$C$4:$AF$328,30,FALSE),0) -> 10236814.26 | E122: =IFERROR(VLOOKUP(A122,[4]Sheet1!$A$3:$D$381,3,FALSE),0) -> 17883692.91 | F122: =IFERROR(VLOOKUP(A122,[4]Sheet1!$A$3:$D$381,4,FALSE),0) -> 7055292.77 | G122: =IFERROR(VLOOKUP(A122,'[5]2024-25 Final'!$B$19:$S$164,18,FALSE),0) -> 0 | H122: 0 | I122: =_xlfn.IFS(H122=0%,0,'other funds ftr 2025'!H122<Assumptions!$C$57,Assumptions!$B$57,'other funds ftr 2025'!H122<Assumptions!$C$58,Assumptions!$B$58,'other funds ftr 2025'!H122<=Assumptions!$C$59,Assumptions!$B$59,'other funds ftr 2025'!H122<=Assumptions!$C$60,Assumptions!$B$60) -> 0
A123: 14077 | B123: TAHOLAH | C123: =IFERROR(VLOOKUP(A123,'[2]Allocations 2024-25'!$B$9:$AC$326,20,FALSE),0) -> 0 | D123: =IFERROR(VLOOKUP(A123,'[3]State Reservations'!$C$4:$AF$328,30,FALSE),0) -> 175791.9873 | E123: =IFERROR(VLOOKUP(A123,[4]Sheet1!$A$3:$D$381,3,FALSE),0) -> 157387.95 | F123: =IFERROR(VLOOKUP(A123,[4]Sheet1!$A$3:$D$381,4,FALSE),0) -> 0 | G123: =IFERROR(VLOOKUP(A123,'[5]2024-25 Final'!$B$19:$S$164,18,FALSE),0) -> 80464 | H123: 0.8054752101 | I123: =_xlfn.IFS(H123=0%,0,'other funds ftr 2025'!H123<Assumptions!$C$57,Assumptions!$B$57,'other funds ftr 2025'!H123<Assumptions!$C$58,Assumptions!$B$58,'other funds ftr 2025'!H123<=Assumptions!$C$59,Assumptions!$B$59,'other funds ftr 2025'!H123<=Assumptions!$C$60,Assumptions!$B$60) -> 1.1
A124: 24404 | B124: TONASKET | C124: =IFERROR(VLOOKUP(A124,'[2]Allocations 2024-25'!$B$9:$AC$326,20,FALSE),0) -> 16628 | D124: =IFERROR(VLOOKUP(A124,'[3]State Reservations'!$C$4:$AF$328,30,FALSE),0) -> 761076.8885 | E124: =IFERROR(VLOOKUP(A124,[4]Sheet1!$A$3:$D$381,3,FALSE),0) -> 899050.16 | F124: =IFERROR(VLOOKUP(A124,[4]Sheet1!$A$3:$D$381,4,FALSE),0) -> 216542.55 | G124: =IFERROR(VLOOKUP(A124,'[5]2024-25 Final'!$B$19:$S$164,18,FALSE),0) -> 306835 | H124: 0.8605379511 | I124: =_xlfn.IFS(H124=0%,0,'other funds ftr 2025'!H124<Assumptions!$C$57,Assumptions!$B$57,'other funds ftr 2025'!H124<Assumptions!$C$58,Assumptions!$B$58,'other funds ftr 2025'!H124<=Assumptions!$C$59,Assumptions!$B$59,'other funds ftr 2025'!H124<=Assumptions!$C$60,Assumptions!$B$60) -> 1.1
A125: 39202 | B125: TOPPENISH | C125: =IFERROR(VLOOKUP(A125,'[2]Allocations 2024-25'!$B$9:$AC$326,20,FALSE),0) -> 176172 | D125: =IFERROR(VLOOKUP(A125,'[3]State Reservations'!$C$4:$AF$328,30,FALSE),0) -> 1610111.401 | E125: =IFERROR(VLOOKUP(A125,[4]Sheet1!$A$3:$D$381,3,FALSE),0) -> 3646027.58 | F125: =IFERROR(VLOOKUP(A125,[4]Sheet1!$A$3:$D$381,4,FALSE),0) -> 2002512.15 | G125: =IFERROR(VLOOKUP(A125,'[5]2024-25 Final'!$B$19:$S$164,18,FALSE),0) -> 635826 | H125: 0.9212174895 | I125: =_xlfn.IFS(H125=0%,0,'other funds ftr 2025'!H125<Assumptions!$C$57,Assumptions!$B$57,'other funds ftr 2025'!H125<Assumptions!$C$58,Assumptions!$B$58,'other funds ftr 2025'!H125<=Assumptions!$C$59,Assumptions!$B$59,'other funds ftr 2025'!H125<=Assumptions!$C$60,Assumptions!$B$60) -> 1.05
A126: 20400 | B126: TROUT LAKE | C126: =IFERROR(VLOOKUP(A126,'[2]Allocations 2024-25'!$B$9:$AC$326,20,FALSE),0) -> 0 | D126: =IFERROR(VLOOKUP(A126,'[3]State Reservations'!$C$4:$AF$328,30,FALSE),0) -> 94404.20665 | E126: =IFERROR(VLOOKUP(A126,[4]Sheet1!$A$3:$D$381,3,FALSE),0) -> 39319.91 | F126: =IFERROR(VLOOKUP(A126,[4]Sheet1!$A$3:$D$381,4,FALSE),0) -> 20257.56 | G126: =IFERROR(VLOOKUP(A126,'[5]2024-25 Final'!$B$19:$S$164,18,FALSE),0) -> 0 | H126: 0 | I126: =_xlfn.IFS(H126=0%,0,'other funds ftr 2025'!H126<Assumptions!$C$57,Assumptions!$B$57,'other funds ftr 2025'!H126<Assumptions!$C$58,Assumptions!$B$58,'other funds ftr 2025'!H126<=Assumptions!$C$59,Assumptions!$B$59,'other funds ftr 2025'!H126<=Assumptions!$C$60,Assumptions!$B$60) -> 0
A127: 39002 | B127: UNION GAP | C127: =IFERROR(VLOOKUP(A127,'[2]Allocations 2024-25'!$B$9:$AC$326,20,FALSE),0) -> 17302 | D127: =IFERROR(VLOOKUP(A127,'[3]State Reservations'!$C$4:$AF$328,30,FALSE),0) -> 407705.321 | E127: =IFERROR(VLOOKUP(A127,[4]Sheet1!$A$3:$D$381,3,FALSE),0) -> 520799.21 | F127: =IFERROR(VLOOKUP(A127,[4]Sheet1!$A$3:$D$381,4,FALSE),0) -> 200656.38 | G127: =IFERROR(VLOOKUP(A127,'[5]2024-25 Final'!$B$19:$S$164,18,FALSE),0) -> 64312 | H127: 0.9468836037 | I127: =_xlfn.IFS(H127=0%,0,'other funds ftr 2025'!H127<Assumptions!$C$57,Assumptions!$B$57,'other funds ftr 2025'!H127<Assumptions!$C$58,Assumptions!$B$58,'other funds ftr 2025'!H127<=Assumptions!$C$59,Assumptions!$B$59,'other funds ftr 2025'!H127<=Assumptions!$C$60,Assumptions!$B$60) -> 1.05
A128: 06037 | B128: VANCOUVER | C128: =IFERROR(VLOOKUP(A128,'[2]Allocations 2024-25'!$B$9:$AC$326,20,FALSE),0) -> 454537 | D128: =IFERROR(VLOOKUP(A128,'[3]State Reservations'!$C$4:$AF$328,30,FALSE),0) -> 6416904.664 | E128: =IFERROR(VLOOKUP(A128,[4]Sheet1!$A$3:$D$381,3,FALSE),0) -> 11627912.07 | F128: =IFERROR(VLOOKUP(A128,[4]Sheet1!$A$3:$D$381,4,FALSE),0) -> 6721780.11 | G128: =IFERROR(VLOOKUP(A128,'[5]2024-25 Final'!$B$19:$S$164,18,FALSE),0) -> 44134 | H128: 0.9982531751 | I128: =_xlfn.IFS(H128=0%,0,'other funds ftr 2025'!H128<Assumptions!$C$57,Assumptions!$B$57,'other funds ftr 2025'!H128<Assumptions!$C$58,Assumptions!$B$58,'other funds ftr 2025'!H128<=Assumptions!$C$59,Assumptions!$B$59,'other funds ftr 2025'!H128<=Assumptions!$C$60,Assumptions!$B$60) -> 0.95
A129: 34901 | B129: WA HE LUT INDIAN SCHOOL | C129: =IFERROR(VLOOKUP(A129,'[2]Allocations 2024-25'!$B$9:$AC$326,20,FALSE),0) -> 0 | D129: =IFERROR(VLOOKUP(A129,'[3]State Reservations'!$C$4:$AF$328,30,FALSE),0) -> 0 | E129: =IFERROR(VLOOKUP(A129,[4]Sheet1!$A$3:$D$381,3,FALSE),0) -> 131932.9 | F129: =IFERROR(VLOOKUP(A129,[4]Sheet1!$A$3:$D$381,4,FALSE),0) -> 0 | G129: =IFERROR(VLOOKUP(A129,'[5]2024-25 Final'!$B$19:$S$164,18,FALSE),0) -> 0 | H129: 0 | I129: =_xlfn.IFS(H129=0%,0,'other funds ftr 2025'!H129<Assumptions!$C$57,Assumptions!$B$57,'other funds ftr 2025'!H129<Assumptions!$C$58,Assumptions!$B$58,'other funds ftr 2025'!H129<=Assumptions!$C$59,Assumptions!$B$59,'other funds ftr 2025'!H129<=Assumptions!$C$60,Assumptions!$B$60) -> 0
A130: 13073 | B130: WAHLUKE | C130: =IFERROR(VLOOKUP(A130,'[2]Allocations 2024-25'!$B$9:$AC$326,20,FALSE),0) -> 165178 | D130: =IFERROR(VLOOKUP(A130,'[3]State Reservations'!$C$4:$AF$328,30,FALSE),0) -> 662201.2153 | E130: =IFERROR(VLOOKUP(A130,[4]Sheet1!$A$3:$D$381,3,FALSE),0) -> 2272322.25 | F130: =IFERROR(VLOOKUP(A130,[4]Sheet1!$A$3:$D$381,4,FALSE),0) -> 2255624.89 | G130: =IFERROR(VLOOKUP(A130,'[5]2024-25 Final'!$B$19:$S$164,18,FALSE),0) -> 1447944 | H130: =IF(G130=0,0,(SUM(C130:F130)/SUM(C130:G130))) -> 0.7871694164 | I130: =_xlfn.IFS(H130=0%,0,'other funds ftr 2025'!H130<Assumptions!$C$57,Assumptions!$B$57,'other funds ftr 2025'!H130<Assumptions!$C$58,Assumptions!$B$58,'other funds ftr 2025'!H130<=Assumptions!$C$59,Assumptions!$B$59,'other funds ftr 2025'!H130<=Assumptions!$C$60,Assumptions!$B$60) -> 1.1
A131: 36140 | B131: WALLA WALLA PUBLIC SCHOOLS | C131: =IFERROR(VLOOKUP(A131,'[2]Allocations 2024-25'!$B$9:$AC$326,20,FALSE),0) -> 105041 | D131: =IFERROR(VLOOKUP(A131,'[3]State Reservations'!$C$4:$AF$328,30,FALSE),0) -> 1503879.908 | E131: =IFERROR(VLOOKUP(A131,[4]Sheet1!$A$3:$D$381,3,FALSE),0) -> 4112198.13 | F131: =IFERROR(VLOOKUP(A131,[4]Sheet1!$A$3:$D$381,4,FALSE),0) -> 1407892.3 | G131: =IFERROR(VLOOKUP(A131,'[5]2024-25 Final'!$B$19:$S$164,18,FALSE),0) -> 62957 | H131: 0.9912462073 | I131: =_xlfn.IFS(H131=0%,0,'other funds ftr 2025'!H131<Assumptions!$C$57,Assumptions!$B$57,'other funds ftr 2025'!H131<Assumptions!$C$58,Assumptions!$B$58,'other funds ftr 2025'!H131<=Assumptions!$C$59,Assumptions!$B$59,'other funds ftr 2025'!H131<=Assumptions!$C$60,Assumptions!$B$60) -> 0.95
A132: 39207 | B132: WAPATO | C132: =IFERROR(VLOOKUP(A132,'[2]Allocations 2024-25'!$B$9:$AC$326,20,FALSE),0) -> 180350 | D132: =IFERROR(VLOOKUP(A132,'[3]State Reservations'!$C$4:$AF$328,30,FALSE),0) -> 1815122.472 | E132: =IFERROR(VLOOKUP(A132,[4]Sheet1!$A$3:$D$381,3,FALSE),0) -> 2859412.85 | F132: =IFERROR(VLOOKUP(A132,[4]Sheet1!$A$3:$D$381,4,FALSE),0) -> 1950908.69 | G132: =IFERROR(VLOOKUP(A132,'[5]2024-25 Final'!$B$19:$S$164,18,FALSE),0) -> 751402 | H132: 0.9005713232 | I132: =_xlfn.IFS(H132=0%,0,'other funds ftr 2025'!H132<Assumptions!$C$57,Assumptions!$B$57,'other funds ftr 2025'!H132<Assumptions!$C$58,Assumptions!$B$58,'other funds ftr 2025'!H132<=Assumptions!$C$59,Assumptions!$B$59,'other funds ftr 2025'!H132<=Assumptions!$C$60,Assumptions!$B$60) -> 1.1
A133: 13146 | B133: WARDEN | C133: =IFERROR(VLOOKUP(A133,'[2]Allocations 2024-25'!$B$9:$AC$326,20,FALSE),0) -> 34815 | D133: =IFERROR(VLOOKUP(A133,'[3]State Reservations'!$C$4:$AF$328,30,FALSE),0) -> 356759.0328 | E133: =IFERROR(VLOOKUP(A133,[4]Sheet1!$A$3:$D$381,3,FALSE),0) -> 811419.87 | F133: =IFERROR(VLOOKUP(A133,[4]Sheet1!$A$3:$D$381,4,FALSE),0) -> 480956.89 | G133: =IFERROR(VLOOKUP(A133,'[5]2024-25 Final'!$B$19:$S$164,18,FALSE),0) -> 247040 | H133: 0.8720656769 | I133: =_xlfn.IFS(H133=0%,0,'other funds ftr 2025'!H133<Assumptions!$C$57,Assumptions!$B$57,'other funds ftr 2025'!H133<Assumptions!$C$58,Assumptions!$B$58,'other funds ftr 2025'!H133<=Assumptions!$C$59,Assumptions!$B$59,'other funds ftr 2025'!H133<=Assumptions!$C$60,Assumptions!$B$60) -> 1.1
A134: 34979 | B134: WASHINGTON MILITARY DEPARTMENT | C134: =IFERROR(VLOOKUP(A134,'[2]Allocations 2024-25'!$B$9:$AC$326,20,FALSE),0) -> 0 | D134: =IFERROR(VLOOKUP(A134,'[3]State Reservations'!$C$4:$AF$328,30,FALSE),0) -> 0 | E134: =IFERROR(VLOOKUP(A134,[4]Sheet1!$A$3:$D$381,3,FALSE),0) -> 0 | F134: =IFERROR(VLOOKUP(A134,[4]Sheet1!$A$3:$D$381,4,FALSE),0) -> 0 | G134: =IFERROR(VLOOKUP(A134,'[5]2024-25 Final'!$B$19:$S$164,18,FALSE),0) -> 0 | H134: 0 | I134: =_xlfn.IFS(H134=0%,0,'other funds ftr 2025'!H134<Assumptions!$C$57,Assumptions!$B$57,'other funds ftr 2025'!H134<Assumptions!$C$58,Assumptions!$B$58,'other funds ftr 2025'!H134<=Assumptions!$C$59,Assumptions!$B$59,'other funds ftr 2025'!H134<=Assumptions!$C$60,Assumptions!$B$60) -> 0
A135: 09209 | B135: WATERVILLE | C135: =IFERROR(VLOOKUP(A135,'[2]Allocations 2024-25'!$B$9:$AC$326,20,FALSE),0) -> 0 | D135: =IFERROR(VLOOKUP(A135,'[3]State Reservations'!$C$4:$AF$328,30,FALSE),0) -> 86104.3444 | E135: =IFERROR(VLOOKUP(A135,[4]Sheet1!$A$3:$D$381,3,FALSE),0) -> 180026.67 | F135: =IFERROR(VLOOKUP(A135,[4]Sheet1!$A$3:$D$381,4,FALSE),0) -> 41901.15 | G135: =IFERROR(VLOOKUP(A135,'[5]2024-25 Final'!$B$19:$S$164,18,FALSE),0) -> 0 | H135: 0 | I135: =_xlfn.IFS(H135=0%,0,'other funds ftr 2025'!H135<Assumptions!$C$57,Assumptions!$B$57,'other funds ftr 2025'!H135<Assumptions!$C$58,Assumptions!$B$58,'other funds ftr 2025'!H135<=Assumptions!$C$59,Assumptions!$B$59,'other funds ftr 2025'!H135<=Assumptions!$C$60,Assumptions!$B$60) -> 0
A136: 33049 | B136: WELLPINIT | C136: =IFERROR(VLOOKUP(A136,'[2]Allocations 2024-25'!$B$9:$AC$326,20,FALSE),0) -> 15256 | D136: =IFERROR(VLOOKUP(A136,'[3]State Reservations'!$C$4:$AF$328,30,FALSE),0) -> 168071.7799 | E136: =IFERROR(VLOOKUP(A136,[4]Sheet1!$A$3:$D$381,3,FALSE),0) -> 331565.39 | F136: =IFERROR(VLOOKUP(A136,[4]Sheet1!$A$3:$D$381,4,FALSE),0) -> 0 | G136: =IFERROR(VLOOKUP(A136,'[5]2024-25 Final'!$B$19:$S$164,18,FALSE),0) -> 0 | H136: 0 | I136: =_xlfn.IFS(H136=0%,0,'other funds ftr 2025'!H136<Assumptions!$C$57,Assumptions!$B$57,'other funds ftr 2025'!H136<Assumptions!$C$58,Assumptions!$B$58,'other funds ftr 2025'!H136<=Assumptions!$C$59,Assumptions!$B$59,'other funds ftr 2025'!H136<=Assumptions!$C$60,Assumptions!$B$60) -> 0
A137: 04246 | B137: WENATCHEE | C137: =IFERROR(VLOOKUP(A137,'[2]Allocations 2024-25'!$B$9:$AC$326,20,FALSE),0) -> 208330 | D137: =IFERROR(VLOOKUP(A137,'[3]State Reservations'!$C$4:$AF$328,30,FALSE),0) -> 1992086.005 | E137: =IFERROR(VLOOKUP(A137,[4]Sheet1!$A$3:$D$381,3,FALSE),0) -> 4826274.65 | F137: =IFERROR(VLOOKUP(A137,[4]Sheet1!$A$3:$D$381,4,FALSE),0) -> 2828593.71 | G137: =IFERROR(VLOOKUP(A137,'[5]2024-25 Final'!$B$19:$S$164,18,FALSE),0) -> 1222610 | H137: 0.8896351635 | I137: =_xlfn.IFS(H137=0%,0,'other funds ftr 2025'!H137<Assumptions!$C$57,Assumptions!$B$57,'other funds ftr 2025'!H137<Assumptions!$C$58,Assumptions!$B$58,'other funds ftr 2025'!H137<=Assumptions!$C$59,Assumptions!$B$59,'other funds ftr 2025'!H137<=Assumptions!$C$60,Assumptions!$B$60) -> 1.1
A138: 39208 | B138: WEST VALLEY (YAKIMA) | C138: =IFERROR(VLOOKUP(A138,'[2]Allocations 2024-25'!$B$9:$AC$326,20,FALSE),0) -> 65667 | D138: =IFERROR(VLOOKUP(A138,'[3]State Reservations'!$C$4:$AF$328,30,FALSE),0) -> 1227317.111 | E138: =IFERROR(VLOOKUP(A138,[4]Sheet1!$A$3:$D$381,3,FALSE),0) -> 2810019.24 | F138: =IFERROR(VLOOKUP(A138,[4]Sheet1!$A$3:$D$381,4,FALSE),0) -> 895703.57 | G138: =IFERROR(VLOOKUP(A138,'[5]2024-25 Final'!$B$19:$S$164,18,FALSE),0) -> 158503 | H138: 0.9692657459 | I138: =_xlfn.IFS(H138=0%,0,'other funds ftr 2025'!H138<Assumptions!$C$57,Assumptions!$B$57,'other funds ftr 2025'!H138<Assumptions!$C$58,Assumptions!$B$58,'other funds ftr 2025'!H138<=Assumptions!$C$59,Assumptions!$B$59,'other funds ftr 2025'!H138<=Assumptions!$C$60,Assumptions!$B$60) -> 1
A139: 21303 | B139: WHITE PASS | C139: =IFERROR(VLOOKUP(A139,'[2]Allocations 2024-25'!$B$9:$AC$326,20,FALSE),0) -> 0 | D139: =IFERROR(VLOOKUP(A139,'[3]State Reservations'!$C$4:$AF$328,30,FALSE),0) -> 212702.6685 | E139: =IFERROR(VLOOKUP(A139,[4]Sheet1!$A$3:$D$381,3,FALSE),0) -> 268415.24 | F139: =IFERROR(VLOOKUP(A139,[4]Sheet1!$A$3:$D$381,4,FALSE),0) -> 0 | G139: =IFERROR(VLOOKUP(A139,'[5]2024-25 Final'!$B$19:$S$164,18,FALSE),0) -> 0 | H139: 0 | I139: =_xlfn.IFS(H139=0%,0,'other funds ftr 2025'!H139<Assumptions!$C$57,Assumptions!$B$57,'other funds ftr 2025'!H139<Assumptions!$C$58,Assumptions!$B$58,'other funds ftr 2025'!H139<=Assumptions!$C$59,Assumptions!$B$59,'other funds ftr 2025'!H139<=Assumptions!$C$60,Assumptions!$B$60) -> 0
A140: 20405 | B140: WHITE SALMON VALLEY | C140: =IFERROR(VLOOKUP(A140,'[2]Allocations 2024-25'!$B$9:$AC$326,20,FALSE),0) -> 22704 | D140: =IFERROR(VLOOKUP(A140,'[3]State Reservations'!$C$4:$AF$328,30,FALSE),0) -> 250469.015 | E140: =IFERROR(VLOOKUP(A140,[4]Sheet1!$A$3:$D$381,3,FALSE),0) -> 478370.06 | F140: =IFERROR(VLOOKUP(A140,[4]Sheet1!$A$3:$D$381,4,FALSE),0) -> 304089.96 | G140: =IFERROR(VLOOKUP(A140,'[5]2024-25 Final'!$B$19:$S$164,18,FALSE),0) -> 15600 | H140: 0.9854373423 | I140: =_xlfn.IFS(H140=0%,0,'other funds ftr 2025'!H140<Assumptions!$C$57,Assumptions!$B$57,'other funds ftr 2025'!H140<Assumptions!$C$58,Assumptions!$B$58,'other funds ftr 2025'!H140<=Assumptions!$C$59,Assumptions!$B$59,'other funds ftr 2025'!H140<=Assumptions!$C$60,Assumptions!$B$60) -> 0.95
A141: 21232 | B141: WINLOCK | C141: =IFERROR(VLOOKUP(A141,'[2]Allocations 2024-25'!$B$9:$AC$326,20,FALSE),0) -> 5381 | D141: =IFERROR(VLOOKUP(A141,'[3]State Reservations'!$C$4:$AF$328,30,FALSE),0) -> 209656.2192 | E141: =IFERROR(VLOOKUP(A141,[4]Sheet1!$A$3:$D$381,3,FALSE),0) -> 673767.26 | F141: =IFERROR(VLOOKUP(A141,[4]Sheet1!$A$3:$D$381,4,FALSE),0) -> 70007.48 | G141: =IFERROR(VLOOKUP(A141,'[5]2024-25 Final'!$B$19:$S$164,18,FALSE),0) -> 67409 | H141: 0.9343133665 | I141: =_xlfn.IFS(H141=0%,0,'other funds ftr 2025'!H141<Assumptions!$C$57,Assumptions!$B$57,'other funds ftr 2025'!H141<Assumptions!$C$58,Assumptions!$B$58,'other funds ftr 2025'!H141<=Assumptions!$C$59,Assumptions!$B$59,'other funds ftr 2025'!H141<=Assumptions!$C$60,Assumptions!$B$60) -> 1.05
A142: 20094 | B142: WISHRAM | C142: =IFERROR(VLOOKUP(A142,'[2]Allocations 2024-25'!$B$9:$AC$326,20,FALSE),0) -> 0 | D142: =IFERROR(VLOOKUP(A142,'[3]State Reservations'!$C$4:$AF$328,30,FALSE),0) -> 40138.86376 | E142: =IFERROR(VLOOKUP(A142,[4]Sheet1!$A$3:$D$381,3,FALSE),0) -> 90013.34 | F142: =IFERROR(VLOOKUP(A142,[4]Sheet1!$A$3:$D$381,4,FALSE),0) -> 0 | G142: =IFERROR(VLOOKUP(A142,'[5]2024-25 Final'!$B$19:$S$164,18,FALSE),0) -> 34570 | H142: 0.7901315111 | I142: =_xlfn.IFS(H142=0%,0,'other funds ftr 2025'!H142<Assumptions!$C$57,Assumptions!$B$57,'other funds ftr 2025'!H142<Assumptions!$C$58,Assumptions!$B$58,'other funds ftr 2025'!H142<=Assumptions!$C$59,Assumptions!$B$59,'other funds ftr 2025'!H142<=Assumptions!$C$60,Assumptions!$B$60) -> 1.1
A143: 08404 | B143: WOODLAND | C143: =IFERROR(VLOOKUP(A143,'[2]Allocations 2024-25'!$B$9:$AC$326,20,FALSE),0) -> 25469 | D143: =IFERROR(VLOOKUP(A143,'[3]State Reservations'!$C$4:$AF$328,30,FALSE),0) -> 408175.3021 | E143: =IFERROR(VLOOKUP(A143,[4]Sheet1!$A$3:$D$381,3,FALSE),0) -> 868720.77 | F143: =IFERROR(VLOOKUP(A143,[4]Sheet1!$A$3:$D$381,4,FALSE),0) -> 347790.15 | G143: =IFERROR(VLOOKUP(A143,'[5]2024-25 Final'!$B$19:$S$164,18,FALSE),0) -> 30403 | H143: 0.9819089874 | I143: =_xlfn.IFS(H143=0%,0,'other funds ftr 2025'!H143<Assumptions!$C$57,Assumptions!$B$57,'other funds ftr 2025'!H143<Assumptions!$C$58,Assumptions!$B$58,'other funds ftr 2025'!H143<=Assumptions!$C$59,Assumptions!$B$59,'other funds ftr 2025'!H143<=Assumptions!$C$60,Assumptions!$B$60) -> 0.95
A144: 39901 | B144: YAKAMA NATION TRIBAL COMPACT | C144: =IFERROR(VLOOKUP(A144,'[2]Allocations 2024-25'!$B$9:$AC$326,20,FALSE),0) -> 0 | D144: =IFERROR(VLOOKUP(A144,'[3]State Reservations'!$C$4:$AF$328,30,FALSE),0) -> 0 | E144: =IFERROR(VLOOKUP(A144,[4]Sheet1!$A$3:$D$381,3,FALSE),0) -> 0 | F144: =IFERROR(VLOOKUP(A144,[4]Sheet1!$A$3:$D$381,4,FALSE),0) -> 0 | G144: =IFERROR(VLOOKUP(A144,'[5]2024-25 Final'!$B$19:$S$164,18,FALSE),0) -> 75950 | H144: 0 | I144: =_xlfn.IFS(H144=0%,0,'other funds ftr 2025'!H144<Assumptions!$C$57,Assumptions!$B$57,'other funds ftr 2025'!H144<Assumptions!$C$58,Assumptions!$B$58,'other funds ftr 2025'!H144<=Assumptions!$C$59,Assumptions!$B$59,'other funds ftr 2025'!H144<=Assumptions!$C$60,Assumptions!$B$60) -> 0
A145: 39007 | B145: YAKIMA | C145: =IFERROR(VLOOKUP(A145,'[2]Allocations 2024-25'!$B$9:$AC$326,20,FALSE),0) -> 629823 | D145: =IFERROR(VLOOKUP(A145,'[3]State Reservations'!$C$4:$AF$328,30,FALSE),0) -> 10114173.76 | E145: =IFERROR(VLOOKUP(A145,[4]Sheet1!$A$3:$D$381,3,FALSE),0) -> 13789804.93 | F145: =IFERROR(VLOOKUP(A145,[4]Sheet1!$A$3:$D$381,4,FALSE),0) -> 8535678.72 | G145: =IFERROR(VLOOKUP(A145,'[5]2024-25 Final'!$B$19:$S$164,18,FALSE),0) -> 1480282 | H145: 0.9571550744 | I145: =_xlfn.IFS(H145=0%,0,'other funds ftr 2025'!H145<Assumptions!$C$57,Assumptions!$B$57,'other funds ftr 2025'!H145<Assumptions!$C$58,Assumptions!$B$58,'other funds ftr 2025'!H145<=Assumptions!$C$59,Assumptions!$B$59,'other funds ftr 2025'!H145<=Assumptions!$C$60,Assumptions!$B$60) -> 1
A146: 34002 | B146: YELM | C146: =IFERROR(VLOOKUP(A146,'[2]Allocations 2024-25'!$B$9:$AC$326,20,FALSE),0) -> 27074 | D146: =IFERROR(VLOOKUP(A146,'[3]State Reservations'!$C$4:$AF$328,30,FALSE),0) -> 1132594.302 | E146: =IFERROR(VLOOKUP(A146,[4]Sheet1!$A$3:$D$381,3,FALSE),0) -> 2147336.61 | F146: =IFERROR(VLOOKUP(A146,[4]Sheet1!$A$3:$D$381,4,FALSE),0) -> 401435.91 | G146: =IFERROR(VLOOKUP(A146,'[5]2024-25 Final'!$B$19:$S$164,18,FALSE),0) -> 0 | H146: 0 | I146: =_xlfn.IFS(H146=0%,0,'other funds ftr 2025'!H146<Assumptions!$C$57,Assumptions!$B$57,'other funds ftr 2025'!H146<Assumptions!$C$58,Assumptions!$B$58,'other funds ftr 2025'!H146<=Assumptions!$C$59,Assumptions!$B$59,'other funds ftr 2025'!H146<=Assumptions!$C$60,Assumptions!$B$60) -> 0
A147: 39205 | B147: ZILLAH | C147: =IFERROR(VLOOKUP(A147,'[2]Allocations 2024-25'!$B$9:$AC$326,20,FALSE),0) -> 21861 | D147: =IFERROR(VLOOKUP(A147,'[3]State Reservations'!$C$4:$AF$328,30,FALSE),0) -> 281768.0051 | E147: =IFERROR(VLOOKUP(A147,[4]Sheet1!$A$3:$D$381,3,FALSE),0) -> 1065970.2 | F147: =IFERROR(VLOOKUP(A147,[4]Sheet1!$A$3:$D$381,4,FALSE),0) -> 283712.32 | G147: =IFERROR(VLOOKUP(A147,'[5]2024-25 Final'!$B$19:$S$164,18,FALSE),0) -> 64108 | H147: 0.9626719045 | I147: =_xlfn.IFS(H147=0%,0,'other funds ftr 2025'!H147<Assumptions!$C$57,Assumptions!$B$57,'other funds ftr 2025'!H147<Assumptions!$C$58,Assumptions!$B$58,'other funds ftr 2025'!H147<=Assumptions!$C$59,Assumptions!$B$59,'other funds ftr 2025'!H147<=Assumptions!$C$60,Assumptions!$B$60) -> 1

Sheet CCDDD (hidden)
A1: CO_DIST_NUM | B1: DIST_TITLE | C1: =A1 -> CO_DIST_NUM
A2: 14005 | B2: ABERDEEN | C2: =A2 -> 14005
A3: 29103 | B3: ANACORTES | C3: 29103
A4: 31016 | B4: ARLINGTON | C4: 31016
A5: 17408 | B5: AUBURN | C5: 17408
A6: 06119 | B6: BATTLE GROUND | C6: 06119
A7: 37501 | B7: BELLINGHAM | C7: 37501
A8: 27403 | B8: BETHEL | C8: 27403
A9: 18100 | B9: BREMERTON | C9: 18100
A10: 24111 | B10: BREWSTER | C10: 24111
A11: 09075 | B11: BRIDGEPORT | C11: 09075
A12: 29100 | B12: BURLINGTON-EDISON | C12: 29100
A13: 04228 | B13: CASCADE | C13: 04228
A14: 04222 | B14: CASHMERE | C14: 04222
A15: 18401 | B15: CENTRAL KITSAP | C15: 18401
A16: 32356 | B16: CENTRAL VALLEY | C16: 32356
A17: 21401 | B17: CENTRALIA | C17: 21401
A18: 21302 | B18: CHEHALIS | C18: 21302
A19: 32360 | B19: CHENEY | C19: 32360
A20: 27901 | B20: CHIEF LESCHI TRIBAL COMPACT | C20: 27901
A21: 36250 | B21: COLLEGE PLACE | C21: 36250
A22: 36400 | B22: COLUMBIA (WALLA WALLA) | C22: 36400
A23: 39090 | B23: EAST VALLEY (YAKIMA) | C23: 39090
A24: 09206 | B24: EASTMONT | C24: 09206
A25: 31015 | B25: EDMONDS | C25: 31015
A26: 19401 | B26: ELLENSBURG | C26: 19401
A27: 14068 | B27: ELMA | C27: 14068
A28: 04127 | B28: ENTIAT | C28: 04127
A29: 13165 | B29: EPHRATA | C29: 13165
A30: 31002 | B30: EVERETT | C30: 31002
A31: 06114 | B31: EVERGREEN (CLARK) | C31: 06114
A32: 17210 | B32: FEDERAL WAY | C32: 17210
A33: 37502 | B33: FERNDALE | C33: 37502
A34: 03053 | B34: FINLEY | C34: 03053
A35: 27402 | B35: FRANKLIN PIERCE | C35: 27402
A36: 20404 | B36: GOLDENDALE | C36: 20404
A37: 13301 | B37: GRAND COULEE DAM | C37: 13301
A38: 39200 | B38: GRANDVIEW | C38: 39200
A39: 39204 | B39: GRANGER | C39: 39204
A40: 39203 | B40: HIGHLAND | C40: 39203
A41: 23404 | B41: HOOD CANAL | C41: 23404
A42: 14028 | B42: HOQUIAM | C42: 14028
A43: 10070 | B43: INCHELIUM | C43: 10070
A44: 08458 | B44: KELSO | C44: 08458
A45: 03017 | B45: KENNEWICK | C45: 03017
A46: 17415 | B46: KENT | C46: 17415
A47: 03052 | B47: KIONA-BENTON CITY | C47: 03052
A48: 19403 | B48: KITTITAS | C48: 19403
A49: 29311 | B49: LA CONNER | C49: 29311
A50: 04129 | B50: LAKE CHELAN | C50: 04129
A51: 31004 | B51: LAKE STEVENS | C51: 31004
A52: 31306 | B52: LAKEWOOD | C52: 31306
A53: 01158 | B53: LIND | C53: 01158
A54: 08122 | B54: LONGVIEW | C54: 08122
A55: 20406 | B55: LYLE | C55: 20406
A56: 37504 | B56: LYNDEN | C56: 37504
A57: 39120 | B57: MABTON | C57: 39120
A58: 04019 | B58: MANSON | C58: 04019
A59: 33207 | B59: MARY WALKER | C59: 33207
A60: 31025 | B60: MARYSVILLE | C60: 31025
A61: 37505 | B61: MERIDIAN | C61: 37505
A62: 31103 | B62: MONROE | C62: 31103
A63: 14066 | B63: MONTESANO | C63: 14066
A64: 13161 | B64: MOSES LAKE | C64: 13161
A65: 21206 | B65: MOSSYROCK | C65: 21206
A66: 39209 | B66: MOUNT ADAMS | C66: =A66 -> 39209
A67: 37507 | B67: MOUNT BAKER | C67: 37507
A68: 29320 | B68: MOUNT VERNON | C68: 29320
A69: 31006 | B69: MUKILTEO | C69: 31006
A70: 39003 | B70: NACHES VALLEY | C70: 39003
A71: 25155 | B71: NASELLE-GRAYS RIVER VALLEY | C71: 25155
A72: 24014 | B72: NESPELEM | C72: 24014
A73: 37506 | B73: NOOKSACK VALLEY | C73: 37506
A74: 14064 | B74: NORTH BEACH | C74: 14064
A75: 11051 | B75: NORTH FRANKLIN | C75: 11051
A76: 18400 | B76: NORTH KITSAP | C76: 18400
A77: 34003 | B77: NORTH THURSTON PUBLIC SCHOOLS | C77: 34003
A78: 15201 | B78: OAK HARBOR | C78: 15201
A79: 25101 | B79: OCEAN BEACH | C79: 25101
A80: 14172 | B80: OCOSTA | C80: 14172
A81: 24105 | B81: OKANOGAN | C81: 24105
A82: 34111 | B82: OLYMPIA | C82: 34111
A83: 24019 | B83: OMAK | C83: 24019
A84: 09013 | B84: ORONDO | C84: 09013
A85: 24410 | B85: OROVILLE | C85: 24410
A86: 01147 | B86: OTHELLO | C86: 01147
A87: 11001 | B87: PASCO | C87: 11001
A88: 24122 | B88: PATEROS | C88: 24122
A89: 03050 | B89: PATERSON | C89: 03050
A90: 04901 | B90: PINNACLES PREP | C90: 04901
A91: 36402 | B91: PRESCOTT | C91: 36402
A92: 03116 | B92: PROSSER | C92: 03116
A93: 27003 | B93: PUYALLUP | C93: 27003
A94: 05402 | B94: QUILLAYUTE VALLEY | C94: 05402
A95: 13144 | B95: QUINCY | C95: 13144
A96: 22009 | B96: REARDAN-EDWALL | C96: 22009
A97: 17403 | B97: RENTON | C97: 17403
A98: 03400 | B98: RICHLAND | C98: 03400
A99: 06122 | B99: RIDGEFIELD | C99: 06122
A100: 17407 | B100: RIVERVIEW | C100: 17407
A101: 34401 | B101: ROCHESTER | C101: 34401
A102: 13160 | B102: ROYAL | C102: 13160
A103: 17001 | B103: SEATTLE PUBLIC SCHOOLS | C103: 17001
A104: 29101 | B104: SEDRO-WOOLLEY | C104: 29101
A105: 39119 | B105: SELAH | C105: 39119
A106: 23309 | B106: SHELTON | C106: 23309
A107: 31201 | B107: SNOHOMISH | C107: 31201
A108: 13156 | B108: SOAP LAKE | C108: 13156
A109: 32081 | B109: SPOKANE | C109: 32081
A110: 31401 | B110: STANWOOD-CAMANO | C110: 31401
A111: 39201 | B111: SUNNYSIDE | C111: 39201
A112: 27010 | B112: TACOMA | C112: 27010
A113: 14077 | B113: TAHOLAH | C113: 14077
A114: 24404 | B114: TONASKET | C114: 24404
A115: 39202 | B115: TOPPENISH | C115: 39202
A116: 39002 | B116: UNION GAP | C116: 39002
A117: 06037 | B117: VANCOUVER | C117: 06037
A118: 13073 | B118: WAHLUKE | C118: 13073
A119: 36140 | B119: WALLA WALLA PUBLIC SCHOOLS | C119: 36140
A120: 39207 | B120: WAPATO | C120: 39207
A121: 13146 | B121: WARDEN | C121: 13146
A122: 09209 | B122: WATERVILLE | C122: 09209
A123: 33049 | B123: WELLPINIT | C123: 33049
A124: 04246 | B124: WENATCHEE | C124: 04246
A125: 39208 | B125: WEST VALLEY (YAKIMA) | C125: 39208
A126: 20405 | B126: WHITE SALMON VALLEY | C126: 20405
A127: 21232 | B127: WINLOCK | C127: 21232
A128: 20094 | B128: WISHRAM | C128: 20094
A129: 08404 | B129: WOODLAND | C129: 08404
A130: 39901 | B130: YAKAMA NATION TRIBAL COMPACT | C130: =A130 -> 39901
A131: 39007 | B131: YAKIMA | C131: 39007
A132: 34002 | B132: YELM | C132: 34002
A133: 39205 | B133: ZILLAH

Sheet 2024-25 Final (hidden)
J1: From Assumptions Page:
D2: Constant Dollar Multipliers - Do Not Change Here | J2: Target Amounts | O2: =[5]Assumptions!C24 -> 22016123
D3: 0 | F3: 2.036969198e+66 | G3: 455.4713094 | H3: Use CTRL K | J3: Actual Amounts | O3: =O18 -> 22016123
J4: Difference | O4: =O3-O2 -> 0
J6: 22016123
H7: Put total here | J7: =[5]Assumptions!C24 -> 22016123
J10: Go to H9 & Control K to set dollar amount
E14: Migrant Students | V14: Accepting Funding? | X14: HOLD HARMLESS
D15: =G3 -> 455.4713094 | E15: K-12 | G15: Needs Support | I15: Priority Interuption | S15: =S18 -> 22016123
C16: CCDDD | D16: District | E16: Ave. number | F16: Regular Dollars | G16: Ave. number | H16: Regular Dollars | I16: Priority Number | J16: Priority Dollars | K16: Subtotal | L16: Other Funds Factor | M16: Subtotal 2 | N16: Add'l Rural Factor | O16: Total Allocated Amount | Q16: MOE | R16: MOE Red. | S16: Subtotal After MOE | V16: Y for yes, N for no (reallocates money) | X16: Override funding? Y for yes, otherwise blank. | Y16: Health Support Grant | Z16: Behavioral Health Supports | AA16: Total
E17: 10 | F17: =F18/E18 -> 455.471316 | G17: 0.25 | H17: =H18/G18 -> 116.1096342 | I17: 1 | J17: =J18/I18 -> 459.29408 | N17: 0.1 | O17: 124
A18: 0 | C18: 99999 | D18: State Total | E18: =SUMIF(E19:E164,">-10") -> 30470 | F18: =SUM(F19:F164) -> 13878211 | G18: =SUMIF(G19:G164,">=10") -> 10006 | H18: =SUM(H19:H164) -> 1161793 | I18: =SUMIF(I19:I164,">=10") -> 15608 | J18: =SUM(J19:J164) -> 7168662 | K18: =SUM(K19:K164) -> 22208666 | M18: =SUM(M19:M164) -> 23328595 | O18: =SUM(O19:O164) -> 22016123 | R18: =SUM(R19:R152) -> 0 | S18: =SUM(S19:S164) -> 22016123 | T18: Previous Year Final Allocations | U18: Allocation Difference | W18: Consortia | Y18: =SUM(Y19:Y164) -> 202000 | Z18: =SUM(Z19:Z164) -> 320000 | AA18: =SUM(AA19:AA164) -> 22147811
A19: 1 | B19: 14005 | D19: ABERDEEN | E19: =IFERROR(VLOOKUP(B19,[5]Enrollment!$A$2:$G$147,5,0),0) -> 128 | F19: =IF(E19>=10,ROUND(E19*$G$3,0),0) -> 58300 | G19: =IFERROR(VLOOKUP(B19,[5]Enrollment!$A$2:$G$147,6,0),0) -> 37 | H19: =IF(E19>=$E$17,ROUND(G19*$G$3*$G$17,0),0) -> 4213 | I19: =IFERROR(VLOOKUP(B19,[5]Enrollment!$A$2:$G$147,7,0),0) -> 59 | J19: =IF(E19>=$E$17,ROUND(I19*$G$3*$I$17,0),0) -> 26873 | K19: =+F19+H19+J19 -> 89386 | L19: =IF(E19>$E$17,_xlfn.IFNA(VLOOKUP(B19,'[5]other funds ftr 2023'!A:I,9,FALSE),0),1) -> 0.95 | M19: =IF(L19=0,K19,ROUND(K19*L19,0)) -> 84917 | N19: =1+IF(ISNA(VLOOKUP(B19,'[5]Rural and Low Income 24-25'!$A:$B,2,FALSE)),0,$N$17) -> 1.1 | O19: =IF(V19="y",ROUND(M19*N19,0),0) -> 93409 | R19: =ROUND(IF(Q19>0,-(0.9-Q19)*O19,0),0) -> 0 | S19: =O19+R19 -> 93409 | T19: =IFERROR(VLOOKUP(B19,'[5]2023-24 Final'!$B$19:$S$156,18,FALSE),0) -> 67521 | U19: =S19-T19 -> 25888 | V19: y | Y19: =IF(V19="Y",IF(E19<=99,1500,IF(AND(E19>=100,E19<=399),2500,4000)),0) -> 2500 | AA19: =IF(W19=1, 0, Y19+S19+Z19) -> 95909
A20: 2 | B20: 29103 | D20: ANACORTES | E20: =IFERROR(VLOOKUP(B20,[5]Enrollment!$A$2:$G$147,5,0),0) -> 16 | F20: =IF(E20>=10,ROUND(E20*$G$3,0),0) -> 7288 | G20: =IFERROR(VLOOKUP(B20,[5]Enrollment!$A$2:$G$147,6,0),0) -> 2 | H20: =IF(E20>=$E$17,ROUND(G20*$G$3*$G$17,0),0) -> 228 | I20: =IFERROR(VLOOKUP(B20,[5]Enrollment!$A$2:$G$147,7,0),0) -> 11 | J20: =IF(E20>=$E$17,ROUND(I20*$G$3*$I$17,0),0) -> 5010 | K20: 12526 | L20: =IF(E20>$E$17,_xlfn.IFNA(VLOOKUP(B20,'[5]other funds ftr 2023'!A:I,9,FALSE),0),1) -> 0.95 | M20: 11900 | N20: =1+IF(ISNA(VLOOKUP(B20,'[5]Rural and Low Income 24-25'!$A:$B,2,FALSE)),0,$N$17) -> 1 | O20: 0 | R20: 0 | S20: 0 | T20: =IFERROR(VLOOKUP(B20,'[5]2023-24 Final'!$B$19:$S$156,18,FALSE),0) -> 8356 | U20: -8356 | V20: n | Y20: =IF(V20="Y",IF(E20<=99,1500,IF(AND(E20>=100,E20<=399),2500,4000)),0) -> 0 | AA20: =IF(W20=1, 0, Y20+S20+Z20) -> 0
A21: 3 | B21: 31016 | D21: ARLINGTON | E21: =IFERROR(VLOOKUP(B21,[5]Enrollment!$A$2:$G$147,5,0),0) -> 43 | F21: 19585 | G21: =IFERROR(VLOOKUP(B21,[5]Enrollment!$A$2:$G$147,6,0),0) -> 12 | H21: 1366 | I21: =IFERROR(VLOOKUP(B21,[5]Enrollment!$A$2:$G$147,7,0),0) -> 30 | J21: 13664 | K21: 34615 | L21: =IF(E21>$E$17,_xlfn.IFNA(VLOOKUP(B21,'[5]other funds ftr 2023'!A:I,9,FALSE),0),1) -> 0 | M21: 34615 | N21: =1+IF(ISNA(VLOOKUP(B21,'[5]Rural and Low Income 24-25'!$A:$B,2,FALSE)),0,$N$17) -> 1 | O21: 0 | R21: 0 | S21: 0 | T21: =IFERROR(VLOOKUP(B21,'[5]2023-24 Final'!$B$19:$S$156,18,FALSE),0) -> 0 | U21: 0 | V21: n | Y21: 0 | AA21: 0
A22: 4 | B22: 17408 | D22: AUBURN | E22: =IFERROR(VLOOKUP(B22,[5]Enrollment!$A$2:$G$147,5,0),0) -> 34 | F22: 15486 | G22: =IFERROR(VLOOKUP(B22,[5]Enrollment!$A$2:$G$147,6,0),0) -> 5 | H22: 569 | I22: =IFERROR(VLOOKUP(B22,[5]Enrollment!$A$2:$G$147,7,0),0) -> 23 | J22: 10476 | K22: 26531 | L22: =IF(E22>$E$17,_xlfn.IFNA(VLOOKUP(B22,'[5]other funds ftr 2023'!A:I,9,FALSE),0),1) -> 0.95 | M22: 25204 | N22: =1+IF(ISNA(VLOOKUP(B22,'[5]Rural and Low Income 24-25'!$A:$B,2,FALSE)),0,$N$17) -> 1 | O22: 0 | R22: 0 | S22: 0 | T22: =IFERROR(VLOOKUP(B22,'[5]2023-24 Final'!$B$19:$S$156,18,FALSE),0) -> 26459 | U22: -26459 | V22: n | Y22: 0 | AA22: 0
A23: 5 | B23: 06119 | D23: BATTLE GROUND | E23: =IFERROR(VLOOKUP(B23,[5]Enrollment!$A$2:$G$147,5,0),0) -> 25 | F23: 11387 | G23: =IFERROR(VLOOKUP(B23,[5]Enrollment!$A$2:$G$147,6,0),0) -> 11 | H23: 1253 | I23: =IFERROR(VLOOKUP(B23,[5]Enrollment!$A$2:$G$147,7,0),0) -> 12 | J23: 5466 | K23: 18106 | L23: =IF(E23>$E$17,_xlfn.IFNA(VLOOKUP(B23,'[5]other funds ftr 2023'!A:I,9,FALSE),0),1) -> 0 | M23: 18106 | N23: =1+IF(ISNA(VLOOKUP(B23,'[5]Rural and Low Income 24-25'!$A:$B,2,FALSE)),0,$N$17) -> 1 | O23: 0 | R23: 0 | S23: 0 | T23: =IFERROR(VLOOKUP(B23,'[5]2023-24 Final'!$B$19:$S$156,18,FALSE),0) -> 0 | U23: 0 | V23: n | Y23: 0 | AA23: 0
A24: 6 | B24: 37501 | D24: BELLINGHAM | E24: =IFERROR(VLOOKUP(B24,[5]Enrollment!$A$2:$G$147,5,0),0) -> 106 | F24: 48280 | G24: =IFERROR(VLOOKUP(B24,[5]Enrollment!$A$2:$G$147,6,0),0) -> 34 | H24: 3872 | I24: =IFERROR(VLOOKUP(B24,[5]Enrollment!$A$2:$G$147,7,0),0) -> 57 | J24: 25962 | K24: 78114 | L24: =IF(E24>$E$17,_xlfn.IFNA(VLOOKUP(B24,'[5]other funds ftr 2023'!A:I,9,FALSE),0),1) -> 0.95 | M24: 74208 | N24: =1+IF(ISNA(VLOOKUP(B24,'[5]Rural and Low Income 24-25'!$A:$B,2,FALSE)),0,$N$17) -> 1 | O24: 0 | R24: 0 | S24: 0 | T24: =IFERROR(VLOOKUP(B24,'[5]2023-24 Final'!$B$19:$S$156,18,FALSE),0) -> 83056 | U24: -83056 | V24: n | Y24: 0 | AA24: 0
A25: 7 | B25: 27403 | D25: BETHEL | E25: =IFERROR(VLOOKUP(B25,[5]Enrollment!$A$2:$G$147,5,0),0) -> 22 | F25: 10020 | G25: =IFERROR(VLOOKUP(B25,[5]Enrollment!$A$2:$G$147,6,0),0) -> 9 | H25: 1025 | I25: =IFERROR(VLOOKUP(B25,[5]Enrollment!$A$2:$G$147,7,0),0) -> 12 | J25: 5466 | K25: 16511 | L25: =IF(E25>$E$17,_xlfn.IFNA(VLOOKUP(B25,'[5]other funds ftr 2023'!A:I,9,FALSE),0),1) -> 0 | M25: 16511 | N25: =1+IF(ISNA(VLOOKUP(B25,'[5]Rural and Low Income 24-25'!$A:$B,2,FALSE)),0,$N$17) -> 1 | O25: 0 | R25: 0 | S25: 0 | T25: =IFERROR(VLOOKUP(B25,'[5]2023-24 Final'!$B$19:$S$156,18,FALSE),0) -> 0 | U25: 0 | V25: n | Y25: 0 | AA25: 0
A26: 8 | B26: 18100 | D26: BREMERTON | E26: =IFERROR(VLOOKUP(B26,[5]Enrollment!$A$2:$G$147,5,0),0) -> 54 | F26: 24595 | G26: =IFERROR(VLOOKUP(B26,[5]Enrollment!$A$2:$G$147,6,0),0) -> 14 | H26: 1594 | I26: =IFERROR(VLOOKUP(B26,[5]Enrollment!$A$2:$G$147,7,0),0) -> 36 | J26: 16397 | K26: 42586 | L26: =IF(E26>$E$17,_xlfn.IFNA(VLOOKUP(B26,'[5]other funds ftr 2023'!A:I,9,FALSE),0),1) -> 0.95 | M26: 40457 | N26: =1+IF(ISNA(VLOOKUP(B26,'[5]Rural and Low Income 24-25'!$A:$B,2,FALSE)),0,$N$17) -> 1 | O26: 40457 | R26: 0 | S26: 40457 | T26: =IFERROR(VLOOKUP(B26,'[5]2023-24 Final'!$B$19:$S$156,18,FALSE),0) -> 34580 | U26: 5877 | V26: y | Y26: 1500 | AA26: 41957
A27: 9 | B27: 24111 | D27: BREWSTER | E27: =IFERROR(VLOOKUP(B27,[5]Enrollment!$A$2:$G$147,5,0),0) -> 237 | F27: 107947 | G27: =IFERROR(VLOOKUP(B27,[5]Enrollment!$A$2:$G$147,6,0),0) -> 90 | H27: 10248 | I27: =IFERROR(VLOOKUP(B27,[5]Enrollment!$A$2:$G$147,7,0),0) -> 108 | J27: 49191 | K27: 167386 | L27: =IF(E27>$E$17,_xlfn.IFNA(VLOOKUP(B27,'[5]other funds ftr 2023'!A:I,9,FALSE),0),1) -> 1.05 | M27: 175755 | N27: =1+IF(ISNA(VLOOKUP(B27,'[5]Rural and Low Income 24-25'!$A:$B,2,FALSE)),0,$N$17) -> 1.1 | O27: 193331 | R27: 0 | S27: 193331 | T27: =IFERROR(VLOOKUP(B27,'[5]2023-24 Final'!$B$19:$S$156,18,FALSE),0) -> 185543 | U27: 7788 | V27: y | Y27: 2500 | AA27: 195831
A28: 10 | B28: 09075 | D28: BRIDGEPORT | E28: =IFERROR(VLOOKUP(B28,[5]Enrollment!$A$2:$G$147,5,0),0) -> 112 | F28: 51013 | G28: =IFERROR(VLOOKUP(B28,[5]Enrollment!$A$2:$G$147,6,0),0) -> 40 | H28: 4555 | I28: =IFERROR(VLOOKUP(B28,[5]Enrollment!$A$2:$G$147,7,0),0) -> 54 | J28: 24595 | K28: 80163 | L28: =IF(E28>$E$17,_xlfn.IFNA(VLOOKUP(B28,'[5]other funds ftr 2023'!A:I,9,FALSE),0),1) -> 1.05 | M28: 84171 | N28: =1+IF(ISNA(VLOOKUP(B28,'[5]Rural and Low Income 24-25'!$A:$B,2,FALSE)),0,$N$17) -> 1.1 | O28: 92588 | R28: 0 | S28: 92588 | T28: =IFERROR(VLOOKUP(B28,'[5]2023-24 Final'!$B$19:$S$156,18,FALSE),0) -> 102134 | U28: -9546 | V28: y | Y28: 2500 | AA28: 95088
A29: 11 | B29: 29100 | D29: BURLINGTON-EDISON | E29: =IFERROR(VLOOKUP(B29,[5]Enrollment!$A$2:$G$147,5,0),0) -> 501 | F29: 228191 | G29: =IFERROR(VLOOKUP(B29,[5]Enrollment!$A$2:$G$147,6,0),0) -> 134 | H29: 15258 | I29: =IFERROR(VLOOKUP(B29,[5]Enrollment!$A$2:$G$147,7,0),0) -> 268 | J29: 122066 | K29: 365515 | L29: =IF(E29>$E$17,_xlfn.IFNA(VLOOKUP(B29,'[5]other funds ftr 2023'!A:I,9,FALSE),0),1) -> 1.05 | M29: 383791 | N29: =1+IF(ISNA(VLOOKUP(B29,'[5]Rural and Low Income 24-25'!$A:$B,2,FALSE)),0,$N$17) -> 1 | O29: 383791 | R29: 0 | S29: 383791 | T29: =IFERROR(VLOOKUP(B29,'[5]2023-24 Final'!$B$19:$S$156,18,FALSE),0) -> 343367 | U29: 40424 | V29: y | Y29: 4000 | AA29: 387791
A30: 12 | B30: 04228 | D30: CASCADE | E30: =IFERROR(VLOOKUP(B30,[5]Enrollment!$A$2:$G$147,5,0),0) -> 47 | F30: 21407 | G30: =IFERROR(VLOOKUP(B30,[5]Enrollment!$A$2:$G$147,6,0),0) -> 26 | H30: 2961 | I30: =IFERROR(VLOOKUP(B30,[5]Enrollment!$A$2:$G$147,7,0),0) -> 10 | J30: 4555 | K30: 28923 | L30: =IF(E30>$E$17,_xlfn.IFNA(VLOOKUP(B30,'[5]other funds ftr 2023'!A:I,9,FALSE),0),1) -> 1 | M30: 28923 | N30: =1+IF(ISNA(VLOOKUP(B30,'[5]Rural and Low Income 24-25'!$A:$B,2,FALSE)),0,$N$17) -> 1 | O30: 28923 | R30: 0 | S30: 28923 | T30: =IFERROR(VLOOKUP(B30,'[5]2023-24 Final'!$B$19:$S$156,18,FALSE),0) -> 34615 | U30: -5692 | V30: y | Y30: 1500 | AA30: 30423
A31: 14 | B31: 04222 | D31: CASHMERE | E31: =IFERROR(VLOOKUP(B31,[5]Enrollment!$A$2:$G$147,5,0),0) -> 203 | F31: 92461 | G31: =IFERROR(VLOOKUP(B31,[5]Enrollment!$A$2:$G$147,6,0),0) -> 56 | H31: 6377 | I31: =IFERROR(VLOOKUP(B31,[5]Enrollment!$A$2:$G$147,7,0),0) -> 77 | J31: 35071 | K31: 133909 | L31: =IF(E31>$E$17,_xlfn.IFNA(VLOOKUP(B31,'[5]other funds ftr 2023'!A:I,9,FALSE),0),1) -> 1.1 | M31: 147300 | N31: =1+IF(ISNA(VLOOKUP(B31,'[5]Rural and Low Income 24-25'!$A:$B,2,FALSE)),0,$N$17) -> 1 | O31: 147300 | R31: 0 | S31: 147300 | T31: =IFERROR(VLOOKUP(B31,'[5]2023-24 Final'!$B$19:$S$156,18,FALSE),0) -> 153968 | U31: -6668 | V31: y | Y31: 2500 | AA31: 149800
A32: 13 | B32: 18401 | D32: CENTRAL KITSAP | E32: =IFERROR(VLOOKUP(B32,[5]Enrollment!$A$2:$G$147,5,0),0) -> 16 | F32: 7288 | G32: =IFERROR(VLOOKUP(B32,[5]Enrollment!$A$2:$G$147,6,0),0) -> 7 | H32: 797 | I32: =IFERROR(VLOOKUP(B32,[5]Enrollment!$A$2:$G$147,7,0),0) -> 7 | J32: 3188 | K32: 11273 | L32: =IF(E32>$E$17,_xlfn.IFNA(VLOOKUP(B32,'[5]other funds ftr 2023'!A:I,9,FALSE),0),1) -> 0 | M32: 11273 | N32: =1+IF(ISNA(VLOOKUP(B32,'[5]Rural and Low Income 24-25'!$A:$B,2,FALSE)),0,$N$17) -> 1 | O32: 0 | R32: =ROUND(IF(Q32>0,-(0.9-Q32)*O32,0),0) -> 0 | S32: 0 | T32: =IFERROR(VLOOKUP(B32,'[5]2023-24 Final'!$B$19:$S$156,18,FALSE),0) -> 0 | U32: 0 | V32: n | Y32: 0 | AA32: 0
A33: 15 | B33: 32356 | D33: CENTRAL VALLEY | E33: =IFERROR(VLOOKUP(B33,[5]Enrollment!$A$2:$G$147,5,0),0) -> 19 | F33: 8654 | G33: =IFERROR(VLOOKUP(B33,[5]Enrollment!$A$2:$G$147,6,0),0) -> 1 | H33: 114 | I33: =IFERROR(VLOOKUP(B33,[5]Enrollment!$A$2:$G$147,7,0),0) -> 17 | J33: 7743 | K33: 16511 | L33: =IF(E33>$E$17,_xlfn.IFNA(VLOOKUP(B33,'[5]other funds ftr 2023'!A:I,9,FALSE),0),1) -> 0 | M33: 16511 | N33: =1+IF(ISNA(VLOOKUP(B33,'[5]Rural and Low Income 24-25'!$A:$B,2,FALSE)),0,$N$17) -> 1 | O33: 16511 | R33: =ROUND(IF(Q33>0,-(0.9-Q33)*O33,0),0) -> 0 | S33: 16511 | T33: =IFERROR(VLOOKUP(B33,'[5]2023-24 Final'!$B$19:$S$156,18,FALSE),0) -> 0 | U33: 16511 | V33: y | Y33: 1500 | AA33: 18011
A34: 16 | B34: 21401 | D34: CENTRALIA | E34: =IFERROR(VLOOKUP(B34,[5]Enrollment!$A$2:$G$147,5,0),0) -> 88 | F34: 40081 | G34: =IFERROR(VLOOKUP(B34,[5]Enrollment!$A$2:$G$147,6,0),0) -> 48 | H34: 5466 | I34: =IFERROR(VLOOKUP(B34,[5]Enrollment!$A$2:$G$147,7,0),0) -> 26 | J34: 11842 | K34: 57389 | L34: =IF(E34>$E$17,_xlfn.IFNA(VLOOKUP(B34,'[5]other funds ftr 2023'!A:I,9,FALSE),0),1) -> 0.95 | M34: 54520 | N34: =1+IF(ISNA(VLOOKUP(B34,'[5]Rural and Low Income 24-25'!$A:$B,2,FALSE)),0,$N$17) -> 1 | O34: 54520 | R34: =ROUND(IF(Q34>0,-(0.9-Q34)*O34,0),0) -> 0 | S34: 54520 | T34: =IFERROR(VLOOKUP(B34,'[5]2023-24 Final'!$B$19:$S$156,18,FALSE),0) -> 44726 | U34: 9794 | V34: y | X34: Y | Y34: 1500 | AA34: 56020
A35: 17 | B35: 21302 | D35: CHEHALIS | E35: =IFERROR(VLOOKUP(B35,[5]Enrollment!$A$2:$G$147,5,0),0) -> 31 | F35: 14120 | G35: =IFERROR(VLOOKUP(B35,[5]Enrollment!$A$2:$G$147,6,0),0) -> 22 | H35: 2505 | I35: =IFERROR(VLOOKUP(B35,[5]Enrollment!$A$2:$G$147,7,0),0) -> 5 | J35: 2277 | K35: 18902 | L35: =IF(E35>$E$17,_xlfn.IFNA(VLOOKUP(B35,'[5]other funds ftr 2023'!A:I,9,FALSE),0),1) -> 0.95 | M35: 17957 | N35: =1+IF(ISNA(VLOOKUP(B35,'[5]Rural and Low Income 24-25'!$A:$B,2,FALSE)),0,$N$17) -> 1 | O35: 17957 | R35: 0 | S35: 17957 | T35: =IFERROR(VLOOKUP(B35,'[5]2023-24 Final'!$B$19:$S$156,18,FALSE),0) -> 20038 | U35: -2081 | V35: y | Y35: 1500 | AA35: 19457
A36: 18 | B36: 32360 | D36: CHENEY | E36: =IFERROR(VLOOKUP(B36,[5]Enrollment!$A$2:$G$147,5,0),0) -> 17 | F36: 7743 | G36: =IFERROR(VLOOKUP(B36,[5]Enrollment!$A$2:$G$147,6,0),0) -> 7 | H36: 797 | I36: =IFERROR(VLOOKUP(B36,[5]Enrollment!$A$2:$G$147,7,0),0) -> 8 | J36: 3644 | K36: 12184 | L36: =IF(E36>$E$17,_xlfn.IFNA(VLOOKUP(B36,'[5]other funds ftr 2023'!A:I,9,FALSE),0),1) -> 0 | M36: 12184 | N36: =1+IF(ISNA(VLOOKUP(B36,'[5]Rural and Low Income 24-25'!$A:$B,2,FALSE)),0,$N$17) -> 1 | O36: 0 | R36: =ROUND(IF(Q36>0,-(0.9-Q36)*O36,0),0) -> 0 | S36: 0 | T36: =IFERROR(VLOOKUP(B36,'[5]2023-24 Final'!$B$19:$S$156,18,FALSE),0) -> 0 | U36: 0 | V36: n | X36: Y | Y36: 0 | AA36: 0
A37: 19 | B37: 27901 | D37: CHIEF LESCHI TRIBAL COMPACT | E37: =IFERROR(VLOOKUP(B37,[5]Enrollment!$A$2:$G$147,5,0),0) -> 41 | F37: 18674 | G37: =IFERROR(VLOOKUP(B37,[5]Enrollment!$A$2:$G$147,6,0),0) -> 2 | H37: 228 | I37: =IFERROR(VLOOKUP(B37,[5]Enrollment!$A$2:$G$147,7,0),0) -> 29 | J37: 13209 | K37: 32111 | L37: =IF(E37>$E$17,_xlfn.IFNA(VLOOKUP(B37,'[5]other funds ftr 2023'!A:I,9,FALSE),0),1) -> 1.05 | M37: 33717 | N37: =1+IF(ISNA(VLOOKUP(B37,'[5]Rural and Low Income 24-25'!$A:$B,2,FALSE)),0,$N$17) -> 1 | O37: 33717 | R37: 0 | S37: 33717 | T37: =IFERROR(VLOOKUP(B37,'[5]2023-24 Final'!$B$19:$S$156,18,FALSE),0) -> 24852 | U37: 8865 | V37: y | Y37: 1500 | AA37: 35217
A38: 20 | B38: 27400 | D38: CLOVER PARK | E38: =IFERROR(VLOOKUP(B38,[5]Enrollment!$A$2:$G$147,5,0),0) -> 12 | F38: 5466 | G38: =IFERROR(VLOOKUP(B38,[5]Enrollment!$A$2:$G$147,6,0),0) -> 2 | H38: 228 | I38: =IFERROR(VLOOKUP(B38,[5]Enrollment!$A$2:$G$147,7,0),0) -> 7 | J38: 3188 | K38: 8882 | L38: =IF(E38>$E$17,_xlfn.IFNA(VLOOKUP(B38,'[5]other funds ftr 2023'!A:I,9,FALSE),0),1) -> 0 | M38: 8882 | N38: =1+IF(ISNA(VLOOKUP(B38,'[5]Rural and Low Income 24-25'!$A:$B,2,FALSE)),0,$N$17) -> 1 | O38: 0 | R38: 0 | S38: 0 | T38: =IFERROR(VLOOKUP(B38,'[5]2023-24 Final'!$B$19:$S$156,18,FALSE),0) -> 0 | U38: 0 | V38: n | Y38: 0 | AA38: 0
A39: 21 | B39: 36250 | D39: COLLEGE PLACE | E39: =IFERROR(VLOOKUP(B39,[5]Enrollment!$A$2:$G$147,5,0),0) -> 175 | F39: 79707 | G39: =IFERROR(VLOOKUP(B39,[5]Enrollment!$A$2:$G$147,6,0),0) -> 39 | H39: 4441 | I39: =IFERROR(VLOOKUP(B39,[5]Enrollment!$A$2:$G$147,7,0),0) -> 98 | J39: 44636 | K39: 128784 | L39: =IF(E39>$E$17,_xlfn.IFNA(VLOOKUP(B39,'[5]other funds ftr 2023'!A:I,9,FALSE),0),1) -> 1 | M39: 128784 | N39: =1+IF(ISNA(VLOOKUP(B39,'[5]Rural and Low Income 24-25'!$A:$B,2,FALSE)),0,$N$17) -> 1 | O39: 128784 | R39: 0 | S39: 128784 | T39: =IFERROR(VLOOKUP(B39,'[5]2023-24 Final'!$B$19:$S$156,18,FALSE),0) -> 88165 | U39: 40619 | V39: y | Y39: 2500 | Z39: 40000 | AA39: 171284
A40: 22 | B40: 36400 | D40: COLUMBIA (WALLA WALLA) | E40: =IFERROR(VLOOKUP(B40,[5]Enrollment!$A$2:$G$147,5,0),0) -> 65 | F40: 29606 | G40: =IFERROR(VLOOKUP(B40,[5]Enrollment!$A$2:$G$147,6,0),0) -> 26 | H40: 2961 | I40: =IFERROR(VLOOKUP(B40,[5]Enrollment!$A$2:$G$147,7,0),0) -> 36 | J40: 16397 | K40: 48964 | L40: =IF(E40>$E$17,_xlfn.IFNA(VLOOKUP(B40,'[5]other funds ftr 2023'!A:I,9,FALSE),0),1) -> 1 | M40: 48964 | N40: =1+IF(ISNA(VLOOKUP(B40,'[5]Rural and Low Income 24-25'!$A:$B,2,FALSE)),0,$N$17) -> 1 | O40: 48964 | R40: 0 | S40: 48964 | T40: =IFERROR(VLOOKUP(B40,'[5]2023-24 Final'!$B$19:$S$156,18,FALSE),0) -> 33640 | U40: 15324 | V40: y | W40: 1 | Y40: 1500 | AA40: 0
A41: 23 | B41: 29317 | D41: CONWAY | E41: =IFERROR(VLOOKUP(B41,[5]Enrollment!$A$2:$G$147,5,0),0) -> 12 | F41: 5466 | G41: =IFERROR(VLOOKUP(B41,[5]Enrollment!$A$2:$G$147,6,0),0) -> 6 | H41: 683 | I41: =IFERROR(VLOOKUP(B41,[5]Enrollment!$A$2:$G$147,7,0),0) -> 4 | J41: 1822 | K41: 7971 | L41: =IF(E41>$E$17,_xlfn.IFNA(VLOOKUP(B41,'[5]other funds ftr 2023'!A:I,9,FALSE),0),1) -> 0 | M41: 7971 | N41: =1+IF(ISNA(VLOOKUP(B41,'[5]Rural and Low Income 24-25'!$A:$B,2,FALSE)),0,$N$17) -> 1.1 | O41: 0 | R41: 0 | S41: 0 | T41: =IFERROR(VLOOKUP(B41,'[5]2023-24 Final'!$B$19:$S$156,18,FALSE),0) -> 0 | U41: 0 | V41: n | Y41: 0 | AA41: 0
A42: 24 | B42: 15204 | D42: COUPEVILLE | E42: =IFERROR(VLOOKUP(B42,[5]Enrollment!$A$2:$G$147,5,0),0) -> 11 | F42: 5010 | G42: =IFERROR(VLOOKUP(B42,[5]Enrollment!$A$2:$G$147,6,0),0) -> 2 | H42: 228 | I42: =IFERROR(VLOOKUP(B42,[5]Enrollment!$A$2:$G$147,7,0),0) -> 5 | J42: 2277 | K42: 7515 | L42: =IF(E42>$E$17,_xlfn.IFNA(VLOOKUP(B42,'[5]other funds ftr 2023'!A:I,9,FALSE),0),1) -> 0.95 | M42: 7139 | N42: =1+IF(ISNA(VLOOKUP(B42,'[5]Rural and Low Income 24-25'!$A:$B,2,FALSE)),0,$N$17) -> 1 | O42: 7139 | R42: 0 | S42: 7139 | T42: =IFERROR(VLOOKUP(B42,'[5]2023-24 Final'!$B$19:$S$156,18,FALSE),0) -> 9132 | U42: -1993 | V42: y | Y42: 1500 | AA42: 8639
A43: 25 | B43: 39090 | D43: EAST VALLEY (YAKIMA) | E43: =IFERROR(VLOOKUP(B43,[5]Enrollment!$A$2:$G$147,5,0),0) -> 229 | F43: 104303 | G43: =IFERROR(VLOOKUP(B43,[5]Enrollment!$A$2:$G$147,6,0),0) -> 38 | H43: 4327 | I43: =IFERROR(VLOOKUP(B43,[5]Enrollment!$A$2:$G$147,7,0),0) -> 147 | J43: 66954 | K43: 175584 | L43: =IF(E43>$E$17,_xlfn.IFNA(VLOOKUP(B43,'[5]other funds ftr 2023'!A:I,9,FALSE),0),1) -> 0 | M43: 175584 | N43: =1+IF(ISNA(VLOOKUP(B43,'[5]Rural and Low Income 24-25'!$A:$B,2,FALSE)),0,$N$17) -> 1 | O43: 0 | R43: 0 | S43: 0 | T43: =IFERROR(VLOOKUP(B43,'[5]2023-24 Final'!$B$19:$S$156,18,FALSE),0) -> 0 | U43: 0 | V43: n | Y43: 0 | AA43: 0
A44: 26 | B44: 09206 | D44: EASTMONT | E44: =IFERROR(VLOOKUP(B44,[5]Enrollment!$A$2:$G$147,5,0),0) -> 883 | F44: 402181 | G44: =IFERROR(VLOOKUP(B44,[5]Enrollment!$A$2:$G$147,6,0),0) -> 356 | H44: 40537 | I44: =IFERROR(VLOOKUP(B44,[5]Enrollment!$A$2:$G$147,7,0),0) -> 436 | J44: 198585 | K44: 641303 | L44: =IF(E44>$E$17,_xlfn.IFNA(VLOOKUP(B44,'[5]other funds ftr 2023'!A:I,9,FALSE),0),1) -> 1.05 | M44: 673368 | N44: =1+IF(ISNA(VLOOKUP(B44,'[5]Rural and Low Income 24-25'!$A:$B,2,FALSE)),0,$N$17) -> 1 | O44: 673368 | R44: 0 | S44: 673368 | T44: =IFERROR(VLOOKUP(B44,'[5]2023-24 Final'!$B$19:$S$156,18,FALSE),0) -> 651200 | U44: 22168 | V44: y | Y44: 4000 | Z44: 60000 | AA44: 737368
A45: 27 | B45: 19028 | D45: EASTON | E45: =IFERROR(VLOOKUP(B45,[5]Enrollment!$A$2:$G$147,5,0),0) -> 0 | F45: 0 | G45: =IFERROR(VLOOKUP(B45,[5]Enrollment!$A$2:$G$147,6,0),0) -> 0 | H45: 0 | I45: =IFERROR(VLOOKUP(B45,[5]Enrollment!$A$2:$G$147,7,0),0) -> 0 | J45: 0 | K45: 0 | L45: =IF(E45>$E$17,_xlfn.IFNA(VLOOKUP(B45,'[5]other funds ftr 2023'!A:I,9,FALSE),0),1) -> 1 | M45: 0 | N45: =1+IF(ISNA(VLOOKUP(B45,'[5]Rural and Low Income 24-25'!$A:$B,2,FALSE)),0,$N$17) -> 1.1 | O45: 0 | R45: 0 | S45: 0 | T45: =IFERROR(VLOOKUP(B45,'[5]2023-24 Final'!$B$19:$S$156,18,FALSE),0) -> 0 | U45: 0 | V45: n | Y45: 0 | AA45: 0
A46: 28 | B46: 31015 | D46: EDMONDS | E46: =IFERROR(VLOOKUP(B46,[5]Enrollment!$A$2:$G$147,5,0),0) -> 18 | F46: 8198 | G46: =IFERROR(VLOOKUP(B46,[5]Enrollment!$A$2:$G$147,6,0),0) -> 4 | H46: 455 | I46: =IFERROR(VLOOKUP(B46,[5]Enrollment!$A$2:$G$147,7,0),0) -> 11 | J46: 5010 | K46: 13663 | L46: =IF(E46>$E$17,_xlfn.IFNA(VLOOKUP(B46,'[5]other funds ftr 2023'!A:I,9,FALSE),0),1) -> 0 | M46: 13663 | N46: =1+IF(ISNA(VLOOKUP(B46,'[5]Rural and Low Income 24-25'!$A:$B,2,FALSE)),0,$N$17) -> 1 | O46: 13663 | R46: 0 | S46: 13663 | T46: =IFERROR(VLOOKUP(B46,'[5]2023-24 Final'!$B$19:$S$156,18,FALSE),0) -> 0 | U46: 13663 | V46: y | Y46: 1500 | AA46: 15163
A47: 29 | B47: 39801 | D47: EDUCATIONAL SERVICE DISTRICT 105 | E47: =IFERROR(VLOOKUP(B47,[5]Enrollment!$A$2:$G$147,5,0),0) -> 20 | F47: 9109 | G47: =IFERROR(VLOOKUP(B47,[5]Enrollment!$A$2:$G$147,6,0),0) -> 10 | H47: 1139 | I47: =IFERROR(VLOOKUP(B47,[5]Enrollment!$A$2:$G$147,7,0),0) -> 10 | J47: 4555 | K47: 14803 | L47: =IF(E47>$E$17,_xlfn.IFNA(VLOOKUP(B47,'[5]other funds ftr 2023'!A:I,9,FALSE),0),1) -> 0 | M47: 14803 | N47: =1+IF(ISNA(VLOOKUP(B47,'[5]Rural and Low Income 24-25'!$A:$B,2,FALSE)),0,$N$17) -> 1 | O47: 0 | R47: 0 | S47: 0 | T47: =IFERROR(VLOOKUP(B47,'[5]2023-24 Final'!$B$19:$S$156,18,FALSE),0) -> 0 | U47: 0 | Y47: 0 | AA47: 0
A48: 30 | B48: 11801 | D48: EDUCATIONAL SERVICE DISTRICT 123 | E48: =IFERROR(VLOOKUP(B48,[5]Enrollment!$A$2:$G$147,5,0),0) -> 131 | F48: 59667 | G48: =IFERROR(VLOOKUP(B48,[5]Enrollment!$A$2:$G$147,6,0),0) -> 76 | H48: 8654 | I48: =IFERROR(VLOOKUP(B48,[5]Enrollment!$A$2:$G$147,7,0),0) -> 43 | J48: 19585 | K48: 87906 | L48: =IF(E48>$E$17,_xlfn.IFNA(VLOOKUP(B48,'[5]other funds ftr 2023'!A:I,9,FALSE),0),1) -> 0 | M48: 87906 | N48: =1+IF(ISNA(VLOOKUP(B48,'[5]Rural and Low Income 24-25'!$A:$B,2,FALSE)),0,$N$17) -> 1 | O48: 0 | R48: 0 | S48: 0 | T48: =IFERROR(VLOOKUP(B48,'[5]2023-24 Final'!$B$19:$S$156,18,FALSE),0) -> 0 | U48: 0 | Y48: 0 | AA48: 0
A49: 31 | B49: 19401 | D49: ELLENSBURG | E49: =IFERROR(VLOOKUP(B49,[5]Enrollment!$A$2:$G$147,5,0),0) -> 24 | F49: 10931 | G49: =IFERROR(VLOOKUP(B49,[5]Enrollment!$A$2:$G$147,6,0),0) -> 9 | H49: 1025 | I49: =IFERROR(VLOOKUP(B49,[5]Enrollment!$A$2:$G$147,7,0),0) -> 13 | J49: 5921 | K49: 17877 | L49: =IF(E49>$E$17,_xlfn.IFNA(VLOOKUP(B49,'[5]other funds ftr 2023'!A:I,9,FALSE),0),1) -> 0 | M49: 17877 | N49: =1+IF(ISNA(VLOOKUP(B49,'[5]Rural and Low Income 24-25'!$A:$B,2,FALSE)),0,$N$17) -> 1 | O49: 0 | R49: 0 | S49: 0 | T49: =IFERROR(VLOOKUP(B49,'[5]2023-24 Final'!$B$19:$S$156,18,FALSE),0) -> 0 | U49: 0 | V49: n | Y49: 0 | AA49: 0
A50: 32 | B50: 14068 | D50: ELMA | E50: =IFERROR(VLOOKUP(B50,[5]Enrollment!$A$2:$G$147,5,0),0) -> 33 | F50: 15031 | G50: =IFERROR(VLOOKUP(B50,[5]Enrollment!$A$2:$G$147,6,0),0) -> 15 | H50: 1708 | I50: =IFERROR(VLOOKUP(B50,[5]Enrollment!$A$2:$G$147,7,0),0) -> 13 | J50: 5921 | K50: 22660 | L50: =IF(E50>$E$17,_xlfn.IFNA(VLOOKUP(B50,'[5]other funds ftr 2023'!A:I,9,FALSE),0),1) -> 0 | M50: 22660 | N50: =1+IF(ISNA(VLOOKUP(B50,'[5]Rural and Low Income 24-25'!$A:$B,2,FALSE)),0,$N$17) -> 1.1 | O50: 0 | R50: 0 | S50: 0 | T50: =IFERROR(VLOOKUP(B50,'[5]2023-24 Final'!$B$19:$S$156,18,FALSE),0) -> 0 | U50: 0 | V50: n | Y50: 0 | AA50: 0
A51: 33 | B51: 04127 | D51: ENTIAT | E51: =IFERROR(VLOOKUP(B51,[5]Enrollment!$A$2:$G$147,5,0),0) -> 61 | F51: 27784 | G51: =IFERROR(VLOOKUP(B51,[5]Enrollment!$A$2:$G$147,6,0),0) -> 1 | H51: 114 | I51: =IFERROR(VLOOKUP(B51,[5]Enrollment!$A$2:$G$147,7,0),0) -> 45 | J51: 20496 | K51: 48394 | L51: =IF(E51>$E$17,_xlfn.IFNA(VLOOKUP(B51,'[5]other funds ftr 2023'!A:I,9,FALSE),0),1) -> 0 | M51: 48394 | N51: =1+IF(ISNA(VLOOKUP(B51,'[5]Rural and Low Income 24-25'!$A:$B,2,FALSE)),0,$N$17) -> 1.1 | O51: 0 | R51: 0 | S51: 0 | T51: =IFERROR(VLOOKUP(B51,'[5]2023-24 Final'!$B$19:$S$156,18,FALSE),0) -> 0 | U51: 0 | V51: n | Y51: 0 | AA51: 0
A52: 34 | B52: 13165 | D52: EPHRATA | E52: =IFERROR(VLOOKUP(B52,[5]Enrollment!$A$2:$G$147,5,0),0) -> 147 | F52: 66954 | G52: =IFERROR(VLOOKUP(B52,[5]Enrollment!$A$2:$G$147,6,0),0) -> 69 | H52: 7857 | I52: =IFERROR(VLOOKUP(B52,[5]Enrollment!$A$2:$G$147,7,0),0) -> 56 | J52: 25506 | K52: 100317 | L52: =IF(E52>$E$17,_xlfn.IFNA(VLOOKUP(B52,'[5]other funds ftr 2023'!A:I,9,FALSE),0),1) -> 1 | M52: 100317 | N52: =1+IF(ISNA(VLOOKUP(B52,'[5]Rural and Low Income 24-25'!$A:$B,2,FALSE)),0,$N$17) -> 1 | O52: 100317 | R52: 0 | S52: 100317 | T52: =IFERROR(VLOOKUP(B52,'[5]2023-24 Final'!$B$19:$S$156,18,FALSE),0) -> 105934 | U52: -5617 | V52: y | Y52: 2500 | AA52: 102817
A53: 35 | B53: 31002 | D53: EVERETT | E53: =IFERROR(VLOOKUP(B53,[5]Enrollment!$A$2:$G$147,5,0),0) -> 59 | F53: 26873 | G53: =IFERROR(VLOOKUP(B53,[5]Enrollment!$A$2:$G$147,6,0),0) -> 9 | H53: 1025 | I53: =IFERROR(VLOOKUP(B53,[5]Enrollment!$A$2:$G$147,7,0),0) -> 40 | J53: 18219 | K53: 46117 | L53: =IF(E53>$E$17,_xlfn.IFNA(VLOOKUP(B53,'[5]other funds ftr 2023'!A:I,9,FALSE),0),1) -> 0 | M53: 46117 | N53: =1+IF(ISNA(VLOOKUP(B53,'[5]Rural and Low Income 24-25'!$A:$B,2,FALSE)),0,$N$17) -> 1 | O53: 0 | R53: 0 | S53: 0 | T53: =IFERROR(VLOOKUP(B53,'[5]2023-24 Final'!$B$19:$S$156,18,FALSE),0) -> 0 | U53: 0 | V53: n | Y53: 0 | AA53: 0
A54: 36 | B54: 06114 | D54: EVERGREEN (CLARK) | E54: =IFERROR(VLOOKUP(B54,[5]Enrollment!$A$2:$G$147,5,0),0) -> 34 | F54: 15486 | G54: =IFERROR(VLOOKUP(B54,[5]Enrollment!$A$2:$G$147,6,0),0) -> 10 | H54: 1139 | I54: =IFERROR(VLOOKUP(B54,[5]Enrollment!$A$2:$G$147,7,0),0) -> 23 | J54: 10476 | K54: 27101 | L54: =IF(E54>$E$17,_xlfn.IFNA(VLOOKUP(B54,'[5]other funds ftr 2023'!A:I,9,FALSE),0),1) -> 0 | M54: 27101 | N54: =1+IF(ISNA(VLOOKUP(B54,'[5]Rural and Low Income 24-25'!$A:$B,2,FALSE)),0,$N$17) -> 1 | O54: 0 | R54: 0 | S54: 0 | T54: =IFERROR(VLOOKUP(B54,'[5]2023-24 Final'!$B$19:$S$156,18,FALSE),0) -> 0 | U54: 0 | V54: n | Y54: 0 | AA54: 0
A55: 37 | B55: 17210 | D55: FEDERAL WAY | E55: =IFERROR(VLOOKUP(B55,[5]Enrollment!$A$2:$G$147,5,0),0) -> 28 | F55: 12753 | G55: =IFERROR(VLOOKUP(B55,[5]Enrollment!$A$2:$G$147,6,0),0) -> 10 | H55: 1139 | I55: =IFERROR(VLOOKUP(B55,[5]Enrollment!$A$2:$G$147,7,0),0) -> 15 | J55: 6832 | K55: 20724 | L55: =IF(E55>$E$17,_xlfn.IFNA(VLOOKUP(B55,'[5]other funds ftr 2023'!A:I,9,FALSE),0),1) -> 0 | M55: 20724 | N55: =1+IF(ISNA(VLOOKUP(B55,'[5]Rural and Low Income 24-25'!$A:$B,2,FALSE)),0,$N$17) -> 1 | O55: 0 | R55: 0 | S55: 0 | T55: =IFERROR(VLOOKUP(B55,'[5]2023-24 Final'!$B$19:$S$156,18,FALSE),0) -> 0 | U55: 0 | V55: n | X55: Y | Y55: 0 | AA55: 0
A56: 38 | B56: 37502 | D56: FERNDALE | E56: =IFERROR(VLOOKUP(B56,[5]Enrollment!$A$2:$G$147,5,0),0) -> 119 | F56: 54201 | G56: =IFERROR(VLOOKUP(B56,[5]Enrollment!$A$2:$G$147,6,0),0) -> 23 | H56: 2619 | I56: =IFERROR(VLOOKUP(B56,[5]Enrollment!$A$2:$G$147,7,0),0) -> 59 | J56: 26873 | K56: 83693 | L56: =IF(E56>$E$17,_xlfn.IFNA(VLOOKUP(B56,'[5]other funds ftr 2023'!A:I,9,FALSE),0),1) -> 1 | M56: 83693 | N56: =1+IF(ISNA(VLOOKUP(B56,'[5]Rural and Low Income 24-25'!$A:$B,2,FALSE)),0,$N$17) -> 1 | O56: 83693 | R56: 0 | S56: 83693 | T56: =IFERROR(VLOOKUP(B56,'[5]2023-24 Final'!$B$19:$S$156,18,FALSE),0) -> 96101 | U56: -12408 | V56: y | X56: Y | Y56: 2500 | AA56: 86193
A57: 39 | B57: 03053 | D57: FINLEY | E57: =IFERROR(VLOOKUP(B57,[5]Enrollment!$A$2:$G$147,5,0),0) -> 115 | F57: 52379 | G57: =IFERROR(VLOOKUP(B57,[5]Enrollment!$A$2:$G$147,6,0),0) -> 37 | H57: 4213 | I57: =IFERROR(VLOOKUP(B57,[5]Enrollment!$A$2:$G$147,7,0),0) -> 64 | J57: 29150 | K57: 85742 | L57: =IF(E57>$E$17,_xlfn.IFNA(VLOOKUP(B57,'[5]other funds ftr 2023'!A:I,9,FALSE),0),1) -> 1.05 | M57: 90029 | N57: =1+IF(ISNA(VLOOKUP(B57,'[5]Rural and Low Income 24-25'!$A:$B,2,FALSE)),0,$N$17) -> 1 | O57: 90029 | R57: 0 | S57: 90029 | T57: =IFERROR(VLOOKUP(B57,'[5]2023-24 Final'!$B$19:$S$156,18,FALSE),0) -> 78879 | U57: 11150 | V57: y | W57: 1 | Y57: 2500 | AA57: 0
A58: 40 | B58: 27402 | D58: FRANKLIN PIERCE | E58: =IFERROR(VLOOKUP(B58,[5]Enrollment!$A$2:$G$147,5,0),0) -> 0 | F58: 0 | G58: =IFERROR(VLOOKUP(B58,[5]Enrollment!$A$2:$G$147,6,0),0) -> 0 | H58: 0 | I58: =IFERROR(VLOOKUP(B58,[5]Enrollment!$A$2:$G$147,7,0),0) -> 0 | J58: 0 | K58: 0 | L58: =IF(E58>$E$17,_xlfn.IFNA(VLOOKUP(B58,'[5]other funds ftr 2023'!A:I,9,FALSE),0),1) -> 1 | M58: 0 | N58: =1+IF(ISNA(VLOOKUP(B58,'[5]Rural and Low Income 24-25'!$A:$B,2,FALSE)),0,$N$17) -> 1 | O58: 0 | R58: 0 | S58: 0 | T58: =IFERROR(VLOOKUP(B58,'[5]2023-24 Final'!$B$19:$S$156,18,FALSE),0) -> 0 | U58: 0 | V58: n | Y58: 0 | AA58: 0
A59: 41 | B59: 20404 | D59: GOLDENDALE | E59: =IFERROR(VLOOKUP(B59,[5]Enrollment!$A$2:$G$147,5,0),0) -> 61 | F59: 27784 | G59: =IFERROR(VLOOKUP(B59,[5]Enrollment!$A$2:$G$147,6,0),0) -> 8 | H59: 911 | I59: =IFERROR(VLOOKUP(B59,[5]Enrollment!$A$2:$G$147,7,0),0) -> 46 | J59: 20952 | K59: 49647 | L59: =IF(E59>$E$17,_xlfn.IFNA(VLOOKUP(B59,'[5]other funds ftr 2023'!A:I,9,FALSE),0),1) -> 1 | M59: 49647 | N59: =1+IF(ISNA(VLOOKUP(B59,'[5]Rural and Low Income 24-25'!$A:$B,2,FALSE)),0,$N$17) -> 1.1 | O59: 54612 | R59: 0 | S59: 54612 | T59: =IFERROR(VLOOKUP(B59,'[5]2023-24 Final'!$B$19:$S$156,18,FALSE),0) -> 62887 | U59: -8275 | V59: y | Y59: 1500 | AA59: 56112
A60: 42 | B60: 13301 | D60: GRAND COULEE DAM | E60: =IFERROR(VLOOKUP(B60,[5]Enrollment!$A$2:$G$147,5,0),0) -> 236 | F60: 107491 | G60: =IFERROR(VLOOKUP(B60,[5]Enrollment!$A$2:$G$147,6,0),0) -> 49 | H60: 5580 | I60: =IFERROR(VLOOKUP(B60,[5]Enrollment!$A$2:$G$147,7,0),0) -> 166 | J60: 75608 | K60: 188679 | L60: =IF(E60>$E$17,_xlfn.IFNA(VLOOKUP(B60,'[5]other funds ftr 2023'!A:I,9,FALSE),0),1) -> 1.1 | M60: 207547 | N60: =1+IF(ISNA(VLOOKUP(B60,'[5]Rural and Low Income 24-25'!$A:$B,2,FALSE)),0,$N$17) -> 1 | O60: 207547 | R60: 0 | S60: 207547 | T60: =IFERROR(VLOOKUP(B60,'[5]2023-24 Final'!$B$19:$S$156,18,FALSE),0) -> 186340 | U60: 21207 | V60: y | Y60: 2500 | AA60: 210047
A61: 43 | B61: 39200 | D61: GRANDVIEW | E61: =IFERROR(VLOOKUP(B61,[5]Enrollment!$A$2:$G$147,5,0),0) -> 599 | F61: 272827 | G61: =IFERROR(VLOOKUP(B61,[5]Enrollment!$A$2:$G$147,6,0),0) -> 235 | H61: 26759 | I61: =IFERROR(VLOOKUP(B61,[5]Enrollment!$A$2:$G$147,7,0),0) -> 292 | J61: 132998 | K61: 432584 | L61: =IF(E61>$E$17,_xlfn.IFNA(VLOOKUP(B61,'[5]other funds ftr 2023'!A:I,9,FALSE),0),1) -> 1.05 | M61: 454213 | N61: =1+IF(ISNA(VLOOKUP(B61,'[5]Rural and Low Income 24-25'!$A:$B,2,FALSE)),0,$N$17) -> 1 | O61: 454213 | R61: 0 | S61: 454213 | T61: =IFERROR(VLOOKUP(B61,'[5]2023-24 Final'!$B$19:$S$156,18,FALSE),0) -> 418367 | U61: 35846 | V61: y | Y61: 4000 | AA61: 458213
A62: 44 | B62: 39204 | D62: GRANGER | E62: =IFERROR(VLOOKUP(B62,[5]Enrollment!$A$2:$G$147,5,0),0) -> 317 | F62: 144384 | G62: =IFERROR(VLOOKUP(B62,[5]Enrollment!$A$2:$G$147,6,0),0) -> 126 | H62: 14347 | I62: =IFERROR(VLOOKUP(B62,[5]Enrollment!$A$2:$G$147,7,0),0) -> 126 | J62: 57389 | K62: 216120 | L62: =IF(E62>$E$17,_xlfn.IFNA(VLOOKUP(B62,'[5]other funds ftr 2023'!A:I,9,FALSE),0),1) -> 1.05 | M62: 226926 | N62: =1+IF(ISNA(VLOOKUP(B62,'[5]Rural and Low Income 24-25'!$A:$B,2,FALSE)),0,$N$17) -> 1.1 | O62: 249619 | R62: 0 | S62: 249619 | T62: =IFERROR(VLOOKUP(B62,'[5]2023-24 Final'!$B$19:$S$156,18,FALSE),0) -> 273546 | U62: -23927 | V62: y | Y62: 2500 | AA62: 252119
A63: 45 | B63: 39203 | D63: HIGHLAND | E63: =IFERROR(VLOOKUP(B63,[5]Enrollment!$A$2:$G$147,5,0),0) -> 211 | F63: 96104 | G63: =IFERROR(VLOOKUP(B63,[5]Enrollment!$A$2:$G$147,6,0),0) -> 64 | H63: 7288 | I63: =IFERROR(VLOOKUP(B63,[5]Enrollment!$A$2:$G$147,7,0),0) -> 121 | J63: 55112 | K63: 158504 | L63: =IF(E63>$E$17,_xlfn.IFNA(VLOOKUP(B63,'[5]other funds ftr 2023'!A:I,9,FALSE),0),1) -> 1.05 | M63: 166429 | N63: =1+IF(ISNA(VLOOKUP(B63,'[5]Rural and Low Income 24-25'!$A:$B,2,FALSE)),0,$N$17) -> 1 | O63: 166429 | R63: 0 | S63: 166429 | T63: =IFERROR(VLOOKUP(B63,'[5]2023-24 Final'!$B$19:$S$156,18,FALSE),0) -> 150995 | U63: 15434 | V63: y | Y63: 2500 | AA63: 168929
A64: 46 | B64: 17401 | D64: HIGHLINE | E64: =IFERROR(VLOOKUP(B64,[5]Enrollment!$A$2:$G$147,5,0),0) -> 0 | F64: 0 | G64: =IFERROR(VLOOKUP(B64,[5]Enrollment!$A$2:$G$147,6,0),0) -> 0 | H64: 0 | I64: =IFERROR(VLOOKUP(B64,[5]Enrollment!$A$2:$G$147,7,0),0) -> 0 | J64: 0 | K64: 0 | L64: =IF(E64>$E$17,_xlfn.IFNA(VLOOKUP(B64,'[5]other funds ftr 2023'!A:I,9,FALSE),0),1) -> 1 | M64: 0 | N64: =1+IF(ISNA(VLOOKUP(B64,'[5]Rural and Low Income 24-25'!$A:$B,2,FALSE)),0,$N$17) -> 1 | O64: 0 | R64: 0 | S64: 0 | T64: =IFERROR(VLOOKUP(B64,'[5]2023-24 Final'!$B$19:$S$156,18,FALSE),0) -> 0 | U64: 0 | V64: n | X64: Y | Y64: 0 | AA64: 0
A65: 47 | B65: 23404 | D65: HOOD CANAL | E65: =IFERROR(VLOOKUP(B65,[5]Enrollment!$A$2:$G$147,5,0),0) -> 44 | F65: 20041 | G65: =IFERROR(VLOOKUP(B65,[5]Enrollment!$A$2:$G$147,6,0),0) -> 4 | H65: 455 | I65: =IFERROR(VLOOKUP(B65,[5]Enrollment!$A$2:$G$147,7,0),0) -> 35 | J65: 15941 | K65: 36437 | L65: =IF(E65>$E$17,_xlfn.IFNA(VLOOKUP(B65,'[5]other funds ftr 2023'!A:I,9,FALSE),0),1) -> 1 | M65: 36437 | N65: =1+IF(ISNA(VLOOKUP(B65,'[5]Rural and Low Income 24-25'!$A:$B,2,FALSE)),0,$N$17) -> 1.1 | O65: 40081 | R65: 0 | S65: 40081 | T65: =IFERROR(VLOOKUP(B65,'[5]2023-24 Final'!$B$19:$S$156,18,FALSE),0) -> 23306 | U65: 16775 | V65: y | Y65: 1500 | AA65: 41581
A66: 48 | B66: 14028 | D66: HOQUIAM | E66: =IFERROR(VLOOKUP(B66,[5]Enrollment!$A$2:$G$147,5,0),0) -> 33 | F66: 15031 | G66: =IFERROR(VLOOKUP(B66,[5]Enrollment!$A$2:$G$147,6,0),0) -> 22 | H66: 2505 | I66: =IFERROR(VLOOKUP(B66,[5]Enrollment!$A$2:$G$147,7,0),0) -> 9 | J66: 4099 | K66: 21635 | L66: =IF(E66>$E$17,_xlfn.IFNA(VLOOKUP(B66,'[5]other funds ftr 2023'!A:I,9,FALSE),0),1) -> 0 | M66: 21635 | N66: =1+IF(ISNA(VLOOKUP(B66,'[5]Rural and Low Income 24-25'!$A:$B,2,FALSE)),0,$N$17) -> 1.1 | O66: 0 | R66: 0 | S66: 0 | T66: =IFERROR(VLOOKUP(B66,'[5]2023-24 Final'!$B$19:$S$156,18,FALSE),0) -> 0 | U66: 0 | V66: n | Y66: 0 | AA66: 0
A67: 49 | B67: 10070 | D67: INCHELIUM | E67: =IFERROR(VLOOKUP(B67,[5]Enrollment!$A$2:$G$147,5,0),0) -> 14 | F67: 6377 | G67: =IFERROR(VLOOKUP(B67,[5]Enrollment!$A$2:$G$147,6,0),0) -> 3 | H67: 342 | I67: =IFERROR(VLOOKUP(B67,[5]Enrollment!$A$2:$G$147,7,0),0) -> 10 | J67: 4555 | K67: 11274 | L67: =IF(E67>$E$17,_xlfn.IFNA(VLOOKUP(B67,'[5]other funds ftr 2023'!A:I,9,FALSE),0),1) -> 0 | M67: 11274 | N67: =1+IF(ISNA(VLOOKUP(B67,'[5]Rural and Low Income 24-25'!$A:$B,2,FALSE)),0,$N$17) -> 1.1 | O67: 12401 | R67: 0 | S67: 12401 | T67: =IFERROR(VLOOKUP(B67,'[5]2023-24 Final'!$B$19:$S$156,18,FALSE),0) -> 0 | U67: 12401 | V67: y | Y67: 1500 | AA67: 13901
A68: 50 | B68: 08458 | D68: KELSO | E68: =IFERROR(VLOOKUP(B68,[5]Enrollment!$A$2:$G$147,5,0),0) -> 32 | F68: 14575 | G68: =IFERROR(VLOOKUP(B68,[5]Enrollment!$A$2:$G$147,6,0),0) -> 6 | H68: 683 | I68: =IFERROR(VLOOKUP(B68,[5]Enrollment!$A$2:$G$147,7,0),0) -> 23 | J68: 10476 | K68: 25734 | L68: =IF(E68>$E$17,_xlfn.IFNA(VLOOKUP(B68,'[5]other funds ftr 2023'!A:I,9,FALSE),0),1) -> 0 | M68: 25734 | N68: =1+IF(ISNA(VLOOKUP(B68,'[5]Rural and Low Income 24-25'!$A:$B,2,FALSE)),0,$N$17) -> 1 | O68: 0 | R68: 0 | S68: 0 | T68: =IFERROR(VLOOKUP(B68,'[5]2023-24 Final'!$B$19:$S$156,18,FALSE),0) -> 0 | U68: 0 | V68: n | Y68: 0 | AA68: 0
A69: 51 | B69: 03017 | D69: KENNEWICK | E69: =IFERROR(VLOOKUP(B69,[5]Enrollment!$A$2:$G$147,5,0),0) -> 2734 | F69: 1245259 | G69: =IFERROR(VLOOKUP(B69,[5]Enrollment!$A$2:$G$147,6,0),0) -> 1199 | H69: 136528 | I69: =IFERROR(VLOOKUP(B69,[5]Enrollment!$A$2:$G$147,7,0),0) -> 1184 | J69: 539278 | K69: 1921065 | L69: =IF(E69>$E$17,_xlfn.IFNA(VLOOKUP(B69,'[5]other funds ftr 2023'!A:I,9,FALSE),0),1) -> 1.05 | M69: 2017118 | N69: =1+IF(ISNA(VLOOKUP(B69,'[5]Rural and Low Income 24-25'!$A:$B,2,FALSE)),0,$N$17) -> 1 | O69: 2017118 | R69: 0 | S69: 2017118 | T69: =IFERROR(VLOOKUP(B69,'[5]2023-24 Final'!$B$19:$S$156,18,FALSE),0) -> 2084988 | U69: -67870 | V69: y | Y69: 4000 | AA69: 2021118
A70: 52 | B70: 17415 | D70: KENT | E70: =IFERROR(VLOOKUP(B70,[5]Enrollment!$A$2:$G$147,5,0),0) -> 26 | F70: 11842 | G70: =IFERROR(VLOOKUP(B70,[5]Enrollment!$A$2:$G$147,6,0),0) -> 11 | H70: 1253 | I70: =IFERROR(VLOOKUP(B70,[5]Enrollment!$A$2:$G$147,7,0),0) -> 14 | J70: 6377 | K70: 19472 | L70: =IF(E70>$E$17,_xlfn.IFNA(VLOOKUP(B70,'[5]other funds ftr 2023'!A:I,9,FALSE),0),1) -> 0 | M70: 19472 | N70: =1+IF(ISNA(VLOOKUP(B70,'[5]Rural and Low Income 24-25'!$A:$B,2,FALSE)),0,$N$17) -> 1 | O70: 0 | R70: 0 | S70: 0 | T70: =IFERROR(VLOOKUP(B70,'[5]2023-24 Final'!$B$19:$S$156,18,FALSE),0) -> 0 | U70: 0 | V70: n | Y70: 0 | AA70: 0
A71: 53 | B71: 03052 | D71: KIONA-BENTON CITY | E71: =IFERROR(VLOOKUP(B71,[5]Enrollment!$A$2:$G$147,5,0),0) -> 330 | F71: 150306 | G71: =IFERROR(VLOOKUP(B71,[5]Enrollment!$A$2:$G$147,6,0),0) -> 123 | H71: 14006 | I71: =IFERROR(VLOOKUP(B71,[5]Enrollment!$A$2:$G$147,7,0),0) -> 166 | J71: 75608 | K71: 239920 | L71: =IF(E71>$E$17,_xlfn.IFNA(VLOOKUP(B71,'[5]other funds ftr 2023'!A:I,9,FALSE),0),1) -> 1.1 | M71: 263912 | N71: =1+IF(ISNA(VLOOKUP(B71,'[5]Rural and Low Income 24-25'!$A:$B,2,FALSE)),0,$N$17) -> 1 | O71: 263912 | R71: 0 | S71: 263912 | T71: =IFERROR(VLOOKUP(B71,'[5]2023-24 Final'!$B$19:$S$156,18,FALSE),0) -> 297413 | U71: -33501 | V71: y | Y71: 2500 | AA71: 266412
A72: 54 | B72: 19403 | D72: KITTITAS | E72: =IFERROR(VLOOKUP(B72,[5]Enrollment!$A$2:$G$147,5,0),0) -> 22 | F72: 10020 | G72: =IFERROR(VLOOKUP(B72,[5]Enrollment!$A$2:$G$147,6,0),0) -> 6 | H72: 683 | I72: =IFERROR(VLOOKUP(B72,[5]Enrollment!$A$2:$G$147,7,0),0) -> 14 | J72: 6377 | K72: 17080 | L72: =IF(E72>$E$17,_xlfn.IFNA(VLOOKUP(B72,'[5]other funds ftr 2023'!A:I,9,FALSE),0),1) -> 0 | M72: 17080 | N72: =1+IF(ISNA(VLOOKUP(B72,'[5]Rural and Low Income 24-25'!$A:$B,2,FALSE)),0,$N$17) -> 1 | O72: 0 | R72: 0 | S72: 0 | T72: =IFERROR(VLOOKUP(B72,'[5]2023-24 Final'!$B$19:$S$156,18,FALSE),0) -> 0 | U72: 0 | V72: n | Y72: 0 | AA72: 0
A73: 55 | B73: 29311 | D73: LA CONNER | E73: =IFERROR(VLOOKUP(B73,[5]Enrollment!$A$2:$G$147,5,0),0) -> 144 | F73: 65588 | G73: =IFERROR(VLOOKUP(B73,[5]Enrollment!$A$2:$G$147,6,0),0) -> 59 | H73: 6718 | I73: =IFERROR(VLOOKUP(B73,[5]Enrollment!$A$2:$G$147,7,0),0) -> 76 | J73: 34616 | K73: 106922 | L73: =IF(E73>$E$17,_xlfn.IFNA(VLOOKUP(B73,'[5]other funds ftr 2023'!A:I,9,FALSE),0),1) -> 1.1 | M73: 117614 | N73: =1+IF(ISNA(VLOOKUP(B73,'[5]Rural and Low Income 24-25'!$A:$B,2,FALSE)),0,$N$17) -> 1.1 | O73: 129375 | R73: 0 | S73: 129375 | T73: =IFERROR(VLOOKUP(B73,'[5]2023-24 Final'!$B$19:$S$156,18,FALSE),0) -> 149862 | U73: -20487 | V73: y | Y73: 2500 | AA73: 131875
A74: 56 | B74: 04129 | D74: LAKE CHELAN | E74: =IFERROR(VLOOKUP(B74,[5]Enrollment!$A$2:$G$147,5,0),0) -> 162 | F74: 73786 | G74: =IFERROR(VLOOKUP(B74,[5]Enrollment!$A$2:$G$147,6,0),0) -> 46 | H74: 5238 | I74: =IFERROR(VLOOKUP(B74,[5]Enrollment!$A$2:$G$147,7,0),0) -> 99 | J74: 45092 | K74: 124116 | L74: =IF(E74>$E$17,_xlfn.IFNA(VLOOKUP(B74,'[5]other funds ftr 2023'!A:I,9,FALSE),0),1) -> 1.05 | M74: 130322 | N74: =1+IF(ISNA(VLOOKUP(B74,'[5]Rural and Low Income 24-25'!$A:$B,2,FALSE)),0,$N$17) -> 1 | O74: 130322 | R74: 0 | S74: 130322 | T74: =IFERROR(VLOOKUP(B74,'[5]2023-24 Final'!$B$19:$S$156,18,FALSE),0) -> 113947 | U74: 16375 | V74: y | Y74: 2500 | AA74: 132822
A75: 57 | B75: 31306 | D75: LAKEWOOD | E75: =IFERROR(VLOOKUP(B75,[5]Enrollment!$A$2:$G$147,5,0),0) -> 15 | F75: 6832 | G75: =IFERROR(VLOOKUP(B75,[5]Enrollment!$A$2:$G$147,6,0),0) -> 0 | H75: 0 | I75: =IFERROR(VLOOKUP(B75,[5]Enrollment!$A$2:$G$147,7,0),0) -> 15 | J75: 6832 | K75: 13664 | L75: =IF(E75>$E$17,_xlfn.IFNA(VLOOKUP(B75,'[5]other funds ftr 2023'!A:I,9,FALSE),0),1) -> 0 | M75: 13664 | N75: =1+IF(ISNA(VLOOKUP(B75,'[5]Rural and Low Income 24-25'!$A:$B,2,FALSE)),0,$N$17) -> 1 | O75: 13664 | R75: 0 | S75: 13664 | T75: =IFERROR(VLOOKUP(B75,'[5]2023-24 Final'!$B$19:$S$156,18,FALSE),0) -> 0 | U75: 13664 | V75: y | Y75: 1500 | AA75: 15164
A76: 58 | B76: 01158 | D76: LIND | E76: =IFERROR(VLOOKUP(B76,[5]Enrollment!$A$2:$G$147,5,0),0) -> 40 | F76: 18219 | G76: =IFERROR(VLOOKUP(B76,[5]Enrollment!$A$2:$G$147,6,0),0) -> 7 | H76: 797 | I76: =IFERROR(VLOOKUP(B76,[5]Enrollment!$A$2:$G$147,7,0),0) -> 25 | J76: 11387 | K76: 30403 | L76: =IF(E76>$E$17,_xlfn.IFNA(VLOOKUP(B76,'[5]other funds ftr 2023'!A:I,9,FALSE),0),1) -> 1.05 | M76: 31923 | N76: =1+IF(ISNA(VLOOKUP(B76,'[5]Rural and Low Income 24-25'!$A:$B,2,FALSE)),0,$N$17) -> 1.1 | O76: 35115 | R76: 0 | S76: 35115 | T76: =IFERROR(VLOOKUP(B76,'[5]2023-24 Final'!$B$19:$S$156,18,FALSE),0) -> 33092 | U76: 2023 | V76: y | Y76: 1500 | AA76: 36615
A77: 59 | B77: 08122 | D77: LONGVIEW | E77: =IFERROR(VLOOKUP(B77,[5]Enrollment!$A$2:$G$147,5,0),0) -> 36 | F77: 16397 | G77: =IFERROR(VLOOKUP(B77,[5]Enrollment!$A$2:$G$147,6,0),0) -> 11 | H77: 1253 | I77: =IFERROR(VLOOKUP(B77,[5]Enrollment!$A$2:$G$147,7,0),0) -> 18 | J77: 8198 | K77: 25848 | L77: =IF(E77>$E$17,_xlfn.IFNA(VLOOKUP(B77,'[5]other funds ftr 2023'!A:I,9,FALSE),0),1) -> 0 | M77: 25848 | N77: =1+IF(ISNA(VLOOKUP(B77,'[5]Rural and Low Income 24-25'!$A:$B,2,FALSE)),0,$N$17) -> 1 | O77: 0 | R77: 0 | S77: 0 | T77: =IFERROR(VLOOKUP(B77,'[5]2023-24 Final'!$B$19:$S$156,18,FALSE),0) -> 0 | U77: 0 | V77: n | Y77: 0 | AA77: 0
A78: 60 | B78: 20406 | D78: LYLE | E78: =IFERROR(VLOOKUP(B78,[5]Enrollment!$A$2:$G$147,5,0),0) -> 19 | F78: 8654 | G78: =IFERROR(VLOOKUP(B78,[5]Enrollment!$A$2:$G$147,6,0),0) -> 0 | H78: 0 | I78: =IFERROR(VLOOKUP(B78,[5]Enrollment!$A$2:$G$147,7,0),0) -> 13 | J78: 5921 | K78: 14575 | L78: =IF(E78>$E$17,_xlfn.IFNA(VLOOKUP(B78,'[5]other funds ftr 2023'!A:I,9,FALSE),0),1) -> 1.05 | M78: 15304 | N78: =1+IF(ISNA(VLOOKUP(B78,'[5]Rural and Low Income 24-25'!$A:$B,2,FALSE)),0,$N$17) -> 1.1 | O78: 0 | R78: 0 | S78: 0 | T78: =IFERROR(VLOOKUP(B78,'[5]2023-24 Final'!$B$19:$S$156,18,FALSE),0) -> 21555 | U78: -21555 | V78: n | Y78: 0 | AA78: 0
A79: 61 | B79: 37504 | D79: LYNDEN | E79: =IFERROR(VLOOKUP(B79,[5]Enrollment!$A$2:$G$147,5,0),0) -> 106 | F79: 48280 | G79: =IFERROR(VLOOKUP(B79,[5]Enrollment!$A$2:$G$147,6,0),0) -> 36 | H79: 4099 | I79: =IFERROR(VLOOKUP(B79,[5]Enrollment!$A$2:$G$147,7,0),0) -> 46 | J79: 20952 | K79: 73331 | L79: =IF(E79>$E$17,_xlfn.IFNA(VLOOKUP(B79,'[5]other funds ftr 2023'!A:I,9,FALSE),0),1) -> 1 | M79: 73331 | N79: =1+IF(ISNA(VLOOKUP(B79,'[5]Rural and Low Income 24-25'!$A:$B,2,FALSE)),0,$N$17) -> 1 | O79: 73331 | R79: 0 | S79: 73331 | T79: =IFERROR(VLOOKUP(B79,'[5]2023-24 Final'!$B$19:$S$156,18,FALSE),0) -> 84748 | U79: -11417 | V79: y | Y79: 2500 | AA79: 75831
A80: 62 | B80: 39120 | D80: MABTON | E80: =IFERROR(VLOOKUP(B80,[5]Enrollment!$A$2:$G$147,5,0),0) -> 353 | F80: 160781 | G80: =IFERROR(VLOOKUP(B80,[5]Enrollment!$A$2:$G$147,6,0),0) -> 139 | H80: 15828 | I80: =IFERROR(VLOOKUP(B80,[5]Enrollment!$A$2:$G$147,7,0),0) -> 179 | J80: 81529 | K80: 258138 | L80: =IF(E80>$E$17,_xlfn.IFNA(VLOOKUP(B80,'[5]other funds ftr 2023'!A:I,9,FALSE),0),1) -> 1.1 | M80: 283952 | N80: =1+IF(ISNA(VLOOKUP(B80,'[5]Rural and Low Income 24-25'!$A:$B,2,FALSE)),0,$N$17) -> 1.1 | O80: 312347 | R80: 0 | S80: 312347 | T80: =IFERROR(VLOOKUP(B80,'[5]2023-24 Final'!$B$19:$S$156,18,FALSE),0) -> 337724 | U80: -25377 | V80: y | Y80: 2500 | AA80: 314847
A81: 63 | B81: 04019 | D81: MANSON | E81: =IFERROR(VLOOKUP(B81,[5]Enrollment!$A$2:$G$147,5,0),0) -> 95 | F81: 43270 | G81: =IFERROR(VLOOKUP(B81,[5]Enrollment!$A$2:$G$147,6,0),0) -> 27 | H81: 3074 | I81: =IFERROR(VLOOKUP(B81,[5]Enrollment!$A$2:$G$147,7,0),0) -> 53 | J81: 24140 | K81: 70484 | L81: =IF(E81>$E$17,_xlfn.IFNA(VLOOKUP(B81,'[5]other funds ftr 2023'!A:I,9,FALSE),0),1) -> 1.05 | M81: 74008 | N81: =1+IF(ISNA(VLOOKUP(B81,'[5]Rural and Low Income 24-25'!$A:$B,2,FALSE)),0,$N$17) -> 1.1 | O81: 81409 | R81: 0 | S81: 81409 | T81: =IFERROR(VLOOKUP(B81,'[5]2023-24 Final'!$B$19:$S$156,18,FALSE),0) -> 58487 | U81: 22922 | V81: y | Y81: 1500 | AA81: 82909
A82: 64 | B82: 33207 | D82: MARY WALKER | E82: =IFERROR(VLOOKUP(B82,[5]Enrollment!$A$2:$G$147,5,0),0) -> 16 | F82: 7288 | G82: =IFERROR(VLOOKUP(B82,[5]Enrollment!$A$2:$G$147,6,0),0) -> 1 | H82: 114 | I82: =IFERROR(VLOOKUP(B82,[5]Enrollment!$A$2:$G$147,7,0),0) -> 13 | J82: 5921 | K82: 13323 | L82: =IF(E82>$E$17,_xlfn.IFNA(VLOOKUP(B82,'[5]other funds ftr 2023'!A:I,9,FALSE),0),1) -> 0 | M82: 13323 | N82: =1+IF(ISNA(VLOOKUP(B82,'[5]Rural and Low Income 24-25'!$A:$B,2,FALSE)),0,$N$17) -> 1.1 | O82: 0 | R82: 0 | S82: 0 | T82: =IFERROR(VLOOKUP(B82,'[5]2023-24 Final'!$B$19:$S$156,18,FALSE),0) -> 0 | U82: 0 | V82: n | Y82: 0 | AA82: 0
A83: 65 | B83: 31025 | D83: MARYSVILLE | E83: =IFERROR(VLOOKUP(B83,[5]Enrollment!$A$2:$G$147,5,0),0) -> 321 | F83: 146206 | G83: =IFERROR(VLOOKUP(B83,[5]Enrollment!$A$2:$G$147,6,0),0) -> 68 | H83: 7743 | I83: =IFERROR(VLOOKUP(B83,[5]Enrollment!$A$2:$G$147,7,0),0) -> 220 | J83: 100204 | K83: =+F83+H83+J83 -> 254153 | L83: =IF(E83>$E$17,_xlfn.IFNA(VLOOKUP(B83,'[5]other funds ftr 2023'!A:I,9,FALSE),0),1) -> 1 | M83: =IF(L83=0,K83,ROUND(K83*L83,0)) -> 254153 | N83: =1+IF(ISNA(VLOOKUP(B83,'[5]Rural and Low Income 24-25'!$A:$B,2,FALSE)),0,$N$17) -> 1 | O83: =IF(V83="y",ROUND(M83*N83,0),0) -> 254153 | R83: 0 | S83: =O83+R83 -> 254153 | T83: =IFERROR(VLOOKUP(B83,'[5]2023-24 Final'!$B$19:$S$156,18,FALSE),0) -> 194125 | U83: =S83-T83 -> 60028 | V83: y | Y83: 2500 | AA83: 256653
A84: 66 | B84: 37505 | D84: MERIDIAN | E84: =IFERROR(VLOOKUP(B84,[5]Enrollment!$A$2:$G$147,5,0),0) -> 41 | F84: =IF(E84>=10,ROUND(E84*$G$3,0),0) -> 18674 | G84: =IFERROR(VLOOKUP(B84,[5]Enrollment!$A$2:$G$147,6,0),0) -> 12 | H84: =IF(E84>=$E$17,ROUND(G84*$G$3*$G$17,0),0) -> 1366 | I84: =IFERROR(VLOOKUP(B84,[5]Enrollment!$A$2:$G$147,7,0),0) -> 28 | J84: =IF(E84>=$E$17,ROUND(I84*$G$3*$I$17,0),0) -> 12753 | K84: 32793 | L84: =IF(E84>$E$17,_xlfn.IFNA(VLOOKUP(B84,'[5]other funds ftr 2023'!A:I,9,FALSE),0),1) -> 1 | M84: 32793 | N84: =1+IF(ISNA(VLOOKUP(B84,'[5]Rural and Low Income 24-25'!$A:$B,2,FALSE)),0,$N$17) -> 1 | O84: 32793 | R84: 0 | S84: 32793 | T84: =IFERROR(VLOOKUP(B84,'[5]2023-24 Final'!$B$19:$S$156,18,FALSE),0) -> 31830 | U84: 963 | V84: y | Y84: =IF(V84="Y",IF(E84<=99,1500,IF(AND(E84>=100,E84<=399),2500,4000)),0) -> 1500 | AA84: =IF(W84=1, 0, Y84+S84+Z84) -> 34293
A85: 67 | B85: 31103 | D85: MONROE | E85: =IFERROR(VLOOKUP(B85,[5]Enrollment!$A$2:$G$147,5,0),0) -> 19 | F85: 8654 | G85: =IFERROR(VLOOKUP(B85,[5]Enrollment!$A$2:$G$147,6,0),0) -> 6 | H85: 683 | I85: =IFERROR(VLOOKUP(B85,[5]Enrollment!$A$2:$G$147,7,0),0) -> 10 | J85: 4555 | K85: 13892 | L85: =IF(E85>$E$17,_xlfn.IFNA(VLOOKUP(B85,'[5]other funds ftr 2023'!A:I,9,FALSE),0),1) -> 0 | M85: 13892 | N85: =1+IF(ISNA(VLOOKUP(B85,'[5]Rural and Low Income 24-25'!$A:$B,2,FALSE)),0,$N$17) -> 1 | O85: 0 | R85: 0 | S85: 0 | T85: =IFERROR(VLOOKUP(B85,'[5]2023-24 Final'!$B$19:$S$156,18,FALSE),0) -> 0 | U85: 0 | V85: n | X85: Y | Y85: 0 | AA85: 0
A86: 68 | B86: 13161 | D86: MOSES LAKE | E86: =IFERROR(VLOOKUP(B86,[5]Enrollment!$A$2:$G$147,5,0),0) -> 475 | F86: 216349 | G86: =IFERROR(VLOOKUP(B86,[5]Enrollment!$A$2:$G$147,6,0),0) -> 146 | H86: 16625 | I86: =IFERROR(VLOOKUP(B86,[5]Enrollment!$A$2:$G$147,7,0),0) -> 297 | J86: 135275 | K86: 368249 | L86: =IF(E86>$E$17,_xlfn.IFNA(VLOOKUP(B86,'[5]other funds ftr 2023'!A:I,9,FALSE),0),1) -> 1 | M86: 368249 | N86: =1+IF(ISNA(VLOOKUP(B86,'[5]Rural and Low Income 24-25'!$A:$B,2,FALSE)),0,$N$17) -> 1 | O86: 368249 | R86: 0 | S86: 368249 | T86: =IFERROR(VLOOKUP(B86,'[5]2023-24 Final'!$B$19:$S$156,18,FALSE),0) -> 322609 | U86: 45640 | V86: y | X86: Y | Y86: 4000 | AA86: 372249
A87: 69 | B87: 21206 | D87: MOSSYROCK | E87: =IFERROR(VLOOKUP(B87,[5]Enrollment!$A$2:$G$147,5,0),0) -> 26 | F87: 11842 | G87: =IFERROR(VLOOKUP(B87,[5]Enrollment!$A$2:$G$147,6,0),0) -> 15 | H87: 1708 | I87: =IFERROR(VLOOKUP(B87,[5]Enrollment!$A$2:$G$147,7,0),0) -> 7 | J87: 3188 | K87: 16738 | L87: =IF(E87>$E$17,_xlfn.IFNA(VLOOKUP(B87,'[5]other funds ftr 2023'!A:I,9,FALSE),0),1) -> 1 | M87: 16738 | N87: =1+IF(ISNA(VLOOKUP(B87,'[5]Rural and Low Income 24-25'!$A:$B,2,FALSE)),0,$N$17) -> 1.1 | O87: 18412 | R87: 0 | S87: 18412 | T87: =IFERROR(VLOOKUP(B87,'[5]2023-24 Final'!$B$19:$S$156,18,FALSE),0) -> 34685 | U87: -16273 | V87: y | Y87: 1500 | AA87: 19912
A88: 70 | B88: 39209 | D88: MOUNT ADAMS | E88: =IFERROR(VLOOKUP(B88,[5]Enrollment!$A$2:$G$147,5,0),0) -> 239 | F88: 108858 | G88: =IFERROR(VLOOKUP(B88,[5]Enrollment!$A$2:$G$147,6,0),0) -> 125 | H88: 14233 | I88: =IFERROR(VLOOKUP(B88,[5]Enrollment!$A$2:$G$147,7,0),0) -> 82 | J88: 37349 | K88: 160440 | L88: =IF(E88>$E$17,_xlfn.IFNA(VLOOKUP(B88,'[5]other funds ftr 2023'!A:I,9,FALSE),0),1) -> 1.1 | M88: 176484 | N88: =1+IF(ISNA(VLOOKUP(B88,'[5]Rural and Low Income 24-25'!$A:$B,2,FALSE)),0,$N$17) -> 1.1 | O88: 194132 | R88: 0 | S88: 194132 | T88: =IFERROR(VLOOKUP(B88,'[5]2023-24 Final'!$B$19:$S$156,18,FALSE),0) -> 178880 | U88: 15252 | V88: y | Y88: 2500 | AA88: 196632
A89: 71 | B89: 37507 | D89: MOUNT BAKER | E89: =IFERROR(VLOOKUP(B89,[5]Enrollment!$A$2:$G$147,5,0),0) -> 30 | F89: 13664 | G89: =IFERROR(VLOOKUP(B89,[5]Enrollment!$A$2:$G$147,6,0),0) -> 17 | H89: 1936 | I89: =IFERROR(VLOOKUP(B89,[5]Enrollment!$A$2:$G$147,7,0),0) -> 11 | J89: 5010 | K89: 20610 | L89: =IF(E89>$E$17,_xlfn.IFNA(VLOOKUP(B89,'[5]other funds ftr 2023'!A:I,9,FALSE),0),1) -> 1 | M89: 20610 | N89: =1+IF(ISNA(VLOOKUP(B89,'[5]Rural and Low Income 24-25'!$A:$B,2,FALSE)),0,$N$17) -> 1 | O89: 20610 | R89: 0 | S89: 20610 | T89: =IFERROR(VLOOKUP(B89,'[5]2023-24 Final'!$B$19:$S$156,18,FALSE),0) -> 32974 | U89: -12364 | V89: y | Y89: 1500 | AA89: 22110
A90: 72 | B90: 29320 | D90: MOUNT VERNON | E90: =IFERROR(VLOOKUP(B90,[5]Enrollment!$A$2:$G$147,5,0),0) -> 1857 | F90: 845810 | G90: =IFERROR(VLOOKUP(B90,[5]Enrollment!$A$2:$G$147,6,0),0) -> 753 | H90: 85742 | I90: =IFERROR(VLOOKUP(B90,[5]Enrollment!$A$2:$G$147,7,0),0) -> 874 | J90: 398082 | K90: 1329634 | L90: =IF(E90>$E$17,_xlfn.IFNA(VLOOKUP(B90,'[5]other funds ftr 2023'!A:I,9,FALSE),0),1) -> 1.1 | M90: 1462597 | N90: =1+IF(ISNA(VLOOKUP(B90,'[5]Rural and Low Income 24-25'!$A:$B,2,FALSE)),0,$N$17) -> 1 | O90: 1462597 | R90: 0 | S90: 1462597 | T90: =IFERROR(VLOOKUP(B90,'[5]2023-24 Final'!$B$19:$S$156,18,FALSE),0) -> 1143646 | U90: 318951 | V90: y | Y90: 4000 | AA90: 1466597
